Workbook

Sheet Contents
A1: 80 | M1: ESC USE ONLY
D2: ESSENTIAL SERVICES COMMISSION
D3: Water Price Review
D4: Financial Model Template
B7: Table of Contents | F7: Water Business: | H7: =+N24 -> South East Water | I7: =+O24 -> SEW
B8: Section & Sheet Titles | F8: Regulatory Period: | H8: 2018-19 to 2022-23 (Fourth) | N8: [Decision] | O8: [Month] | P8: [Year] | Q8: [Version]
F9: Model Name: | H9: =I7&"_2018 Price Review Model_"&O9&P9&Q9 -> SEW_2018 Price Review Model_Nov2017 - v1 | N9: Draft | O9: Nov | P9: 2017 | Q9: - v1 | R9: << Select
B10: a. | C10: =+KeyAssumptionsPriceControl_FO!B1 -> Key Assumptions Price Control | F10: Decision type: | H10: =+N9&" Decision" -> Draft Decision | N10: Draft | O10: Jan | P10: 2016 | Q10: - v1
B11: b. | C11: =+Expenditure_Detail!B1 -> Expenditure - Detail | N11: Final | O11: Feb | P11: 2017 | Q11: - v1.2
B12: c. | C12: =Opex_FO!B1 -> Operating Expenditure - Forecast | F12: Model Key: | O12: Mar | P12: 2018 | Q12: - v3
B13: d. | C13: =Opex_Breakdown!B1 -> Operating Expenditure - Breakdown | O13: Apr | P13: 2019 | Q13: - v3.1
B14: e. | C14: =+'Capex_FO input'!B1 -> Capital Expenditure - Forecast Input | G14: BLUE | H14: =+I7&" - DATA INPUT CELL" -> SEW - DATA INPUT CELL | O14: May | P14: 2020 | Q14: - v4
B15: f. | C15: =Capex_FO_AC!B1 -> Capital Expenditure - Asset Category Breakdown | O15: Jun | P15: 2021 | Q15: - v4.1
B16: g. | C16: =ExpSummary_FO!B1 -> Expenditure Summary | G16: YELLOW | H16: NOTES / INSTRUCTIONS | O16: Jul | Q16: - v5
B17: h. | C17: =RollForward_FO!B1 -> Rolled forward regulatory asset base (RAB) | O17: Aug | Q17: - v5.1
B18: i. | C18: =PrevPerAdj_FO!B1 -> Previous period adjustments | G18: GREY | H18: MODEL PARAMETERS / ASSUMPTIONS | O18: Sep | Q18: - v6
B19: j. | C19: =RevenuePriceCap_FO!C1 -> Revenue forecast (price caps) | O19: Oct | Q19: - v6.1
B20: k. | C20: Revenue forecast (tariff basket) | G20: WHITE | H20: FORMULA / HARDCODED VALUES | O20: Nov | Q20: - v7
B21: l. | C21: =NotPres_FO!B1 -> Non Prescribed Services | O21: Dec | Q21: - v7.1
B22: m. | C22: ='Finance&Tax_FO'!B1 -> Cash, debt and tax assumptions | G22: ORANGE | H22: FORMULA DIFFERENT TO ADJACENT CELL
B23: n. | C23: ='Rev&RAV_FO'!B1 -> Revenue requirement detail | N23: [Business]
B24: o. | C24: =Indicators_FO!B1 -> Financial indicators | G24: GREEN | H24: DATA FROM 2013 DECISION OR PERFORMANCE REPORT | N24: South East Water | O24: =+VLOOKUP(N24,N25:O42,2,FALSE) -> SEW
B25: p. | C25: =Outcomes!B1 -> Outcomes | N25: Barwon Water | O25: BW
B26: q. | C26: =GSL!B1 -> Guaranteed Service Levels (GSL) | G26: RED | H26: ERROR CHECK | N26: Central Highlands Water | O26: CHW
N27: City West Water | O27: CWW
N28: Coliban Water | O28: CW
N29: East Gippsland Water | O29: EGW
N30: Gippsland Water | O30: CGW
N31: Goulburn Valley Water | O31: GVW
N32: GWM Water | O32: GWMW | P32: diff model
N33: Lower Murray Water - Urban | O33: LMW-U | P33: diff model
N34: Lower Murray Water - Rural | O34: LMW-R
N35: North East Water | O35: NEW
N36: South East Water | O36: SEW
N37: South Gippsland Water | O37: SGW
N38: Southern Rural Water | O38: SRW | P38: diff model
N39: Wannon Water | O39: WNW
N40: Western Water | O40: WW
N41: Westernport Water | O41: WPW
N42: Yarra Valley Water | O42: YVW

Sheet KeyAssumptionsPriceControl_FO
A1: 80 | B1: Key Assumptions Price Control
B2: =+Contents!H7 -> South East Water
B3: Go to Table of Contents
L4: FIRST REG PERIOD | P4: SECOND REG PERIOD | U4: THIRD REG PERIOD | Z4: FOURTH REG PERIOD | AC4: FIFTH REG PERIOD
F6: Straight Line | K6: 2006 | L6: 2007 | M6: 2008 | N6: 2009 | O6: 2010 | P6: 2011 | Q6: 2012 | R6: 2013 | S6: 2014 | T6: 2015 | U6: 2016 | V6: 2017 | W6: 2018 | X6: 2019 | Y6: 2020 | Z6: 2021 | AA6: 2022 | AB6: 2023 | AC6: 2024 | AD6: 2025 | AE6: 2026 | AF6: 2027 | AG6: 2028
F7: Declining Balance | I7: 2003-04 | J7: 2004-05 | K7: =+CONCATENATE(K6-1,"-",RIGHT(K6,2)) -> 2005-06 | L7: =+CONCATENATE(L6-1,"-",RIGHT(L6,2)) -> 2006-07 | M7: 2007-08 | N7: 2008-09 | O7: 2009-10 | P7: 2010-11 | Q7: 2011-12 | R7: 2012-13 | S7: 2013-14 | T7: 2014-15 | U7: 2015-16 | V7: 2016-17 | W7: 2017-18 | X7: 2018-19 | Y7: 2019-20 | Z7: 2020-21 | AA7: 2021-22 | AB7: 2022-23 | AC7: 2023-24 | AD7: 2024-25 | AE7: 2025-26 | AF7: 2026-27 | AG7: 2027-28
E11: Inflation assumptions
F13: March quarter annual CPI | I13: 141.3 | J13: 144.1 | K13: 147.5 | L13: 151.9 | M13: 155.6 | N13: 162.2 | O13: 166.2 | P13: 171 | Q13: 176.7 | R13: 99.9 | S13: 102.4 | T13: 105.4 | U13: 106.8 | V13: 108.2 | W13: 110.5
F14: Inflation | J14: =+J13/I13-1 -> 0.01981599434 | K14: 0.02359472588 | L14: 0.02983050847 | M14: 0.02435813035 | N14: 0.04241645244 | O14: 0.02466091245 | P14: 0.02888086643 | Q14: 0.03333333333 | R14: 0.01584606678 | S14: =+IF(S13=0,$X$44,S13/R13-1) -> 0.02502502503 | T14: 0.029296875 | U14: 0.01328273245 | V14: 0.01310861423 | W14: 0.02125693161 | X14: 0.023 | Y14: 0.023 | Z14: 0.023 | AA14: 0.023 | AB14: 0.023 | AC14: 0.023 | AD14: 0.023 | AE14: 0.023 | AF14: 0.023 | AG14: 0.023
F15: Inflation factor | I15: 0.7871866295 | J15: 0.8027855153 | K15: 0.8217270195 | L15: 0.8462395543 | M15: 0.8668523677 | N15: 0.9036211699 | O15: 0.9259052925 | P15: 0.9526462396 | Q15: 0.9844011142 | R15: =+R13/$W$13 -> 0.9040723982 | S15: 0.9266968326 | T15: 0.9538461538 | U15: 0.9665158371 | V15: =+V13/$W$13 -> 0.9791855204 | W15: =+W13/$W$13 -> 1 | X15: =+W15*(1+X14) -> 1.023 | Y15: =+X15*(1+Y14) -> 1.046529 | Z15: 1.070599167 | AA15: 1.095222948 | AB15: 1.120413076 | AC15: 1.146182576 | AD15: 1.172544776 | AE15: 1.199513305 | AF15: 1.227102112 | AG15: 1.25532546
I16: CPI index re-referenced in 2012-13, shaded values have been hardcoded to lock in RAB value.
E21: Cost of debt - 10 year trailing average (Nominal)
W22: Estimate
E23: Cost of debt | L23: 0.06981666667 | M23: 0.07414 | N23: 0.0691525788 | O23: 0.07361870984 | P23: 0.07046784142 | Q23: 0.06308887941 | R23: 0.0526945046 | S23: 0.070525 | T23: 0.05360833333 | U23: 0.05270138413 | V23: 0.0491 | W23: 0.0491
E24: Re-financing weightings - average 10 yrs | L24: =1/10 -> 0.1 | M24: =1/10 -> 0.1 | N24: =1/10 -> 0.1 | O24: =1/10 -> 0.1 | P24: =1/10 -> 0.1 | Q24: 0.1 | R24: 0.1 | S24: 0.1 | T24: 0.1 | U24: 0.1 | V24: 0.1 | W24: 0.1 | X24: 0.1 | Y24: 0.1 | Z24: 0.1 | AA24: 0.1 | AB24: 0.1 | AC24: 0.1 | AD24: 0.1 | AE24: 0.1 | AF24: 0.1 | AG24: 0.1
E26: Cost of debt - 10 year trailing average | V26: =IF(U23<>"",SUMPRODUCT(L23:U23,L24:U24),"") -> 0.06498138982 | W26: =IF(V23<>"",SUMPRODUCT(M23:V23,M24:V24),"") -> 0.06290972315 | X26: =IF(W23<>"",SUMPRODUCT(N23:W23,N24:W24),"") -> 0.06040572315 | Y26: =IF(X23<>"",SUMPRODUCT(O23:X23,O24:X24),"") ->  | Z26: =IF(Y23<>"",SUMPRODUCT(P23:Y23,P24:Y24),"") -> 
E30: WACC assumptions (retained for historical purposes only) | U30: Regulatory Rate of Return (RRR) - Nominal
K32: 1st period | M32: 2nd period | O32: 3rd period | U32: Cost of Debt | X32: =+X26 -> 0.06040572315 | Y32: =+$X$32 -> 0.06040572315 | Z32: 0.06040572315 | AA32: 0.06040572315 | AB32: 0.06040572315 | AC32: 0.06040572315 | AD32: 0.06040572315 | AE32: 0.06040572315 | AF32: 0.06040572315 | AG32: 0.06040572315 | AI32: << Linked to Benchmark tax liability calculation (Rev&RAV_FO)
E33: Parameters
F34: Risk Free Rate (Real) | K34: =+HLOOKUP(Contents!$I$7&1,Determination_Lookup!$C$54:$BD$61,2,FALSE) -> 0.0267 | M34: =+HLOOKUP(Contents!$I$7&2,Determination_Lookup!$C$54:$BD$61,2,FALSE) -> 0.022185 | O34: =+HLOOKUP(Contents!$I$7&3,Determination_Lookup!$C$54:$BD$61,2,FALSE) -> 0.005959
F35: Debt Premium | K35: =+HLOOKUP(Contents!$I$7&1,Determination_Lookup!$C$54:$BD$61,3,FALSE) -> 0.0116 | M35: =+HLOOKUP(Contents!$I$7&2,Determination_Lookup!$C$54:$BD$61,3,FALSE) -> 0.0225 | O35: =+HLOOKUP(Contents!$I$7&3,Determination_Lookup!$C$54:$BD$61,3,FALSE) -> 0.0399
F36: Equity Premium | K36: =+HLOOKUP(Contents!$I$7&1,Determination_Lookup!$C$54:$BD$61,4,FALSE) -> 0.06 | M36: =+HLOOKUP(Contents!$I$7&2,Determination_Lookup!$C$54:$BD$61,4,FALSE) -> 0.06 | O36: =+HLOOKUP(Contents!$I$7&3,Determination_Lookup!$C$54:$BD$61,4,FALSE) -> 0.06 | U36: Regulatory Rate of Return (RRR) - Real
F37: Equity Beta | K37: =+HLOOKUP(Contents!$I$7&1,Determination_Lookup!$C$54:$BD$61,5,FALSE) -> 0.75 | M37: =+HLOOKUP(Contents!$I$7&2,Determination_Lookup!$C$54:$BD$61,5,FALSE) -> 0.65 | O37: =+HLOOKUP(Contents!$I$7&3,Determination_Lookup!$C$54:$BD$61,5,FALSE) -> 0.65
F38: Gearing (Debt/Assets) | K38: =+HLOOKUP(Contents!$I$7&1,Determination_Lookup!$C$54:$BD$61,6,FALSE) -> 0.6 | M38: =+HLOOKUP(Contents!$I$7&2,Determination_Lookup!$C$54:$BD$61,6,FALSE) -> 0.6 | O38: =+HLOOKUP(Contents!$I$7&3,Determination_Lookup!$C$54:$BD$61,6,FALSE) -> 0.6 | U38: Cost of Debt | X38: =(1+X32)/(1+X44)-1 -> 0.03656473426 | Y38: =+$X$38 -> 0.03656473426 | Z38: =+$X$38 -> 0.03656473426 | AA38: 0.03656473426 | AB38: 0.03656473426 | AC38: 0.03656473426 | AD38: 0.03656473426 | AE38: 0.03656473426 | AF38: 0.03656473426 | AG38: 0.03656473426
F39: Forecast Inflation | K39: =+HLOOKUP(Contents!$I$7&1,Determination_Lookup!$C$54:$BD$61,7,FALSE) -> 0.0255 | M39: =+HLOOKUP(Contents!$I$7&2,Determination_Lookup!$C$54:$BD$61,7,FALSE) -> 0.025 | O39: =+HLOOKUP(Contents!$I$7&3,Determination_Lookup!$C$54:$BD$61,7,FALSE) -> 0.0275
F40: Franking credit value | K40: =+HLOOKUP(Contents!$I$7&1,Determination_Lookup!$C$54:$BD$61,8,FALSE) -> 0.5 | M40: =+HLOOKUP(Contents!$I$7&2,Determination_Lookup!$C$54:$BD$61,8,FALSE) -> 0.5 | O40: =+HLOOKUP(Contents!$I$7&3,Determination_Lookup!$C$54:$BD$61,8,FALSE) -> 0.5 | U40: Return on Equity | X40: =IF(AG65<>0,(AG65/100),IF(AG63<>0,(AG63/100),(AG61/100))) -> 0.049 | Y40: =+$X$40 -> 0.049 | Z40: 0.049 | AA40: 0.049 | AB40: 0.049 | AC40: 0.049 | AD40: 0.049 | AE40: 0.049 | AF40: 0.049 | AG40: 0.049 | AI40: << Source: PREMO Assessment Matrix
E42: 'Vanilla' After Tax WACC (Real) | K42: =ROUND(((K34+K36*K37)*(1-K38))+((K34+K35)*K38),3) -> 0.052 | M42: =ROUND(((M34+M36*M37)*(1-M38))+((M34+M35)*M38),3) -> 0.051 | O42: =ROUND(((O34+O36*O37)*(1-O38))+((O34+O35)*O38),3) -> 0.045 | U42: RRR (real) | X42: =ROUND((X40*(1-X43)+X38*X43),3) -> 0.042 | Y42: 0.042 | Z42: 0.042 | AA42: 0.042 | AB42: 0.042 | AC42: 0.042 | AD42: 0.042 | AE42: 0.042 | AF42: 0.042 | AG42: 0.042
U43: Gearing | X43: 0.6 | Y43: =+X43 -> 0.6 | Z43: =+Y43 -> 0.6 | AA43: 0.6 | AB43: 0.6 | AC43: 0.6 | AD43: 0.6 | AE43: 0.6 | AF43: 0.6 | AG43: 0.6
U44: Forecast Inflation | X44: 0.023 | Y44: =+X44 -> 0.023 | Z44: 0.023 | AA44: 0.023 | AB44: 0.023 | AC44: 0.023 | AD44: 0.023 | AE44: 0.023 | AF44: 0.023 | AG44: 0.023
E46: Form of price control selected
E48: Price caps | I48: 1
U49: PREMO Graded Scoring System (for reference only) | AB49: PREMO Assessment Matrix (linked to Regulatory Rate of Return calculation above)
E50: Revenue cap / Hybrid Tariff Basket
V52: Water business | X52: ESC assessment | Z52: Difference | AD52: Water business self-assessment
V53: self-assessment | X53: of submission
AD54: Leading | AE54: Advanced | AF54: Standard | AG54: Basic
U55: Risk | V55: 3.5 | Z55: =IFERROR(IF(X55=0,"",X55-V55),"") ->  | AB55: ESC assessment of submission | AC55: Leading | AD55: 5.3
U56: Engagement | V56: 3.25 | Z56: =IFERROR(IF(X56=0,"",X56-V56),"") ->  | AC56: Advanced | AD56: 4.7 | AE56: 4.9
U57: Management | V57: 3.25 | Z57: =IFERROR(IF(X57=0,"",X57-V57),"") ->  | AC57: Standard | AD57: 4.1 | AE57: 4.3 | AF57: 4.5
U58: Outcomes | V58: 3.5 | Z58: =IFERROR(IF(X58=0,"",X58-V58),"") ->  | AC58: Basic | AF58: 3.9 | AG58: 4.1
U60: Total Score | V60: =SUM(V55:V58) -> 13.5 | X60: =SUM(X55:X58) -> 0 | Z60: =IFERROR(IF(X60=0,"",X60-V60),"") -> 
AB61: Water business self-assessment (Maximum allowable ROE) | AF61: Advanced | AG61: =+VLOOKUP(AF61,$AF$72:$AG$76,2,FALSE) -> 4.9
AB63: ROE Override (Must be less than Maximum allowable ROE) | AG63: =+IF(AF63<=AG61,AF63,"CHECK") -> 0
U64: Rating | V64: =IF(V60<4,"",IF(AND(V60>=4,V60<=7.25),"Basic",IF(AND(V60>=7.5,V60<=11.25),"Standard",IF(AND(V60>=11.5,V60<=15.25),"Advanced",IF(AND(V60>=15.5,V60<=16),"Leading"))))) -> Advanced | X64: =IF(X60<4,"",IF(AND(X60>=4,X60<=7.25),"Basic",IF(AND(X60>=7.5,X60<=11.25),"Standard",IF(AND(X60>=11.5,X60<=15.25),"Advanced",IF(AND(X60>=15.5,X60<=16),"Leading"))))) -> 
AB65: ESC assessment of submission | AF65: Advanced | AG65: =IFERROR(IF(AF65=AF61,AG61,VLOOKUP(AF61&AF65,AF79:AG83,2,FALSE)),0) -> 4.9
AF67: Difference | AG67: =IFERROR(IF(AG65=0,"",AG65-AG61),"") -> 0
U70: ESC USE ONLY
W71: [Select] | Y71: Rating | Z71: Aggregate score for overall PREMO rating | AF71: Business self assessment
W72: 1 | Y72: Leading | Z72: 15.5 to 16.0 | AF72: [Select]
W73: 1.25 | Y73: Advanced | Z73: 11.5 to 15.25 | AF73: Leading | AG73: =+AD55 -> 5.3
W74: 1.5 | Y74: Standard | Z74: 7.5 to 11.25 | AF74: Advanced | AG74: =+AE56 -> 4.9
W75: 1.75 | Y75: Basic | Z75: 4.0 to 7.25 | AF75: Standard | AG75: =+AF57 -> 4.5
W76: 2 | AF76: Basic | AG76: =+AG58 -> 4.1
W77: 2.25
W78: 2.5 | AF78: downgrading
W79: 2.75 | AF79: =AF54&AC58 -> StandardBasic | AG79: =+AF58 -> 3.9
W80: 3 | AF80: =+AE54&AC57 -> AdvancedStandard | AG80: =+AE57 -> 4.3
W81: 3.25 | AF81: =+AD54&AC56 -> LeadingAdvanced | AG81: =+AD56 -> 4.7
W82: 3.5 | AF82: =+AD54&AC57 -> LeadingStandard | AG82: =+AD57 -> 4.1
W83: 3.75 | AF83: =+AF61&"Basic" -> AdvancedBasic | AG83: CHECK
W84: 4

Sheet Expenditure_Detail
B1: Expenditure - Detail
B2: =+Model_Name -> South East Water
B3: Go to Table of Contents
L4: FIRST REG PERIOD | P4: SECOND REG PERIOD | S4: THIRD REG PERIOD | X4: FOURTH REG PERIOD | AC4: FIFTH REG PERIOD
K5: 2006 | L5: 2007 | M5: 2008 | N5: 2009 | O5: 2010 | P5: 2011 | Q5: 2012 | R5: 2013 | S5: 2014 | T5: 2015 | U5: 2016 | V5: 2017 | W5: 2018 | X5: 2019 | Y5: 2020 | Z5: 2021 | AA5: 2022 | AB5: 2023 | AC5: 2024 | AD5: 2025 | AE5: 2026 | AF5: 2027 | AG5: 2028
B6: $m, 01/01/18 | K6: =+CONCATENATE(K5-1,"-",RIGHT(K5,2)) -> 2005-06 | L6: =+CONCATENATE(L5-1,"-",RIGHT(L5,2)) -> 2006-07 | M6: 2007-08 | N6: 2008-09 | O6: 2009-10 | P6: 2010-11 | Q6: 2011-12 | R6: 2012-13 | S6: 2013-14 | T6: 2014-15 | U6: 2015-16 | V6: 2016-17 | W6: 2017-18 | X6: 2018-19 | Y6: 2019-20 | Z6: 2020-21 | AA6: 2021-22 | AB6: 2022-23 | AC6: 2023-24 | AD6: 2024-25 | AE6: 2025-26 | AF6: 2026-27 | AG6: 2027-28
C10: Labour assumptions
D12: Current FTEs (at 30 June) | R12: 485.82 | S12: 476.32806 | T12: 463.68 | U12: 495.9 | V12: 499.95
D13: Actual and forecast labour costs for current FTEs ($m) | R13: 56.47203429 | S13: 54.72124023 | T13: 51.02276399 | U13: 50.28644401 | V13: 52.04275008 | W13: 52.04275008 | X13: 52.04275008 | Y13: 52.04275008 | Z13: 52.04275008 | AA13: 52.04275008 | AB13: 52.04275008 | AC13: 52.04275008 | AD13: 52.04275008 | AE13: 52.04275008 | AF13: 52.04275008 | AG13: 52.04275008
D14: Cost per FTE ($000) | R14: =+R13/R12*10^3 -> 116.2406535 | S14: 114.8814123 | T14: 110.0387422 | U14: 101.4044041 | V14: =+V13/V12*10^3 -> 104.0959098 | W14: =+W13/$V$12*10^3 -> 104.0959098 | X14: 104.0959098 | Y14: 104.0959098 | Z14: 104.0959098 | AA14: 104.0959098 | AB14: 104.0959098 | AC14: 104.0959098 | AD14: 104.0959098 | AE14: 104.0959098 | AF14: 104.0959098 | AG14: =+AG13/$V$12*10^3 -> 104.0959098
D15: Annual growth in labour costs for current FTEs | S15: =+S14/R14-1 -> -0.01169333798 | T15: -0.04215364315 | U15: -0.07846634642 | V15: 0.02654229504 | W15: 0 | X15: 0 | Y15: 0 | Z15: 0 | AA15: 0 | AB15: 0 | AC15: =+AC14/AB14-1 -> 0 | AD15: =+AD14/AC14-1 -> 0 | AE15: =+AE14/AD14-1 -> 0 | AF15: =+AF14/AE14-1 -> 0 | AG15: =+AG14/AF14-1 -> 0
D17: Change in FTEs in future periods (net no. annual change)
D18: Increase or decrease in labour costs ($m)
D22: Total FTEs | R22: =+R12 -> 485.82 | S22: 476.32806 | T22: 463.68 | U22: 495.9 | V22: 499.95 | W22: =+$V$12+SUM($W17:W17) -> 499.95 | X22: =+$V$12+SUM($W17:X17) -> 499.95 | Y22: =+$V$12+SUM($W17:Y17) -> 499.95 | Z22: =+$V$12+SUM($W17:Z17) -> 499.95 | AA22: =+$V$12+SUM($W17:AA17) -> 499.95 | AB22: =+$V$12+SUM($W17:AB17) -> 499.95 | AC22: =+$V$12+SUM($W17:AC17) -> 499.95 | AD22: =+$V$12+SUM($W17:AD17) -> 499.95 | AE22: =+$V$12+SUM($W17:AE17) -> 499.95 | AF22: =+$V$12+SUM($W17:AF17) -> 499.95 | AG22: =+$V$12+SUM($W17:AG17) -> 499.95
D23: Total labour costs ($m) | R23: 56.47203429 | S23: 54.72124023 | T23: 51.02276399 | U23: 50.28644401 | V23: =+V13 -> 52.04275008 | W23: =+W18+W13 -> 52.04275008 | X23: =+X18+X13 -> 52.04275008 | Y23: 52.04275008 | Z23: 52.04275008 | AA23: 52.04275008 | AB23: 52.04275008 | AC23: 52.04275008 | AD23: 52.04275008 | AE23: 52.04275008 | AF23: 52.04275008 | AG23: 52.04275008
D24: Cost per FTE | R24: =+R23/R22 -> 0.1162406535 | S24: 0.1148814123 | T24: 0.1100387422 | U24: 0.1014044041 | V24: 0.1040959098 | W24: 0.1040959098 | X24: 0.1040959098 | Y24: 0.1040959098 | Z24: 0.1040959098 | AA24: 0.1040959098 | AB24: 0.1040959098 | AC24: 0.1040959098 | AD24: 0.1040959098 | AE24: 0.1040959098 | AF24: 0.1040959098 | AG24: 0.1040959098
D25: Annual growth in total labour costs | S25: =+S23/R23-1 -> -0.03100285084 | T25: -0.06758758083 | U25: -0.01443120512 | V25: 0.03492603429 | W25: =+W23/V23-1 -> 0 | X25: =+X23/W23-1 -> 0 | Y25: =+Y23/X23-1 -> 0 | Z25: =+Z23/Y23-1 -> 0 | AA25: =+AA23/Z23-1 -> 0 | AB25: =+AB23/AA23-1 -> 0 | AC25: =+AC23/AB23-1 -> 0 | AD25: =+AD23/AC23-1 -> 0 | AE25: =+AE23/AD23-1 -> 0 | AF25: =+AF23/AE23-1 -> 0 | AG25: =+AG23/AF23-1 -> 0
D26: Annual growth in total labour costs per FTE | S26: -0.01169333798 | T26: -0.04215364315 | U26: -0.07846634642 | V26: 0.02654229504 | W26: 0 | X26: 0 | Y26: 0 | Z26: 0 | AA26: 0 | AB26: 0 | AC26: =+AC24/AB24-1 -> 0 | AD26: 0 | AE26: 0 | AF26: 0 | AG26: 0
C32: Energy assumptions
D34: Electricity - traditional sources
D36: BASE LOAD
D38: Large sites
D39: Total kWh | R39: 18902000 | S39: 19245000 | T39: 21349000 | U39: 21566000 | V39: 21540293.37 | W39: 22004754.43 | X39: 22470405.79 | Y39: 22931951.43 | Z39: 23414781.33 | AA39: 23786428.92 | AB39: 24160846.53 | AC39: 24537478.56 | AD39: 24927613.35 | AE39: 25361330.58 | AF39: 25796661.34 | AG39: 26155920.45
D40: Total electricity costs ($m) | R40: 2.571902655 | S40: 2.530744337 | T40: 2.459119497 | U40: 2.551189245 | V40: 2.744613786 | W40: 3.626107084 | X40: 3.927545967 | Y40: 3.715480658 | Z40: 3.779009883 | AA40: 3.84292079 | AB40: 3.971515533 | AC40: 4.132276735 | AD40: 4.303004719 | AE40: 4.487500406 | AF40: 4.673516333 | AG40: 4.855554846
D41: Average c/kWh | R41: =+R40/R39*100*10^6 -> 13.60651071 | S41: 13.15013945 | T41: 11.51866362 | U41: 11.82968212 | V41: 12.74176604 | W41: 16.4787437 | X41: 17.47874962 | Y41: 16.20220011 | Z41: 16.13941992 | AA41: 16.15593834 | AB41: 16.43781615 | AC41: =+AC40/AC39*100*10^6 -> 16.84067385 | AD41: 17.26200041 | AE41: 17.6942625 | AF41: 18.1167488 | AG41: 18.56388443
D42: % increase p.a. | S42: =+S41/R41-1 -> -0.03354065382 | T42: -0.124065287 | U42: 0.02700126534 | V42: 0.07710130485 | W42: 0.2932856909 | X42: 0.06068459691 | Y42: -0.07303437261 | Z42: -0.003874793885 | AA42: 0.001023483141 | AB42: 0.01744731889 | AC42: =+AC41/AB41-1 -> 0.02450798189 | AD42: =+AD41/AC41-1 -> 0.02501839083 | AE42: =+AE41/AD41-1 -> 0.02504125119 | AF42: =+AF41/AE41-1 -> 0.02387702201 | AG42: =+AG41/AF41-1 -> 0.02468078807
D44: Medium sites
D45: Total kWh
D46: Total electricity costs ($m)
D47: Average c/kWh | R47: =+R46/R45*100*10^6 ->  | AC47: =+AC46/AC45*100*10^6 -> 
D48: % increase p.a. | S48: =+S47/R47-1 ->  | AC48: =+AC47/AB47-1 ->  | AD48: =+AD47/AC47-1 ->  | AE48: =+AE47/AD47-1 ->  | AF48: =+AF47/AE47-1 ->  | AG48: =+AG47/AF47-1 -> 
D50: Small sites
D51: Total kWh | R51: 6126000 | S51: 6025000 | T51: 5996000 | U51: 6049000 | V51: 6815543.6 | W51: 6926757.605 | X51: 7039285.757 | Y51: 7153455.788 | Z51: 7264542.901 | AA51: 7350469.895 | AB51: 7437266.98 | AC51: 7524944.868 | AD51: 7613514.411 | AE51: 7702839.191 | AF51: 7793070.581 | AG51: 7884219.596
D52: Total electricity costs ($m) | R52: 1.345132743 | S52: 1.337648328 | T52: 1.210691824 | U52: 1.149948294 | V52: 1.200495489 | W52: 1.346309459 | X52: 1.370676146 | Y52: 1.452817652 | Z52: 1.538591896 | AA52: 1.625348524 | AB52: 1.722806905 | AC52: 1.826112309 | AD52: 1.935615471 | AE52: 2.051641598 | AF52: 2.174675278 | AG52: 2.305090113
D53: Average c/kWh | R53: =+R52/R51*100*10^6 -> 21.95776597 | S53: 22.201632 | T53: 20.19165817 | U53: 19.01055205 | V53: 17.61408273 | W53: 19.43635877 | X53: 19.47180713 | Y53: 20.30931197 | Z53: 21.17947291 | AA53: 22.11217171 | AB53: 23.16451607 | AC53: =+AC52/AC51*100*10^6 -> 24.26745101 | AD53: 25.4234164 | AE53: 26.63487511 | AF53: 27.90524294 | AG53: 29.23675686
D54: % increase p.a. | S54: =+S53/R53-1 -> 0.01110614024 | T54: -0.09053270627 | U54: -0.05849475597 | V54: -0.07345758902 | W54: 0.1034556305 | X54: 0.001823816994 | Y54: 0.04301115095 | Z54: 0.04284541705 | AA54: 0.0440378665 | AB54: 0.04759118076 | AC54: =+AC53/AB53-1 -> 0.04761312238 | AD54: =+AD53/AC53-1 -> 0.04763439676 | AE54: =+AE53/AD53-1 -> 0.04765129485 | AF54: =+AF53/AE53-1 -> 0.0476956558 | AG54: =+AG53/AF53-1 -> 0.0477155464
D57: NEW PROJECTS
D59: Large sites
D60: Total kWh | W60: 691087 | X60: 527017 | Y60: 1882185 | Z60: 5073422.463 | AA60: 7553682.323 | AB60: 7584875.63 | AC60: 8685344.216 | AD60: 9129806.031 | AE60: 10935185.75 | AF60: 11347215.69 | AG60: 11607827.45
D61: Total electricity costs ($m) | W61: 0.1104301729 | X61: 0.06651488332 | Y61: 0.4144055476 | Z61: 1.173817096 | AA61: 1.822892069 | AB61: 1.872243289 | AC61: 2.200373096 | AD61: 2.364878648 | AE61: 2.901395311 | AF61: 3.071696077 | AG61: 3.203730545
D62: Average c/kWh | R62: =+R61/R60*100*10^6 ->  | W62: 15.97919985 | X62: 12.62101285 | Y62: 22.01725907 | Z62: 23.13659279 | AA62: 24.1324958 | AB62: 24.68390228 | AC62: =+AC61/AC60*100*10^6 -> 25.3343223 | AD62: 25.90283562 | AE62: 26.53265685 | AF62: 27.07004222 | AG62: 27.59974301
D63: % increase p.a. | S63: =+S62/R62-1 ->  | X63: -0.210159897 | Y63: 0.7444922466 | Z63: 0.0508389224 | AA63: 0.04304449738 | AB63: 0.02284912768 | AC63: =+AC62/AB62-1 -> 0.02634996717 | AD63: =+AD62/AC62-1 -> 0.02244043929 | AE63: =+AE62/AD62-1 -> 0.02431476012 | AF63: =+AF62/AE62-1 -> 0.02025373363 | AG63: =+AG62/AF62-1 -> 0.01956778615
D65: Medium sites
D66: Total kWh
D67: Total electricity costs ($m)
D68: Average c/kWh | R68: =+R67/R66*100*10^6 ->  | AC68: =+AC67/AC66*100*10^6 -> 
D69: % increase p.a. | S69: =+S68/R68-1 ->  | AC69: =+AC68/AB68-1 ->  | AD69: =+AD68/AC68-1 ->  | AE69: =+AE68/AD68-1 ->  | AF69: =+AF68/AE68-1 ->  | AG69: =+AG68/AF68-1 -> 
D71: Small sites
D72: Total kWh | V72: 0 | W72: 122405 | X72: 114692.94 | Y72: 118864.94 | Z72: 166820.94 | AA72: 166820.94 | AB72: 396923.94 | AC72: 396923.94 | AD72: 396923.94 | AE72: 363175.94 | AF72: 363175.94 | AG72: 363175.94
D73: Total electricity costs ($m) | W73: 0.02272690147 | X73: 0.02250038316 | Y73: 0.02456806703 | Z73: 0.0362332637 | AA73: 0.03798648614 | AB73: 0.09455432695 | AC73: 0.09872584138 | AD73: 0.1028973558 | AE73: 0.09796546308 | AF73: 0.1017822993 | AG73: 0.1055991355
D74: Average c/kWh | R74: =+R73/R72*100*10^6 ->  | W74: 18.5669715 | X74: 19.61793216 | Y74: 20.66889281 | Z74: 21.71985346 | AA74: 22.77081411 | AB74: 23.82177476 | AC74: 24.87273541 | AD74: 25.92369606 | AE74: 26.97465671 | AF74: 28.02561736 | AG74: 29.07657802
D75: % increase p.a. | S75: =+S74/R74-1 ->  | X75: 0.05660377358 | Y75: 0.05357142857 | Z75: 0.05084745763 | AA75: 0.04838709677 | AB75: 0.04615384615 | AC75: =+AC74/AB74-1 -> 0.04411764706 | AD75: =+AD74/AC74-1 -> 0.04225352113 | AE75: =+AE74/AD74-1 -> 0.04054054054 | AF75: =+AF74/AE74-1 -> 0.03896103896 | AG75: =+AG74/AF74-1 -> 0.0375
D78: Greenhouse Gas Offsets | W78: -0.2377456667 | X78: -0.6010914314 | Y78: -0.593113364 | Z78: -0.5986855102 | AA78: -1.542666979 | AB78: -1.569933747 | AC78: -2.23563285 | AD78: -2.504314694 | AE78: -2.548147579 | AF78: -3.677110688 | AG78: -3.73982472
D79: % increase p.a. | S79: =S78/R78-1 ->  | T79: =T78/S78-1 ->  | X79: 1.528296055 | Y79: -0.01327263539 | Z79: 0.009394740662 | AA79: 1.576756833 | AB79: 0.01767508339 | AC79: 0.4240300617 | AD79: 0.1201815603 | AE79: 0.01750294606 | AF79: 0.4430524817 | AG79: 0.01705524709
D82: TOTAL ENERGY COSTS | N82: =+SUM(N40,N46,N52,N61,N67,N73,N78) -> 0 | O82: =+SUM(O40,O46,O52,O61,O67,O73,O78) -> 0 | P82: 0 | Q82: 0 | R82: 3.917035398 | S82: 3.868392665 | T82: 3.669811321 | U82: 3.701137539 | V82: 3.945109274 | W82: 4.867827951 | X82: 4.786145948 | Y82: 5.014158561 | Z82: 5.928966628 | AA82: 5.786480891 | AB82: 6.091186306 | AC82: 6.021855132 | AD82: 6.2020815 | AE82: 6.9903552 | AF82: 6.344559299 | AG82: 6.73014992
D83: % increase p.a. | S83: =S82/R82-1 -> -0.01241825227 | T83: =T82/S82-1 -> -0.05133432952 | U83: 0.008536193087 | V83: 0.06591804086 | W83: 0.2338892569 | X83: -0.01677996921 | Y83: 0.0476401297 | Z83: 0.1824449816 | AA83: -0.02403213668 | AB83: 0.05265815628 | AC83: -0.01138221208 | AD83: 0.02992871202 | AE83: 0.1270982491 | AF83: -0.09238384636 | AG83: 0.06077500474
C88: IT cost assumptions
D90: Water related IT costs | R90: 4.254637137 | S90: 4.740493164 | T90: 4.413709677 | U90: 4.561746255 | V90: 4.741185305 | W90: 4.971185305 | X90: 4.971185305 | Y90: 5.022030961 | Z90: 5.022030961 | AA90: 5.124156654 | AB90: 5.124156654 | AC90: 5.124156654 | AD90: 5.124156654 | AE90: 5.124156654 | AF90: 5.124156654 | AG90: 5.124156654
D91: Sewerage and trade waste related IT costs | R91: 4.254637137 | S91: 4.740493164 | T91: 4.413709677 | U91: 4.561746255 | V91: 4.741185305 | W91: 4.971185305 | X91: 4.971185305 | Y91: 5.022030961 | Z91: 5.022030961 | AA91: 5.124156654 | AB91: 5.124156654 | AC91: 5.124156654 | AD91: 5.124156654 | AE91: 5.124156654 | AF91: 5.124156654 | AG91: 5.124156654
D92: Other IT costs
D93: Total IT costs | R93: =SUM(R90:R92) -> 8.509274274 | S93: 9.480986328 | T93: 8.827419355 | U93: 9.123492509 | V93: 9.48237061 | W93: 9.94237061 | X93: 9.94237061 | Y93: 10.04406192 | Z93: 10.04406192 | AA93: 10.24831331 | AB93: 10.24831331 | AC93: =SUM(AC90:AC92) -> 10.24831331 | AD93: 10.24831331 | AE93: 10.24831331 | AF93: 10.24831331 | AG93: 10.24831331
D94: % increase p.a. | S94: =S93/R93-1 -> 0.1141944686 | T94: =T93/S93-1 -> -0.06893449169 | U94: 0.03354017099 | V94: 0.03933560533 | W94: 0.04851107586 | X94: 0 | Y94: 0.01022807501 | Z94: 0 | AA94: 0.02033553635 | AB94: 0 | AC94: 0 | AD94: 0 | AE94: 0 | AF94: 0 | AG94: 0
C99: Chemical cost assumptions
D101: Water related chemical costs | R101: 0.03960081081 | S101: 0.03353200195 | T101: 0.03522706452 | U101: 0.07172805384 | V101: 0.1229165884 | W101: 0.1663738509 | X101: 0.2106122228 | Y101: 0.2158442801 | Z101: 0.2210763375 | AA101: 0.225813367 | AB101: 0.2300553688 | AC101: 0.2342973705 | AD101: 0.2385393722 | AE101: 0.2427813739 | AF101: 0.2468818114 | AG101: 0.2508406846
D102: Sewerage and trade waste related chemical costs | R102: 0.5164214071 | S102: 0.759498927 | T102: 0.9309358185 | U102: 1.064948054 | V102: 0.9840185598 | W102: 1.13220525 | X102: 1.161048166 | Y102: 1.189891082 | Z102: 1.518733997 | AA102: 1.551276095 | AB102: 1.580417487 | AC102: 1.609558879 | AD102: 1.638700271 | AE102: 1.667841664 | AF102: 1.696010548 | AG102: 1.723206924
D103: Other chemical costs
D104: Total chemical costs | R104: =SUM(R101:R103) -> 0.5560222179 | S104: 0.793030929 | T104: 0.9661628831 | U104: 1.136676108 | V104: 1.106935148 | W104: 1.298579101 | X104: 1.371660389 | Y104: 1.405735362 | Z104: 1.739810335 | AA104: 1.777089462 | AB104: 1.810472856 | AC104: =SUM(AC101:AC103) -> 1.84385625 | AD104: 1.877239644 | AE104: 1.910623038 | AF104: 1.942892359 | AG104: 1.974047609
D105: % increase p.a. | S105: =S104/R104-1 -> 0.4262576268 | T105: =T104/S104-1 -> 0.218316774 | U105: 0.1764849674 | V105: -0.02616484999 | W105: 0.1731302447 | X105: 0.05627788678 | Y105: 0.02484213536 | Z105: 0.2376513974 | AA105: 0.02142712146 | AB105: 0.01878543233 | AC105: 0.01843904686 | AD105: 0.01810520415 | AE105: 0.01778323505 | AF105: 0.01688942358 | AG105: 0.01603549965

Sheet Opex_FO
B1: Operating Expenditure - Forecast
B2: =+Model_Name -> South East Water
B3: Go to Table of Contents
L4: FIRST REG PERIOD | P4: SECOND REG PERIOD | S4: THIRD REG PERIOD | X4: FOURTH REG PERIOD | AC4: FIFTH REG PERIOD
K5: 2006 | L5: 2007 | M5: 2008 | N5: 2009 | O5: 2010 | P5: 2011 | Q5: 2012 | R5: 2013 | S5: 2014 | T5: 2015 | U5: 2016 | V5: 2017 | W5: 2018 | X5: 2019 | Y5: 2020 | Z5: 2021 | AA5: 2022 | AB5: 2023 | AC5: 2024 | AD5: 2025 | AE5: 2026 | AF5: 2027 | AG5: 2028
B6: $m, 01/01/18 | K6: =+CONCATENATE(K5-1,"-",RIGHT(K5,2)) -> 2005-06 | L6: =+CONCATENATE(L5-1,"-",RIGHT(L5,2)) -> 2006-07 | M6: 2007-08 | N6: 2008-09 | O6: 2009-10 | P6: 2010-11 | Q6: 2011-12 | R6: 2012-13 | S6: 2013-14 | T6: 2014-15 | U6: 2015-16 | V6: 2016-17 | W6: 2017-18 | X6: 2018-19 | Y6: 2019-20 | Z6: 2020-21 | AA6: 2021-22 | AB6: 2022-23 | AC6: 2023-24 | AD6: 2024-25 | AE6: 2025-26 | AF6: 2026-27 | AG6: 2027-28
C9: Parameters | F9: 3rd period | H9: 4th period
D11: Cost efficiency improvement rate (% per annum) | F11: 0.01 | H11: =+SUM(X11:AB11)/5 -> 0.02295392811 | X11: 0.02547498847 | Y11: 0.02484213536 | Z11: 0.02423996292 | AA11: 0.02142712146 | AB11: 0.01878543233 | AC11: 0.02 | AD11: 0.02 | AE11: 0.02 | AF11: 0.02 | AG11: 0.02
D13: Customer growth forecast (% per annum) | F13: =AVERAGE(T13:W13) -> 0.02257786813 | H13: =+SUM(X13:AB13)/5 -> 0.02295392811 | T13: =IF(T15="","",T15/S15-1) -> 0.01869373804 | U13: =IF(U15="","",U15/T15-1) -> 0.02590346061 | V13: 0.02191427385 | W13: 0.0238 | X13: 0.02547498847 | Y13: 0.02484213536 | Z13: 0.02423996292 | AA13: 0.02142712146 | AB13: 0.01878543233 | AC13: 0.01843904686 | AD13: 0.01810520415 | AE13: 0.01778323505 | AF13: 0.01688942358 | AG13: 0.01603549965
D15: Water customers (No.) - Residential & Non-Residential - [BED 1] | S15: =+Determination_Lookup!BF3 -> 695741 | T15: =+Determination_Lookup!BG3 -> 708747 | U15: =+Determination_Lookup!BH3 -> 727106 | V15: 743040 | W15: =+V$15*(1+W$13) -> 760724.352 | X15: =+W$15*(1+X$13) -> 780103.7961 | Y15: =+X$15*(1+Y$13) -> 799483.2402 | Z15: 818862.6843 | AA15: 836408.5545 | AB15: 852120.8508 | AC15: 867833.1471 | AD15: 883545.4434 | AE15: 899257.7397 | AF15: 914445.6846 | AG15: 929109.278 | AI15: << Used as normalising metric for dashboard graphs
D17: Sewer customers (No.) - Residential & Non-Residential - [BED 2] | S17: =+Determination_Lookup!BJ3 -> 664221 | T17: =+Determination_Lookup!BK3 -> 678117 | U17: =+Determination_Lookup!BL3 -> 697973 | V17: 714624 | W17: =+V$17*(1+W$13) -> 731632.0512 | X17: =+W$17*(1+X$13) -> 750270.3693 | Y17: =+X$17*(1+Y$13) -> 768908.6873 | Z17: 787547.0054 | AA17: 804421.8708 | AB17: 819533.2834 | AC17: 834644.696 | AD17: 849756.1086 | AE17: 864867.5212 | AF17: 879474.6351 | AG17: 893577.4503 | AI17: << Used as normalising metric for dashboard graphs
D19: Total metered volume of water delivered to customers (ML) - [BED 10] | S19: =+Determination_Lookup!BB3 -> 126673 | T19: =+Determination_Lookup!BC3 -> 131038 | U19: =+Determination_Lookup!BD3 -> 141886 | V19: 140141 | W19: 141702.2808 | X19: 144086.9177 | Y19: 145898.3849 | Z19: 147744.9541 | AA19: 149221.5748 | AB19: 150704.1191 | AC19: 152213.0397 | AD19: 153744.3346 | AE19: 155293.9335 | AF19: 156615.919 | AG19: 157945.736 | AI19: << Used as normalising metric for dashboard graphs
D20: Residential, Non-Residential & Recycled (Residential & Non-Residential)
C24: Baseline Forecast
D26: Baseline year - total prescribed operating expenditure in 2016-17: | V26: =+Opex_Breakdown!V37 -> 647.15623
D28: Less non-controllable expenditure items incurred in 2016-17:
E29: External bulk water charges (excl. temporary purchases) | V29: =+Opex_Breakdown!V29 -> 497.2774144
E30: External temporary water purchases | V30: =+Opex_Breakdown!V30 -> 0 | X30: Comparison with approved 2016-17 total controllable opex
E31: Licence fees | V31: =+Opex_Breakdown!V31 -> 1.060093024 | X31: per 2013 determination model
E32: Environment Contribution | V32: =+Opex_Breakdown!V32 -> 28.45221811
E33: Other non-controllable | V33: =+Opex_Breakdown!V33 -> 0.3878226262
V34: =SUM(V29:V33) -> 527.1775482 | Y34: 2016-17 | Z34: Difference | AA34: %
D36: Baseline year - total controllable operating expenditure in 2016-17: | V36: =+V26-V34 -> 119.9786818 | Y36: =+Determination_Lookup!AX3 -> 127.2515502 | Z36: =+V52-Y36 -> -6.312868404 | AA36: =+Z36/Y36 -> -0.04960936344
D38: Adjustments for non-recurring expenditure items incurred in 2016-17 and any efficiency savings to be realised from 2016-17: | X38: ($, 2017-18)
D40: 1 | E40: Customer Engagement Consultancy | V40: 0.4
D41: 2 | E41: Maintenance agreement | V41: -0.76
D42: 3 | E42: Long service leave adjustment | V42: -0.42
D43: 4 | E43: Safety officers | V43: -0.18
D44: 5
D45: 6
D46: 7
D47: 8
D48: 9
D49: 10
V50: =SUM(V40:V49) -> -0.96
D52: Baseline controllable operating expenditure (2016-17) | V52: =+V36-V50 -> 120.9386818
D54: Adjusted Baseline controllable operating expenditure (Forecast) | W54: =+V52*(1+$W$13-$F$11) -> 122.6076357 | X54: =+$W$54*(1+X$13-X$11) -> 122.6076357 | Y54: =+X$54*(1+Y$13-Y$11) -> 122.6076357 | Z54: 122.6076357 | AA54: 122.6076357 | AB54: 122.6076357 | AC54: 122.4162509 | AD54: 122.1842971 | AE54: 121.9134432 | AF54: 121.5342221 | AG54: 121.0523997
C58: Operating expenditure - reconciliation
D61: Adjusted Baseline controllable operating expenditure (Forecast) | X61: =+X54 -> 122.6076357 | Y61: 122.6076357 | Z61: 122.6076357 | AA61: 122.6076357 | AB61: 122.6076357 | AC61: 122.4162509 | AD61: 122.1842971 | AE61: 121.9134432 | AF61: 121.5342221 | AG61: 121.0523997
H62: Controllable
D63: Forecast variations to baseline operating expenditure (above or below baseline) | H63: only
D65: 1 | E65: Aquarevo - maintenance and water quality testing | H65: Water | X65: 0.41348 | Y65: 0.671405 | Z65: 0.80621 | AA65: 0.73277 | AB65: 0.73277 | AC65: 0.73277 | AD65: 0.73277 | AE65: 0.73277 | AF65: 0.73277 | AG65: 0.73277
D66: 2 | E66: Lang Lang Treatment Plant | H66: Sewerage | X66: 0.28 | Y66: 0.28 | Z66: 0.28 | AA66: 0.28 | AB66: 0.28 | AC66: 0.28 | AD66: 0.28 | AE66: 0.28 | AF66: 0.28 | AG66: 0.28
D67: 3 | E67: Information security | H67: Sewerage | X67: 0.225 | Y67: 0.275 | Z67: 0.275 | AA67: 0.375 | AB67: 0.375 | AC67: 0.375 | AD67: 0.375 | AE67: 0.375 | AF67: 0.375 | AG67: 0.375
D68: 4 | E68: Boneo Treatment Plant upgrade | H68: Sewerage | X68: 0 | Y68: 0 | Z68: 0.9 | AA68: 1.2 | AB68: 1.2 | AC68: 1.2 | AD68: 1.2 | AE68: 1.2 | AF68: 1.2 | AG68: 1.2
D69: 5 | H69: [Service]
D70: 6 | H70: [Service]
D71: 7 | H71: [Service]
D72: 8 | H72: [Service]
D73: 9 | H73: [Service]
D74: 10 | H74: [Service]
D75: 11 | H75: [Service]
D76: 12 | H76: [Service]
D77: 13 | H77: [Service]
D78: 14 | H78: [Service]
D79: 15 | H79: [Service]
D81: Total changes required to baseline operating expenditure | X81: =SUM(X65:X80) -> 0.91848 | Y81: 1.226405 | Z81: 2.26121 | AA81: 2.58777 | AB81: 2.58777 | AC81: 2.58777 | AD81: 2.58777 | AE81: 2.58777 | AF81: 2.58777 | AG81: 2.58777
D84: Total controllable operating expenditure | X84: =+X81+X61 -> 123.5261157 | Y84: 123.8340407 | Z84: 124.8688457 | AA84: 125.1954057 | AB84: 125.1954057 | AC84: 125.0040209 | AD84: 124.7720671 | AE84: 124.5012132 | AF84: 124.1219921 | AG84: 123.6401697
D86: Non-controllable operating expenditure
D87: External bulk water charges (excl. temporary purchases) | X87: =+Opex_Breakdown!X29 -> 499.4340039 | Y87: =+Opex_Breakdown!Y29 -> 498.0622244 | Z87: =+Opex_Breakdown!Z29 -> 487.5087492 | AA87: =+Opex_Breakdown!AA29 -> 488.2029627 | AB87: =+Opex_Breakdown!AB29 -> 488.8938756 | AC87: =+Opex_Breakdown!AC29 -> 489.5892342 | AD87: =+Opex_Breakdown!AD29 -> 490.2927335 | AE87: =+Opex_Breakdown!AE29 -> 491.0026223 | AF87: =+Opex_Breakdown!AF29 -> 491.6250854 | AG87: =+Opex_Breakdown!AG29 -> 492.2378984
D88: External temporary water purchases | X88: =+Opex_Breakdown!X30 -> 0 | Y88: =+Opex_Breakdown!Y30 -> 0 | Z88: =+Opex_Breakdown!Z30 -> 0 | AA88: =+Opex_Breakdown!AA30 -> 0 | AB88: =+Opex_Breakdown!AB30 -> 0 | AC88: =+Opex_Breakdown!AC30 -> 0 | AD88: =+Opex_Breakdown!AD30 -> 0 | AE88: =+Opex_Breakdown!AE30 -> 0 | AF88: =+Opex_Breakdown!AF30 -> 0 | AG88: =+Opex_Breakdown!AG30 -> 0
D89: Licence fees | X89: =+Opex_Breakdown!X31 -> 0.962829871 | Y89: =+Opex_Breakdown!Y31 -> 0.962829871 | Z89: =+Opex_Breakdown!Z31 -> 0.7642370837 | AA89: =+Opex_Breakdown!AA31 -> 1.058680267 | AB89: =+Opex_Breakdown!AB31 -> 1.524270155 | AC89: =+Opex_Breakdown!AC31 -> 0.962829871 | AD89: =+Opex_Breakdown!AD31 -> 0.962829871 | AE89: =+Opex_Breakdown!AE31 -> 0.7642370837 | AF89: =+Opex_Breakdown!AF31 -> 1.058680267 | AG89: =+Opex_Breakdown!AG31 -> 1.524270155
D90: Environment Contribution | X90: =+Opex_Breakdown!X32 -> 39.77517107 | Y90: =+Opex_Breakdown!Y32 -> 38.88091013 | Z90: =+Opex_Breakdown!Z32 -> 38.00675477 | AA90: =+Opex_Breakdown!AA32 -> 37.15225295 | AB90: =+Opex_Breakdown!AB32 -> 36.31696281 | AC90: =+Opex_Breakdown!AC32 -> 35.5004524 | AD90: =+Opex_Breakdown!AD32 -> 34.70229952 | AE90: =+Opex_Breakdown!AE32 -> 33.92209141 | AF90: =+Opex_Breakdown!AF32 -> 33.15942465 | AG90: =+Opex_Breakdown!AG32 -> 32.41390484
D91: Other non-controllable | X91: =+Opex_Breakdown!X33 -> 0.4261288756 | Y91: =+Opex_Breakdown!Y33 -> 0.4470118456 | Z91: =+Opex_Breakdown!Z33 -> 0.4679031882 | AA91: =+Opex_Breakdown!AA33 -> 0.4888024846 | AB91: =+Opex_Breakdown!AB33 -> 0.5097093371 | AC91: =+Opex_Breakdown!AC33 -> 0 | AD91: =+Opex_Breakdown!AD33 -> 0 | AE91: =+Opex_Breakdown!AE33 -> 0 | AF91: =+Opex_Breakdown!AF33 -> 0 | AG91: =+Opex_Breakdown!AG33 -> 0
D92: Total non-controllable operating expenditure | X92: =SUM(X87:X91) -> 540.5981338 | Y92: 538.3529762 | Z92: 526.7476443 | AA92: 526.9026985 | AB92: 527.2448179 | AC92: 526.0525165 | AD92: 525.9578629 | AE92: 525.6889508 | AF92: 525.8431904 | AG92: 526.1760734
D95: Total prescribed operating expenditure | X95: =+X92+X84 -> 664.1242494 | Y95: 662.1870169 | Z95: 651.6164899 | AA95: 652.0981041 | AB95: 652.4402235 | AC95: 651.0565374 | AD95: 650.7299299 | AE95: 650.190164 | AF95: 649.9651825 | AG95: =+AG92+AG84 -> 649.816243
W98: To reconcile to 'Opex_Breakdown' tab row 37 >> | X98: =+Opex_Breakdown!X37 -> 664.1242494 | Y98: =+Opex_Breakdown!Y37 -> 662.1870169 | Z98: =+Opex_Breakdown!Z37 -> 651.6164899 | AA98: =+Opex_Breakdown!AA37 -> 652.0981041 | AB98: =+Opex_Breakdown!AB37 -> 652.4402235 | AC98: =+Opex_Breakdown!AC37 -> 651.0565374 | AD98: =+Opex_Breakdown!AD37 -> 650.7299299 | AE98: =+Opex_Breakdown!AE37 -> 650.190164 | AF98: =+Opex_Breakdown!AF37 -> 649.9651825 | AG98: =+Opex_Breakdown!AG37 -> 649.816243
W99: Difference | X99: =+X98-X95 -> 0 | Y99: 0 | Z99: 0 | AA99: 0 | AB99: 0 | AC99: 0 | AD99: 0 | AE99: 0 | AF99: 0 | AG99: 0
W100: Test | X100: =ROUND(X98,2)=ROUND(X95,2) -> TRUE | Y100: =ROUND(Y98,2)=ROUND(Y95,2) -> TRUE | Z100: TRUE | AA100: TRUE | AB100: TRUE | AC100: TRUE | AD100: TRUE | AE100: TRUE | AF100: TRUE | AG100: TRUE
X139: =+X$160 -> 2018-19 | Y139: 2019-20 | Z139: 2020-21 | AA139: 2021-22 | AB139: 2022-23 | AC139: 2023-24 | AD139: 2024-25 | AE139: 2025-26 | AF139: 2026-27 | AG139: 2027-28
W140: Total controllable opex | X140: =+X84 -> 123.5261157 | Y140: 123.8340407 | Z140: 124.8688457 | AA140: 125.1954057 | AB140: 125.1954057 | AC140: 125.0040209 | AD140: 124.7720671 | AE140: 124.5012132 | AF140: 124.1219921 | AG140: 123.6401697
W141: Change - $ | Y141: =+Y140-X140 -> 0.307925 | Z141: 1.034805 | AA141: 0.32656 | AB141: 0 | AC141: -0.191384774 | AD141: -0.231953804 | AE141: -0.2708538672 | AF141: -0.3792210813 | AG141: -0.4818224661
W142: Change - % | Y142: =IFERROR(Y141/X140,"") -> 0.002492792705 | Z142: 0.008356385648 | AA142: 0.002615223984 | AB142: 0 | AC142: -0.001528688477 | AD142: -0.001855570744 | AE142: -0.002170789293 | AF142: -0.003045922779 | AG142: -0.00388184606
X144: =+X$160 -> 2018-19 | Y144: 2019-20 | Z144: 2020-21 | AA144: 2021-22 | AB144: 2022-23 | AC144: 2023-24 | AD144: 2024-25 | AE144: 2025-26 | AF144: 2026-27 | AG144: 2027-28
W145: Total non-controllable opex | X145: =+X92 -> 540.5981338 | Y145: 538.3529762 | Z145: 526.7476443 | AA145: 526.9026985 | AB145: 527.2448179 | AC145: 526.0525165 | AD145: 525.9578629 | AE145: 525.6889508 | AF145: 525.8431904 | AG145: 526.1760734
W146: Change - $ | Y146: =+Y145-X145 -> -2.245157534 | Z146: -11.60533198 | AA146: 0.1550542015 | AB146: 0.3421194017 | AC146: -1.192301371 | AD146: -0.09465360795 | AE146: -0.2689120889 | AF146: 0.1542395646 | AG146: 0.332883026
W147: Change - % | Y147: =IFERROR(Y146/X145,"") -> -0.004153098935 | Z147: -0.02155710563 | AA147: 0.0002943614521 | AB147: 0.000649302808 | AC147: -0.002261380919 | AD147: -0.0001799318604 | AE147: -0.0005112806707 | AF147: 0.0002934046157 | AG147: 0.0006330461859
X149: =+X$160 -> 2018-19 | Y149: 2019-20 | Z149: 2020-21 | AA149: 2021-22 | AB149: 2022-23 | AC149: 2023-24 | AD149: 2024-25 | AE149: 2025-26 | AF149: 2026-27 | AG149: 2027-28
W150: Total prescribed opex | X150: =+X140+X145 -> 664.1242494 | Y150: 662.1870169 | Z150: 651.6164899 | AA150: 652.0981041 | AB150: 652.4402235 | AC150: 651.0565374 | AD150: 650.7299299 | AE150: 650.190164 | AF150: 649.9651825 | AG150: 649.816243
W151: Change - $ | Y151: =+Y150-X150 -> -1.937232534 | Z151: -10.57052698 | AA151: 0.4816142015 | AB151: 0.3421194017 | AC151: -1.383686145 | AD151: -0.326607412 | AE151: -0.5397659561 | AF151: -0.2249815168 | AG151: -0.1489394401
W152: Change - % | Y152: =IFERROR(Y151/X150,"") -> -0.002916973045 | Z152: -0.0159630538 | AA152: 0.000739106835 | AB152: 0.0005246440674 | AC152: -0.002120786081 | AD152: -0.0005016575262 | AE152: -0.0008294776854 | AF152: -0.0003460241776 | AG152: -0.0002291498747
W155: Controllable vs. Non-controllable opex - % | X155: =+X$160 -> 2018-19 | Y155: 2019-20 | Z155: 2020-21 | AA155: 2021-22 | AB155: 2022-23 | AC155: 2023-24 | AD155: 2024-25 | AE155: 2025-26 | AF155: 2026-27 | AG155: 2027-28
W156: Controllable opex - % | X156: =+X84/X95 -> 0.1859985022 | Y156: 0.1870076542 | Z156: 0.1916293519 | AA156: 0.1919886055 | AB156: 0.1918879326 | AC156: 0.1920017905 | AD156: 0.1917417062 | AE156: 0.1914843074 | AF156: 0.1909671402 | AG156: 0.1902694354
W157: Non-controllable opex - % | X157: =+X92/X95 -> 0.8140014978 | Y157: 0.8129923458 | Z157: 0.8083706481 | AA157: 0.8080113945 | AB157: 0.8081120674 | AC157: 0.8079982095 | AD157: 0.8082582938 | AE157: 0.8085156926 | AF157: 0.8090328598 | AG157: 0.8097305646
X158: =SUM(X156:X157) -> 1 | Y158: 1 | Z158: 1 | AA158: 1 | AB158: 1 | AC158: 1 | AD158: 1 | AE158: 1 | AF158: 1 | AG158: 1
V160: =+V6 -> 2016-17 | W160: 2017-18 | X160: 2018-19 | Y160: 2019-20 | Z160: 2020-21 | AA160: 2021-22 | AB160: 2022-23 | AC160: 2023-24 | AD160: 2024-25 | AE160: 2025-26 | AF160: 2026-27 | AG160: 2027-28
U161: Third Reg period Opex | V161: =+V169-SUM(V162:V168) -> 119.9786818 | W161: =+W169-SUM(W162:W168) -> 122.6815024
U162: Adjusted baseline opex | X162: =+X61 -> 122.6076357 | Y162: 122.6076357 | Z162: 122.6076357 | AA162: 122.6076357 | AB162: 122.6076357 | AC162: 122.4162509 | AD162: 122.1842971 | AE162: 121.9134432 | AF162: 121.5342221 | AG162: 121.0523997
U163: Forecast variations to baseline operating expenditure | X163: =+X81 -> 0.91848 | Y163: 1.226405 | Z163: 2.26121 | AA163: 2.58777 | AB163: 2.58777 | AC163: 2.58777 | AD163: 2.58777 | AE163: 2.58777 | AF163: 2.58777 | AG163: 2.58777
U164: Licence fees | V164: =+V193 -> 1.060093024 | W164: =+W193 -> 1.524270155 | X164: =+X89 -> 0.962829871 | Y164: 0.962829871 | Z164: 0.7642370837 | AA164: 1.058680267 | AB164: 1.524270155 | AC164: 0.962829871 | AD164: 0.962829871 | AE164: 0.7642370837 | AF164: 1.058680267 | AG164: 1.524270155
U165: Environment Contribution | V165: =+V194 -> 28.45221811 | W165: =+W194 -> 27.86 | X165: =+X90 -> 39.77517107 | Y165: 38.88091013 | Z165: 38.00675477 | AA165: 37.15225295 | AB165: 36.31696281 | AC165: 35.5004524 | AD165: 34.70229952 | AE165: 33.92209141 | AF165: 33.15942465 | AG165: 32.41390484
U166: External bulk water charges | V166: =+V191 -> 497.2774144 | W166: =+W191 -> 496.8367741 | X166: =+X87 -> 499.4340039 | Y166: 498.0622244 | Z166: 487.5087492 | AA166: 488.2029627 | AB166: 488.8938756 | AC166: 489.5892342 | AD166: 490.2927335 | AE166: 491.0026223 | AF166: 491.6250854 | AG166: 492.2378984
U167: External temporary water purchases | V167: =+V192 -> 0 | W167: =+W192 -> 0 | X167: =+X88 -> 0 | Y167: 0 | Z167: 0 | AA167: 0 | AB167: 0 | AC167: 0 | AD167: 0 | AE167: 0 | AF167: 0 | AG167: 0
U168: Other non-controllable | V168: =+V195 -> 0.3878226262 | W168: =+W195 -> 0.4003908967 | X168: =+X91 -> 0.4261288756 | Y168: 0.4470118456 | Z168: 0.4679031882 | AA168: 0.4888024846 | AB168: 0.5097093371 | AC168: 0 | AD168: 0 | AE168: 0 | AF168: 0 | AG168: 0
U169: Total prescribed opex | V169: =+Opex_Breakdown!V37 -> 647.15623 | W169: =+Opex_Breakdown!W37 -> 649.3029376 | X169: =SUM(X162:X168) -> 664.1242494 | Y169: 662.1870169 | Z169: 651.6164899 | AA169: 652.0981041 | AB169: 652.4402235 | AC169: 651.0565374 | AD169: 650.7299299 | AE169: 650.190164 | AF169: 649.9651825 | AG169: 649.816243
X171: =+X$160 -> 2018-19 | Y171: 2019-20 | Z171: 2020-21 | AA171: 2021-22 | AB171: 2022-23 | AC171: 2023-24 | AD171: 2024-25 | AE171: 2025-26 | AF171: 2026-27 | AG171: 2027-28
W172: Adjusted baseline opex | X172: =+X162/X$169 -> 0.184615508 | Y172: 0.1851556019 | Z172: 0.1881591972 | AA172: 0.1880202302 | AB172: 0.1879216382 | AC172: 0.1880270665 | AD172: 0.1877649874 | AE172: 0.1875042871 | AF172: 0.1869857423 | AG172: 0.1862871249
W173: Forecast variations to baseline operating expenditure | X173: =+X163/X$169 -> 0.001382994223 | Y173: 0.001852052319 | Z173: 0.003470154662 | AA173: 0.003968375285 | AB173: 0.003966294393 | AC173: 0.003974723932 | AD173: 0.003976718883 | AE173: 0.003980020221 | AF173: 0.003981397881 | AG173: 0.003982310427
W174: Licence fees | X174: =+X164/X$169 -> 0.001449773701 | Y174: 0.001454015024 | Z174: 0.001172832633 | AA174: 0.001623498459 | AB174: 0.002336260243 | AC174: 0.001478872902 | AD174: 0.001479615162 | AE174: 0.001175405483 | AF174: 0.001628826121 | AG174: 0.002345694142
W175: Environment Contribution | X175: =+X165/X$169 -> 0.05989115907 | Y175: 0.05871590524 | Z175: 0.05832687687 | AA175: 0.05697341047 | AB175: 0.05566327995 | AC175: 0.05452744941 | AD175: 0.0533282671 | AE175: 0.05217256934 | AF175: 0.05101723222 | AG175: 0.04988164759
W176: External bulk water charges (excl. temporary purchases) | X176: =+X166/X$169 -> 0.7520189248 | Y176: 0.7521473718 | Z176: 0.7481528733 | AA176: 0.7486649013 | AB176: 0.7493312919 | AC176: 0.7519918872 | AD176: 0.7534504115 | AE176: 0.7551677178 | AF176: 0.7563868015 | AG176: 0.7575032229
W177: External temporary water purchases | X177: =+X167/X$169 -> 0 | Y177: 0 | Z177: 0 | AA177: 0 | AB177: 0 | AC177: 0 | AD177: 0 | AE177: 0 | AF177: 0 | AG177: 0
W178: Other non-controllable | X178: =+X168/X$169 -> 0.0006416402893 | Y178: 0.0006750537752 | Z178: 0.0007180652968 | AA178: 0.000749584275 | AB178: 0.0007812353052 | AC178: 0 | AD178: 0 | AE178: 0 | AF178: 0 | AG178: 0
W179: Total prescribed opex | X179: =+X169/X$169 -> 1 | Y179: 1 | Z179: 1 | AA179: 1 | AB179: 1 | AC179: 1 | AD179: 1 | AE179: 1 | AF179: 1 | AG179: 1
X181: =+X$160 -> 2018-19 | Y181: 2019-20 | Z181: 2020-21 | AA181: 2021-22 | AB181: 2022-23 | AC181: 2023-24 | AD181: 2024-25 | AE181: 2025-26 | AF181: 2026-27 | AG181: 2027-28
W182: Water | X182: =+SUMIF($H$65:$H$80,$W182,X$65:X$80) -> 0.41348 | Y182: 0.671405 | Z182: 0.80621 | AA182: 0.73277 | AB182: 0.73277 | AC182: 0.73277 | AD182: 0.73277 | AE182: 0.73277 | AF182: 0.73277 | AG182: 0.73277
W183: Sewerage | X183: 0.505 | Y183: 0.555 | Z183: 1.455 | AA183: 1.855 | AB183: 1.855 | AC183: 1.855 | AD183: 1.855 | AE183: 1.855 | AF183: 1.855 | AG183: 1.855
W184: Recycled Water | X184: 0 | Y184: 0 | Z184: 0 | AA184: 0 | AB184: 0 | AC184: 0 | AD184: 0 | AE184: 0 | AF184: 0 | AG184: 0
W185: Rural water | X185: 0 | Y185: 0 | Z185: 0 | AA185: 0 | AB185: 0 | AC185: 0 | AD185: 0 | AE185: 0 | AF185: 0 | AG185: 0
W186: Bulk Water | X186: 0 | Y186: 0 | Z186: 0 | AA186: 0 | AB186: 0 | AC186: 0 | AD186: 0 | AE186: 0 | AF186: 0 | AG186: 0
W187: Forecast variations to baseline operating expenditure | X187: =SUM(X182:X186) -> 0.91848 | Y187: 1.226405 | Z187: 2.26121 | AA187: 2.58777 | AB187: 2.58777 | AC187: 2.58777 | AD187: 2.58777 | AE187: 2.58777 | AF187: 2.58777 | AG187: 2.58777
V190: =+V6 -> 2016-17 | W190: 2017-18 | X190: 2018-19 | Y190: 2019-20 | Z190: 2020-21 | AA190: 2021-22 | AB190: 2022-23 | AC190: 2023-24 | AD190: 2024-25 | AE190: 2025-26 | AF190: 2026-27 | AG190: 2027-28
U191: External bulk water charges (excl. temporary purchases) | V191: =+Opex_Breakdown!V29 -> 497.2774144 | W191: =+Opex_Breakdown!W29 -> 496.8367741 | X191: =+X87 -> 499.4340039 | Y191: 498.0622244 | Z191: 487.5087492 | AA191: 488.2029627 | AB191: 488.8938756 | AC191: 489.5892342 | AD191: 490.2927335 | AE191: 491.0026223 | AF191: 491.6250854 | AG191: 492.2378984
U192: External temporary water purchases | V192: =+Opex_Breakdown!V30 -> 0 | W192: =+Opex_Breakdown!W30 -> 0 | X192: =+X88 -> 0 | Y192: 0 | Z192: 0 | AA192: 0 | AB192: 0 | AC192: 0 | AD192: 0 | AE192: 0 | AF192: 0 | AG192: 0
U193: Licence fees | V193: =+Opex_Breakdown!V31 -> 1.060093024 | W193: =+Opex_Breakdown!W31 -> 1.524270155 | X193: =+X89 -> 0.962829871 | Y193: 0.962829871 | Z193: 0.7642370837 | AA193: 1.058680267 | AB193: 1.524270155 | AC193: 0.962829871 | AD193: 0.962829871 | AE193: 0.7642370837 | AF193: 1.058680267 | AG193: 1.524270155
U194: Environment Contribution | V194: =+Opex_Breakdown!V32 -> 28.45221811 | W194: =+Opex_Breakdown!W32 -> 27.86 | X194: =+X90 -> 39.77517107 | Y194: 38.88091013 | Z194: 38.00675477 | AA194: 37.15225295 | AB194: 36.31696281 | AC194: 35.5004524 | AD194: 34.70229952 | AE194: 33.92209141 | AF194: 33.15942465 | AG194: 32.41390484
U195: Other non-controllable | V195: =+Opex_Breakdown!V33 -> 0.3878226262 | W195: =+Opex_Breakdown!W33 -> 0.4003908967 | X195: =+X91 -> 0.4261288756 | Y195: 0.4470118456 | Z195: 0.4679031882 | AA195: 0.4888024846 | AB195: 0.5097093371 | AC195: 0 | AD195: 0 | AE195: 0 | AF195: 0 | AG195: 0
U196: Total Non-controllable operating expenditure | V196: =+Opex_Breakdown!V34 -> 527.1775482 | W196: =+Opex_Breakdown!W34 -> 526.6214352 | X196: =SUM(X191:X195) -> 540.5981338 | Y196: 538.3529762 | Z196: 526.7476443 | AA196: 526.9026985 | AB196: 527.2448179 | AC196: 526.0525165 | AD196: 525.9578629 | AE196: 525.6889508 | AF196: 525.8431904 | AG196: 526.1760734
V198: ERROR CHECK | X198: =+X169=X95 -> TRUE | Y198: TRUE | Z198: TRUE | AA198: FALSE | AB198: TRUE | AC198: TRUE | AD198: TRUE | AE198: TRUE | AF198: TRUE | AG198: TRUE
X199: =+X187=X163 -> TRUE | Y199: TRUE | Z199: TRUE | AA199: TRUE | AB199: TRUE | AC199: TRUE | AD199: TRUE | AE199: TRUE | AF199: TRUE | AG199: TRUE
X200: =+X150=X169 -> TRUE | Y200: TRUE | Z200: TRUE | AA200: FALSE | AB200: TRUE | AC200: TRUE | AD200: TRUE | AE200: TRUE | AF200: TRUE | AG200: TRUE
X201: =+X196=X145 -> TRUE | Y201: TRUE | Z201: TRUE | AA201: TRUE | AB201: TRUE | AC201: TRUE | AD201: TRUE | AE201: TRUE | AF201: TRUE | AG201: TRUE

Sheet Opex_Breakdown
A1: 80 | B1: Operating Expenditure - Breakdown
B2: =+Contents!H7 -> South East Water
B3: Go to Table of Contents
L4: FIRST REG PERIOD | P4: SECOND REG PERIOD | U4: THIRD REG PERIOD | Z4: FOURTH REG PERIOD | AC4: FIFTH REG PERIOD
K6: 2006 | L6: 2007 | M6: 2008 | N6: 2009 | O6: 2010 | P6: 2011 | Q6: 2012 | R6: 2013 | S6: 2014 | T6: 2015 | U6: 2016 | V6: 2017 | W6: 2018 | X6: 2019 | Y6: 2020 | Z6: 2021 | AA6: 2022 | AB6: 2023 | AC6: 2024 | AD6: 2025 | AE6: 2026 | AF6: 2027 | AG6: 2028
B7: $m, 01/01/18 | K7: =+CONCATENATE(K6-1,"-",RIGHT(K6,2)) -> 2005-06 | L7: =+CONCATENATE(L6-1,"-",RIGHT(L6,2)) -> 2006-07 | M7: 2007-08 | N7: 2008-09 | O7: 2009-10 | P7: 2010-11 | Q7: 2011-12 | R7: 2012-13 | S7: 2013-14 | T7: 2014-15 | U7: 2015-16 | V7: 2016-17 | W7: 2017-18 | X7: =+CONCATENATE(X6-1,"-",RIGHT(X6,2)) -> 2018-19 | Y7: =+CONCATENATE(Y6-1,"-",RIGHT(Y6,2)) -> 2019-20 | Z7: =+CONCATENATE(Z6-1,"-",RIGHT(Z6,2)) -> 2020-21 | AA7: =+CONCATENATE(AA6-1,"-",RIGHT(AA6,2)) -> 2021-22 | AB7: =+CONCATENATE(AB6-1,"-",RIGHT(AB6,2)) -> 2022-23 | AC7: =+CONCATENATE(AC6-1,"-",RIGHT(AC6,2)) -> 2023-24 | AD7: 2024-25 | AE7: 2025-26 | AF7: 2026-27 | AG7: 2027-28
D10: Operating Expenditure Summary
E12: =C48 -> Water | K12: =+K57-K50-K54 -> 0 | L12: =+L57-L50-L54 -> 0 | M12: 0 | N12: 0 | O12: 0 | P12: 0 | Q12: =+Q57-Q50-Q54 -> 0 | R12: 60.49847347 | S12: 49.94729492 | T12: 48.37572581 | U12: 47.10735019 | V12: 53.02744896 | W12: 55.12886064 | X12: 55.77353743 | Y12: 56.2249534 | Z12: 55.97961169 | AA12: 55.75063959 | AB12: 55.75051207 | AC12: =+AC57-AC50-AC54 -> 55.66861544 | AD12: =+AD57-AD50-AD54+0.01 -> 55.57936551 | AE12: 55.45342882 | AF12: 55.2911392 | AG12: =+AG57-AG50-AG54-0.01 -> 54.99468722
E13: =C59 -> Sewerage | K13: =K68-K61-K65 -> 0 | L13: =L68-L61-L65 -> 0 | M13: 0 | N13: 0 | O13: 0 | P13: 0 | Q13: 0 | R13: 58.55504505 | S13: 62.7767334 | T13: 58.09532258 | U13: 59.12474251 | V13: 60.81263022 | W13: 61.35908245 | X13: 60.97487185 | Y13: 60.84506152 | Z13: 62.18984664 | AA13: 62.75377012 | AB13: 62.75389765 | AC13: =AC68-AC61-AC65 -> 62.65485383 | AD13: 62.52480824 | AE13: 62.39467222 | AF13: 62.19843577 | AG13: 62.0393595
E14: =C70 -> Recycled Water | K14: =K79-K72-K76 -> 0 | L14: =L79-L72-L76 -> 0 | M14: 0 | N14: 0 | O14: 0 | P14: 0 | Q14: 0 | R14: 8.855485485 | S14: 8.164482422 | T14: 7.933145161 | U14: 7.249751873 | V14: 6.138602662 | W14: 6.193559312 | X14: 6.777706365 | Y14: 6.76402573 | Z14: 6.699387324 | AA14: 6.690995937 | AB14: 6.690995937 | AC14: =AC79-AC72-AC76 -> 6.680551606 | AD14: 6.667893325 | AE14: 6.653112172 | AF14: 6.632417159 | AG14: 6.606122938
E15: =C81 -> Rural Water | K15: =K90-K83-K87 -> 0 | L15: =L90-L83-L87 -> 0 | M15: 0 | N15: 0 | O15: 0 | P15: 0 | Q15: 0 | R15: 0 | S15: 0 | T15: 0 | U15: 0 | V15: 0 | W15: 0 | X15: 0 | Y15: 0 | Z15: 0 | AA15: 0 | AB15: 0 | AC15: =AC90-AC83-AC87 -> 0 | AD15: 0 | AE15: 0 | AF15: 0 | AG15: 0
E16: Bulk Water | K16: =K100-K97 -> 0 | L16: =L100-L97 -> 0 | M16: 0 | N16: 0 | O16: 0 | P16: 0 | Q16: 0 | R16: 0 | S16: 0 | T16: 0 | U16: 0 | V16: 0 | W16: 0 | X16: 0 | Y16: 0 | Z16: 0 | AA16: 0 | AB16: 0 | AC16: =AC100-AC97 -> 0 | AD16: 0 | AE16: 0 | AF16: 0 | AG16: 0
E17: Total controllable operating expenditure | K17: =SUM(K12:K16) -> 0 | L17: 0 | M17: 0 | N17: 0 | O17: 0 | P17: 0 | Q17: 0 | R17: 127.909004 | S17: 120.8885107 | T17: 114.4041935 | U17: 113.4818446 | V17: 119.9786818 | W17: 122.6815024 | X17: 123.5261157 | Y17: 123.8340407 | Z17: 124.8688457 | AA17: 125.1954057 | AB17: 125.1954057 | AC17: 125.0040209 | AD17: 124.7720671 | AE17: 124.5012132 | AF17: 124.1219921 | AG17: 123.6401697
E20: Operations & Maintenance | K20: =K49+K60+K71+K82+K93 -> 0 | L20: 0 | M20: 0 | N20: 0 | O20: 0 | P20: 0 | Q20: 0 | R20: 55.83734234 | S20: 50.12966309 | T20: 50.52491935 | U20: 48.76381554 | V20: 50.51609281 | W20: 51.98937015 | X20: 52.69759141 | Y20: 52.9609991 | Z20: 53.09866965 | AA20: 53.02366854 | AB20: 53.02366854 | AC20: 52.94090107 | AD20: 52.84058887 | AE20: 52.72345371 | AF20: 52.55945338 | AG20: 52.35108141
E21: Treatment | K21: =K51+K62+K73+K84+K94 -> 0 | L21: 0 | M21: 0 | N21: 0 | O21: 0 | P21: 0 | Q21: 0 | R21: 11.61300801 | S21: 12.32010254 | T21: 12.11935484 | U21: 13.01996255 | V21: 14.24669121 | W21: 14.44310478 | X21: 14.44310478 | Y21: 14.44310478 | Z21: 15.36223601 | AA21: 15.66861309 | AB21: 15.66848557 | AC21: 15.64400056 | AD21: 15.61433216 | AE21: 15.57964625 | AF21: 15.53111542 | AG21: 15.3892006
E22: Customer Service and billing | K22: =K52+K63+K74+K85+K95 -> 0 | L22: 0 | M22: 0 | N22: 0 | O22: 0 | P22: 0 | Q22: 0 | R22: 23.89963463 | S22: 26.10022949 | T22: 21.67540323 | U22: 22.15483614 | V22: 22.8526138 | W22: 23.25394253 | X22: 23.25394253 | Y22: 23.25394253 | Z22: 23.25394253 | AA22: 23.25394253 | AB22: 23.25394253 | AC22: 23.21764421 | AD22: 23.17365152 | AE22: 23.12228098 | AF22: 23.05035736 | AG22: 22.95897421
E23: GSL Payments | K23: =K53+K64+K75+K86+K96 -> 0 | L23: 0 | M23: 0 | N23: 0 | O23: 0 | P23: 0 | Q23: 0 | R23: 0.09401901902 | S23: 0.155390625 | T23: 0.1037903226 | U23: 0.1034644195 | V23: 0.1304551051 | W23: 0.1322553856 | X23: 0.1322553856 | Y23: 0.1322553856 | Z23: 0.1322553856 | AA23: 0.1322553856 | AB23: 0.1322553856 | AC23: 0.1320489411 | AD23: 0.1317987353 | AE23: 0.1315065685 | AF23: 0.1310975073 | AG23: 0.1305777712
E24: Corporate | K24: =K55+K66+K77+K88+K98 -> 0 | L24: 0 | M24: 0 | N24: 0 | O24: 0 | P24: 0 | Q24: 0 | R24: 36.465 | S24: 32.183125 | T24: 29.98072581 | U24: 29.43976592 | V24: 32.23282892 | W24: 32.86282956 | X24: 32.99922155 | Y24: 33.04373886 | Z24: 33.02174208 | AA24: 33.11692611 | AB24: 33.11705363 | AC24: 33.06942608 | AD24: 33.00169578 | AE24: 32.9443257 | AF24: 32.84996846 | AG24: 32.82033567
E25: Other operating expenditure | K25: =K56+K67+K78+K89+K99 -> 0 | L25: 0 | M25: 0 | N25: 0 | O25: 0 | P25: 0 | Q25: 0 | R25: 0 | S25: 0 | T25: 0 | U25: 0 | V25: 0 | W25: 0 | X25: 0 | Y25: 0 | Z25: 0 | AA25: 0 | AB25: 0 | AC25: 0 | AD25: 0 | AE25: 0 | AF25: 0 | AG25: 0
E26: Total controllable operating expenditure | K26: =SUM(K20:K25) -> 0 | L26: =SUM(L20:L25) -> 0 | M26: 0 | N26: 0 | O26: 0 | P26: 0 | Q26: 0 | R26: 127.909004 | S26: 120.8885107 | T26: 114.4041935 | U26: 113.4818446 | V26: 119.9786818 | W26: 122.6815024 | X26: 123.5261157 | Y26: 123.8340407 | Z26: 124.8688457 | AA26: 125.1954057 | AB26: 125.1954057 | AC26: 125.0040209 | AD26: 124.7620671 | AE26: 124.5012132 | AF26: 124.1219921 | AG26: 123.6501697
E29: External bulk water charges (excl. temporary purchases) | K29: =K50+K61+K72+K83 -> 0 | L29: 0 | M29: 0 | N29: 0 | O29: 0 | P29: 0 | Q29: 0 | R29: 377.19089 | S29: 575.0156363 | T29: 495.2518617 | U29: 541.0938178 | V29: 497.2774144 | W29: 496.8367741 | X29: =X50+X61+X72+X83 -> 499.4340039 | Y29: =Y50+Y61+Y72+Y83 -> 498.0622244 | Z29: 487.5087492 | AA29: 488.2029627 | AB29: 488.8938756 | AC29: 489.5892342 | AD29: 490.2927335 | AE29: 491.0026223 | AF29: 491.6250854 | AG29: 492.2378984
E30: External temporary water purchases | K30: =+K102 -> 0 | L30: 0 | M30: 0 | N30: 0 | O30: 0 | P30: 0 | Q30: 0 | R30: 0 | S30: 0 | T30: 0 | U30: 0 | V30: 0 | W30: 0 | X30: 0 | Y30: 0 | Z30: 0 | AA30: 0 | AB30: 0 | AC30: 0 | AD30: 0 | AE30: 0 | AF30: 0 | AG30: 0
E31: Licence fees | K31: =+K109 -> 0 | L31: 0 | M31: 0 | N31: 0 | O31: 0 | P31: 0 | Q31: 0 | R31: 1.468908909 | S31: 0.9711914062 | T31: 0.9487903226 | U31: 0.7596330192 | V31: 1.060093024 | W31: 1.524270155 | X31: 0.962829871 | Y31: 0.962829871 | Z31: 0.7642370837 | AA31: 1.058680267 | AB31: 1.524270155 | AC31: 0.962829871 | AD31: 0.962829871 | AE31: 0.7642370837 | AF31: 1.058680267 | AG31: 1.524270155
E32: Environment Contribution | K32: =K111 -> 0 | L32: 0 | M32: 0 | N32: 0 | O32: 0 | P32: 0 | Q32: 0 | R32: 18.3314965 | S32: 30.06376953 | T32: 29.20806452 | U32: 28.82518727 | V32: 28.45221811 | W32: 27.86 | X32: 39.77517107 | Y32: 38.88091013 | Z32: 38.00675477 | AA32: 37.15225295 | AB32: 36.31696281 | AC32: 35.5004524 | AD32: 34.70229952 | AE32: 33.92209141 | AF32: 33.15942465 | AG32: 32.41390484
E33: Other non-controllable | K33: =+K124 -> 0 | L33: 0 | M33: 0 | N33: 0 | O33: 0 | P33: 0 | Q33: 0 | R33: 0.2842931722 | S33: 0.3258281451 | T33: 0.3773215927 | U33: 0.3876477918 | V33: 0.3878226262 | W33: 0.4003908967 | X33: 0.4261288756 | Y33: 0.4470118456 | Z33: 0.4679031882 | AA33: 0.4888024846 | AB33: 0.5097093371 | AC33: 0 | AD33: 0 | AE33: 0 | AF33: 0 | AG33: =+AG124 -> 0
E34: Total non-controllable operating expenditure | K34: =SUM(K29:K33) -> 0 | L34: =SUM(L29:L33) -> 0 | M34: 0 | N34: 0 | O34: 0 | P34: 0 | Q34: 0 | R34: 397.2755885 | S34: 606.3764253 | T34: 525.7860381 | U34: 571.0662859 | V34: 527.1775482 | W34: 526.6214352 | X34: 540.5981338 | Y34: 538.3529762 | Z34: 526.7476443 | AA34: 526.9026985 | AB34: 527.2448179 | AC34: 526.0525165 | AD34: 525.9578629 | AE34: 525.6889508 | AF34: 525.8431904 | AG34: 526.1760734
E37: Total prescribed operating expenditure | K37: =+K34+K17 -> 0 | L37: 0 | M37: 0 | N37: 0 | O37: 0 | P37: 0 | Q37: 0 | R37: 525.1845925 | S37: 727.2649361 | T37: 640.1902317 | U37: 684.5481305 | V37: 647.15623 | W37: 649.3029376 | X37: 664.1242494 | Y37: 662.1870169 | Z37: 651.6164899 | AA37: 652.0981041 | AB37: 652.4402235 | AC37: 651.0565374 | AD37: 650.7299299 | AE37: 650.190164 | AF37: 649.9651825 | AG37: 649.816243
W40: To reconcile to 'Opex_FO' tab row 123>> | X40: =+Opex_FO!X95 -> 664.1242494 | Y40: =+Opex_FO!Y95 -> 662.1870169 | Z40: =+Opex_FO!Z95 -> 651.6164899 | AA40: =+Opex_FO!AA95 -> 652.0981041 | AB40: =+Opex_FO!AB95 -> 652.4402235 | AC40: =+Opex_FO!AC95 -> 651.0565374 | AD40: =+Opex_FO!AD95 -> 650.7299299 | AE40: =+Opex_FO!AE95 -> 650.190164 | AF40: =+Opex_FO!AF95 -> 649.9651825 | AG40: =+Opex_FO!AG95 -> 649.816243
W41: Difference | X41: =+X40-X37 -> 0 | Y41: 0 | Z41: 0 | AA41: 0 | AB41: 0 | AC41: 0 | AD41: 0 | AE41: 0 | AF41: 0 | AG41: 0
W42: Test | X42: =ROUND(X40,2)=ROUND(X37,2) -> TRUE | Y42: =ROUND(Y40,2)=ROUND(Y37,2) -> TRUE | Z42: TRUE | AA42: TRUE | AB42: TRUE | AC42: TRUE | AD42: TRUE | AE42: TRUE | AF42: TRUE | AG42: TRUE
B46: Total operating expenditure
C48: Water
D49: Operations & Maintenance | R49: 30.43672172 | S49: 24.10820801 | T49: 26.11217742 | U49: 24.49623596 | V49: 26.71019152 | W49: 27.95248897 | X49: 28.39790962 | Y49: 28.69334667 | Z49: 28.75665449 | AA49: 28.64293907 | AB49: 28.64293907 | AC49: 28.59822879 | AD49: 28.54404098 | AE49: 28.48076555 | AF49: 28.39217395 | AG49: 28.27961317
D50: External bulk charges (excl. temporary purchases) | R50: =+R131 -> 208.7729965 | S50: =+S131 -> 363.8311363 | T50: =+T131 -> 292.8354922 | U50: 338.9041085 | V50: 326.7860537 | W50: 323.2367419 | X50: 322.9392178 | Y50: 319.6019338 | Z50: 308.4724551 | AA50: 308.8210016 | AB50: 309.1712059 | AC50: 309.5279948 | AD50: 309.8904024 | AE50: 310.2574467 | AF50: 310.5778786 | AG50: 310.9003827 | AH50: see reconciliation below
D51: Treatment | R51: 0 | S51: 0 | T51: 0.04717741935 | U51: 0.09001404494 | V51: 0.0816977924 | W51: 0.0816977924 | X51: 0.0816977924 | Y51: 0.0816977924 | Z51: 0.0816977924 | AA51: 0.0816977924 | AB51: 0.08157026598 | AC51: 0.08141570698 | AD51: 0.08123522749 | AE51: 0.08098253911 | AF51: 0.0806614838 | AG51: 0
D52: Customer Service and billing | R52: 11.28891892 | S52: 10.7759082 | T52: 9.159758065 | U52: 9.191779026 | V52: 10.09536171 | W52: 10.44952443 | X52: 10.49150471 | Y52: 10.54958347 | Z52: 10.41474168 | AA52: 10.34454109 | AB52: 10.34454109 | AC52: 10.32839375 | AD52: 10.30882355 | AE52: 10.28597131 | AF52: 10.25397601 | AG52: 10.21332412
D53: GSL Payments | R53: 0.04313813814 | S53: 0.06366699219 | T53: 0.04403225806 | U53: 0.04345505618 | V53: 0.05762979607 | W53: 0.05943103547 | X53: 0.05966979572 | Y53: 0.06000011514 | Z53: 0.05923321064 | AA53: 0.05883394909 | AB53: 0.05883394909 | AC53: 0.05874211205 | AD53: 0.05863080774 | AE53: 0.05850083702 | AF53: 0.0583188657 | AG53: 0.05808766053
D54: Licence Fees | R54: 0 | S54: 0 | T54: 0 | U54: 0 | V54: 0 | W54: 0 | X54: 0 | Y54: 0 | Z54: 0 | AA54: 0 | AB54: 0 | AC54: 0 | AD54: 0 | AE54: 0 | AF54: 0 | AG54: 0
D55: Corporate | R55: 18.72969469 | S55: 14.99951172 | T55: 13.01258065 | U55: 13.2858661 | V55: 16.08256814 | W55: 16.58571841 | X55: 16.74275551 | Y55: 16.84032536 | Z55: 16.66728452 | AA55: 16.62262769 | AB55: 16.62262769 | AC55: 16.60183508 | AD55: 16.57663494 | AE55: 16.54720858 | AF55: 16.50600888 | AG55: 16.45366227
D56: Other operating expenditure | R56: 0 | S56: 0 | T56: 0 | U56: 0 | V56: 0 | W56: 0 | X56: 0 | Y56: 0 | Z56: 0 | AA56: 0 | AB56: 0 | AC56: 0 | AD56: 0 | AE56: 0 | AF56: 0 | AG56: 0
C57: =+CONCATENATE("Total ",C48) -> Total Water | K57: =+SUM(K49:K56) -> 0 | L57: =+SUM(L49:L56) -> 0 | M57: 0 | N57: 0 | O57: 0 | P57: 0 | Q57: 0 | R57: 269.2714699 | S57: 413.7784312 | T57: 341.211218 | U57: 386.0114587 | V57: 379.8135027 | W57: 378.3656026 | X57: 378.7127552 | Y57: 375.8268872 | Z57: 364.4520668 | AA57: 364.5716412 | AB57: 364.921718 | AC57: =+SUM(AC49:AC56) -> 365.1966102 | AD57: 365.4597679 | AE57: 365.7108755 | AF57: 365.8690178 | AG57: 365.9050699
C59: Sewerage
D60: =+D49 -> Operations & Maintenance | R60: 21.61552553 | S60: 22.49710937 | T60: 20.53580645 | U60: 21.0746676 | V60: 21.16869124 | W60: 21.37224035 | X60: 21.29340296 | Y60: 21.2645733 | Z60: 21.35148571 | AA60: 21.39288783 | AB60: 21.39288783 | AC60: 21.35949453 | AD60: 21.31902265 | AE60: 21.27176339 | AF60: 21.20559594 | AG60: 21.12152635
D61: =+D50 -> External bulk charges (excl. temporary purchases) | R61: =+R132 -> 168.1608611 | S61: =+S132 -> 210.8794144 | T61: =+T132 -> 202.0528404 | U61: 201.8195452 | V61: 169.983796 | W61: 173.2400322 | X61: 176.1347862 | Y61: 178.1002906 | Z61: 178.6762941 | AA61: 179.0219611 | AB61: 179.3626696 | AC61: 179.7012394 | AD61: 180.0423311 | AE61: 180.3851756 | AF61: 180.6872068 | AG61: 180.9775157 | AH61: see reconciliation below
D62: Treatment | R62: 10.52570571 | S62: 11.42552734 | T62: 11.55951613 | U62: 12.0567088 | V62: 13.32074053 | W62: 13.50550341 | X62: 13.50550341 | Y62: 13.50550341 | Z62: 14.42463465 | AA62: 14.73101173 | AB62: 14.73101173 | AC62: 14.70801731 | AD62: 14.68014862 | AE62: 14.64760618 | AF62: 14.60204368 | AG62: 14.54415387
D63: Customer Service and billing | R63: 10.95819319 | S63: 13.56322754 | T63: 11.01330645 | U63: 11.5486985 | V63: 11.58756935 | W63: 11.6304459 | X63: 11.48749021 | Y63: 11.43521343 | Z63: 11.59281157 | AA63: 11.66788595 | AB63: 11.66788595 | AC63: 11.64967293 | AD63: 11.62759917 | AE63: 11.60182352 | AF63: 11.56573516 | AG63: 11.5198828
D64: GSL Payments | R64: 0.04424424424 | S64: 0.08093261719 | T64: 0.05241935484 | U64: 0.05380149813 | V64: 0.06614812603 | W64: 0.06614745458 | X64: 0.06533440278 | Y64: 0.06503708175 | Z64: 0.06593341158 | AA64: 0.06636039258 | AB64: 0.06636039258 | AC64: 0.06625680712 | AD64: 0.06613126399 | AE64: 0.06598466652 | AF64: 0.06577941618 | AG64: 0.06551863366
D65: Licence Fees | R65: 0 | S65: 0 | T65: 0 | U65: 0 | V65: 0 | W65: 0 | X65: 0 | Y65: 0 | Z65: 0 | AA65: 0 | AB65: 0 | AC65: 0 | AD65: 0 | AE65: 0 | AF65: 0 | AG65: 0
D66: Corporate | R66: 15.41137638 | S66: 15.20993652 | T66: 14.93427419 | U66: 14.3908661 | V66: 14.66948097 | W66: 14.78474534 | X66: 14.62314087 | Y66: 14.5747343 | Z66: 14.7549813 | AA66: 14.89562422 | AB66: 14.89575175 | AC66: 14.87141226 | AD66: 14.83190653 | AE66: 14.80749446 | AF66: 14.75928157 | AG66: 14.78827784
D67: Other operating expenditure | R67: 0 | S67: 0 | T67: 0 | U67: 0 | V67: 0 | W67: 0 | X67: 0 | Y67: 0 | Z67: 0 | AA67: 0 | AB67: 0 | AC67: 0 | AD67: 0 | AE67: 0 | AF67: 0 | AG67: 0
C68: =+CONCATENATE("Total ",C59) -> Total Sewerage | K68: =+SUM(K60:K67) -> 0 | L68: 0 | M68: 0 | N68: 0 | O68: 0 | P68: 0 | Q68: 0 | R68: 226.7159061 | S68: 273.6561478 | T68: 260.1481629 | U68: 260.9442877 | V68: 230.7964262 | W68: 234.5991146 | X68: 237.109658 | Y68: 238.9453521 | Z68: 240.8661408 | AA68: 241.7757312 | AB68: 242.1165673 | AC68: =+SUM(AC60:AC67) -> 242.3560933 | AD68: 242.5671394 | AE68: 242.7798479 | AF68: 242.8856426 | AG68: 243.0168752
C70: Recycled Water
D71: =+D60 -> Operations & Maintenance | R71: 3.785095095 | S71: 3.524345703 | T71: 3.876935484 | U71: 3.192911985 | V71: 2.637210044 | W71: 2.664640834 | X71: 3.006278824 | Y71: 3.003079142 | Z71: 2.990529445 | AA71: 2.987841635 | AB71: 2.987841635 | AC71: 2.983177754 | AD71: 2.977525241 | AE71: 2.970924768 | AF71: 2.961683479 | AG71: 2.949941884
D72: =+D61 -> External bulk charges (excl. temporary purchases) | R72: =+R133 -> 0.257032413 | S72: =+S133 -> 0.3050855901 | T72: =+T133 -> 0.363529075 | U72: 0.3701641155 | V72: 0.507564695 | W72: 0.36 | X72: 0.36 | Y72: 0.36 | Z72: 0.36 | AA72: 0.36 | AB72: 0.36 | AC72: 0.36 | AD72: 0.36 | AE72: 0.36 | AF72: 0.36 | AG72: 0.36 | AH72: see reconciliation below
D73: Treatment | R73: 1.087302302 | S73: 0.8945751953 | T73: 0.5126612903 | U73: 0.8732397004 | V73: 0.8442528845 | W73: 0.8559035743 | X73: 0.8559035743 | Y73: 0.8559035743 | Z73: 0.8559035743 | AA73: 0.8559035743 | AB73: 0.8559035743 | AC73: 0.8545675489 | AD73: 0.8529483179 | AE73: 0.8510575319 | AF73: 0.8484102524 | AG73: 0.8450467297
D74: Customer Service and billing | R74: 1.652522523 | S74: 1.76109375 | T74: 1.50233871 | U74: 1.414358614 | V74: 1.169682742 | W74: 1.173972192 | X74: 1.27494761 | Y74: 1.269145632 | Z74: 1.246389288 | AA74: 1.241515486 | AB74: 1.241515486 | AC74: 1.239577539 | AD74: 1.237228792 | AE74: 1.234486147 | AF74: 1.230646183 | AG74: 1.225767286
D75: GSL Payments | R75: 0.006636636637 | S75: 0.01079101562 | T75: 0.007338709677 | U75: 0.006207865169 | V75: 0.006677183031 | W75: 0.006676895529 | X75: 0.007251187083 | Y75: 0.007218188689 | Z75: 0.007088763366 | AA75: 0.007061043912 | AB75: 0.007061043912 | AC75: 0.007050021954 | AD75: 0.007036663601 | AE75: 0.007021064972 | AF75: 0.006999225413 | AG75: 0.006971476981
D76: Licence Fees | R76: 0 | S76: 0 | T76: 0 | U76: 0 | V76: 0 | W76: 0 | X76: 0 | Y76: 0 | Z76: 0 | AA76: 0 | AB76: 0 | AC76: 0 | AD76: 0 | AE76: 0 | AF76: 0 | AG76: 0
D77: Corporate | R77: 2.323928929 | S77: 1.973676758 | T77: 2.033870968 | U77: 1.763033708 | V77: 1.480779809 | W77: 1.492365816 | X77: 1.63332517 | Y77: 1.628679193 | Z77: 1.599476253 | AA77: 1.598674198 | AB77: 1.598674198 | AC77: 1.596178742 | AD77: 1.593154309 | AE77: 1.589622661 | AF77: 1.584678018 | AG77: 1.578395562
D78: Other operating expenditure | R78: 0 | S78: 0 | T78: 0 | U78: 0 | V78: 0 | W78: 0 | X78: 0 | Y78: 0 | Z78: 0 | AA78: 0 | AB78: 0 | AC78: 0 | AD78: 0 | AE78: 0 | AF78: 0 | AG78: 0
C79: =+CONCATENATE("Total ",C70) -> Total Recycled Water | K79: =+SUM(K71:K78) -> 0 | L79: =+SUM(L71:L78) -> 0 | M79: =+SUM(M71:M78) -> 0 | N79: =+SUM(N71:N78) -> 0 | O79: 0 | P79: 0 | Q79: 0 | R79: 9.112517898 | S79: 8.469568012 | T79: 8.296674236 | U79: 7.619915988 | V79: 6.646167357 | W79: 6.553559312 | X79: =+SUM(X71:X78) -> 7.137706365 | Y79: =+SUM(Y71:Y78) -> 7.12402573 | Z79: =+SUM(Z71:Z78) -> 7.059387324 | AA79: =+SUM(AA71:AA78) -> 7.050995937 | AB79: =+SUM(AB71:AB78) -> 7.050995937 | AC79: =+SUM(AC71:AC78) -> 7.040551606 | AD79: 7.027893325 | AE79: 7.013112172 | AF79: 6.992417159 | AG79: 6.966122938
C81: Rural Water
D82: =+D60 -> Operations & Maintenance
D83: =+D61 -> External bulk charges (excl. temporary purchases) | R83: =+R134 -> 0 | S83: =+S134 -> 0 | T83: =+T134 -> 0 | U83: 0 | V83: 0 | W83: 0 | X83: 0 | Y83: 0 | Z83: 0 | AA83: 0 | AB83: 0 | AC83: 0 | AD83: 0 | AE83: 0 | AF83: 0 | AG83: 0 | AH83: see reconciliation below
D84: Treatment
D85: Customer Service and billing
D86: GSL Payments
D87: Licence Fees
D88: Corporate
D89: Other operating expenditure
C90: =+CONCATENATE("Total ",C81) -> Total Rural Water | K90: =+SUM(K82:K89) -> 0 | L90: 0 | M90: 0 | N90: 0 | O90: 0 | P90: 0 | Q90: 0 | R90: 0 | S90: 0 | T90: 0 | U90: 0 | V90: 0 | W90: 0 | X90: =+SUM(X82:X89) -> 0 | Y90: =+SUM(Y82:Y89) -> 0 | Z90: =+SUM(Z82:Z89) -> 0 | AA90: =+SUM(AA82:AA89) -> 0 | AB90: =+SUM(AB82:AB89) -> 0 | AC90: =+SUM(AC82:AC89) -> 0 | AD90: 0 | AE90: 0 | AF90: 0 | AG90: 0
C92: Bulk Water
D93: Operations & Maintenance
D94: Treatment
D95: Customer Service and billing
D96: GSL Payments
D97: Licence Fees
D98: Corporate
D99: Other operating expenditure
C100: Total Bulk water | K100: =+SUM(K93:K99) -> 0 | L100: 0 | M100: 0 | N100: 0 | O100: 0 | P100: 0 | Q100: 0 | R100: 0 | S100: 0 | T100: 0 | U100: 0 | V100: 0 | W100: 0 | X100: 0 | Y100: 0 | Z100: 0 | AA100: 0 | AB100: 0 | AC100: =+SUM(AC93:AC99) -> 0 | AD100: 0 | AE100: 0 | AF100: 0 | AG100: 0
C102: External temporary water purchases
C105: Licence fees
D106: Essential Services Commission | R106: 1.051906907 | S106: 0.6204833984 | T106: 0.6269354839 | U106: 0.4283426966 | V106: 0.7227858801 | W106: 1.188375768 | X106: 0.6269354839 | Y106: 0.6269354839 | Z106: 0.4283426966 | AA106: 0.7227858801 | AB106: 1.188375768 | AC106: 0.6269354839 | AD106: 0.6269354839 | AE106: 0.4283426966 | AF106: 0.7227858801 | AG106: 1.188375768
D107: Department of Human Services | R107: 0.2577227227 | S107: 0.2579052734 | T107: 0.2558064516 | U107: 0.2631451613 | V107: 0.2694333871 | W107: 0.2694333871 | X107: 0.2694333871 | Y107: 0.2694333871 | Z107: 0.2694333871 | AA107: 0.2694333871 | AB107: 0.2694333871 | AC107: 0.2694333871 | AD107: 0.2694333871 | AE107: 0.2694333871 | AF107: 0.2694333871 | AG107: 0.2694333871
D108: Environment Protection Authority | R108: 0.1592792793 | S108: 0.09280273437 | T108: 0.0660483871 | U108: 0.06814516129 | V108: 0.06787375693 | W108: 0.066461 | X108: 0.066461 | Y108: 0.066461 | Z108: 0.066461 | AA108: 0.066461 | AB108: 0.066461 | AC108: 0.066461 | AD108: 0.066461 | AE108: 0.066461 | AF108: 0.066461 | AG108: 0.066461
C109: =+CONCATENATE("Total ",C105) -> Total Licence fees | K109: =+SUM(K106:K108) -> 0 | L109: =+SUM(L106:L108) -> 0 | M109: 0 | N109: 0 | O109: 0 | P109: 0 | Q109: 0 | R109: 1.468908909 | S109: 0.9711914062 | T109: 0.9487903226 | U109: 0.7596330192 | V109: 1.060093024 | W109: 1.524270155 | X109: =+SUM(X106:X108) -> 0.962829871 | Y109: =+SUM(Y106:Y108) -> 0.962829871 | Z109: =+SUM(Z106:Z108) -> 0.7642370837 | AA109: =+SUM(AA106:AA108) -> 1.058680267 | AB109: =+SUM(AB106:AB108) -> 1.524270155 | AC109: =+SUM(AC106:AC108) -> 0.962829871 | AD109: 0.962829871 | AE109: 0.7642370837 | AF109: 1.058680267 | AG109: 1.524270155
C111: Environment Contribution | R111: 18.3314965 | S111: 30.06376953 | T111: 29.20806452 | U111: 28.82518727 | V111: 28.45221811 | W111: 27.86 | X111: 39.77517107 | Y111: 38.88091013 | Z111: 38.00675477 | AA111: 37.15225295 | AB111: 36.31696281 | AC111: 35.5004524 | AD111: 34.70229952 | AE111: 33.92209141 | AF111: 33.15942465 | AG111: 32.41390484
C113: Other non-controllable
D114: Goulburn Murray Water - SVA - zone 1 | W114: 0.02530790012 | X114: 0.02897447548 | Y114: 0.03050258632 | Z114: 0.03203543052 | AA114: 0.03357277141 | AB114: 0.03511438415
D115: Gouburn Murray Water - Headworks - zone 1 | W115: 0.08301290544 | X115: 0.08724341087 | Y115: 0.09147391631 | Z115: 0.09570442175 | AA115: 0.09993492718 | AB115: 0.1041654326
D116: Goulburn Murray Water - SVA - zones 2 and 3 | W116: 0.01813226591 | X116: 0.02201273875 | Y116: 0.02317666734 | Z116: 0.02434423504 | AA116: 0.02551525988 | AB116: 0.02668956901
D117: Goulburn Murray Water - Headworks zones 2 and 3 | W117: 0.07470449189 | X117: 0.07851158378 | Y117: 0.08231867567 | Z117: 0.08612576756 | AA117: 0.08993285945 | AB117: 0.09373995134
D118: Goulburn Murray Water - RUSAF charge | W118: 0.1992333333 | X118: 0.2093866667 | Y118: 0.21954 | Z118: 0.2296933333 | AA118: 0.2398466667 | AB118: 0.25
D119: Goulburn Murray Water - entitlement charges | R119: 0.2842931722 | S119: 0.3258281451 | T119: 0.3773215927 | U119: 0.3876477918 | V119: 0.3878226262
D120: [Non-controllable 7]
D121: [Non-controllable 8]
D122: [Non-controllable 9]
D123: [Non-controllable 10]
K124: =SUM(K114:K123) -> 0 | L124: 0 | M124: 0 | N124: 0 | O124: 0 | P124: 0 | Q124: 0 | R124: 0.2842931722 | S124: 0.3258281451 | T124: 0.3773215927 | U124: 0.3876477918 | V124: 0.3878226262 | W124: 0.4003908967 | X124: 0.4261288756 | Y124: 0.4470118456 | Z124: 0.4679031882 | AA124: 0.4888024846 | AB124: 0.5097093371 | AC124: 0 | AD124: 0 | AE124: 0 | AF124: 0 | AG124: 0
C127: External bulk charges (excl. temporary purchases)
C128: Reconciliation
C130: Service | R130: =+R7 -> 2012-13 | S130: 2013-14 | T130: 2014-15 | U130: 2015-16 | V130: 2016-17 | W130: 2017-18 | X130: 2018-19 | Y130: 2019-20 | Z130: 2020-21 | AA130: 2021-22 | AB130: 2022-23 | AC130: 2023-24 | AD130: 2024-25 | AE130: 2025-26 | AF130: 2026-27 | AG130: 2027-28
D131: Water | R131: =+SUMIF($I$138:$I$179,$D$131,R$138:R$179) -> 208.7729965 | S131: 363.8311363 | T131: 292.8354922 | U131: 338.9041085 | V131: 326.7860537 | W131: 323.2367419 | X131: 322.9392178 | Y131: 319.6019338 | Z131: 308.4724551 | AA131: 308.8210016 | AB131: 309.1712059 | AC131: 309.5279948 | AD131: 309.8904024 | AE131: 310.2574467 | AF131: 310.5778786 | AG131: 310.9003827
D132: Sewerage | R132: =+SUMIF($I$138:$I$179,$D$132,R$138:R$179) -> 168.1608611 | S132: 210.8794144 | T132: 202.0528404 | U132: 201.8195452 | V132: 169.983796 | W132: 173.2400322 | X132: 176.1347862 | Y132: 178.1002906 | Z132: 178.6762941 | AA132: 179.0219611 | AB132: 179.3626696 | AC132: 179.7012394 | AD132: 180.0423311 | AE132: 180.3851756 | AF132: 180.6872068 | AG132: 180.9775157
D133: Recycled Water | R133: =+SUMIF($I$138:$I$179,$D$133,R$138:R$179) -> 0.257032413 | S133: 0.3050855901 | T133: 0.363529075 | U133: 0.3701641155 | V133: 0.507564695 | W133: 0.36 | X133: 0.36 | Y133: 0.36 | Z133: 0.36 | AA133: 0.36 | AB133: 0.36 | AC133: 0.36 | AD133: 0.36 | AE133: 0.36 | AF133: 0.36 | AG133: 0.36
D134: Rural Water | R134: =+SUMIF($I$138:$I$179,$D$134,R$138:R$179) -> 0 | S134: 0 | T134: 0 | U134: 0 | V134: 0 | W134: 0 | X134: 0 | Y134: 0 | Z134: 0 | AA134: 0 | AB134: 0 | AC134: 0 | AD134: 0 | AE134: 0 | AF134: 0 | AG134: 0
C135: Total External Bulk Charges | R135: =SUM(R131:R134) -> 377.19089 | S135: =SUM(S131:S134) -> 575.0156363 | T135: =SUM(T131:T134) -> 495.2518617 | U135: 541.0938178 | V135: 497.2774144 | W135: 496.8367741 | X135: 499.4340039 | Y135: 498.0622244 | Z135: 487.5087492 | AA135: 488.2029627 | AB135: 488.8938756 | AC135: 489.5892342 | AD135: 490.2927335 | AE135: 491.0026223 | AF135: 491.6250854 | AG135: 492.2378984
C137: Description | H137: Source | I137: Service | J137: Price
B138: 1 | C138: Water availability | H138: Melbourne Water | I138: Water | J138: Fixed | R138: =66.8334706169169-R119 -> 66.54917744 | S138: =121.135057910547-S119 -> 120.8092298 | T138: =61.7076085830645-T119 -> 61.33028699 | U138: =86.8755443486423-U119 -> 86.48789656 | AJ138: ESC USE ONLY
B139: 2 | C139: Water usage | H139: Melbourne Water | I139: Water | J139: Variable | R139: 142.223819 | S139: 243.0219065 | T139: 231.5052052 | U139: 252.416212
B140: 3 | C140: Wastewater availability | H140: Melbourne Water | I140: Sewerage | J140: Fixed | R140: 113.6588081 | S140: 142.1400071 | T140: 139.7884211 | U140: 139.6074147 | AJ140: [Service]
B141: 4 | C141: Wastewater treatment | H141: Melbourne Water | I141: Sewerage | J141: Variable | R141: 54.50205295 | S141: 68.7394073 | T141: 62.26441922 | U141: 62.21213043 | AJ141: Water
B142: 5 | C142: Recycled Water | H142: Melbourne Water | I142: Recycled Water | J142: Variable | R142: 0.257032413 | S142: 0.3050855901 | T142: 0.363529075 | U142: 0.3701641155 | V142: 0.507564695 | W142: 0.36 | X142: 0.36 | Y142: 0.36 | Z142: 0.36 | AA142: 0.36 | AB142: 0.36 | AC142: 0.36 | AD142: 0.36 | AE142: 0.36 | AF142: 0.36 | AG142: 0.36 | AJ142: Sewerage
B143: 6 | C143: Transfer | H143: Melbourne Water | I143: Water | J143: Variable | V143: 36.11217144 | W143: 36.65494385 | X143: 37.40040706 | Y143: 38.01521925 | Z143: 38.64392944 | AA143: 38.99247602 | AB143: 39.34268029 | AC143: 39.69946913 | AD143: 40.06187672 | AE143: 40.42892103 | AF143: 40.74935297 | AG143: 41.07185708 | AJ143: Recycled Water
B144: 7 | C144: Greater Yarra System - Thomson River | H144: Melbourne Water | I144: Water | J144: Fixed | V144: 71.11114635 | W144: 71.68883593 | X144: 72.40572429 | Y144: 72.76775291 | Z144: 73.13159168 | AA144: 73.13159168 | AB144: 73.13159168 | AC144: 73.13159168 | AD144: 73.13159168 | AE144: 73.13159168 | AF144: 73.13159168 | AG144: 73.13159168 | AJ144: Rural Water
B145: 8 | C145: Victorian Desalination Plant | H145: Melbourne Water | I145: Water | J145: Fixed | V145: 206.390422 | W145: 202.1117122 | X145: 200.6969302 | Y145: 196.4822946 | Z145: 184.693357 | AA145: 184.693357 | AB145: 184.693357 | AC145: 184.693357 | AD145: 184.693357 | AE145: 184.693357 | AF145: 184.693357 | AG145: 184.693357
B146: 9 | C146: North South Pipeline | H146: Melbourne Water | I146: Water | J146: Fixed | V146: 13.1723139 | W146: 12.78125 | X146: 12.43615625 | Y146: 12.336667 | Z146: 12.00357699 | AA146: 12.00357699 | AB146: 12.00357699 | AC146: 12.00357699 | AD146: 12.00357699 | AE146: 12.00357699 | AF146: 12.00357699 | AG146: 12.00357699 | AJ146: [Source]
B147: 10 | C147: Wastewater treatment - WTP | H147: Melbourne Water | I147: Sewerage | J147: Variable | V147: 7.671500072 | W147: 7.95984 | X147: 8.127593717 | Y147: 8.272703979 | Z147: 8.415555986 | AA147: 8.533919599 | AB147: 8.649684685 | AC147: 8.764333498 | AD147: 8.880295711 | AE147: 8.997169881 | AF147: 9.096908866 | AG147: 9.190536365 | AJ147: Melbourne Water
B148: 11 | C148: Wastewater treatment - ETP | H148: Melbourne Water | I148: Sewerage | J148: Variable | V148: 6.175159582 | W148: 6.050972896 | X148: 6.171789291 | Y148: 6.276220808 | Z148: 6.379027128 | AA148: 6.464209881 | AB148: 6.547522553 | AC148: 6.630031877 | AD148: 6.713486415 | AE148: 6.797597261 | AF148: 6.869376427 | AG148: 6.936757339 | AJ148: Goulburn-Murray Water
B149: 12 | C149: Trade Waste - BOD WTP | H149: Melbourne Water | I149: Sewerage | J149: Variable | V149: 0.2978330511 | W149: 0.3246295291 | X149: 0.3325961126 | Y149: 0.3405626962 | Z149: 0.3485292797 | AA149: 0.3549883566 | AB149: 0.3614474336 | AC149: 0.3679065105 | AD149: 0.3743655875 | AE149: 0.3808246644 | AF149: 0.3868526362 | AG149: 0.3928806079 | AJ149: Other Sources
B150: 13 | C150: Trade Waste - BOD ETP | H150: Melbourne Water | I150: Sewerage | J150: Variable | V150: 2.851207772 | W150: 3.476579012 | X150: 3.561896134 | Y150: 3.647213255 | Z150: 3.732530377 | AA150: 3.801703047 | AB150: 3.870875717 | AC150: 3.940048388 | AD150: 4.009221058 | AE150: 4.078393728 | AF150: 4.142949532 | AG150: 4.207505335
B151: 14 | C151: Trade Waste - SS Western | H151: Melbourne Water | I151: Sewerage | J151: Variable | V151: 0.03310217897 | W151: 0.05406468301 | X151: 0.05510771853 | Y151: 0.0559541952 | Z151: 0.05678737488 | AA151: 0.05744694685 | AB151: 0.05810769768 | AC151: 0.05876287126 | AD151: 0.05942845067 | AE151: 0.06010247989 | AF151: 0.06065257152 | AG151: 0.06116291758
B152: 15 | C152: Trade Waste - SS Eastern | H152: Melbourne Water | I152: Sewerage | J152: Variable | V152: 1.793380992 | W152: 2.063190679 | X152: 2.11382249 | Y152: 2.1644543 | Z152: 2.215086111 | AA152: 2.256136928 | AB152: 2.297187745 | AC152: 2.338238562 | AD152: 2.379289378 | AE152: 2.420340195 | AF152: 2.458651113 | AG152: 2.496962031
B153: 16 | C153: Trade Waste - TN/TKN Western | H153: Melbourne Water | I153: Sewerage | J153: Variable | V153: 0.0137961927 | W153: 0.01406730169 | X153: 0.01433869319 | Y153: 0.01455894127 | Z153: 0.01477572955 | AA153: 0.01494734617 | AB153: 0.01511926951 | AC153: 0.01528974169 | AD153: 0.01546292141 | AE153: 0.01563829971 | AF153: 0.01578143021 | AG153: 0.01591421915
B154: 17 | C154: Trade waste - TN/TKN Eastern | H154: Melbourne Water | I154: Sewerage | J154: Variable | V154: 0.09564232351 | W154: 0.106026318 | X154: 0.108628261 | Y154: 0.1112302039 | Z154: 0.1138321469 | AA154: 0.1159417275 | AB154: 0.118051308 | AC154: 0.1201608886 | AD154: 0.1222704692 | AE154: 0.1243800497 | AF154: 0.1263488283 | AG154: 0.1283176068
B155: 18 | C155: Trade waste - TDS/inorganic TDS Western | H155: Melbourne Water | I155: Sewerage | J155: Variable | V155: 0.004847481873 | W155: 0.008925329153 | X155: 0.009097519847 | Y155: 0.009237261402 | Z155: 0.009374807809 | AA155: 0.009483693992 | AB155: 0.009592774788 | AC155: 0.009700934857 | AD155: 0.009810812784 | AE155: 0.009922085658 | AF155: 0.01001289816 | AG155: 0.01009714921
B156: 19 | C156: Trade waste - TDS//inorganic TDS Eastern | H156: Melbourne Water | I156: Sewerage | J156: Variable | V156: 0 | W156: 0 | X156: 0 | Y156: 0 | Z156: 0 | AA156: 0 | AB156: 0 | AC156: 0 | AD156: 0 | AE156: 0 | AF156: 0 | AG156: 0
B157: 20 | C157: Service Charge | H157: Melbourne Water | I157: Sewerage | J157: Fixed | V157: 149.5486701 | W157: 151.6526779 | X157: 154.0791208 | Y157: 155.619912 | Z157: 155.7755319 | AA157: 155.7755319 | AB157: 155.7755319 | AC157: 155.7755319 | AD157: 155.7755319 | AE157: 155.7755319 | AF157: 155.7755319 | AG157: 155.7755319
B158: 21 | C158: Western Transfer | H158: Melbourne Water | I158: Sewerage | J158: Variable | V158: 1.049439607 | W158: 1.08888197 | X158: 1.111830169 | Y158: 1.131680813 | Z158: 1.151222534 | AA158: 1.167414317 | AB158: 1.18325063 | AC158: 1.19893424 | AD158: 1.214797519 | AE158: 1.230785551 | AF158: 1.244429542 | AG158: 1.2572375
B159: 22 | C159: Eastern Transfer | H159: Melbourne Water | I159: Sewerage | J159: Variable | V159: 0.4492166433 | W159: 0.4401765461 | X159: 0.4489653053 | Y159: 0.4565621505 | Z159: 0.4640407712 | AA159: 0.4702373697 | AB159: 0.4762979297 | AC159: 0.4823000503 | AD159: 0.4883709303 | AE159: 0.4944895533 | AF159: 0.4997111112 | AG159: 0.5046127192
B160: 23 | H160: [Source] | I160: [Service] | J160: [Price]
B161: 24 | H161: [Source] | I161: [Service] | J161: [Price]
B162: 25 | H162: [Source] | I162: [Service] | J162: [Price]
B163: 26 | H163: [Source] | I163: [Service] | J163: [Price]
B164: 27 | H164: [Source] | I164: [Service] | J164: [Price]
B165: 28 | H165: [Source] | I165: [Service] | J165: [Price]
B166: 29 | H166: [Source] | I166: [Service] | J166: [Price]
B167: 30 | H167: [Source] | I167: [Service] | J167: [Price]
B168: 31 | H168: [Source] | I168: [Service] | J168: [Price]
B169: 32 | H169: [Source] | I169: [Service] | J169: [Price]
B170: 33 | H170: [Source] | I170: [Service] | J170: [Price]
B171: 34 | H171: [Source] | I171: [Service] | J171: [Price]
B172: 35 | H172: [Source] | I172: [Service] | J172: [Price]
B173: 36 | H173: [Source] | I173: [Service] | J173: [Price]
B174: 37 | H174: [Source] | I174: [Service] | J174: [Price]
B175: 38 | H175: [Source] | I175: [Service] | J175: [Price]
B176: 39 | H176: [Source] | I176: [Service] | J176: [Price]
B177: 40 | H177: [Source] | I177: [Service] | J177: [Price]

Sheet Capex_FO input
B1: Capital Expenditure - Forecast Input
B2: =+Contents!H7 -> South East Water
B3: Go to Table of Contents
C7: Input Summary | F7: FOURTH REG PERIOD | K7: FIFTH REG PERIOD
D9: =+O39 -> 2018-19 | E9: 2019-20 | F9: 2020-21 | G9: 2021-22 | H9: 2022-23 | I9: 2023-24 | J9: 2024-25 | K9: 2025-26 | L9: 2026-27 | M9: 2027-28
C10: By Cost Driver
C11: Net capital expenditure - Renewals | D11: =+SUMIF($F$42:$F$1019,"Renewals",AV$42:AV$1019) -> 75.06054749 | E11: 72.71686408 | F11: 75.41405591 | G11: 78.23674662 | H11: 74.06496494 | I11: 67.63439591 | J11: 65.78232603 | K11: 66.62984217 | L11: 68.14772028 | M11: 67.51195364
C12: Net capital expenditure - Growth | D12: =+SUMIF($F$42:$F$1019,"Growth",AV$42:AV$1019) -> 100.975007 | E12: 119.5149923 | F12: 59.49896989 | G12: 48.7836072 | H12: 54.2109684 | I12: 64.40570958 | J12: 105.3522465 | K12: 108.6790367 | L12: 67.63710857 | M12: 90.81680534
C13: Net capital expenditure - Improvements / Compliance | D13: =+SUMIF($F$42:$F$1019,"Improvements / Compliance",AV$42:AV$1019) -> 35.63428839 | E13: 22.6555907 | F13: 20.78954272 | G13: 58.9415359 | H13: 34.12964275 | I13: 14.7088448 | J13: 14.25583583 | K13: 18.50383244 | L13: 14.37535991 | M13: 8.820386893
C14: Government Contributions | D14: =+Z41 -> 0 | E14: =+AA41 -> 0 | F14: 0 | G14: 0 | H14: 0 | I14: 0 | J14: 0 | K14: 0 | L14: 0 | M14: 0
C15: Customer Contributions | D15: =+AK41 -> 38.26834884 | E15: =+AL41 -> 38.13220016 | F15: 38.00966635 | G15: 33.54819022 | H15: 33.44893784 | I15: 33.35961069 | J15: 33.27921626 | K15: 33.20686127 | L15: 29.08511033 | M15: 29.02650279
C16: Total prescribed capex | D16: =SUM(D11:D15) -> 249.9381918 | E16: 253.0196473 | F16: 193.7122349 | G16: 219.5100799 | H16: 195.8545139 | I16: 180.108561 | J16: 218.6696246 | K16: 227.0195726 | L16: 179.2452991 | M16: 196.1756487
C18: By Capital Type
C19: Top 10 Major Projects | D19: =+SUMIF($H$42:$H$1019,$C$19,O$42:O$1019) -> 58.24658987 | E19: 70.06739215 | F19: 24.738 | G19: 37.70132107 | H19: 16.131 | I19: 0 | J19: 0 | K19: 0 | L19: 0 | M19: 0
C20: Significant projects | D20: =+SUMIF($H$42:$H$1019,$C$20,O$42:O$1019) -> 0 | E20: 0 | F20: 0 | G20: 0 | H20: 0 | I20: 0 | J20: 0 | K20: 0 | L20: 0 | M20: 0
C21: Capital Programs / Allocation | D21: =+SUMIF($H$42:$H$1019,$C$21,O$42:O$1019) -> 182.2328819 | E21: 174.8935351 | F21: 161.0655149 | G21: 175.0500389 | H21: 172.9647939 | I21: 173.349841 | J21: 211.9109046 | K21: 220.2608526 | L21: 172.4865791 | M21: 189.4169287
C22: Other Capital expenditure | D22: =+SUMIF($H$42:$H$1019,$C$22,O$42:O$1019) -> 9.45872 | E22: 8.05872 | F22: 7.90872 | G22: 6.75872 | H22: 6.75872 | I22: 6.75872 | J22: 6.75872 | K22: 6.75872 | L22: 6.75872 | M22: 6.75872
C23: Total prescribed capex | D23: =SUM(D19:D22) -> 249.9381918 | E23: =SUM(E19:E22) -> 253.0196473 | F23: 193.7122349 | G23: 219.5100799 | H23: 195.8545139 | I23: 180.108561 | J23: 218.6696246 | K23: 227.0195726 | L23: 179.2452991 | M23: 196.1756487
C25: Difference | D25: =+D23-D16 -> 0 | E25: =+E23-E16 -> 0 | F25: 0 | G25: 0 | H25: 0 | I25: 0 | J25: 0 | K25: 0 | L25: 0 | M25: 0
C26: Test | D26: =+D23=D16 -> TRUE | E26: TRUE | F26: TRUE | G26: TRUE | H26: TRUE | I26: TRUE | J26: TRUE | K26: TRUE | L26: TRUE | M26: TRUE
C29: Total prescribed capex | D29: =+D23 -> 249.9381918 | E29: =+E23 -> 253.0196473 | F29: 193.7122349 | G29: 219.5100799 | H29: 195.8545139 | I29: 180.108561 | J29: 218.6696246 | K29: 227.0195726 | L29: 179.2452991 | M29: 196.1756487
C32: Regulatory Depreciation | D32: =+BG41 -> 3.97591394 | E32: =+BH41 -> 12.04179852 | F32: 20.49629011 | G32: 28.51492893 | H32: 35.82023179 | I32: 42.47654849 | J32: 48.85927179 | K32: 54.04516917 | L32: 56.96877217 | M32: 59.3027489
B35: $m, 01/01/18
O36: Gross capital expenditure | Z36: Government contributions | AK36: Customer contributions | AV36: Net capital expenditure | BG36: Regulatory Depreciation | BR36: Accumulated capex | CC36: Gross capital expenditure | CN36: Tax Depreciation
O37: $m, 01/01/18 | Z37: $m, 01/01/18 | AK37: $m, 01/01/18 | AV37: $m, 01/01/18 | BG37: $m, 01/01/18 | BR37: $m, 01/01/18 | CC37: Nominal,$ | CN37: Nominal,$
O39: 2018-19 | P39: 2019-20 | Q39: 2020-21 | R39: 2021-22 | S39: 2022-23 | T39: 2023-24 | U39: 2024-25 | V39: 2025-26 | W39: 2026-27 | X39: 2027-28 | Z39: 2018-19 | AA39: 2019-20 | AB39: 2020-21 | AC39: 2021-22 | AD39: 2022-23 | AE39: 2023-24 | AF39: 2024-25 | AG39: 2025-26 | AH39: 2026-27 | AI39: 2027-28 | AK39: 2018-19 | AL39: 2019-20 | AM39: 2020-21 | AN39: 2021-22 | AO39: 2022-23 | AP39: 2023-24 | AQ39: 2024-25 | AR39: 2025-26 | AS39: 2026-27 | AT39: 2027-28 | AV39: 2018-19 | AW39: 2019-20 | AX39: 2020-21 | AY39: 2021-22 | AZ39: 2022-23 | BA39: 2023-24 | BB39: 2024-25 | BC39: 2025-26 | BD39: 2026-27 | BE39: 2027-28 | BG39: 2018-19 | BH39: 2019-20 | BI39: 2020-21 | BJ39: 2021-22 | BK39: 2022-23 | BL39: 2023-24 | BM39: 2024-25 | BN39: 2025-26 | BO39: 2026-27 | BP39: 2027-28 | BR39: 2018-19 | BS39: 2019-20 | BT39: 2020-21 | BU39: 2021-22 | BV39: 2022-23 | BW39: 2023-24 | BX39: 2024-25 | BY39: 2025-26 | BZ39: 2026-27 | CA39: 2027-28 | CC39: 2018-19 | CD39: 2019-20 | CE39: 2020-21 | CF39: 2021-22 | CG39: 2022-23 | CH39: 2023-24 | CI39: 2024-25 | CJ39: 2025-26 | CK39: 2026-27 | CL39: 2027-28 | CN39: 2018-19 | CO39: 2019-20 | CP39: 2020-21 | CQ39: 2021-22 | CR39: 2022-23 | CS39: 2023-24 | CT39: 2024-25 | CU39: 2025-26 | CV39: 2026-27 | CW39: 2027-28
BG40: 1 | BH40: 2 | BI40: 3 | BJ40: 4 | BK40: 5 | BL40: 6 | BM40: 7 | BN40: 8 | BO40: 9 | BP40: 10 | CN40: 1 | CO40: 2 | CP40: 3 | CQ40: 4 | CR40: 5 | CS40: 6 | CT40: 7 | CU40: 8 | CV40: 9 | CW40: 10
C41: Project/program Name | E41: Service | F41: Major cost driver | G41: Asset category | H41: Capital type | J41: Depreciation Method | K41: Year asset operational | L41: Asset life (Regulatory) | M41: Asset life (Tax) | O41: =SUM(O42:O1019) -> 249.9381918 | P41: 253.0196473 | Q41: 193.7122349 | R41: 219.5100799 | S41: 195.8545139 | T41: 180.108561 | U41: 218.6696246 | V41: 227.0195726 | W41: 179.2452991 | X41: 196.1756487 | Z41: =SUM(Z42:Z1019) -> 0 | AA41: 0 | AB41: 0 | AC41: 0 | AD41: 0 | AE41: 0 | AF41: 0 | AG41: 0 | AH41: 0 | AI41: 0 | AK41: =SUM(AK42:AK1019) -> 38.26834884 | AL41: 38.13220016 | AM41: 38.00966635 | AN41: 33.54819022 | AO41: 33.44893784 | AP41: 33.35961069 | AQ41: 33.27921626 | AR41: 33.20686127 | AS41: 29.08511033 | AT41: 29.02650279 | AV41: =SUM(AV42:AV1019) -> 211.6698429 | AW41: 214.8874471 | AX41: 155.7025685 | AY41: 185.9618897 | AZ41: 162.4055761 | BA41: 146.7489503 | BB41: 185.3904083 | BC41: 193.8127113 | BD41: 150.1601888 | BE41: 167.1491459 | BG41: =SUM(BG42:BG1019) -> 3.97591394 | BH41: 12.04179852 | BI41: 20.49629011 | BJ41: 28.51492893 | BK41: 35.82023179 | BL41: 42.47654849 | BM41: 48.85927179 | BN41: 54.04516917 | BO41: 56.96877217 | BP41: 59.3027489 | BR41: =SUM(BR42:BR1019) -> 167.2232531 | BS41: 170.06982 | BT41: 232.5645685 | BU41: 189.2801066 | BV41: 171.4895761 | BW41: 146.7489503 | BX41: 185.3904083 | BY41: 193.8127113 | BZ41: 150.1601888 | CA41: 167.1491459 | CC41: =SUM(CC42:CC1019) -> 255.6867702 | CD41: 264.7923984 | CE41: 207.3881573 | CF41: 240.4124768 | CG41: 219.4379583 | CH41: 206.4372944 | CI41: 256.3999259 | CJ41: 272.3129979 | CK41: 219.952285 | CL41: 246.2642864 | CN41: =SUM(CN42:CN1019) -> 5.050986403 | CO41: 14.78922576 | CP41: 23.57656451 | CQ41: 31.89776025 | CR41: 40.34215619 | CS41: 48.24884807 | CT41: 56.13651491 | CU41: 63.06464767 | CV41: 67.73519277 | CW41: 71.7870007
C42: Boneo water recycling plant upgrade | E42: Sewerage | F42: Growth | G42: Treatment | H42: Top 10 Major Projects | J42: Straight line | K42: 2020-21 | L42: 50 | M42: =L42 -> 50 | O42: 30 | P42: 50 | Q42: 21.5 | R42: 0 | S42: 0 | T42: 0 | U42: 0 | V42: 0 | W42: 0 | X42: 0 | AV42: =+O42-Z42-AK42 -> 30 | AW42: =+P42-AA42-AL42 -> 50 | AX42: 21.5 | AY42: 0 | AZ42: 0 | BA42: 0 | BB42: 0 | BC42: 0 | BD42: 0 | BE42: 0 | BG42: =IF($L42=0,0, IF($L42<=0.5,BR42, IF($J42="straight line", IF((LEFT(BG$39,4)*1)-INT($L42)<LEFT($BG$39,4)*1,0,((OFFSET(BR42,0,-INT($L42+0.5),1,1))/$L42)*(IF($L42-INT($L42)>0.5,$L42-0.5-INT($L42),IF($L42-INT($L42)<=0.5,$L42-0.5-INT($L42)+1,0)))) +BR42/$L42*0.5, IF($J42="Declining Balance",-$BG$38,0)))) -> 0 | BH42: =IF($L42=0,0, IF($L42<=0.5,BS42, IF(AND($J42="straight line",$L42<1.51),(BR42-((BR42/$L42)*0.5))+BS42/$L42*0.5, IF($J42="straight line", IF((LEFT(BH$39,4)*1)-INT($L42)<LEFT($BG$39,4)*1,0,((OFFSET(BS42,0,-INT($L42+0.5),1,1))/$L42)*(IF($L42-INT($L42)>0.5,$L42-0.5-INT($L42),IF($L42-INT($L42)<=0.5,$L42-0.5-INT($L42)+1,0)))) +BS42/$L42*0.5 +SUM(OFFSET(BS42,0,MAX(-INT($L42+(0.5-(10^-12))),-BH$40)+1,1,MIN(INT($L42+(0.5-(10^-12))),BH$40)-1))*1/$L42, IF($J42="Declining Balance",-$BG$38,0))))) -> 0 | BI42: =IF($L42=0,0, IF($L42<=0.5,BT42, IF(AND($J42="straight line",$L42<1.51),(BS42-((BS42/$L42)*0.5))+BT42/$L42*0.5, IF($J42="straight line", IF((LEFT(BI$39,4)*1)-INT($L42)<LEFT($BG$39,4)*1,0,((OFFSET(BT42,0,-INT($L42+0.5),1,1))/$L42)*(IF($L42-INT($L42)>0.5,$L42-0.5-INT($L42),IF($L42-INT($L42)<=0.5,$L42-0.5-INT($L42)+1,0)))) +BT42/$L42*0.5 +SUM(OFFSET(BT42,0,MAX(-INT($L42+(0.5-(10^-12))),-BI$40)+1,1,MIN(INT($L42+(0.5-(10^-12))),BI$40)-1))*1/$L42, IF($J42="Declining Balance",-$BG$38,0))))) -> 1.015 | BJ42: 2.03 | BK42: 2.03 | BL42: 2.03 | BM42: 2.03 | BN42: 2.03 | BO42: 2.03 | BP42: 2.03 | BR42: =+IF($K42="Ongoing",AV42,IF(RIGHT($K42,2)=RIGHT(BR$39,2),SUM($AV42:AV42),0)+IF(RIGHT(BR$39,2)>RIGHT($K42,2),AV42,0)) -> 0 | BS42: =+IF($K42="Ongoing",AW42,IF(RIGHT($K42,2)=RIGHT(BS$39,2),SUM($AV42:AW42),0)+IF(RIGHT(BS$39,2)>RIGHT($K42,2),AW42,0)) -> 0 | BT42: =+IF($K42="Ongoing",AX42,IF(RIGHT($K42,2)=RIGHT(BT$39,2),SUM($AV42:AX42),0)+IF(RIGHT(BT$39,2)>RIGHT($K42,2),AX42,0)) -> 101.5 | BU42: =+IF($K42="Ongoing",AY42,IF(RIGHT($K42,2)=RIGHT(BU$39,2),SUM($AV42:AY42),0)+IF(RIGHT(BU$39,2)>RIGHT($K42,2),AY42,0)) -> 0 | BV42: =+IF($K42="Ongoing",AZ42,IF(RIGHT($K42,2)=RIGHT(BV$39,2),SUM($AV42:AZ42),0)+IF(RIGHT(BV$39,2)>RIGHT($K42,2),AZ42,0)) -> 0 | BW42: =+IF($K42="Ongoing",BA42,IF(RIGHT($K42,2)=RIGHT(BW$39,2),SUM($AV42:BA42),0)+IF(RIGHT(BW$39,2)>RIGHT($K42,2),BA42,0)) -> 0 | BX42: =+IF($K42="Ongoing",BB42,IF(RIGHT($K42,2)=RIGHT(BX$39,2),SUM($AV42:BB42),0)+IF(RIGHT(BX$39,2)>RIGHT($K42,2),BB42,0)) -> 0 | BY42: =+IF($K42="Ongoing",BC42,IF(RIGHT($K42,2)=RIGHT(BY$39,2),SUM($AV42:BC42),0)+IF(RIGHT(BY$39,2)>RIGHT($K42,2),BC42,0)) -> 0 | BZ42: =+IF($K42="Ongoing",BD42,IF(RIGHT($K42,2)=RIGHT(BZ$39,2),SUM($AV42:BD42),0)+IF(RIGHT(BZ$39,2)>RIGHT($K42,2),BD42,0)) -> 0 | CA42: =+IF($K42="Ongoing",BE42,IF(RIGHT($K42,2)=RIGHT(CA$39,2),SUM($AV42:BE42),0)+IF(RIGHT(CA$39,2)>RIGHT($K42,2),BE42,0)) -> 0 | CC42: =+O42*KeyAssumptionsPriceControl_FO!X$15 -> 30.69 | CD42: =+P42*KeyAssumptionsPriceControl_FO!Y$15 -> 52.32645 | CE42: =+Q42*KeyAssumptionsPriceControl_FO!Z$15 -> 23.01788209 | CF42: =+R42*KeyAssumptionsPriceControl_FO!AA$15 -> 0 | CG42: =+S42*KeyAssumptionsPriceControl_FO!AB$15 -> 0 | CH42: =+T42*KeyAssumptionsPriceControl_FO!AC$15 -> 0 | CI42: =+U42*KeyAssumptionsPriceControl_FO!AD$15 -> 0 | CJ42: =+V42*KeyAssumptionsPriceControl_FO!AE$15 -> 0 | CK42: =+W42*KeyAssumptionsPriceControl_FO!AF$15 -> 0 | CL42: =+X42*KeyAssumptionsPriceControl_FO!AG$15 -> 0 | CN42: =IF($M42=0,0, IF($M42<=0.5,CC42, IF($J42="straight line", IF((LEFT(CN$39,4)*1)-INT($M42)<LEFT($CN$39,4)*1,0,((OFFSET(CC42,0,-INT($M42+0.5),1,1))/$M42)*(IF($M42-INT($M42)>0.5,$M42-0.5-INT($M42),IF($M42-INT($M42)<=0.5,$M42-0.5-INT($M42)+1,0)))) +CC42/$M42*0.5, IF($J42="Declining Balance",-$CN$38,0)))) -> 0.3069 | CO42: =IF($M42=0,0, IF($M42<=0.5,CD42, IF(AND($J42="straight line",$M42<1.51),(CC42-((CC42/$M42)*0.5))+CD42/$M42*0.5, IF($J42="straight line", IF((LEFT(CO$39,4)*1)-INT($M42)<LEFT($CN$39,4)*1,0,((OFFSET(CD42,0,-INT($M42+0.5),1,1))/$M42)*(IF($M42-INT($M42)>0.5,$M42-0.5-INT($M42),IF($M42-INT($M42)<=0.5,$M42-0.5-INT($M42)+1,0)))) +CD42/$M42*0.5 +SUM(OFFSET(CD42,0,MAX(-INT($M42+(0.5-(10^-12))),-CO$40)+1,1,MIN(INT($M42+(0.5-(10^-12))),CO$40)-1))*1/$M42, IF($J42="Declining Balance",-$CN$38,0))))) -> 1.1370645 | CP42: =IF($M42=0,0, IF($M42<=0.5,CE42, IF(AND($J42="straight line",$M42<1.51),(CD42-((CD42/$M42)*0.5))+CE42/$M42*0.5, IF($J42="straight line", IF((LEFT(CP$39,4)*1)-INT($M42)<LEFT($CN$39,4)*1,0,((OFFSET(CE42,0,-INT($M42+0.5),1,1))/$M42)*(IF($M42-INT($M42)>0.5,$M42-0.5-INT($M42),IF($M42-INT($M42)<=0.5,$M42-0.5-INT($M42)+1,0)))) +CE42/$M42*0.5 +SUM(OFFSET(CE42,0,MAX(-INT($M42+(0.5-(10^-12))),-CP$40)+1,1,MIN(INT($M42+(0.5-(10^-12))),CP$40)-1))*1/$M42, IF($J42="Declining Balance",-$CN$38,0))))) -> 1.890507821 | CQ42: 2.120686642 | CR42: 2.120686642 | CS42: 2.120686642 | CT42: 2.120686642 | CU42: 2.120686642 | CV42: 2.120686642 | CW42: 2.120686642
C43: Elster Creek catchment sewer duplications | E43: Sewerage | F43: Growth | G43: Pipelines/network | H43: Top 10 Major Projects | J43: Straight line | K43: 2022-23 | L43: 80 | M43: =L43 -> 80 | O43: 0 | P43: 0 | Q43: 0 | R43: 0 | S43: 0 | T43: 0 | U43: 0 | V43: 0 | W43: 0 | X43: 0 | AV43: =+O43-Z43-AK43 -> 0 | AW43: 0 | AX43: 0 | AY43: 0 | AZ43: 0 | BA43: 0 | BB43: 0 | BC43: 0 | BD43: 0 | BE43: 0 | BG43: =IF($L43=0,0, IF($L43<=0.5,BR43, IF($J43="straight line", IF((LEFT(BG$39,4)*1)-INT($L43)<LEFT($BG$39,4)*1,0,((OFFSET(BR43,0,-INT($L43+0.5),1,1))/$L43)*(IF($L43-INT($L43)>0.5,$L43-0.5-INT($L43),IF($L43-INT($L43)<=0.5,$L43-0.5-INT($L43)+1,0)))) +BR43/$L43*0.5, IF($J43="Declining Balance",-$BG$38,0)))) -> 0 | BH43: =IF($L43=0,0, IF($L43<=0.5,BS43, IF(AND($J43="straight line",$L43<1.51),(BR43-((BR43/$L43)*0.5))+BS43/$L43*0.5, IF($J43="straight line", IF((LEFT(BH$39,4)*1)-INT($L43)<LEFT($BG$39,4)*1,0,((OFFSET(BS43,0,-INT($L43+0.5),1,1))/$L43)*(IF($L43-INT($L43)>0.5,$L43-0.5-INT($L43),IF($L43-INT($L43)<=0.5,$L43-0.5-INT($L43)+1,0)))) +BS43/$L43*0.5 +SUM(OFFSET(BS43,0,MAX(-INT($L43+(0.5-(10^-12))),-BH$40)+1,1,MIN(INT($L43+(0.5-(10^-12))),BH$40)-1))*1/$L43, IF($J43="Declining Balance",-$BG$38,0))))) -> 0 | BI43: 0 | BJ43: 0 | BK43: 0 | BL43: 0 | BM43: 0 | BN43: 0 | BO43: 0 | BP43: 0 | BR43: =+IF($K43="Ongoing",AV43,IF(RIGHT($K43,2)=RIGHT(BR$39,2),SUM($AV43:AV43),0)+IF(RIGHT(BR$39,2)>RIGHT($K43,2),AV43,0)) -> 0 | BS43: =+IF($K43="Ongoing",AW43,IF(RIGHT($K43,2)=RIGHT(BS$39,2),SUM($AV43:AW43),0)+IF(RIGHT(BS$39,2)>RIGHT($K43,2),AW43,0)) -> 0 | BT43: =+IF($K43="Ongoing",AX43,IF(RIGHT($K43,2)=RIGHT(BT$39,2),SUM($AV43:AX43),0)+IF(RIGHT(BT$39,2)>RIGHT($K43,2),AX43,0)) -> 0 | BU43: =+IF($K43="Ongoing",AY43,IF(RIGHT($K43,2)=RIGHT(BU$39,2),SUM($AV43:AY43),0)+IF(RIGHT(BU$39,2)>RIGHT($K43,2),AY43,0)) -> 0 | BV43: =+IF($K43="Ongoing",AZ43,IF(RIGHT($K43,2)=RIGHT(BV$39,2),SUM($AV43:AZ43),0)+IF(RIGHT(BV$39,2)>RIGHT($K43,2),AZ43,0)) -> 0 | BW43: =+IF($K43="Ongoing",BA43,IF(RIGHT($K43,2)=RIGHT(BW$39,2),SUM($AV43:BA43),0)+IF(RIGHT(BW$39,2)>RIGHT($K43,2),BA43,0)) -> 0 | BX43: =+IF($K43="Ongoing",BB43,IF(RIGHT($K43,2)=RIGHT(BX$39,2),SUM($AV43:BB43),0)+IF(RIGHT(BX$39,2)>RIGHT($K43,2),BB43,0)) -> 0 | BY43: =+IF($K43="Ongoing",BC43,IF(RIGHT($K43,2)=RIGHT(BY$39,2),SUM($AV43:BC43),0)+IF(RIGHT(BY$39,2)>RIGHT($K43,2),BC43,0)) -> 0 | BZ43: =+IF($K43="Ongoing",BD43,IF(RIGHT($K43,2)=RIGHT(BZ$39,2),SUM($AV43:BD43),0)+IF(RIGHT(BZ$39,2)>RIGHT($K43,2),BD43,0)) -> 0 | CA43: =+IF($K43="Ongoing",BE43,IF(RIGHT($K43,2)=RIGHT(CA$39,2),SUM($AV43:BE43),0)+IF(RIGHT(CA$39,2)>RIGHT($K43,2),BE43,0)) -> 0 | CC43: =+O43*KeyAssumptionsPriceControl_FO!X$15 -> 0 | CD43: =+P43*KeyAssumptionsPriceControl_FO!Y$15 -> 0 | CE43: =+Q43*KeyAssumptionsPriceControl_FO!Z$15 -> 0 | CF43: =+R43*KeyAssumptionsPriceControl_FO!AA$15 -> 0 | CG43: =+S43*KeyAssumptionsPriceControl_FO!AB$15 -> 0 | CH43: =+T43*KeyAssumptionsPriceControl_FO!AC$15 -> 0 | CI43: =+U43*KeyAssumptionsPriceControl_FO!AD$15 -> 0 | CJ43: =+V43*KeyAssumptionsPriceControl_FO!AE$15 -> 0 | CK43: =+W43*KeyAssumptionsPriceControl_FO!AF$15 -> 0 | CL43: =+X43*KeyAssumptionsPriceControl_FO!AG$15 -> 0 | CN43: =IF($M43=0,0, IF($M43<=0.5,CC43, IF($J43="straight line", IF((LEFT(CN$39,4)*1)-INT($M43)<LEFT($CN$39,4)*1,0,((OFFSET(CC43,0,-INT($M43+0.5),1,1))/$M43)*(IF($M43-INT($M43)>0.5,$M43-0.5-INT($M43),IF($M43-INT($M43)<=0.5,$M43-0.5-INT($M43)+1,0)))) +CC43/$M43*0.5, IF($J43="Declining Balance",-$CN$38,0)))) -> 0 | CO43: =IF($M43=0,0, IF($M43<=0.5,CD43, IF(AND($J43="straight line",$M43<1.51),(CC43-((CC43/$M43)*0.5))+CD43/$M43*0.5, IF($J43="straight line", IF((LEFT(CO$39,4)*1)-INT($M43)<LEFT($CN$39,4)*1,0,((OFFSET(CD43,0,-INT($M43+0.5),1,1))/$M43)*(IF($M43-INT($M43)>0.5,$M43-0.5-INT($M43),IF($M43-INT($M43)<=0.5,$M43-0.5-INT($M43)+1,0)))) +CD43/$M43*0.5 +SUM(OFFSET(CD43,0,MAX(-INT($M43+(0.5-(10^-12))),-CO$40)+1,1,MIN(INT($M43+(0.5-(10^-12))),CO$40)-1))*1/$M43, IF($J43="Declining Balance",-$CN$38,0))))) -> 0 | CP43: 0 | CQ43: 0 | CR43: 0 | CS43: 0 | CT43: 0 | CU43: 0 | CV43: 0 | CW43: 0
C44: Land purchase 1 | E44: Recycled Water | F44: Improvements / Compliance | G44: Corporate | H44: Top 10 Major Projects | J44: Straight line | K44: 2019-20 | L44: 0 | M44: 0 | O44: 0 | P44: 0 | Q44: 0.1 | R44: 30 | S44: 0 | T44: 0 | U44: 0 | V44: 0 | W44: 0 | X44: 0 | AV44: 0 | AW44: 0 | AX44: 0.1 | AY44: 30 | AZ44: 0 | BA44: 0 | BB44: 0 | BC44: 0 | BD44: 0 | BE44: 0 | BG44: 0 | BH44: 0 | BI44: 0 | BJ44: 0 | BK44: 0 | BL44: 0 | BM44: 0 | BN44: 0 | BO44: 0 | BP44: 0 | BR44: =+IF($K44="Ongoing",AV44,IF(RIGHT($K44,2)=RIGHT(BR$39,2),SUM($AV44:AV44),0)+IF(RIGHT(BR$39,2)>RIGHT($K44,2),AV44,0)) -> 0 | BS44: =+IF($K44="Ongoing",AW44,IF(RIGHT($K44,2)=RIGHT(BS$39,2),SUM($AV44:AW44),0)+IF(RIGHT(BS$39,2)>RIGHT($K44,2),AW44,0)) -> 0 | BT44: =+IF($K44="Ongoing",AX44,IF(RIGHT($K44,2)=RIGHT(BT$39,2),SUM($AV44:AX44),0)+IF(RIGHT(BT$39,2)>RIGHT($K44,2),AX44,0)) -> 0.1 | BU44: =+IF($K44="Ongoing",AY44,IF(RIGHT($K44,2)=RIGHT(BU$39,2),SUM($AV44:AY44),0)+IF(RIGHT(BU$39,2)>RIGHT($K44,2),AY44,0)) -> 30 | BV44: =+IF($K44="Ongoing",AZ44,IF(RIGHT($K44,2)=RIGHT(BV$39,2),SUM($AV44:AZ44),0)+IF(RIGHT(BV$39,2)>RIGHT($K44,2),AZ44,0)) -> 0 | BW44: =+IF($K44="Ongoing",BA44,IF(RIGHT($K44,2)=RIGHT(BW$39,2),SUM($AV44:BA44),0)+IF(RIGHT(BW$39,2)>RIGHT($K44,2),BA44,0)) -> 0 | BX44: =+IF($K44="Ongoing",BB44,IF(RIGHT($K44,2)=RIGHT(BX$39,2),SUM($AV44:BB44),0)+IF(RIGHT(BX$39,2)>RIGHT($K44,2),BB44,0)) -> 0 | BY44: =+IF($K44="Ongoing",BC44,IF(RIGHT($K44,2)=RIGHT(BY$39,2),SUM($AV44:BC44),0)+IF(RIGHT(BY$39,2)>RIGHT($K44,2),BC44,0)) -> 0 | BZ44: =+IF($K44="Ongoing",BD44,IF(RIGHT($K44,2)=RIGHT(BZ$39,2),SUM($AV44:BD44),0)+IF(RIGHT(BZ$39,2)>RIGHT($K44,2),BD44,0)) -> 0 | CA44: =+IF($K44="Ongoing",BE44,IF(RIGHT($K44,2)=RIGHT(CA$39,2),SUM($AV44:BE44),0)+IF(RIGHT(CA$39,2)>RIGHT($K44,2),BE44,0)) -> 0 | CC44: =+O44*KeyAssumptionsPriceControl_FO!X$15 -> 0 | CD44: =+P44*KeyAssumptionsPriceControl_FO!Y$15 -> 0 | CE44: =+Q44*KeyAssumptionsPriceControl_FO!Z$15 -> 0.1070599167 | CF44: =+R44*KeyAssumptionsPriceControl_FO!AA$15 -> 32.85668844 | CG44: =+S44*KeyAssumptionsPriceControl_FO!AB$15 -> 0 | CH44: =+T44*KeyAssumptionsPriceControl_FO!AC$15 -> 0 | CI44: =+U44*KeyAssumptionsPriceControl_FO!AD$15 -> 0 | CJ44: =+V44*KeyAssumptionsPriceControl_FO!AE$15 -> 0 | CK44: =+W44*KeyAssumptionsPriceControl_FO!AF$15 -> 0 | CL44: =+X44*KeyAssumptionsPriceControl_FO!AG$15 -> 0 | CN44: 0 | CO44: 0 | CP44: 0 | CQ44: 0 | CR44: 0 | CS44: 0 | CT44: 0 | CU44: 0 | CV44: 0 | CW44: 0
C45: Clayton East and West catchment sewer duplication | E45: Sewerage | F45: Growth | G45: Pipelines/network | H45: Top 10 Major Projects | J45: Straight line | K45: 2022-23 | L45: 80 | M45: 80 | O45: 0 | P45: 0 | Q45: 0 | R45: 0 | S45: 0 | T45: 0 | U45: 0 | V45: 0 | W45: 0 | X45: 0 | AV45: 0 | AW45: 0 | AX45: 0 | AY45: 0 | AZ45: 0 | BA45: 0 | BB45: 0 | BC45: 0 | BD45: 0 | BE45: 0 | BG45: 0 | BH45: 0 | BI45: 0 | BJ45: 0 | BK45: 0 | BL45: 0 | BM45: 0 | BN45: 0 | BO45: 0 | BP45: 0 | BR45: =+IF($K45="Ongoing",AV45,IF(RIGHT($K45,2)=RIGHT(BR$39,2),SUM($AV45:AV45),0)+IF(RIGHT(BR$39,2)>RIGHT($K45,2),AV45,0)) -> 0 | BS45: =+IF($K45="Ongoing",AW45,IF(RIGHT($K45,2)=RIGHT(BS$39,2),SUM($AV45:AW45),0)+IF(RIGHT(BS$39,2)>RIGHT($K45,2),AW45,0)) -> 0 | BT45: =+IF($K45="Ongoing",AX45,IF(RIGHT($K45,2)=RIGHT(BT$39,2),SUM($AV45:AX45),0)+IF(RIGHT(BT$39,2)>RIGHT($K45,2),AX45,0)) -> 0 | BU45: =+IF($K45="Ongoing",AY45,IF(RIGHT($K45,2)=RIGHT(BU$39,2),SUM($AV45:AY45),0)+IF(RIGHT(BU$39,2)>RIGHT($K45,2),AY45,0)) -> 0 | BV45: =+IF($K45="Ongoing",AZ45,IF(RIGHT($K45,2)=RIGHT(BV$39,2),SUM($AV45:AZ45),0)+IF(RIGHT(BV$39,2)>RIGHT($K45,2),AZ45,0)) -> 0 | BW45: =+IF($K45="Ongoing",BA45,IF(RIGHT($K45,2)=RIGHT(BW$39,2),SUM($AV45:BA45),0)+IF(RIGHT(BW$39,2)>RIGHT($K45,2),BA45,0)) -> 0 | BX45: =+IF($K45="Ongoing",BB45,IF(RIGHT($K45,2)=RIGHT(BX$39,2),SUM($AV45:BB45),0)+IF(RIGHT(BX$39,2)>RIGHT($K45,2),BB45,0)) -> 0 | BY45: =+IF($K45="Ongoing",BC45,IF(RIGHT($K45,2)=RIGHT(BY$39,2),SUM($AV45:BC45),0)+IF(RIGHT(BY$39,2)>RIGHT($K45,2),BC45,0)) -> 0 | BZ45: =+IF($K45="Ongoing",BD45,IF(RIGHT($K45,2)=RIGHT(BZ$39,2),SUM($AV45:BD45),0)+IF(RIGHT(BZ$39,2)>RIGHT($K45,2),BD45,0)) -> 0 | CA45: =+IF($K45="Ongoing",BE45,IF(RIGHT($K45,2)=RIGHT(CA$39,2),SUM($AV45:BE45),0)+IF(RIGHT(CA$39,2)>RIGHT($K45,2),BE45,0)) -> 0 | CC45: =+O45*KeyAssumptionsPriceControl_FO!X$15 -> 0 | CD45: =+P45*KeyAssumptionsPriceControl_FO!Y$15 -> 0 | CE45: =+Q45*KeyAssumptionsPriceControl_FO!Z$15 -> 0 | CF45: =+R45*KeyAssumptionsPriceControl_FO!AA$15 -> 0 | CG45: =+S45*KeyAssumptionsPriceControl_FO!AB$15 -> 0 | CH45: =+T45*KeyAssumptionsPriceControl_FO!AC$15 -> 0 | CI45: =+U45*KeyAssumptionsPriceControl_FO!AD$15 -> 0 | CJ45: =+V45*KeyAssumptionsPriceControl_FO!AE$15 -> 0 | CK45: =+W45*KeyAssumptionsPriceControl_FO!AF$15 -> 0 | CL45: =+X45*KeyAssumptionsPriceControl_FO!AG$15 -> 0 | CN45: 0 | CO45: 0 | CP45: 0 | CQ45: 0 | CR45: 0 | CS45: 0 | CT45: 0 | CU45: 0 | CV45: 0 | CW45: 0
C46: Pakenham East sewer servicing | E46: Sewerage | F46: Growth | G46: Pipelines/network | H46: Top 10 Major Projects | J46: Straight line | K46: 2019-20 | L46: 80 | M46: 80 | O46: 4.5 | P46: 10.665 | Q46: 0 | R46: 0 | S46: 0 | T46: 0 | U46: 0 | V46: 0 | W46: 0 | X46: 0 | AV46: 4.5 | AW46: 10.665 | AX46: 0 | AY46: 0 | AZ46: 0 | BA46: 0 | BB46: 0 | BC46: 0 | BD46: 0 | BE46: 0 | BG46: 0 | BH46: 0.09478125 | BI46: 0.1895625 | BJ46: 0.1895625 | BK46: 0.1895625 | BL46: 0.1895625 | BM46: 0.1895625 | BN46: 0.1895625 | BO46: 0.1895625 | BP46: 0.1895625 | BR46: =+IF($K46="Ongoing",AV46,IF(RIGHT($K46,2)=RIGHT(BR$39,2),SUM($AV46:AV46),0)+IF(RIGHT(BR$39,2)>RIGHT($K46,2),AV46,0)) -> 0 | BS46: =+IF($K46="Ongoing",AW46,IF(RIGHT($K46,2)=RIGHT(BS$39,2),SUM($AV46:AW46),0)+IF(RIGHT(BS$39,2)>RIGHT($K46,2),AW46,0)) -> 15.165 | BT46: =+IF($K46="Ongoing",AX46,IF(RIGHT($K46,2)=RIGHT(BT$39,2),SUM($AV46:AX46),0)+IF(RIGHT(BT$39,2)>RIGHT($K46,2),AX46,0)) -> 0 | BU46: =+IF($K46="Ongoing",AY46,IF(RIGHT($K46,2)=RIGHT(BU$39,2),SUM($AV46:AY46),0)+IF(RIGHT(BU$39,2)>RIGHT($K46,2),AY46,0)) -> 0 | BV46: =+IF($K46="Ongoing",AZ46,IF(RIGHT($K46,2)=RIGHT(BV$39,2),SUM($AV46:AZ46),0)+IF(RIGHT(BV$39,2)>RIGHT($K46,2),AZ46,0)) -> 0 | BW46: =+IF($K46="Ongoing",BA46,IF(RIGHT($K46,2)=RIGHT(BW$39,2),SUM($AV46:BA46),0)+IF(RIGHT(BW$39,2)>RIGHT($K46,2),BA46,0)) -> 0 | BX46: =+IF($K46="Ongoing",BB46,IF(RIGHT($K46,2)=RIGHT(BX$39,2),SUM($AV46:BB46),0)+IF(RIGHT(BX$39,2)>RIGHT($K46,2),BB46,0)) -> 0 | BY46: =+IF($K46="Ongoing",BC46,IF(RIGHT($K46,2)=RIGHT(BY$39,2),SUM($AV46:BC46),0)+IF(RIGHT(BY$39,2)>RIGHT($K46,2),BC46,0)) -> 0 | BZ46: =+IF($K46="Ongoing",BD46,IF(RIGHT($K46,2)=RIGHT(BZ$39,2),SUM($AV46:BD46),0)+IF(RIGHT(BZ$39,2)>RIGHT($K46,2),BD46,0)) -> 0 | CA46: =+IF($K46="Ongoing",BE46,IF(RIGHT($K46,2)=RIGHT(CA$39,2),SUM($AV46:BE46),0)+IF(RIGHT(CA$39,2)>RIGHT($K46,2),BE46,0)) -> 0 | CC46: =+O46*KeyAssumptionsPriceControl_FO!X$15 -> 4.6035 | CD46: =+P46*KeyAssumptionsPriceControl_FO!Y$15 -> 11.16123178 | CE46: =+Q46*KeyAssumptionsPriceControl_FO!Z$15 -> 0 | CF46: =+R46*KeyAssumptionsPriceControl_FO!AA$15 -> 0 | CG46: =+S46*KeyAssumptionsPriceControl_FO!AB$15 -> 0 | CH46: =+T46*KeyAssumptionsPriceControl_FO!AC$15 -> 0 | CI46: =+U46*KeyAssumptionsPriceControl_FO!AD$15 -> 0 | CJ46: =+V46*KeyAssumptionsPriceControl_FO!AE$15 -> 0 | CK46: =+W46*KeyAssumptionsPriceControl_FO!AF$15 -> 0 | CL46: =+X46*KeyAssumptionsPriceControl_FO!AG$15 -> 0 | CN46: 0.028771875 | CO46: 0.1273014487 | CP46: 0.1970591473 | CQ46: 0.1970591473 | CR46: 0.1970591473 | CS46: 0.1970591473 | CT46: 0.1970591473 | CU46: 0.1970591473 | CV46: 0.1970591473 | CW46: 0.1970591473
C47: Land purchase 2 | E47: Sewerage | F47: Growth | G47: Corporate | H47: Top 10 Major Projects | J47: Straight line | K47: 2022-23 | L47: 0 | M47: 0 | O47: 0 | P47: 0 | Q47: 0 | R47: 0 | S47: 15 | T47: 0 | U47: 0 | V47: 0 | W47: 0 | X47: 0 | AV47: 0 | AW47: 0 | AX47: 0 | AY47: 0 | AZ47: 15 | BA47: 0 | BB47: 0 | BC47: 0 | BD47: 0 | BE47: 0 | BG47: 0 | BH47: 0 | BI47: 0 | BJ47: 0 | BK47: 0 | BL47: 0 | BM47: 0 | BN47: 0 | BO47: 0 | BP47: 0 | BR47: =+IF($K47="Ongoing",AV47,IF(RIGHT($K47,2)=RIGHT(BR$39,2),SUM($AV47:AV47),0)+IF(RIGHT(BR$39,2)>RIGHT($K47,2),AV47,0)) -> 0 | BS47: =+IF($K47="Ongoing",AW47,IF(RIGHT($K47,2)=RIGHT(BS$39,2),SUM($AV47:AW47),0)+IF(RIGHT(BS$39,2)>RIGHT($K47,2),AW47,0)) -> 0 | BT47: =+IF($K47="Ongoing",AX47,IF(RIGHT($K47,2)=RIGHT(BT$39,2),SUM($AV47:AX47),0)+IF(RIGHT(BT$39,2)>RIGHT($K47,2),AX47,0)) -> 0 | BU47: =+IF($K47="Ongoing",AY47,IF(RIGHT($K47,2)=RIGHT(BU$39,2),SUM($AV47:AY47),0)+IF(RIGHT(BU$39,2)>RIGHT($K47,2),AY47,0)) -> 0 | BV47: =+IF($K47="Ongoing",AZ47,IF(RIGHT($K47,2)=RIGHT(BV$39,2),SUM($AV47:AZ47),0)+IF(RIGHT(BV$39,2)>RIGHT($K47,2),AZ47,0)) -> 15 | BW47: =+IF($K47="Ongoing",BA47,IF(RIGHT($K47,2)=RIGHT(BW$39,2),SUM($AV47:BA47),0)+IF(RIGHT(BW$39,2)>RIGHT($K47,2),BA47,0)) -> 0 | BX47: =+IF($K47="Ongoing",BB47,IF(RIGHT($K47,2)=RIGHT(BX$39,2),SUM($AV47:BB47),0)+IF(RIGHT(BX$39,2)>RIGHT($K47,2),BB47,0)) -> 0 | BY47: =+IF($K47="Ongoing",BC47,IF(RIGHT($K47,2)=RIGHT(BY$39,2),SUM($AV47:BC47),0)+IF(RIGHT(BY$39,2)>RIGHT($K47,2),BC47,0)) -> 0 | BZ47: =+IF($K47="Ongoing",BD47,IF(RIGHT($K47,2)=RIGHT(BZ$39,2),SUM($AV47:BD47),0)+IF(RIGHT(BZ$39,2)>RIGHT($K47,2),BD47,0)) -> 0 | CA47: =+IF($K47="Ongoing",BE47,IF(RIGHT($K47,2)=RIGHT(CA$39,2),SUM($AV47:BE47),0)+IF(RIGHT(CA$39,2)>RIGHT($K47,2),BE47,0)) -> 0 | CC47: =+O47*KeyAssumptionsPriceControl_FO!X$15 -> 0 | CD47: =+P47*KeyAssumptionsPriceControl_FO!Y$15 -> 0 | CE47: =+Q47*KeyAssumptionsPriceControl_FO!Z$15 -> 0 | CF47: =+R47*KeyAssumptionsPriceControl_FO!AA$15 -> 0 | CG47: =+S47*KeyAssumptionsPriceControl_FO!AB$15 -> 16.80619613 | CH47: =+T47*KeyAssumptionsPriceControl_FO!AC$15 -> 0 | CI47: =+U47*KeyAssumptionsPriceControl_FO!AD$15 -> 0 | CJ47: =+V47*KeyAssumptionsPriceControl_FO!AE$15 -> 0 | CK47: =+W47*KeyAssumptionsPriceControl_FO!AF$15 -> 0 | CL47: =+X47*KeyAssumptionsPriceControl_FO!AG$15 -> 0 | CN47: 0 | CO47: 0 | CP47: 0 | CQ47: 0 | CR47: 0 | CS47: 0 | CT47: 0 | CU47: 0 | CV47: 0 | CW47: 0
C48: Ballarto Rd East sewer pump station | E48: Sewerage | F48: Growth | G48: Pipelines/network | H48: Top 10 Major Projects | J48: Straight line | K48: 2018-19 | L48: 80 | M48: 80 | O48: 13.8 | P48: 0 | Q48: 0 | R48: 0 | S48: 0 | T48: 0 | U48: 0 | V48: 0 | W48: 0 | X48: 0 | AV48: 13.8 | AW48: 0 | AX48: 0 | AY48: 0 | AZ48: 0 | BA48: 0 | BB48: 0 | BC48: 0 | BD48: 0 | BE48: 0 | BG48: 0.08625 | BH48: 0.1725 | BI48: 0.1725 | BJ48: 0.1725 | BK48: 0.1725 | BL48: 0.1725 | BM48: 0.1725 | BN48: 0.1725 | BO48: 0.1725 | BP48: 0.1725 | BR48: =+IF($K48="Ongoing",AV48,IF(RIGHT($K48,2)=RIGHT(BR$39,2),SUM($AV48:AV48),0)+IF(RIGHT(BR$39,2)>RIGHT($K48,2),AV48,0)) -> 13.8 | BS48: =+IF($K48="Ongoing",AW48,IF(RIGHT($K48,2)=RIGHT(BS$39,2),SUM($AV48:AW48),0)+IF(RIGHT(BS$39,2)>RIGHT($K48,2),AW48,0)) -> 0 | BT48: =+IF($K48="Ongoing",AX48,IF(RIGHT($K48,2)=RIGHT(BT$39,2),SUM($AV48:AX48),0)+IF(RIGHT(BT$39,2)>RIGHT($K48,2),AX48,0)) -> 0 | BU48: =+IF($K48="Ongoing",AY48,IF(RIGHT($K48,2)=RIGHT(BU$39,2),SUM($AV48:AY48),0)+IF(RIGHT(BU$39,2)>RIGHT($K48,2),AY48,0)) -> 0 | BV48: =+IF($K48="Ongoing",AZ48,IF(RIGHT($K48,2)=RIGHT(BV$39,2),SUM($AV48:AZ48),0)+IF(RIGHT(BV$39,2)>RIGHT($K48,2),AZ48,0)) -> 0 | BW48: =+IF($K48="Ongoing",BA48,IF(RIGHT($K48,2)=RIGHT(BW$39,2),SUM($AV48:BA48),0)+IF(RIGHT(BW$39,2)>RIGHT($K48,2),BA48,0)) -> 0 | BX48: =+IF($K48="Ongoing",BB48,IF(RIGHT($K48,2)=RIGHT(BX$39,2),SUM($AV48:BB48),0)+IF(RIGHT(BX$39,2)>RIGHT($K48,2),BB48,0)) -> 0 | BY48: =+IF($K48="Ongoing",BC48,IF(RIGHT($K48,2)=RIGHT(BY$39,2),SUM($AV48:BC48),0)+IF(RIGHT(BY$39,2)>RIGHT($K48,2),BC48,0)) -> 0 | BZ48: =+IF($K48="Ongoing",BD48,IF(RIGHT($K48,2)=RIGHT(BZ$39,2),SUM($AV48:BD48),0)+IF(RIGHT(BZ$39,2)>RIGHT($K48,2),BD48,0)) -> 0 | CA48: =+IF($K48="Ongoing",BE48,IF(RIGHT($K48,2)=RIGHT(CA$39,2),SUM($AV48:BE48),0)+IF(RIGHT(CA$39,2)>RIGHT($K48,2),BE48,0)) -> 0 | CC48: =+O48*KeyAssumptionsPriceControl_FO!X$15 -> 14.1174 | CD48: =+P48*KeyAssumptionsPriceControl_FO!Y$15 -> 0 | CE48: =+Q48*KeyAssumptionsPriceControl_FO!Z$15 -> 0 | CF48: =+R48*KeyAssumptionsPriceControl_FO!AA$15 -> 0 | CG48: =+S48*KeyAssumptionsPriceControl_FO!AB$15 -> 0 | CH48: =+T48*KeyAssumptionsPriceControl_FO!AC$15 -> 0 | CI48: =+U48*KeyAssumptionsPriceControl_FO!AD$15 -> 0 | CJ48: =+V48*KeyAssumptionsPriceControl_FO!AE$15 -> 0 | CK48: =+W48*KeyAssumptionsPriceControl_FO!AF$15 -> 0 | CL48: =+X48*KeyAssumptionsPriceControl_FO!AG$15 -> 0 | CN48: 0.08823375 | CO48: 0.1764675 | CP48: 0.1764675 | CQ48: 0.1764675 | CR48: 0.1764675 | CS48: 0.1764675 | CT48: 0.1764675 | CU48: 0.1764675 | CV48: 0.1764675 | CW48: 0.1764675
C49: Hanna Street sewer capacity improvements | E49: Sewerage | F49: Growth | G49: Pipelines/network | H49: Top 10 Major Projects | J49: Straight line | K49: 2021-22 | L49: 80 | M49: 80 | O49: 0 | P49: 5.26621693 | Q49: 1 | R49: 4.75332107 | S49: 0 | T49: 0 | U49: 0 | V49: 0 | W49: 0 | X49: 0 | AV49: 0 | AW49: 5.26621693 | AX49: 1 | AY49: 4.75332107 | AZ49: 0 | BA49: 0 | BB49: 0 | BC49: 0 | BD49: 0 | BE49: 0 | BG49: 0 | BH49: 0 | BI49: 0 | BJ49: 0.0688721125 | BK49: 0.137744225 | BL49: 0.137744225 | BM49: 0.137744225 | BN49: 0.137744225 | BO49: 0.137744225 | BP49: 0.137744225 | BR49: =+IF($K49="Ongoing",AV49,IF(RIGHT($K49,2)=RIGHT(BR$39,2),SUM($AV49:AV49),0)+IF(RIGHT(BR$39,2)>RIGHT($K49,2),AV49,0)) -> 0 | BS49: =+IF($K49="Ongoing",AW49,IF(RIGHT($K49,2)=RIGHT(BS$39,2),SUM($AV49:AW49),0)+IF(RIGHT(BS$39,2)>RIGHT($K49,2),AW49,0)) -> 0 | BT49: =+IF($K49="Ongoing",AX49,IF(RIGHT($K49,2)=RIGHT(BT$39,2),SUM($AV49:AX49),0)+IF(RIGHT(BT$39,2)>RIGHT($K49,2),AX49,0)) -> 0 | BU49: =+IF($K49="Ongoing",AY49,IF(RIGHT($K49,2)=RIGHT(BU$39,2),SUM($AV49:AY49),0)+IF(RIGHT(BU$39,2)>RIGHT($K49,2),AY49,0)) -> 11.019538 | BV49: =+IF($K49="Ongoing",AZ49,IF(RIGHT($K49,2)=RIGHT(BV$39,2),SUM($AV49:AZ49),0)+IF(RIGHT(BV$39,2)>RIGHT($K49,2),AZ49,0)) -> 0 | BW49: =+IF($K49="Ongoing",BA49,IF(RIGHT($K49,2)=RIGHT(BW$39,2),SUM($AV49:BA49),0)+IF(RIGHT(BW$39,2)>RIGHT($K49,2),BA49,0)) -> 0 | BX49: =+IF($K49="Ongoing",BB49,IF(RIGHT($K49,2)=RIGHT(BX$39,2),SUM($AV49:BB49),0)+IF(RIGHT(BX$39,2)>RIGHT($K49,2),BB49,0)) -> 0 | BY49: =+IF($K49="Ongoing",BC49,IF(RIGHT($K49,2)=RIGHT(BY$39,2),SUM($AV49:BC49),0)+IF(RIGHT(BY$39,2)>RIGHT($K49,2),BC49,0)) -> 0 | BZ49: =+IF($K49="Ongoing",BD49,IF(RIGHT($K49,2)=RIGHT(BZ$39,2),SUM($AV49:BD49),0)+IF(RIGHT(BZ$39,2)>RIGHT($K49,2),BD49,0)) -> 0 | CA49: =+IF($K49="Ongoing",BE49,IF(RIGHT($K49,2)=RIGHT(CA$39,2),SUM($AV49:BE49),0)+IF(RIGHT(CA$39,2)>RIGHT($K49,2),BE49,0)) -> 0 | CC49: =+O49*KeyAssumptionsPriceControl_FO!X$15 -> 0 | CD49: =+P49*KeyAssumptionsPriceControl_FO!Y$15 -> 5.511248738 | CE49: =+Q49*KeyAssumptionsPriceControl_FO!Z$15 -> 1.070599167 | CF49: =+R49*KeyAssumptionsPriceControl_FO!AA$15 -> 5.205946314 | CG49: =+S49*KeyAssumptionsPriceControl_FO!AB$15 -> 0 | CH49: =+T49*KeyAssumptionsPriceControl_FO!AC$15 -> 0 | CI49: =+U49*KeyAssumptionsPriceControl_FO!AD$15 -> 0 | CJ49: =+V49*KeyAssumptionsPriceControl_FO!AE$15 -> 0 | CK49: =+W49*KeyAssumptionsPriceControl_FO!AF$15 -> 0 | CL49: =+X49*KeyAssumptionsPriceControl_FO!AG$15 -> 0 | CN49: 0 | CO49: 0.03444530461 | CP49: 0.07558185401 | CQ49: 0.1148102633 | CR49: 0.1473474277 | CS49: 0.1473474277 | CT49: 0.1473474277 | CU49: 0.1473474277 | CV49: 0.1473474277 | CW49: 0.1473474277
C50: Water recycling plant drying pan and stockpile area upgrades | E50: Sewerage | F50: Renewals | G50: Treatment | H50: Top 10 Major Projects | J50: Straight line | K50: 2022-23 | L50: 50 | M50: 50 | O50: 2.578 | P50: 1.42 | Q50: 2.138 | R50: 2.948 | S50: 1.131 | T50: 0 | U50: 0 | V50: 0 | W50: 0 | X50: 0 | AV50: 2.578 | AW50: 1.42 | AX50: 2.138 | AY50: 2.948 | AZ50: 1.131 | BA50: 0 | BB50: 0 | BC50: 0 | BD50: 0 | BE50: 0 | BG50: 0 | BH50: 0 | BI50: 0 | BJ50: 0 | BK50: 0.10215 | BL50: 0.2043 | BM50: 0.2043 | BN50: 0.2043 | BO50: 0.2043 | BP50: 0.2043 | BR50: =+IF($K50="Ongoing",AV50,IF(RIGHT($K50,2)=RIGHT(BR$39,2),SUM($AV50:AV50),0)+IF(RIGHT(BR$39,2)>RIGHT($K50,2),AV50,0)) -> 0 | BS50: =+IF($K50="Ongoing",AW50,IF(RIGHT($K50,2)=RIGHT(BS$39,2),SUM($AV50:AW50),0)+IF(RIGHT(BS$39,2)>RIGHT($K50,2),AW50,0)) -> 0 | BT50: =+IF($K50="Ongoing",AX50,IF(RIGHT($K50,2)=RIGHT(BT$39,2),SUM($AV50:AX50),0)+IF(RIGHT(BT$39,2)>RIGHT($K50,2),AX50,0)) -> 0 | BU50: =+IF($K50="Ongoing",AY50,IF(RIGHT($K50,2)=RIGHT(BU$39,2),SUM($AV50:AY50),0)+IF(RIGHT(BU$39,2)>RIGHT($K50,2),AY50,0)) -> 0 | BV50: =+IF($K50="Ongoing",AZ50,IF(RIGHT($K50,2)=RIGHT(BV$39,2),SUM($AV50:AZ50),0)+IF(RIGHT(BV$39,2)>RIGHT($K50,2),AZ50,0)) -> 10.215 | BW50: =+IF($K50="Ongoing",BA50,IF(RIGHT($K50,2)=RIGHT(BW$39,2),SUM($AV50:BA50),0)+IF(RIGHT(BW$39,2)>RIGHT($K50,2),BA50,0)) -> 0 | BX50: =+IF($K50="Ongoing",BB50,IF(RIGHT($K50,2)=RIGHT(BX$39,2),SUM($AV50:BB50),0)+IF(RIGHT(BX$39,2)>RIGHT($K50,2),BB50,0)) -> 0 | BY50: =+IF($K50="Ongoing",BC50,IF(RIGHT($K50,2)=RIGHT(BY$39,2),SUM($AV50:BC50),0)+IF(RIGHT(BY$39,2)>RIGHT($K50,2),BC50,0)) -> 0 | BZ50: =+IF($K50="Ongoing",BD50,IF(RIGHT($K50,2)=RIGHT(BZ$39,2),SUM($AV50:BD50),0)+IF(RIGHT(BZ$39,2)>RIGHT($K50,2),BD50,0)) -> 0 | CA50: =+IF($K50="Ongoing",BE50,IF(RIGHT($K50,2)=RIGHT(CA$39,2),SUM($AV50:BE50),0)+IF(RIGHT(CA$39,2)>RIGHT($K50,2),BE50,0)) -> 0 | CC50: =+O50*KeyAssumptionsPriceControl_FO!X$15 -> 2.637294 | CD50: =+P50*KeyAssumptionsPriceControl_FO!Y$15 -> 1.48607118 | CE50: =+Q50*KeyAssumptionsPriceControl_FO!Z$15 -> 2.288941019 | CF50: =+R50*KeyAssumptionsPriceControl_FO!AA$15 -> 3.22871725 | CG50: =+S50*KeyAssumptionsPriceControl_FO!AB$15 -> 1.267187189 | CH50: =+T50*KeyAssumptionsPriceControl_FO!AC$15 -> 0 | CI50: =+U50*KeyAssumptionsPriceControl_FO!AD$15 -> 0 | CJ50: =+V50*KeyAssumptionsPriceControl_FO!AE$15 -> 0 | CK50: =+W50*KeyAssumptionsPriceControl_FO!AF$15 -> 0 | CL50: =+X50*KeyAssumptionsPriceControl_FO!AG$15 -> 0 | CN50: 0.02637294 | CO50: 0.0676065918 | CP50: 0.1053567138 | CQ50: 0.1605332965 | CR50: 0.2054923409 | CS50: 0.2181642128 | CT50: 0.2181642128 | CU50: 0.2181642128 | CV50: 0.2181642128 | CW50: 0.2181642128
C51: Digital Utility | E51: Water | F51: Improvements / Compliance | G51: Corporate | H51: Top 10 Major Projects | J51: Straight line | K51: 2019-20 | L51: 10 | M51: 10 | O51: 7.368589865 | P51: 2.716175215 | Q51: 0 | R51: 0 | S51: 0 | T51: 0 | U51: 0 | V51: 0 | W51: 0 | X51: 0 | AV51: 7.368589865 | AW51: 2.716175215 | AX51: 0 | AY51: 0 | AZ51: 0 | BA51: 0 | BB51: 0 | BC51: 0 | BD51: 0 | BE51: 0 | BG51: 0 | BH51: 0.504238254 | BI51: 1.008476508 | BJ51: 1.008476508 | BK51: 1.008476508 | BL51: 1.008476508 | BM51: 1.008476508 | BN51: 1.008476508 | BO51: 1.008476508 | BP51: 1.008476508 | BR51: =+IF($K51="Ongoing",AV51,IF(RIGHT($K51,2)=RIGHT(BR$39,2),SUM($AV51:AV51),0)+IF(RIGHT(BR$39,2)>RIGHT($K51,2),AV51,0)) -> 0 | BS51: =+IF($K51="Ongoing",AW51,IF(RIGHT($K51,2)=RIGHT(BS$39,2),SUM($AV51:AW51),0)+IF(RIGHT(BS$39,2)>RIGHT($K51,2),AW51,0)) -> 10.08476508 | BT51: =+IF($K51="Ongoing",AX51,IF(RIGHT($K51,2)=RIGHT(BT$39,2),SUM($AV51:AX51),0)+IF(RIGHT(BT$39,2)>RIGHT($K51,2),AX51,0)) -> 0 | BU51: =+IF($K51="Ongoing",AY51,IF(RIGHT($K51,2)=RIGHT(BU$39,2),SUM($AV51:AY51),0)+IF(RIGHT(BU$39,2)>RIGHT($K51,2),AY51,0)) -> 0 | BV51: =+IF($K51="Ongoing",AZ51,IF(RIGHT($K51,2)=RIGHT(BV$39,2),SUM($AV51:AZ51),0)+IF(RIGHT(BV$39,2)>RIGHT($K51,2),AZ51,0)) -> 0 | BW51: =+IF($K51="Ongoing",BA51,IF(RIGHT($K51,2)=RIGHT(BW$39,2),SUM($AV51:BA51),0)+IF(RIGHT(BW$39,2)>RIGHT($K51,2),BA51,0)) -> 0 | BX51: =+IF($K51="Ongoing",BB51,IF(RIGHT($K51,2)=RIGHT(BX$39,2),SUM($AV51:BB51),0)+IF(RIGHT(BX$39,2)>RIGHT($K51,2),BB51,0)) -> 0 | BY51: =+IF($K51="Ongoing",BC51,IF(RIGHT($K51,2)=RIGHT(BY$39,2),SUM($AV51:BC51),0)+IF(RIGHT(BY$39,2)>RIGHT($K51,2),BC51,0)) -> 0 | BZ51: =+IF($K51="Ongoing",BD51,IF(RIGHT($K51,2)=RIGHT(BZ$39,2),SUM($AV51:BD51),0)+IF(RIGHT(BZ$39,2)>RIGHT($K51,2),BD51,0)) -> 0 | CA51: =+IF($K51="Ongoing",BE51,IF(RIGHT($K51,2)=RIGHT(CA$39,2),SUM($AV51:BE51),0)+IF(RIGHT(CA$39,2)>RIGHT($K51,2),BE51,0)) -> 0 | CC51: =+O51*KeyAssumptionsPriceControl_FO!X$15 -> 7.538067432 | CD51: =+P51*KeyAssumptionsPriceControl_FO!Y$15 -> 2.842556132 | CE51: =+Q51*KeyAssumptionsPriceControl_FO!Z$15 -> 0 | CF51: =+R51*KeyAssumptionsPriceControl_FO!AA$15 -> 0 | CG51: =+S51*KeyAssumptionsPriceControl_FO!AB$15 -> 0 | CH51: =+T51*KeyAssumptionsPriceControl_FO!AC$15 -> 0 | CI51: =+U51*KeyAssumptionsPriceControl_FO!AD$15 -> 0 | CJ51: =+V51*KeyAssumptionsPriceControl_FO!AE$15 -> 0 | CK51: =+W51*KeyAssumptionsPriceControl_FO!AF$15 -> 0 | CL51: =+X51*KeyAssumptionsPriceControl_FO!AG$15 -> 0 | CN51: 0.3769033716 | CO51: 0.8959345498 | CP51: 1.038062356 | CQ51: 1.038062356 | CR51: 1.038062356 | CS51: 1.038062356 | CT51: 1.038062356 | CU51: 1.038062356 | CV51: 1.038062356 | CW51: 1.038062356
C53: Sewer growth | E53: Sewerage | F53: Growth | G53: Pipelines/network | H53: Capital Programs / Allocation | J53: Straight line | K53: Ongoing | L53: 80 | M53: =L53 -> 80 | O53: 28.10405128 | P53: 20.7475017 | Q53: 25.0563304 | R53: 25.07659291 | S53: 24.96247925 | T53: 41.7589675 | U53: 41.7589675 | V53: 30.16671508 | W53: 30.2076714 | X53: 47.29203367 | AV53: 28.10405128 | AW53: 20.7475017 | AX53: 25.0563304 | AY53: 25.07659291 | AZ53: 24.96247925 | BA53: 41.7589675 | BB53: 41.7589675 | BC53: 30.16671508 | BD53: 30.2076714 | BE53: 47.29203367 | BG53: 0.1756503205 | BH53: 0.4809725267 | BI53: 0.7672464773 | BJ53: 1.080577248 | BK53: 1.393321449 | BL53: 1.810330491 | BM53: 2.332317585 | BN53: 2.781853101 | BO53: 3.159193017 | BP53: 3.643566173 | BR53: =+IF($K53="Ongoing",AV53,IF(RIGHT($K53,2)=RIGHT(BR$39,2),SUM($AV53:AV53),0)+IF(RIGHT(BR$39,2)>RIGHT($K53,2),AV53,0)) -> 28.10405128 | BS53: =+IF($K53="Ongoing",AW53,IF(RIGHT($K53,2)=RIGHT(BS$39,2),SUM($AV53:AW53),0)+IF(RIGHT(BS$39,2)>RIGHT($K53,2),AW53,0)) -> 20.7475017 | BT53: =+IF($K53="Ongoing",AX53,IF(RIGHT($K53,2)=RIGHT(BT$39,2),SUM($AV53:AX53),0)+IF(RIGHT(BT$39,2)>RIGHT($K53,2),AX53,0)) -> 25.0563304 | BU53: =+IF($K53="Ongoing",AY53,IF(RIGHT($K53,2)=RIGHT(BU$39,2),SUM($AV53:AY53),0)+IF(RIGHT(BU$39,2)>RIGHT($K53,2),AY53,0)) -> 25.07659291 | BV53: =+IF($K53="Ongoing",AZ53,IF(RIGHT($K53,2)=RIGHT(BV$39,2),SUM($AV53:AZ53),0)+IF(RIGHT(BV$39,2)>RIGHT($K53,2),AZ53,0)) -> 24.96247925 | BW53: =+IF($K53="Ongoing",BA53,IF(RIGHT($K53,2)=RIGHT(BW$39,2),SUM($AV53:BA53),0)+IF(RIGHT(BW$39,2)>RIGHT($K53,2),BA53,0)) -> 41.7589675 | BX53: =+IF($K53="Ongoing",BB53,IF(RIGHT($K53,2)=RIGHT(BX$39,2),SUM($AV53:BB53),0)+IF(RIGHT(BX$39,2)>RIGHT($K53,2),BB53,0)) -> 41.7589675 | BY53: =+IF($K53="Ongoing",BC53,IF(RIGHT($K53,2)=RIGHT(BY$39,2),SUM($AV53:BC53),0)+IF(RIGHT(BY$39,2)>RIGHT($K53,2),BC53,0)) -> 30.16671508 | BZ53: =+IF($K53="Ongoing",BD53,IF(RIGHT($K53,2)=RIGHT(BZ$39,2),SUM($AV53:BD53),0)+IF(RIGHT(BZ$39,2)>RIGHT($K53,2),BD53,0)) -> 30.2076714 | CA53: =+IF($K53="Ongoing",BE53,IF(RIGHT($K53,2)=RIGHT(CA$39,2),SUM($AV53:BE53),0)+IF(RIGHT(CA$39,2)>RIGHT($K53,2),BE53,0)) -> 47.29203367 | CC53: =+O53*KeyAssumptionsPriceControl_FO!X$15 -> 28.75044446 | CD53: =+P53*KeyAssumptionsPriceControl_FO!Y$15 -> 21.71286221 | CE53: =+Q53*KeyAssumptionsPriceControl_FO!Z$15 -> 26.82528645 | CF53: =+R53*KeyAssumptionsPriceControl_FO!AA$15 -> 27.46446001 | CG53: =+S53*KeyAssumptionsPriceControl_FO!AB$15 -> 27.96828815 | CH53: =+T53*KeyAssumptionsPriceControl_FO!AC$15 -> 47.86340096 | CI53: =+U53*KeyAssumptionsPriceControl_FO!AD$15 -> 48.96425918 | CJ53: =+V53*KeyAssumptionsPriceControl_FO!AE$15 -> 36.18537612 | CK53: =+W53*KeyAssumptionsPriceControl_FO!AF$15 -> 37.06789736 | CL53: =+X53*KeyAssumptionsPriceControl_FO!AG$15 -> 59.36689393 | CN53: 0.1796902779 | CO53: 0.4950859446 | CP53: 0.7984493738 | CQ53: 1.137760289 | CR53: 1.484214965 | CS53: 1.958163022 | CT53: 2.563335898 | CU53: 3.095521118 | CV53: 3.553354078 | CW53: 4.156071523
C54: Water renewals | E54: Water | F54: Renewals | G54: Pipelines/network | H54: Capital Programs / Allocation | J54: Straight line | K54: Ongoing | L54: 80 | M54: =L54 -> 80 | O54: 18.9 | P54: 19.1 | Q54: 20.9 | R54: 23.5 | S54: 23.5 | T54: 20.9 | U54: 20.9 | V54: 20.9 | W54: 20.9 | X54: 20.9 | AV54: 18.9 | AW54: 19.1 | AX54: 20.9 | AY54: 23.5 | AZ54: 23.5 | BA54: 20.9 | BB54: 20.9 | BC54: 20.9 | BD54: 20.9 | BE54: 20.9 | BG54: 0.118125 | BH54: 0.355625 | BI54: 0.605625 | BJ54: 0.883125 | BK54: 1.176875 | BL54: 1.454375 | BM54: 1.715625 | BN54: 1.976875 | BO54: 2.238125 | BP54: 2.499375 | BR54: =+IF($K54="Ongoing",AV54,IF(RIGHT($K54,2)=RIGHT(BR$39,2),SUM($AV54:AV54),0)+IF(RIGHT(BR$39,2)>RIGHT($K54,2),AV54,0)) -> 18.9 | BS54: =+IF($K54="Ongoing",AW54,IF(RIGHT($K54,2)=RIGHT(BS$39,2),SUM($AV54:AW54),0)+IF(RIGHT(BS$39,2)>RIGHT($K54,2),AW54,0)) -> 19.1 | BT54: =+IF($K54="Ongoing",AX54,IF(RIGHT($K54,2)=RIGHT(BT$39,2),SUM($AV54:AX54),0)+IF(RIGHT(BT$39,2)>RIGHT($K54,2),AX54,0)) -> 20.9 | BU54: =+IF($K54="Ongoing",AY54,IF(RIGHT($K54,2)=RIGHT(BU$39,2),SUM($AV54:AY54),0)+IF(RIGHT(BU$39,2)>RIGHT($K54,2),AY54,0)) -> 23.5 | BV54: =+IF($K54="Ongoing",AZ54,IF(RIGHT($K54,2)=RIGHT(BV$39,2),SUM($AV54:AZ54),0)+IF(RIGHT(BV$39,2)>RIGHT($K54,2),AZ54,0)) -> 23.5 | BW54: =+IF($K54="Ongoing",BA54,IF(RIGHT($K54,2)=RIGHT(BW$39,2),SUM($AV54:BA54),0)+IF(RIGHT(BW$39,2)>RIGHT($K54,2),BA54,0)) -> 20.9 | BX54: =+IF($K54="Ongoing",BB54,IF(RIGHT($K54,2)=RIGHT(BX$39,2),SUM($AV54:BB54),0)+IF(RIGHT(BX$39,2)>RIGHT($K54,2),BB54,0)) -> 20.9 | BY54: =+IF($K54="Ongoing",BC54,IF(RIGHT($K54,2)=RIGHT(BY$39,2),SUM($AV54:BC54),0)+IF(RIGHT(BY$39,2)>RIGHT($K54,2),BC54,0)) -> 20.9 | BZ54: =+IF($K54="Ongoing",BD54,IF(RIGHT($K54,2)=RIGHT(BZ$39,2),SUM($AV54:BD54),0)+IF(RIGHT(BZ$39,2)>RIGHT($K54,2),BD54,0)) -> 20.9 | CA54: =+IF($K54="Ongoing",BE54,IF(RIGHT($K54,2)=RIGHT(CA$39,2),SUM($AV54:BE54),0)+IF(RIGHT(CA$39,2)>RIGHT($K54,2),BE54,0)) -> 20.9 | CC54: =+O54*KeyAssumptionsPriceControl_FO!X$15 -> 19.3347 | CD54: =+P54*KeyAssumptionsPriceControl_FO!Y$15 -> 19.9887039 | CE54: =+Q54*KeyAssumptionsPriceControl_FO!Z$15 -> 22.37552259 | CF54: =+R54*KeyAssumptionsPriceControl_FO!AA$15 -> 25.73773927 | CG54: =+S54*KeyAssumptionsPriceControl_FO!AB$15 -> 26.32970728 | CH54: =+T54*KeyAssumptionsPriceControl_FO!AC$15 -> 23.95521585 | CI54: =+U54*KeyAssumptionsPriceControl_FO!AD$15 -> 24.50618581 | CJ54: =+V54*KeyAssumptionsPriceControl_FO!AE$15 -> 25.06982808 | CK54: =+W54*KeyAssumptionsPriceControl_FO!AF$15 -> 25.64643413 | CL54: =+X54*KeyAssumptionsPriceControl_FO!AG$15 -> 26.23630212 | CN54: 0.120841875 | CO54: 0.3666131494 | CP54: 0.6313895649 | CQ54: 0.9320974516 | CR54: 1.257518993 | CS54: 1.571799762 | CT54: 1.874683522 | CU54: 2.184533609 | CV54: 2.501510248 | CW54: 2.82577735
C55: Sewer backlog | E55: Sewerage | F55: Improvements / Compliance | G55: Pipelines/network | H55: Capital Programs / Allocation | J55: Straight line | K55: Ongoing | L55: 20 | M55: 20 | O55: 18.29063 | P55: 15.36016 | Q55: 13.19245 | R55: 13.34822 | S55: 21.60172 | T55: 10.74618 | U55: 10.73274 | V55: 10.72471 | W55: 6.03117 | X55: 5.84 | AV55: 18.29063 | AW55: 15.36016 | AX55: 13.19245 | AY55: 13.34822 | AZ55: 21.60172 | BA55: 10.74618 | BB55: 10.73274 | BC55: 10.72471 | BD55: 6.03117 | BE55: 5.84 | BG55: 0.45726575 | BH55: 1.2985355 | BI55: 2.01235075 | BJ55: 2.6758675 | BK55: 3.549616 | BL55: 4.3583135 | BM55: 4.8952865 | BN55: 5.43172275 | BO55: 5.85061975 | BP55: 6.147399 | BR55: =+IF($K55="Ongoing",AV55,IF(RIGHT($K55,2)=RIGHT(BR$39,2),SUM($AV55:AV55),0)+IF(RIGHT(BR$39,2)>RIGHT($K55,2),AV55,0)) -> 18.29063 | BS55: =+IF($K55="Ongoing",AW55,IF(RIGHT($K55,2)=RIGHT(BS$39,2),SUM($AV55:AW55),0)+IF(RIGHT(BS$39,2)>RIGHT($K55,2),AW55,0)) -> 15.36016 | BT55: =+IF($K55="Ongoing",AX55,IF(RIGHT($K55,2)=RIGHT(BT$39,2),SUM($AV55:AX55),0)+IF(RIGHT(BT$39,2)>RIGHT($K55,2),AX55,0)) -> 13.19245 | BU55: =+IF($K55="Ongoing",AY55,IF(RIGHT($K55,2)=RIGHT(BU$39,2),SUM($AV55:AY55),0)+IF(RIGHT(BU$39,2)>RIGHT($K55,2),AY55,0)) -> 13.34822 | BV55: =+IF($K55="Ongoing",AZ55,IF(RIGHT($K55,2)=RIGHT(BV$39,2),SUM($AV55:AZ55),0)+IF(RIGHT(BV$39,2)>RIGHT($K55,2),AZ55,0)) -> 21.60172 | BW55: =+IF($K55="Ongoing",BA55,IF(RIGHT($K55,2)=RIGHT(BW$39,2),SUM($AV55:BA55),0)+IF(RIGHT(BW$39,2)>RIGHT($K55,2),BA55,0)) -> 10.74618 | BX55: =+IF($K55="Ongoing",BB55,IF(RIGHT($K55,2)=RIGHT(BX$39,2),SUM($AV55:BB55),0)+IF(RIGHT(BX$39,2)>RIGHT($K55,2),BB55,0)) -> 10.73274 | BY55: =+IF($K55="Ongoing",BC55,IF(RIGHT($K55,2)=RIGHT(BY$39,2),SUM($AV55:BC55),0)+IF(RIGHT(BY$39,2)>RIGHT($K55,2),BC55,0)) -> 10.72471 | BZ55: =+IF($K55="Ongoing",BD55,IF(RIGHT($K55,2)=RIGHT(BZ$39,2),SUM($AV55:BD55),0)+IF(RIGHT(BZ$39,2)>RIGHT($K55,2),BD55,0)) -> 6.03117 | CA55: =+IF($K55="Ongoing",BE55,IF(RIGHT($K55,2)=RIGHT(CA$39,2),SUM($AV55:BE55),0)+IF(RIGHT(CA$39,2)>RIGHT($K55,2),BE55,0)) -> 5.84 | CC55: =+O55*KeyAssumptionsPriceControl_FO!X$15 -> 18.71131449 | CD55: =+P55*KeyAssumptionsPriceControl_FO!Y$15 -> 16.07485288 | CE55: =+Q55*KeyAssumptionsPriceControl_FO!Z$15 -> 14.12382598 | CF55: =+R55*KeyAssumptionsPriceControl_FO!AA$15 -> 14.61927686 | CG55: =+S55*KeyAssumptionsPriceControl_FO!AB$15 -> 24.20284954 | CH55: =+T55*KeyAssumptionsPriceControl_FO!AC$15 -> 12.31708428 | CI55: =+U55*KeyAssumptionsPriceControl_FO!AD$15 -> 12.58461822 | CJ55: =+V55*KeyAssumptionsPriceControl_FO!AE$15 -> 12.86443234 | CK55: =+W55*KeyAssumptionsPriceControl_FO!AF$15 -> 7.400861442 | CL55: =+X55*KeyAssumptionsPriceControl_FO!AG$15 -> 7.331100687 | CN55: 0.4677828622 | CO55: 1.337437047 | CP55: 2.092404018 | CQ55: 2.810981589 | CR55: 3.781534749 | CS55: 4.694533095 | CT55: 5.317075657 | CU55: 5.953301921 | CV55: 6.459934266 | CW55: 6.828233319
C56: Potable water growth | E56: Water | F56: Growth | G56: Pipelines/network | H56: Capital Programs / Allocation | J56: Straight line | K56: Ongoing | L56: 80 | M56: 80 | O56: 18.45454397 | P56: 12.84251646 | Q56: 9.874754647 | R56: 9.806180801 | S56: 7.310503778 | T56: 4.48974354 | U56: 12.32060004 | V56: 9.292776976 | W56: 2.407373763 | X56: 2.930661704 | AV56: 18.45454397 | AW56: 12.84251646 | AX56: 9.874754647 | AY56: 9.806180801 | AZ56: 7.310503778 | BA56: 4.48974354 | BB56: 12.32060004 | BC56: 9.292776976 | BD56: 2.407373763 | BE56: 2.930661704 | BG56: 0.1153408998 | BH56: 0.3109475275 | BI56: 0.4529304719 | BJ56: 0.5759363184 | BK56: 0.682915597 | BL56: 0.7566671428 | BM56: 0.8617317901 | BN56: 0.9968153965 | BO56: 1.069941339 | BP56: 1.10330406 | BR56: =+IF($K56="Ongoing",AV56,IF(RIGHT($K56,2)=RIGHT(BR$39,2),SUM($AV56:AV56),0)+IF(RIGHT(BR$39,2)>RIGHT($K56,2),AV56,0)) -> 18.45454397 | BS56: =+IF($K56="Ongoing",AW56,IF(RIGHT($K56,2)=RIGHT(BS$39,2),SUM($AV56:AW56),0)+IF(RIGHT(BS$39,2)>RIGHT($K56,2),AW56,0)) -> 12.84251646 | BT56: =+IF($K56="Ongoing",AX56,IF(RIGHT($K56,2)=RIGHT(BT$39,2),SUM($AV56:AX56),0)+IF(RIGHT(BT$39,2)>RIGHT($K56,2),AX56,0)) -> 9.874754647 | BU56: =+IF($K56="Ongoing",AY56,IF(RIGHT($K56,2)=RIGHT(BU$39,2),SUM($AV56:AY56),0)+IF(RIGHT(BU$39,2)>RIGHT($K56,2),AY56,0)) -> 9.806180801 | BV56: =+IF($K56="Ongoing",AZ56,IF(RIGHT($K56,2)=RIGHT(BV$39,2),SUM($AV56:AZ56),0)+IF(RIGHT(BV$39,2)>RIGHT($K56,2),AZ56,0)) -> 7.310503778 | BW56: =+IF($K56="Ongoing",BA56,IF(RIGHT($K56,2)=RIGHT(BW$39,2),SUM($AV56:BA56),0)+IF(RIGHT(BW$39,2)>RIGHT($K56,2),BA56,0)) -> 4.48974354 | BX56: =+IF($K56="Ongoing",BB56,IF(RIGHT($K56,2)=RIGHT(BX$39,2),SUM($AV56:BB56),0)+IF(RIGHT(BX$39,2)>RIGHT($K56,2),BB56,0)) -> 12.32060004 | BY56: =+IF($K56="Ongoing",BC56,IF(RIGHT($K56,2)=RIGHT(BY$39,2),SUM($AV56:BC56),0)+IF(RIGHT(BY$39,2)>RIGHT($K56,2),BC56,0)) -> 9.292776976 | BZ56: =+IF($K56="Ongoing",BD56,IF(RIGHT($K56,2)=RIGHT(BZ$39,2),SUM($AV56:BD56),0)+IF(RIGHT(BZ$39,2)>RIGHT($K56,2),BD56,0)) -> 2.407373763 | CA56: =+IF($K56="Ongoing",BE56,IF(RIGHT($K56,2)=RIGHT(CA$39,2),SUM($AV56:BE56),0)+IF(RIGHT(CA$39,2)>RIGHT($K56,2),BE56,0)) -> 2.930661704 | CC56: =+O56*KeyAssumptionsPriceControl_FO!X$15 -> 18.87899848 | CD56: =+P56*KeyAssumptionsPriceControl_FO!Y$15 -> 13.4400659 | CE56: =+Q56*KeyAssumptionsPriceControl_FO!Z$15 -> 10.5719041 | CF56: =+R56*KeyAssumptionsPriceControl_FO!AA$15 -> 10.73995424 | CG56: =+S56*KeyAssumptionsPriceControl_FO!AB$15 -> 8.190784022 | CH56: =+T56*KeyAssumptionsPriceControl_FO!AC$15 -> 5.146065818 | CI56: =+U56*KeyAssumptionsPriceControl_FO!AD$15 -> 14.44645521 | CJ56: =+V56*KeyAssumptionsPriceControl_FO!AE$15 -> 11.14680963 | CK56: =+W56*KeyAssumptionsPriceControl_FO!AF$15 -> 2.954093428 | CL56: =+X56*KeyAssumptionsPriceControl_FO!AG$15 -> 3.678934252 | CN56: 0.1179937405 | CO56: 0.3199878929 | CP56: 0.4700627054 | CQ56: 0.6032618201 | CR56: 0.7215789343 | CS56: 0.8049342457 | CT56: 0.9273875021 | CU56: 1.087345407 | CV56: 1.175476051 | CW56: 1.216932474
C57: Water Recycling Plant Growth | E57: Sewerage | F57: Growth | G57: Treatment | H57: Capital Programs / Allocation | J57: Straight line | K57: Ongoing | L57: 50 | M57: 50 | O57: 10.5796 | P57: 22.2262 | Q57: 12.37 | R57: 14.6 | S57: 7.05 | T57: 6.355 | U57: 44.355 | V57: 49.75 | W57: 5.5 | X57: 11.4 | AV57: 10.5796 | AW57: 22.2262 | AX57: 12.37 | AY57: 14.6 | AZ57: 7.05 | BA57: 6.355 | BB57: 44.355 | BC57: 49.75 | BD57: 5.5 | BE57: 11.4 | BG57: 0.105796 | BH57: 0.433854 | BI57: 0.779816 | BJ57: 1.049516 | BK57: 1.266016 | BL57: 1.400066 | BM57: 1.907166 | BN57: 2.848216 | BO57: 3.400716 | BP57: 3.569716 | BR57: =+IF($K57="Ongoing",AV57,IF(RIGHT($K57,2)=RIGHT(BR$39,2),SUM($AV57:AV57),0)+IF(RIGHT(BR$39,2)>RIGHT($K57,2),AV57,0)) -> 10.5796 | BS57: =+IF($K57="Ongoing",AW57,IF(RIGHT($K57,2)=RIGHT(BS$39,2),SUM($AV57:AW57),0)+IF(RIGHT(BS$39,2)>RIGHT($K57,2),AW57,0)) -> 22.2262 | BT57: =+IF($K57="Ongoing",AX57,IF(RIGHT($K57,2)=RIGHT(BT$39,2),SUM($AV57:AX57),0)+IF(RIGHT(BT$39,2)>RIGHT($K57,2),AX57,0)) -> 12.37 | BU57: =+IF($K57="Ongoing",AY57,IF(RIGHT($K57,2)=RIGHT(BU$39,2),SUM($AV57:AY57),0)+IF(RIGHT(BU$39,2)>RIGHT($K57,2),AY57,0)) -> 14.6 | BV57: =+IF($K57="Ongoing",AZ57,IF(RIGHT($K57,2)=RIGHT(BV$39,2),SUM($AV57:AZ57),0)+IF(RIGHT(BV$39,2)>RIGHT($K57,2),AZ57,0)) -> 7.05 | BW57: =+IF($K57="Ongoing",BA57,IF(RIGHT($K57,2)=RIGHT(BW$39,2),SUM($AV57:BA57),0)+IF(RIGHT(BW$39,2)>RIGHT($K57,2),BA57,0)) -> 6.355 | BX57: =+IF($K57="Ongoing",BB57,IF(RIGHT($K57,2)=RIGHT(BX$39,2),SUM($AV57:BB57),0)+IF(RIGHT(BX$39,2)>RIGHT($K57,2),BB57,0)) -> 44.355 | BY57: =+IF($K57="Ongoing",BC57,IF(RIGHT($K57,2)=RIGHT(BY$39,2),SUM($AV57:BC57),0)+IF(RIGHT(BY$39,2)>RIGHT($K57,2),BC57,0)) -> 49.75 | BZ57: =+IF($K57="Ongoing",BD57,IF(RIGHT($K57,2)=RIGHT(BZ$39,2),SUM($AV57:BD57),0)+IF(RIGHT(BZ$39,2)>RIGHT($K57,2),BD57,0)) -> 5.5 | CA57: =+IF($K57="Ongoing",BE57,IF(RIGHT($K57,2)=RIGHT(CA$39,2),SUM($AV57:BE57),0)+IF(RIGHT(CA$39,2)>RIGHT($K57,2),BE57,0)) -> 11.4 | CC57: =+O57*KeyAssumptionsPriceControl_FO!X$15 -> 10.8229308 | CD57: =+P57*KeyAssumptionsPriceControl_FO!Y$15 -> 23.26036286 | CE57: =+Q57*KeyAssumptionsPriceControl_FO!Z$15 -> 13.2433117 | CF57: =+R57*KeyAssumptionsPriceControl_FO!AA$15 -> 15.99025504 | CG57: =+S57*KeyAssumptionsPriceControl_FO!AB$15 -> 7.898912183 | CH57: =+T57*KeyAssumptionsPriceControl_FO!AC$15 -> 7.283990273 | CI57: =+U57*KeyAssumptionsPriceControl_FO!AD$15 -> 52.00822352 | CJ57: =+V57*KeyAssumptionsPriceControl_FO!AE$15 -> 59.67578695 | CK57: =+W57*KeyAssumptionsPriceControl_FO!AF$15 -> 6.749061613 | CL57: =+X57*KeyAssumptionsPriceControl_FO!AG$15 -> 14.31071024 | CN57: 0.108229308 | CO57: 0.4490622446 | CP57: 0.8140989902 | CQ57: 1.106434657 | CR57: 1.34532633 | CS57: 1.497155354 | CT57: 2.090077492 | CU57: 3.206917597 | CV57: 3.871166083 | CW57: 4.081763801
C58: Metering | E58: Water | F58: Growth | G58: Pipelines/network | H58: Capital Programs / Allocation | J58: Straight line | K58: Ongoing | L58: 20 | M58: 20 | O58: 6.15 | P58: 6.176 | Q58: 6.197 | R58: 7.696 | S58: 7.774 | T58: 6.867 | U58: 7.19 | V58: 7.269 | W58: 7.225 | X58: 7.299 | AV58: 6.15 | AW58: 6.176 | AX58: 6.197 | AY58: 7.696 | AZ58: 7.774 | BA58: 6.867 | BB58: 7.19 | BC58: 7.269 | BD58: 7.225 | BE58: 7.299 | BG58: 0.15375 | BH58: 0.4619 | BI58: 0.771225 | BJ58: 1.11855 | BK58: 1.5053 | BL58: 1.871325 | BM58: 2.22275 | BN58: 2.584225 | BO58: 2.946575 | BP58: 3.309675 | BR58: =+IF($K58="Ongoing",AV58,IF(RIGHT($K58,2)=RIGHT(BR$39,2),SUM($AV58:AV58),0)+IF(RIGHT(BR$39,2)>RIGHT($K58,2),AV58,0)) -> 6.15 | BS58: =+IF($K58="Ongoing",AW58,IF(RIGHT($K58,2)=RIGHT(BS$39,2),SUM($AV58:AW58),0)+IF(RIGHT(BS$39,2)>RIGHT($K58,2),AW58,0)) -> 6.176 | BT58: =+IF($K58="Ongoing",AX58,IF(RIGHT($K58,2)=RIGHT(BT$39,2),SUM($AV58:AX58),0)+IF(RIGHT(BT$39,2)>RIGHT($K58,2),AX58,0)) -> 6.197 | BU58: =+IF($K58="Ongoing",AY58,IF(RIGHT($K58,2)=RIGHT(BU$39,2),SUM($AV58:AY58),0)+IF(RIGHT(BU$39,2)>RIGHT($K58,2),AY58,0)) -> 7.696 | BV58: =+IF($K58="Ongoing",AZ58,IF(RIGHT($K58,2)=RIGHT(BV$39,2),SUM($AV58:AZ58),0)+IF(RIGHT(BV$39,2)>RIGHT($K58,2),AZ58,0)) -> 7.774 | BW58: =+IF($K58="Ongoing",BA58,IF(RIGHT($K58,2)=RIGHT(BW$39,2),SUM($AV58:BA58),0)+IF(RIGHT(BW$39,2)>RIGHT($K58,2),BA58,0)) -> 6.867 | BX58: =+IF($K58="Ongoing",BB58,IF(RIGHT($K58,2)=RIGHT(BX$39,2),SUM($AV58:BB58),0)+IF(RIGHT(BX$39,2)>RIGHT($K58,2),BB58,0)) -> 7.19 | BY58: =+IF($K58="Ongoing",BC58,IF(RIGHT($K58,2)=RIGHT(BY$39,2),SUM($AV58:BC58),0)+IF(RIGHT(BY$39,2)>RIGHT($K58,2),BC58,0)) -> 7.269 | BZ58: =+IF($K58="Ongoing",BD58,IF(RIGHT($K58,2)=RIGHT(BZ$39,2),SUM($AV58:BD58),0)+IF(RIGHT(BZ$39,2)>RIGHT($K58,2),BD58,0)) -> 7.225 | CA58: =+IF($K58="Ongoing",BE58,IF(RIGHT($K58,2)=RIGHT(CA$39,2),SUM($AV58:BE58),0)+IF(RIGHT(CA$39,2)>RIGHT($K58,2),BE58,0)) -> 7.299 | CC58: =+O58*KeyAssumptionsPriceControl_FO!X$15 -> 6.29145 | CD58: =+P58*KeyAssumptionsPriceControl_FO!Y$15 -> 6.463363104 | CE58: =+Q58*KeyAssumptionsPriceControl_FO!Z$15 -> 6.634503038 | CF58: =+R58*KeyAssumptionsPriceControl_FO!AA$15 -> 8.428835807 | CG58: =+S58*KeyAssumptionsPriceControl_FO!AB$15 -> 8.71009125 | CH58: =+T58*KeyAssumptionsPriceControl_FO!AC$15 -> 7.870835752 | CI58: =+U58*KeyAssumptionsPriceControl_FO!AD$15 -> 8.430596937 | CJ58: =+V58*KeyAssumptionsPriceControl_FO!AE$15 -> 8.719262218 | CK58: =+W58*KeyAssumptionsPriceControl_FO!AF$15 -> 8.865812756 | CL58: =+X58*KeyAssumptionsPriceControl_FO!AG$15 -> 9.162620533 | CN58: 0.15728625 | CO58: 0.4761565776 | CP58: 0.8036032311 | CQ58: 1.180186702 | CR58: 1.608659879 | CS58: 2.023183054 | CT58: 2.430718871 | CU58: 2.85946535 | CV58: 3.299092224 | CW58: 3.749803056
C59: Recycled water growth | E59: Recycled Water | F59: Growth | G59: Pipelines/network | H59: Capital Programs / Allocation | J59: Straight line | K59: Ongoing | L59: 80 | M59: 80 | O59: 5.775355955 | P59: 10.27998922 | Q59: 5.267759205 | R59: 6.349261952 | S59: 10.86121572 | T59: 18.85309661 | U59: 12.22676683 | V59: 24.651 | W59: 32.11194382 | X59: 30.39074502 | AV59: 5.775355955 | AW59: 10.27998922 | AX59: 5.267759205 | AY59: 6.349261952 | AZ59: 10.86121572 | BA59: 18.85309661 | BB59: 12.22676683 | BC59: 24.651 | BD59: 32.11194382 | BE59: 30.39074502 | BG59: 0.03609597472 | BH59: 0.136441882 | BI59: 0.2336153097 | BJ59: 0.3062216919 | BK59: 0.4137871774 | BL59: 0.5995016295 | BM59: 0.793750776 | BN59: 1.024236819 | BO59: 1.379005217 | BP59: 1.769647023 | BR59: =+IF($K59="Ongoing",AV59,IF(RIGHT($K59,2)=RIGHT(BR$39,2),SUM($AV59:AV59),0)+IF(RIGHT(BR$39,2)>RIGHT($K59,2),AV59,0)) -> 5.775355955 | BS59: =+IF($K59="Ongoing",AW59,IF(RIGHT($K59,2)=RIGHT(BS$39,2),SUM($AV59:AW59),0)+IF(RIGHT(BS$39,2)>RIGHT($K59,2),AW59,0)) -> 10.27998922 | BT59: =+IF($K59="Ongoing",AX59,IF(RIGHT($K59,2)=RIGHT(BT$39,2),SUM($AV59:AX59),0)+IF(RIGHT(BT$39,2)>RIGHT($K59,2),AX59,0)) -> 5.267759205 | BU59: =+IF($K59="Ongoing",AY59,IF(RIGHT($K59,2)=RIGHT(BU$39,2),SUM($AV59:AY59),0)+IF(RIGHT(BU$39,2)>RIGHT($K59,2),AY59,0)) -> 6.349261952 | BV59: =+IF($K59="Ongoing",AZ59,IF(RIGHT($K59,2)=RIGHT(BV$39,2),SUM($AV59:AZ59),0)+IF(RIGHT(BV$39,2)>RIGHT($K59,2),AZ59,0)) -> 10.86121572 | BW59: =+IF($K59="Ongoing",BA59,IF(RIGHT($K59,2)=RIGHT(BW$39,2),SUM($AV59:BA59),0)+IF(RIGHT(BW$39,2)>RIGHT($K59,2),BA59,0)) -> 18.85309661 | BX59: =+IF($K59="Ongoing",BB59,IF(RIGHT($K59,2)=RIGHT(BX$39,2),SUM($AV59:BB59),0)+IF(RIGHT(BX$39,2)>RIGHT($K59,2),BB59,0)) -> 12.22676683 | BY59: =+IF($K59="Ongoing",BC59,IF(RIGHT($K59,2)=RIGHT(BY$39,2),SUM($AV59:BC59),0)+IF(RIGHT(BY$39,2)>RIGHT($K59,2),BC59,0)) -> 24.651 | BZ59: =+IF($K59="Ongoing",BD59,IF(RIGHT($K59,2)=RIGHT(BZ$39,2),SUM($AV59:BD59),0)+IF(RIGHT(BZ$39,2)>RIGHT($K59,2),BD59,0)) -> 32.11194382 | CA59: =+IF($K59="Ongoing",BE59,IF(RIGHT($K59,2)=RIGHT(CA$39,2),SUM($AV59:BE59),0)+IF(RIGHT(CA$39,2)>RIGHT($K59,2),BE59,0)) -> 30.39074502 | CC59: =+O59*KeyAssumptionsPriceControl_FO!X$15 -> 5.908189141 | CD59: =+P59*KeyAssumptionsPriceControl_FO!Y$15 -> 10.75830684 | CE59: =+Q59*KeyAssumptionsPriceControl_FO!Z$15 -> 5.639658617 | CF59: =+R59*KeyAssumptionsPriceControl_FO!AA$15 -> 6.953857391 | CG59: =+S59*KeyAssumptionsPriceControl_FO!AB$15 -> 12.16904811 | CH59: =+T59*KeyAssumptionsPriceControl_FO!AC$15 -> 21.60909085 | CI59: =+U59*KeyAssumptionsPriceControl_FO!AD$15 -> 14.33643157 | CJ59: =+V59*KeyAssumptionsPriceControl_FO!AE$15 -> 29.56920249 | CK59: =+W59*KeyAssumptionsPriceControl_FO!AF$15 -> 39.40463406 | CL59: =+X59*KeyAssumptionsPriceControl_FO!AG$15 -> 38.15027598 | CN59: 0.03692618213 | CO59: 0.141091782 | CP59: 0.2435790661 | CQ59: 0.3222885411 | CR59: 0.4418067005 | CS59: 0.652920069 | CT59: 0.8775795841 | CU59: 1.151989797 | CV59: 1.583076275 | CW59: 2.067794463
C60: Water Recycling Plant Reliability | E60: Sewerage | F60: Renewals | G60: Treatment | H60: Capital Programs / Allocation | J60: Straight line | K60: Ongoing | L60: 20 | M60: 20 | O60: 6.979786348 | P60: 8.182452293 | Q60: 8.271331514 | R60: 7.660295719 | S60: 7.890721675 | T60: 8.464775653 | U60: 7.50678091 | V60: 8.290456042 | W60: 8.356734416 | X60: 7.989304355 | AV60: 6.979786348 | AW60: 8.182452293 | AX60: 8.271331514 | AY60: 7.660295719 | AZ60: 7.890721675 | BA60: 8.464775653 | BB60: 7.50678091 | BC60: 8.290456042 | BD60: 8.356734416 | BE60: 7.989304355 | BG60: 0.1744946587 | BH60: 0.5535506247 | BI60: 0.9648952199 | BJ60: 1.363185901 | BK60: 1.751961336 | BL60: 2.160848769 | BM60: 2.560137683 | BN60: 2.955068607 | BO60: 3.371248368 | BP60: 3.779899337 | BR60: =+IF($K60="Ongoing",AV60,IF(RIGHT($K60,2)=RIGHT(BR$39,2),SUM($AV60:AV60),0)+IF(RIGHT(BR$39,2)>RIGHT($K60,2),AV60,0)) -> 6.979786348 | BS60: =+IF($K60="Ongoing",AW60,IF(RIGHT($K60,2)=RIGHT(BS$39,2),SUM($AV60:AW60),0)+IF(RIGHT(BS$39,2)>RIGHT($K60,2),AW60,0)) -> 8.182452293 | BT60: =+IF($K60="Ongoing",AX60,IF(RIGHT($K60,2)=RIGHT(BT$39,2),SUM($AV60:AX60),0)+IF(RIGHT(BT$39,2)>RIGHT($K60,2),AX60,0)) -> 8.271331514 | BU60: =+IF($K60="Ongoing",AY60,IF(RIGHT($K60,2)=RIGHT(BU$39,2),SUM($AV60:AY60),0)+IF(RIGHT(BU$39,2)>RIGHT($K60,2),AY60,0)) -> 7.660295719 | BV60: =+IF($K60="Ongoing",AZ60,IF(RIGHT($K60,2)=RIGHT(BV$39,2),SUM($AV60:AZ60),0)+IF(RIGHT(BV$39,2)>RIGHT($K60,2),AZ60,0)) -> 7.890721675 | BW60: =+IF($K60="Ongoing",BA60,IF(RIGHT($K60,2)=RIGHT(BW$39,2),SUM($AV60:BA60),0)+IF(RIGHT(BW$39,2)>RIGHT($K60,2),BA60,0)) -> 8.464775653 | BX60: =+IF($K60="Ongoing",BB60,IF(RIGHT($K60,2)=RIGHT(BX$39,2),SUM($AV60:BB60),0)+IF(RIGHT(BX$39,2)>RIGHT($K60,2),BB60,0)) -> 7.50678091 | BY60: =+IF($K60="Ongoing",BC60,IF(RIGHT($K60,2)=RIGHT(BY$39,2),SUM($AV60:BC60),0)+IF(RIGHT(BY$39,2)>RIGHT($K60,2),BC60,0)) -> 8.290456042 | BZ60: =+IF($K60="Ongoing",BD60,IF(RIGHT($K60,2)=RIGHT(BZ$39,2),SUM($AV60:BD60),0)+IF(RIGHT(BZ$39,2)>RIGHT($K60,2),BD60,0)) -> 8.356734416 | CA60: =+IF($K60="Ongoing",BE60,IF(RIGHT($K60,2)=RIGHT(CA$39,2),SUM($AV60:BE60),0)+IF(RIGHT(CA$39,2)>RIGHT($K60,2),BE60,0)) -> 7.989304355 | CC60: =+O60*KeyAssumptionsPriceControl_FO!X$15 -> 7.140321434 | CD60: =+P60*KeyAssumptionsPriceControl_FO!Y$15 -> 8.563173616 | CE60: =+Q60*KeyAssumptionsPriceControl_FO!Z$15 -> 8.855280629 | CF60: =+R60*KeyAssumptionsPriceControl_FO!AA$15 -> 8.389731658 | CG60: =+S60*KeyAssumptionsPriceControl_FO!AB$15 -> 8.840867741 | CH60: =+T60*KeyAssumptionsPriceControl_FO!AC$15 -> 9.702178367 | CI60: =+U60*KeyAssumptionsPriceControl_FO!AD$15 -> 8.802036738 | CJ60: =+V60*KeyAssumptionsPriceControl_FO!AE$15 -> 9.944512331 | CK60: =+W60*KeyAssumptionsPriceControl_FO!AF$15 -> 10.25456645 | CL60: =+X60*KeyAssumptionsPriceControl_FO!AG$15 -> 10.02917717 | CN60: 0.1785080358 | CO60: 0.5710954121 | CP60: 1.006556768 | CQ60: 1.437682075 | CR60: 1.86844706 | CS60: 2.332023213 | CT60: 2.794628591 | CU60: 3.263292317 | CV60: 3.768269287 | CW60: 4.275362877
C61: Sewer renewals | E61: Sewerage | F61: Renewals | G61: Pipelines/network | H61: Capital Programs / Allocation | J61: Straight line | K61: Ongoing | L61: 80 | M61: 80 | O61: 5 | P61: 5 | Q61: 5 | R61: 5 | S61: 5 | T61: 5 | U61: 5 | V61: 5 | W61: 5 | X61: 5 | AV61: 5 | AW61: 5 | AX61: 5 | AY61: 5 | AZ61: 5 | BA61: 5 | BB61: 5 | BC61: 5 | BD61: 5 | BE61: 5 | BG61: 0.03125 | BH61: 0.09375 | BI61: 0.15625 | BJ61: 0.21875 | BK61: 0.28125 | BL61: 0.34375 | BM61: 0.40625 | BN61: 0.46875 | BO61: 0.53125 | BP61: 0.59375 | BR61: =+IF($K61="Ongoing",AV61,IF(RIGHT($K61,2)=RIGHT(BR$39,2),SUM($AV61:AV61),0)+IF(RIGHT(BR$39,2)>RIGHT($K61,2),AV61,0)) -> 5 | BS61: =+IF($K61="Ongoing",AW61,IF(RIGHT($K61,2)=RIGHT(BS$39,2),SUM($AV61:AW61),0)+IF(RIGHT(BS$39,2)>RIGHT($K61,2),AW61,0)) -> 5 | BT61: =+IF($K61="Ongoing",AX61,IF(RIGHT($K61,2)=RIGHT(BT$39,2),SUM($AV61:AX61),0)+IF(RIGHT(BT$39,2)>RIGHT($K61,2),AX61,0)) -> 5 | BU61: =+IF($K61="Ongoing",AY61,IF(RIGHT($K61,2)=RIGHT(BU$39,2),SUM($AV61:AY61),0)+IF(RIGHT(BU$39,2)>RIGHT($K61,2),AY61,0)) -> 5 | BV61: =+IF($K61="Ongoing",AZ61,IF(RIGHT($K61,2)=RIGHT(BV$39,2),SUM($AV61:AZ61),0)+IF(RIGHT(BV$39,2)>RIGHT($K61,2),AZ61,0)) -> 5 | BW61: =+IF($K61="Ongoing",BA61,IF(RIGHT($K61,2)=RIGHT(BW$39,2),SUM($AV61:BA61),0)+IF(RIGHT(BW$39,2)>RIGHT($K61,2),BA61,0)) -> 5 | BX61: =+IF($K61="Ongoing",BB61,IF(RIGHT($K61,2)=RIGHT(BX$39,2),SUM($AV61:BB61),0)+IF(RIGHT(BX$39,2)>RIGHT($K61,2),BB61,0)) -> 5 | BY61: =+IF($K61="Ongoing",BC61,IF(RIGHT($K61,2)=RIGHT(BY$39,2),SUM($AV61:BC61),0)+IF(RIGHT(BY$39,2)>RIGHT($K61,2),BC61,0)) -> 5 | BZ61: =+IF($K61="Ongoing",BD61,IF(RIGHT($K61,2)=RIGHT(BZ$39,2),SUM($AV61:BD61),0)+IF(RIGHT(BZ$39,2)>RIGHT($K61,2),BD61,0)) -> 5 | CA61: =+IF($K61="Ongoing",BE61,IF(RIGHT($K61,2)=RIGHT(CA$39,2),SUM($AV61:BE61),0)+IF(RIGHT(CA$39,2)>RIGHT($K61,2),BE61,0)) -> 5 | CC61: =+O61*KeyAssumptionsPriceControl_FO!X$15 -> 5.115 | CD61: =+P61*KeyAssumptionsPriceControl_FO!Y$15 -> 5.232645 | CE61: =+Q61*KeyAssumptionsPriceControl_FO!Z$15 -> 5.352995835 | CF61: =+R61*KeyAssumptionsPriceControl_FO!AA$15 -> 5.476114739 | CG61: =+S61*KeyAssumptionsPriceControl_FO!AB$15 -> 5.602065378 | CH61: =+T61*KeyAssumptionsPriceControl_FO!AC$15 -> 5.730912882 | CI61: =+U61*KeyAssumptionsPriceControl_FO!AD$15 -> 5.862723878 | CJ61: =+V61*KeyAssumptionsPriceControl_FO!AE$15 -> 5.997566527 | CK61: =+W61*KeyAssumptionsPriceControl_FO!AF$15 -> 6.135510558 | CL61: =+X61*KeyAssumptionsPriceControl_FO!AG$15 -> 6.2766273 | CN61: 0.03196875 | CO61: 0.09664153125 | CP61: 0.1628017865 | CQ61: 0.2304837276 | CR61: 0.2997223533 | CS61: 0.3705534674 | CT61: 0.4430136972 | CU61: 0.5171405122 | CV61: 0.592972244 | CW61: 0.6705481056
C62: IT Key Program Sewerage Growth | E62: Sewerage | F62: Growth | G62: Corporate | H62: Capital Programs / Allocation | J62: Straight line | K62: Ongoing | L62: 7 | M62: 7 | O62: 9.403426042 | P62: 9.475732064 | Q62: 7.202847928 | R62: 4.923102489 | S62: 5.359763153 | T62: 5.03864903 | U62: 7.083472248 | V62: 6.331426528 | W62: 3.843980845 | X62: 5.527440131 | AV62: 9.403426042 | AW62: 9.475732064 | AX62: 7.202847928 | AY62: 4.923102489 | AZ62: 5.359763153 | BA62: 5.03864903 | BB62: 7.083472248 | BC62: 6.331426528 | BD62: 3.843980845 | BE62: 5.527440131 | BG62: 0.6716732887 | BH62: 2.020184582 | BI62: 3.211511724 | BJ62: 4.07765104 | BK62: 4.812141443 | BL62: 5.55488517 | BM62: 6.420750976 | BN62: 6.707284743 | BO62: 6.085588262 | BP62: 5.563648332 | BR62: =+IF($K62="Ongoing",AV62,IF(RIGHT($K62,2)=RIGHT(BR$39,2),SUM($AV62:AV62),0)+IF(RIGHT(BR$39,2)>RIGHT($K62,2),AV62,0)) -> 9.403426042 | BS62: =+IF($K62="Ongoing",AW62,IF(RIGHT($K62,2)=RIGHT(BS$39,2),SUM($AV62:AW62),0)+IF(RIGHT(BS$39,2)>RIGHT($K62,2),AW62,0)) -> 9.475732064 | BT62: =+IF($K62="Ongoing",AX62,IF(RIGHT($K62,2)=RIGHT(BT$39,2),SUM($AV62:AX62),0)+IF(RIGHT(BT$39,2)>RIGHT($K62,2),AX62,0)) -> 7.202847928 | BU62: =+IF($K62="Ongoing",AY62,IF(RIGHT($K62,2)=RIGHT(BU$39,2),SUM($AV62:AY62),0)+IF(RIGHT(BU$39,2)>RIGHT($K62,2),AY62,0)) -> 4.923102489 | BV62: =+IF($K62="Ongoing",AZ62,IF(RIGHT($K62,2)=RIGHT(BV$39,2),SUM($AV62:AZ62),0)+IF(RIGHT(BV$39,2)>RIGHT($K62,2),AZ62,0)) -> 5.359763153 | BW62: =+IF($K62="Ongoing",BA62,IF(RIGHT($K62,2)=RIGHT(BW$39,2),SUM($AV62:BA62),0)+IF(RIGHT(BW$39,2)>RIGHT($K62,2),BA62,0)) -> 5.03864903 | BX62: =+IF($K62="Ongoing",BB62,IF(RIGHT($K62,2)=RIGHT(BX$39,2),SUM($AV62:BB62),0)+IF(RIGHT(BX$39,2)>RIGHT($K62,2),BB62,0)) -> 7.083472248 | BY62: =+IF($K62="Ongoing",BC62,IF(RIGHT($K62,2)=RIGHT(BY$39,2),SUM($AV62:BC62),0)+IF(RIGHT(BY$39,2)>RIGHT($K62,2),BC62,0)) -> 6.331426528 | BZ62: =+IF($K62="Ongoing",BD62,IF(RIGHT($K62,2)=RIGHT(BZ$39,2),SUM($AV62:BD62),0)+IF(RIGHT(BZ$39,2)>RIGHT($K62,2),BD62,0)) -> 3.843980845 | CA62: =+IF($K62="Ongoing",BE62,IF(RIGHT($K62,2)=RIGHT(CA$39,2),SUM($AV62:BE62),0)+IF(RIGHT(CA$39,2)>RIGHT($K62,2),BE62,0)) -> 5.527440131 | CC62: =+O62*KeyAssumptionsPriceControl_FO!X$15 -> 9.619704841 | CD62: =+P62*KeyAssumptionsPriceControl_FO!Y$15 -> 9.916628401 | CE62: =+Q62*KeyAssumptionsPriceControl_FO!Z$15 -> 7.711362992 | CF62: =+R62*KeyAssumptionsPriceControl_FO!AA$15 -> 5.391894821 | CG62: =+S62*KeyAssumptionsPriceControl_FO!AB$15 -> 6.005148719 | CH62: =+T62*KeyAssumptionsPriceControl_FO!AC$15 -> 5.775211727 | CI62: =+U62*KeyAssumptionsPriceControl_FO!AD$15 -> 8.305688378 | CJ62: =+V62*KeyAssumptionsPriceControl_FO!AE$15 -> 7.594630362 | CK62: =+W62*KeyAssumptionsPriceControl_FO!AF$15 -> 4.716957011 | CL62: =+X62*KeyAssumptionsPriceControl_FO!AG$15 -> 6.938736325 | CN62: 0.6871217744 | CO62: 2.082574149 | CP62: 3.341716391 | CQ62: 4.277663378 | CR62: 5.091737916 | CS62: 5.933192234 | CT62: 6.938970813 | CU62: 7.387586091 | CV62: 6.871532815 | CW62: 6.444940097
C63: IT Key Program Sewerage Renewals | E63: Sewerage | F63: Renewals | G63: Corporate | H63: Capital Programs / Allocation | J63: Straight line | K63: Ongoing | L63: 7 | M63: 7 | O63: 3.682288812 | P63: 2.948543466 | Q63: 4.003784692 | R63: 3.46278087 | S63: 3.39451848 | T63: 2.998126933 | U63: 2.395323637 | V63: 2.356585612 | W63: 2.978137338 | X63: 2.725047651 | AV63: 3.682288812 | AW63: 2.948543466 | AX63: 4.003784692 | AY63: 3.46278087 | AZ63: 3.39451848 | BA63: 2.998126933 | BB63: 2.395323637 | BC63: 2.356585612 | BD63: 2.978137338 | BE63: 2.725047651 | BG63: 0.2630206294 | BH63: 0.7366515064 | BI63: 1.233246375 | BJ63: 1.766572486 | BK63: 2.256379583 | BL63: 2.712997112 | BM63: 3.098243582 | BN63: 3.174645041 | BO63: 3.082065804 | BP63: 2.992841292 | BR63: =+IF($K63="Ongoing",AV63,IF(RIGHT($K63,2)=RIGHT(BR$39,2),SUM($AV63:AV63),0)+IF(RIGHT(BR$39,2)>RIGHT($K63,2),AV63,0)) -> 3.682288812 | BS63: =+IF($K63="Ongoing",AW63,IF(RIGHT($K63,2)=RIGHT(BS$39,2),SUM($AV63:AW63),0)+IF(RIGHT(BS$39,2)>RIGHT($K63,2),AW63,0)) -> 2.948543466 | BT63: =+IF($K63="Ongoing",AX63,IF(RIGHT($K63,2)=RIGHT(BT$39,2),SUM($AV63:AX63),0)+IF(RIGHT(BT$39,2)>RIGHT($K63,2),AX63,0)) -> 4.003784692 | BU63: =+IF($K63="Ongoing",AY63,IF(RIGHT($K63,2)=RIGHT(BU$39,2),SUM($AV63:AY63),0)+IF(RIGHT(BU$39,2)>RIGHT($K63,2),AY63,0)) -> 3.46278087 | BV63: =+IF($K63="Ongoing",AZ63,IF(RIGHT($K63,2)=RIGHT(BV$39,2),SUM($AV63:AZ63),0)+IF(RIGHT(BV$39,2)>RIGHT($K63,2),AZ63,0)) -> 3.39451848 | BW63: =+IF($K63="Ongoing",BA63,IF(RIGHT($K63,2)=RIGHT(BW$39,2),SUM($AV63:BA63),0)+IF(RIGHT(BW$39,2)>RIGHT($K63,2),BA63,0)) -> 2.998126933 | BX63: =+IF($K63="Ongoing",BB63,IF(RIGHT($K63,2)=RIGHT(BX$39,2),SUM($AV63:BB63),0)+IF(RIGHT(BX$39,2)>RIGHT($K63,2),BB63,0)) -> 2.395323637 | BY63: =+IF($K63="Ongoing",BC63,IF(RIGHT($K63,2)=RIGHT(BY$39,2),SUM($AV63:BC63),0)+IF(RIGHT(BY$39,2)>RIGHT($K63,2),BC63,0)) -> 2.356585612 | BZ63: =+IF($K63="Ongoing",BD63,IF(RIGHT($K63,2)=RIGHT(BZ$39,2),SUM($AV63:BD63),0)+IF(RIGHT(BZ$39,2)>RIGHT($K63,2),BD63,0)) -> 2.978137338 | CA63: =+IF($K63="Ongoing",BE63,IF(RIGHT($K63,2)=RIGHT(CA$39,2),SUM($AV63:BE63),0)+IF(RIGHT(CA$39,2)>RIGHT($K63,2),BE63,0)) -> 2.725047651 | CC63: =+O63*KeyAssumptionsPriceControl_FO!X$15 -> 3.766981455 | CD63: =+P63*KeyAssumptionsPriceControl_FO!Y$15 -> 3.085736245 | CE63: =+Q63*KeyAssumptionsPriceControl_FO!Z$15 -> 4.286448556 | CF63: =+R63*KeyAssumptionsPriceControl_FO!AA$15 -> 3.792517072 | CG63: =+S63*KeyAssumptionsPriceControl_FO!AB$15 -> 3.80326289 | CH63: =+T63*KeyAssumptionsPriceControl_FO!AC$15 -> 3.436400852 | CI63: =+U63*KeyAssumptionsPriceControl_FO!AD$15 -> 2.808624216 | CJ63: =+V63*KeyAssumptionsPriceControl_FO!AE$15 -> 2.826755797 | CK63: =+W63*KeyAssumptionsPriceControl_FO!AF$15 -> 3.654478616 | CL63: =+X63*KeyAssumptionsPriceControl_FO!AG$15 -> 3.420821696 | CN63: 0.2690701039 | CO63: 0.7585499396 | CP63: 1.285134568 | CQ63: 1.862203542 | CR63: 2.404759253 | CS63: 2.921878092 | CT63: 3.367951311 | CU63: 3.501408351 | CV63: 3.474873831 | CW63: 3.453667796
C64: IT Key Program Sewerage Improvements/Compliance | E64: Sewerage | F64: Improvements / Compliance | G64: Corporate | H64: Capital Programs / Allocation | J64: Straight line | K64: Ongoing | L64: 7 | M64: 7 | O64: 2.372444666 | P64: 1.499883796 | Q64: 1.969044784 | R64: 2.029736667 | S64: 2.961310773 | T64: 1.283094958 | U64: 1.025950868 | V64: 1.168130273 | W64: 1.05969454 | X64: 0.6977137093 | AV64: 2.372444666 | AW64: 1.499883796 | AX64: 1.969044784 | AY64: 2.029736667 | AZ64: 2.961310773 | BA64: 1.283094958 | BB64: 1.025950868 | BC64: 1.168130273 | BD64: 1.05969454 | BE64: 0.6977137093 | BG64: 0.1694603333 | BH64: 0.4460552235 | BI64: 0.6938358363 | BJ64: 0.9794630829 | BK64: 1.335966471 | BL64: 1.639138309 | BM64: 1.804070154 | BN64: 1.791329902 | BO64: 1.673865356 | BP64: 1.551613904 | BR64: =+IF($K64="Ongoing",AV64,IF(RIGHT($K64,2)=RIGHT(BR$39,2),SUM($AV64:AV64),0)+IF(RIGHT(BR$39,2)>RIGHT($K64,2),AV64,0)) -> 2.372444666 | BS64: =+IF($K64="Ongoing",AW64,IF(RIGHT($K64,2)=RIGHT(BS$39,2),SUM($AV64:AW64),0)+IF(RIGHT(BS$39,2)>RIGHT($K64,2),AW64,0)) -> 1.499883796 | BT64: =+IF($K64="Ongoing",AX64,IF(RIGHT($K64,2)=RIGHT(BT$39,2),SUM($AV64:AX64),0)+IF(RIGHT(BT$39,2)>RIGHT($K64,2),AX64,0)) -> 1.969044784 | BU64: =+IF($K64="Ongoing",AY64,IF(RIGHT($K64,2)=RIGHT(BU$39,2),SUM($AV64:AY64),0)+IF(RIGHT(BU$39,2)>RIGHT($K64,2),AY64,0)) -> 2.029736667 | BV64: =+IF($K64="Ongoing",AZ64,IF(RIGHT($K64,2)=RIGHT(BV$39,2),SUM($AV64:AZ64),0)+IF(RIGHT(BV$39,2)>RIGHT($K64,2),AZ64,0)) -> 2.961310773 | BW64: =+IF($K64="Ongoing",BA64,IF(RIGHT($K64,2)=RIGHT(BW$39,2),SUM($AV64:BA64),0)+IF(RIGHT(BW$39,2)>RIGHT($K64,2),BA64,0)) -> 1.283094958 | BX64: =+IF($K64="Ongoing",BB64,IF(RIGHT($K64,2)=RIGHT(BX$39,2),SUM($AV64:BB64),0)+IF(RIGHT(BX$39,2)>RIGHT($K64,2),BB64,0)) -> 1.025950868 | BY64: =+IF($K64="Ongoing",BC64,IF(RIGHT($K64,2)=RIGHT(BY$39,2),SUM($AV64:BC64),0)+IF(RIGHT(BY$39,2)>RIGHT($K64,2),BC64,0)) -> 1.168130273 | BZ64: =+IF($K64="Ongoing",BD64,IF(RIGHT($K64,2)=RIGHT(BZ$39,2),SUM($AV64:BD64),0)+IF(RIGHT(BZ$39,2)>RIGHT($K64,2),BD64,0)) -> 1.05969454 | CA64: =+IF($K64="Ongoing",BE64,IF(RIGHT($K64,2)=RIGHT(CA$39,2),SUM($AV64:BE64),0)+IF(RIGHT(CA$39,2)>RIGHT($K64,2),BE64,0)) -> 0.6977137093 | CC64: =+O64*KeyAssumptionsPriceControl_FO!X$15 -> 2.427010893 | CD64: =+P64*KeyAssumptionsPriceControl_FO!Y$15 -> 1.56967189 | CE64: =+Q64*KeyAssumptionsPriceControl_FO!Z$15 -> 2.108057706 | CF64: =+R64*KeyAssumptionsPriceControl_FO!AA$15 -> 2.223014176 | CG64: =+S64*KeyAssumptionsPriceControl_FO!AB$15 -> 3.317891311 | CH64: =+T64*KeyAssumptionsPriceControl_FO!AC$15 -> 1.470661084 | CI64: =+U64*KeyAssumptionsPriceControl_FO!AD$15 -> 1.202973331 | CJ64: =+V64*KeyAssumptionsPriceControl_FO!AE$15 -> 1.401187805 | CK64: =+W64*KeyAssumptionsPriceControl_FO!AF$15 -> 1.300353408 | CL64: =+X64*KeyAssumptionsPriceControl_FO!AG$15 -> 0.8758577831 | CN64: 0.1733579209 | CO64: 0.4588352626 | CP64: 0.7215302337 | CQ64: 1.030892511 | CR64: 1.426671474 | CS64: 1.768710931 | CT64: 1.959684818 | CU64: 1.972338407 | CV64: 1.879828295 | CW64: 1.77257698
C65: IT Key Program Water Growth | E65: Water | F65: Growth | G65: Corporate | H65: Capital Programs / Allocation | J65: Straight line | K65: Ongoing | L65: 7 | M65: 7 | O65: 2.626666507 | P65: 1.709886223 | Q65: 1.98876802 | R65: 1.946052818 | S65: 1.751782386 | T65: 1.253227562 | U65: 1.658068336 | V65: 1.36794162 | W65: 1.090768241 | X65: 1.039818233 | AV65: 2.626666507 | AW65: 1.709886223 | AX65: 1.98876802 | AY65: 1.946052818 | AZ65: 1.751782386 | BA65: 1.253227562 | BB65: 1.658068336 | BC65: 1.36794162 | BD65: 1.090768241 | BE65: 1.039818233 | BG65: 0.1876190362 | BH65: 0.4973728026 | BI65: 0.7615623914 | BJ65: 1.042621023 | BK65: 1.306752109 | BL65: 1.521395676 | BM65: 1.729345383 | BN65: 1.757869915 | BO65: 1.623738282 | BP65: 1.511733441 | BR65: =+IF($K65="Ongoing",AV65,IF(RIGHT($K65,2)=RIGHT(BR$39,2),SUM($AV65:AV65),0)+IF(RIGHT(BR$39,2)>RIGHT($K65,2),AV65,0)) -> 2.626666507 | BS65: =+IF($K65="Ongoing",AW65,IF(RIGHT($K65,2)=RIGHT(BS$39,2),SUM($AV65:AW65),0)+IF(RIGHT(BS$39,2)>RIGHT($K65,2),AW65,0)) -> 1.709886223 | BT65: =+IF($K65="Ongoing",AX65,IF(RIGHT($K65,2)=RIGHT(BT$39,2),SUM($AV65:AX65),0)+IF(RIGHT(BT$39,2)>RIGHT($K65,2),AX65,0)) -> 1.98876802 | BU65: =+IF($K65="Ongoing",AY65,IF(RIGHT($K65,2)=RIGHT(BU$39,2),SUM($AV65:AY65),0)+IF(RIGHT(BU$39,2)>RIGHT($K65,2),AY65,0)) -> 1.946052818 | BV65: =+IF($K65="Ongoing",AZ65,IF(RIGHT($K65,2)=RIGHT(BV$39,2),SUM($AV65:AZ65),0)+IF(RIGHT(BV$39,2)>RIGHT($K65,2),AZ65,0)) -> 1.751782386 | BW65: =+IF($K65="Ongoing",BA65,IF(RIGHT($K65,2)=RIGHT(BW$39,2),SUM($AV65:BA65),0)+IF(RIGHT(BW$39,2)>RIGHT($K65,2),BA65,0)) -> 1.253227562 | BX65: =+IF($K65="Ongoing",BB65,IF(RIGHT($K65,2)=RIGHT(BX$39,2),SUM($AV65:BB65),0)+IF(RIGHT(BX$39,2)>RIGHT($K65,2),BB65,0)) -> 1.658068336 | BY65: =+IF($K65="Ongoing",BC65,IF(RIGHT($K65,2)=RIGHT(BY$39,2),SUM($AV65:BC65),0)+IF(RIGHT(BY$39,2)>RIGHT($K65,2),BC65,0)) -> 1.36794162 | BZ65: =+IF($K65="Ongoing",BD65,IF(RIGHT($K65,2)=RIGHT(BZ$39,2),SUM($AV65:BD65),0)+IF(RIGHT(BZ$39,2)>RIGHT($K65,2),BD65,0)) -> 1.090768241 | CA65: =+IF($K65="Ongoing",BE65,IF(RIGHT($K65,2)=RIGHT(CA$39,2),SUM($AV65:BE65),0)+IF(RIGHT(CA$39,2)>RIGHT($K65,2),BE65,0)) -> 1.039818233 | CC65: =+O65*KeyAssumptionsPriceControl_FO!X$15 -> 2.687079836 | CD65: =+P65*KeyAssumptionsPriceControl_FO!Y$15 -> 1.789445519 | CE65: =+Q65*KeyAssumptionsPriceControl_FO!Z$15 -> 2.129173386 | CF65: =+R65*KeyAssumptionsPriceControl_FO!AA$15 -> 2.131361704 | CG65: =+S65*KeyAssumptionsPriceControl_FO!AB$15 -> 1.962719891 | CH65: =+T65*KeyAssumptionsPriceControl_FO!AC$15 -> 1.436427595 | CI65: =+U65*KeyAssumptionsPriceControl_FO!AD$15 -> 1.944159365 | CJ65: =+V65*KeyAssumptionsPriceControl_FO!AE$15 -> 1.640864175 | CK65: =+W65*KeyAssumptionsPriceControl_FO!AF$15 -> 1.338484012 | CL65: =+X65*KeyAssumptionsPriceControl_FO!AG$15 -> 1.305310302 | CN65: 0.191934274 | CO65: 0.5116860851 | CP65: 0.7915874354 | CQ65: 1.09591137 | CR65: 1.38834577 | CS65: 1.631142019 | CT65: 1.872612516 | CU65: 1.936751352 | CV65: 1.829810126 | CW65: 1.738751227
C66: IT Key Program Water Renewals | E66: Water | F66: Renewals | G66: Corporate | H66: Capital Programs / Allocation | J66: Straight line | K66: Ongoing | L66: 7 | M66: 7 | O66: 3.147714098 | P66: 2.61855321 | Q66: 3.625464512 | R66: 3.673740279 | S66: 3.626329469 | T66: 2.916934551 | U66: 2.374050603 | V66: 2.26887778 | W66: 2.956210483 | X66: 2.667761701 | AV66: 3.147714098 | AW66: 2.61855321 | AX66: 3.625464512 | AY66: 3.673740279 | AZ66: 3.626329469 | BA66: 2.916934551 | BB66: 2.374050603 | BC66: 2.26887778 | BD66: 2.956210483 | BE66: 2.667761701 | BG66: 0.2248367213 | BH66: 0.6367129576 | BI66: 1.082714223 | BJ66: 1.604085994 | BK66: 2.125519548 | BL66: 2.592895549 | BM66: 2.97082306 | BN66: 3.07762408 | BO66: 3.038968434 | BP66: 2.994679467 | BR66: =+IF($K66="Ongoing",AV66,IF(RIGHT($K66,2)=RIGHT(BR$39,2),SUM($AV66:AV66),0)+IF(RIGHT(BR$39,2)>RIGHT($K66,2),AV66,0)) -> 3.147714098 | BS66: =+IF($K66="Ongoing",AW66,IF(RIGHT($K66,2)=RIGHT(BS$39,2),SUM($AV66:AW66),0)+IF(RIGHT(BS$39,2)>RIGHT($K66,2),AW66,0)) -> 2.61855321 | BT66: =+IF($K66="Ongoing",AX66,IF(RIGHT($K66,2)=RIGHT(BT$39,2),SUM($AV66:AX66),0)+IF(RIGHT(BT$39,2)>RIGHT($K66,2),AX66,0)) -> 3.625464512 | BU66: =+IF($K66="Ongoing",AY66,IF(RIGHT($K66,2)=RIGHT(BU$39,2),SUM($AV66:AY66),0)+IF(RIGHT(BU$39,2)>RIGHT($K66,2),AY66,0)) -> 3.673740279 | BV66: =+IF($K66="Ongoing",AZ66,IF(RIGHT($K66,2)=RIGHT(BV$39,2),SUM($AV66:AZ66),0)+IF(RIGHT(BV$39,2)>RIGHT($K66,2),AZ66,0)) -> 3.626329469 | BW66: =+IF($K66="Ongoing",BA66,IF(RIGHT($K66,2)=RIGHT(BW$39,2),SUM($AV66:BA66),0)+IF(RIGHT(BW$39,2)>RIGHT($K66,2),BA66,0)) -> 2.916934551 | BX66: =+IF($K66="Ongoing",BB66,IF(RIGHT($K66,2)=RIGHT(BX$39,2),SUM($AV66:BB66),0)+IF(RIGHT(BX$39,2)>RIGHT($K66,2),BB66,0)) -> 2.374050603 | BY66: =+IF($K66="Ongoing",BC66,IF(RIGHT($K66,2)=RIGHT(BY$39,2),SUM($AV66:BC66),0)+IF(RIGHT(BY$39,2)>RIGHT($K66,2),BC66,0)) -> 2.26887778 | BZ66: =+IF($K66="Ongoing",BD66,IF(RIGHT($K66,2)=RIGHT(BZ$39,2),SUM($AV66:BD66),0)+IF(RIGHT(BZ$39,2)>RIGHT($K66,2),BD66,0)) -> 2.956210483 | CA66: =+IF($K66="Ongoing",BE66,IF(RIGHT($K66,2)=RIGHT(CA$39,2),SUM($AV66:BE66),0)+IF(RIGHT(CA$39,2)>RIGHT($K66,2),BE66,0)) -> 2.667761701 | CC66: =+O66*KeyAssumptionsPriceControl_FO!X$15 -> 3.220111522 | CD66: =+P66*KeyAssumptionsPriceControl_FO!Y$15 -> 2.740391873 | CE66: =+Q66*KeyAssumptionsPriceControl_FO!Z$15 -> 3.881419286 | CF66: =+R66*KeyAssumptionsPriceControl_FO!AA$15 -> 4.023564658 | CG66: =+S66*KeyAssumptionsPriceControl_FO!AB$15 -> 4.062986953 | CH66: =+T66*KeyAssumptionsPriceControl_FO!AC$15 -> 3.343339559 | CI66: =+U66*KeyAssumptionsPriceControl_FO!AD$15 -> 2.783680632 | CJ66: =+V66*KeyAssumptionsPriceControl_FO!AE$15 -> 2.721549086 | CK66: =+W66*KeyAssumptionsPriceControl_FO!AF$15 -> 3.627572126 | CL66: =+X66*KeyAssumptionsPriceControl_FO!AG$15 -> 3.348909184 | CN66: 0.2300079659 | CO66: 0.6557582084 | CP66: 1.12874472 | CQ66: 1.69338643 | CR66: 2.270997259 | CS66: 2.800020582 | CT66: 3.237664881 | CU66: 3.400887609 | CV66: 3.428646025 | CW66: 3.453979607
C67: IT Key Program Water Improvements/Compliance | E67: Water | F67: Improvements / Compliance | G67: Corporate | H67: Capital Programs / Allocation | J67: Straight line | K67: Ongoing | L67: 7 | M67: 7 | O67: 0.8710835235 | P67: 0.2439505791 | Q67: 0.1186633199 | R67: 0.226425048 | S67: 0.2421061949 | T67: 0.02205382566 | U67: 0.01678813666 | V67: 0.08842673324 | W67: 0.1243681898 | X67: 0.01982921078 | AV67: 0.8710835235 | AW67: 0.2439505791 | AX67: 0.1186633199 | AY67: 0.226425048 | AZ67: 0.2421061949 | BA67: 0.02205382566 | BB67: 0.01678813666 | BC67: 0.08842673324 | BD67: 0.1243681898 | BE67: 0.01982921078 | BG67: 0.06222025168 | BH67: 0.1418655447 | BI67: 0.1677665375 | BJ67: 0.1924157067 | BK67: 0.225882224 | BL67: 0.2447507969 | BM67: 0.2475252228 | BN67: 0.192820319 | BO67: 0.1283746633 | BP67: 0.1127734848 | BR67: =+IF($K67="Ongoing",AV67,IF(RIGHT($K67,2)=RIGHT(BR$39,2),SUM($AV67:AV67),0)+IF(RIGHT(BR$39,2)>RIGHT($K67,2),AV67,0)) -> 0.8710835235 | BS67: =+IF($K67="Ongoing",AW67,IF(RIGHT($K67,2)=RIGHT(BS$39,2),SUM($AV67:AW67),0)+IF(RIGHT(BS$39,2)>RIGHT($K67,2),AW67,0)) -> 0.2439505791 | BT67: =+IF($K67="Ongoing",AX67,IF(RIGHT($K67,2)=RIGHT(BT$39,2),SUM($AV67:AX67),0)+IF(RIGHT(BT$39,2)>RIGHT($K67,2),AX67,0)) -> 0.1186633199 | BU67: =+IF($K67="Ongoing",AY67,IF(RIGHT($K67,2)=RIGHT(BU$39,2),SUM($AV67:AY67),0)+IF(RIGHT(BU$39,2)>RIGHT($K67,2),AY67,0)) -> 0.226425048 | BV67: =+IF($K67="Ongoing",AZ67,IF(RIGHT($K67,2)=RIGHT(BV$39,2),SUM($AV67:AZ67),0)+IF(RIGHT(BV$39,2)>RIGHT($K67,2),AZ67,0)) -> 0.2421061949 | BW67: =+IF($K67="Ongoing",BA67,IF(RIGHT($K67,2)=RIGHT(BW$39,2),SUM($AV67:BA67),0)+IF(RIGHT(BW$39,2)>RIGHT($K67,2),BA67,0)) -> 0.02205382566 | BX67: =+IF($K67="Ongoing",BB67,IF(RIGHT($K67,2)=RIGHT(BX$39,2),SUM($AV67:BB67),0)+IF(RIGHT(BX$39,2)>RIGHT($K67,2),BB67,0)) -> 0.01678813666 | BY67: =+IF($K67="Ongoing",BC67,IF(RIGHT($K67,2)=RIGHT(BY$39,2),SUM($AV67:BC67),0)+IF(RIGHT(BY$39,2)>RIGHT($K67,2),BC67,0)) -> 0.08842673324 | BZ67: =+IF($K67="Ongoing",BD67,IF(RIGHT($K67,2)=RIGHT(BZ$39,2),SUM($AV67:BD67),0)+IF(RIGHT(BZ$39,2)>RIGHT($K67,2),BD67,0)) -> 0.1243681898 | CA67: =+IF($K67="Ongoing",BE67,IF(RIGHT($K67,2)=RIGHT(CA$39,2),SUM($AV67:BE67),0)+IF(RIGHT(CA$39,2)>RIGHT($K67,2),BE67,0)) -> 0.01982921078 | CC67: =+O67*KeyAssumptionsPriceControl_FO!X$15 -> 0.8911184446 | CD67: =+P67*KeyAssumptionsPriceControl_FO!Y$15 -> 0.2553013556 | CE67: =+Q67*KeyAssumptionsPriceControl_FO!Z$15 -> 0.1270408515 | CF67: =+R67*KeyAssumptionsPriceControl_FO!AA$15 -> 0.2479859086 | CG67: =+S67*KeyAssumptionsPriceControl_FO!AB$15 -> 0.2712589465 | CH67: =+T67*KeyAssumptionsPriceControl_FO!AC$15 -> 0.02527771072 | CI67: =+U67*KeyAssumptionsPriceControl_FO!AD$15 -> 0.01968484193 | CJ67: =+V67*KeyAssumptionsPriceControl_FO!AE$15 -> 0.1060690431 | CK67: =+W67*KeyAssumptionsPriceControl_FO!AF$15 -> 0.1526124684 | CL67: =+X67*KeyAssumptionsPriceControl_FO!AG$15 -> 0.02489211314 | CN67: 0.06365131747 | CO67: 0.1455384461 | CP67: 0.1728486037 | CQ67: 0.1996362294 | CR67: 0.2367251476 | CS67: 0.2579063374 | CT67: 0.2611179483 | CU67: 0.2064490512 | CV67: 0.1430391735 | CW67: 0.1284079145
C68: IT Key Program Recycled Water Growth | E68: Recycled Water | F68: Growth | G68: Corporate | H68: Capital Programs / Allocation | J68: Straight line | K68: Ongoing | L68: 7 | M68: 7 | O68: 0.6932121181 | P68: 0.9516498767 | Q68: 0.7146760442 | R68: 0.7747853807 | S68: 1.253661955 | T68: 2.393136024 | U68: 1.402087767 | V68: 2.300537771 | W68: 3.698980838 | X68: 3.207109368 | AV68: 0.6932121181 | AW68: 0.9516498767 | AX68: 0.7146760442 | AY68: 0.7747853807 | AZ68: 1.253661955 | BA68: 2.393136024 | BB68: 1.402087767 | BC68: 2.300537771 | BD68: 3.698980838 | BE68: 3.207109368 | BG68: 0.04951515129 | BH68: 0.1670052938 | BI68: 0.2860285738 | BJ68: 0.3924186756 | BK68: 0.537307771 | BL68: 0.7977933409 | BM68: 1.068880755 | BN68: 1.283838856 | BO68: 1.594885757 | BP68: 1.969154634 | BR68: =+IF($K68="Ongoing",AV68,IF(RIGHT($K68,2)=RIGHT(BR$39,2),SUM($AV68:AV68),0)+IF(RIGHT(BR$39,2)>RIGHT($K68,2),AV68,0)) -> 0.6932121181 | BS68: =+IF($K68="Ongoing",AW68,IF(RIGHT($K68,2)=RIGHT(BS$39,2),SUM($AV68:AW68),0)+IF(RIGHT(BS$39,2)>RIGHT($K68,2),AW68,0)) -> 0.9516498767 | BT68: =+IF($K68="Ongoing",AX68,IF(RIGHT($K68,2)=RIGHT(BT$39,2),SUM($AV68:AX68),0)+IF(RIGHT(BT$39,2)>RIGHT($K68,2),AX68,0)) -> 0.7146760442 | BU68: =+IF($K68="Ongoing",AY68,IF(RIGHT($K68,2)=RIGHT(BU$39,2),SUM($AV68:AY68),0)+IF(RIGHT(BU$39,2)>RIGHT($K68,2),AY68,0)) -> 0.7747853807 | BV68: =+IF($K68="Ongoing",AZ68,IF(RIGHT($K68,2)=RIGHT(BV$39,2),SUM($AV68:AZ68),0)+IF(RIGHT(BV$39,2)>RIGHT($K68,2),AZ68,0)) -> 1.253661955 | BW68: =+IF($K68="Ongoing",BA68,IF(RIGHT($K68,2)=RIGHT(BW$39,2),SUM($AV68:BA68),0)+IF(RIGHT(BW$39,2)>RIGHT($K68,2),BA68,0)) -> 2.393136024 | BX68: =+IF($K68="Ongoing",BB68,IF(RIGHT($K68,2)=RIGHT(BX$39,2),SUM($AV68:BB68),0)+IF(RIGHT(BX$39,2)>RIGHT($K68,2),BB68,0)) -> 1.402087767 | BY68: =+IF($K68="Ongoing",BC68,IF(RIGHT($K68,2)=RIGHT(BY$39,2),SUM($AV68:BC68),0)+IF(RIGHT(BY$39,2)>RIGHT($K68,2),BC68,0)) -> 2.300537771 | BZ68: =+IF($K68="Ongoing",BD68,IF(RIGHT($K68,2)=RIGHT(BZ$39,2),SUM($AV68:BD68),0)+IF(RIGHT(BZ$39,2)>RIGHT($K68,2),BD68,0)) -> 3.698980838 | CA68: =+IF($K68="Ongoing",BE68,IF(RIGHT($K68,2)=RIGHT(CA$39,2),SUM($AV68:BE68),0)+IF(RIGHT(CA$39,2)>RIGHT($K68,2),BE68,0)) -> 3.207109368 | CC68: =+O68*KeyAssumptionsPriceControl_FO!X$15 -> 0.7091559968 | CD68: =+P68*KeyAssumptionsPriceControl_FO!Y$15 -> 0.9959291938 | CE68: =+Q68*KeyAssumptionsPriceControl_FO!Z$15 -> 0.7651315776 | CF68: =+R68*KeyAssumptionsPriceControl_FO!AA$15 -> 0.8485627286 | CG68: =+S68*KeyAssumptionsPriceControl_FO!AB$15 -> 1.404619247 | CH68: =+T68*KeyAssumptionsPriceControl_FO!AC$15 -> 2.742970813 | CI68: =+U68*KeyAssumptionsPriceControl_FO!AD$15 -> 1.644010686 | CJ68: =+V68*KeyAssumptionsPriceControl_FO!AE$15 -> 2.759525666 | CK68: =+W68*KeyAssumptionsPriceControl_FO!AF$15 -> 4.539027197 | CL68: =+X68*KeyAssumptionsPriceControl_FO!AG$15 -> 4.025966043 | CN68: 0.05065399977 | CO68: 0.1724457991 | CP68: 0.2982358542 | CQ68: 0.4134997332 | CR68: 0.5744413029 | CS68: 0.8706977358 | CT68: 1.184053557 | CU68: 1.447937868 | CV68: 1.847471273 | CW68: 2.33346645
C69: IT Key Program Recycled Water Renewals | E69: Recycled Water | F69: Renewals | G69: Corporate | H69: Capital Programs / Allocation | J69: Straight line | K69: Ongoing | L69: 7 | M69: 7 | O69: 0.02862390291 | P69: 0.03137967813 | Q69: 0.03236608484 | R69: 0.1272222584 | S69: 0.04702180321 | T69: 0.09326110069 | U69: 0.04390157963 | V69: 0.07050824844 | W69: 0.148732349 | X69: 0.1134360234 | AV69: 0.02862390291 | AW69: 0.03137967813 | AX69: 0.03236608484 | AY69: 0.1272222584 | AZ69: 0.04702180321 | BA69: 0.09326110069 | BB69: 0.04390157963 | BC69: 0.07050824844 | BD69: 0.148732349 | BE69: 0.1134360234 | BG69: 0.002044564493 | BH69: 0.006330534568 | BI69: 0.01088380335 | BJ69: 0.02228297073 | BK69: 0.03472897513 | BL69: 0.04474918255 | BM69: 0.05454651686 | BN69: 0.06067408294 | BO69: 0.07204815554 | BP69: 0.08622119907 | BR69: =+IF($K69="Ongoing",AV69,IF(RIGHT($K69,2)=RIGHT(BR$39,2),SUM($AV69:AV69),0)+IF(RIGHT(BR$39,2)>RIGHT($K69,2),AV69,0)) -> 0.02862390291 | BS69: =+IF($K69="Ongoing",AW69,IF(RIGHT($K69,2)=RIGHT(BS$39,2),SUM($AV69:AW69),0)+IF(RIGHT(BS$39,2)>RIGHT($K69,2),AW69,0)) -> 0.03137967813 | BT69: =+IF($K69="Ongoing",AX69,IF(RIGHT($K69,2)=RIGHT(BT$39,2),SUM($AV69:AX69),0)+IF(RIGHT(BT$39,2)>RIGHT($K69,2),AX69,0)) -> 0.03236608484 | BU69: =+IF($K69="Ongoing",AY69,IF(RIGHT($K69,2)=RIGHT(BU$39,2),SUM($AV69:AY69),0)+IF(RIGHT(BU$39,2)>RIGHT($K69,2),AY69,0)) -> 0.1272222584 | BV69: =+IF($K69="Ongoing",AZ69,IF(RIGHT($K69,2)=RIGHT(BV$39,2),SUM($AV69:AZ69),0)+IF(RIGHT(BV$39,2)>RIGHT($K69,2),AZ69,0)) -> 0.04702180321 | BW69: =+IF($K69="Ongoing",BA69,IF(RIGHT($K69,2)=RIGHT(BW$39,2),SUM($AV69:BA69),0)+IF(RIGHT(BW$39,2)>RIGHT($K69,2),BA69,0)) -> 0.09326110069 | BX69: =+IF($K69="Ongoing",BB69,IF(RIGHT($K69,2)=RIGHT(BX$39,2),SUM($AV69:BB69),0)+IF(RIGHT(BX$39,2)>RIGHT($K69,2),BB69,0)) -> 0.04390157963 | BY69: =+IF($K69="Ongoing",BC69,IF(RIGHT($K69,2)=RIGHT(BY$39,2),SUM($AV69:BC69),0)+IF(RIGHT(BY$39,2)>RIGHT($K69,2),BC69,0)) -> 0.07050824844 | BZ69: =+IF($K69="Ongoing",BD69,IF(RIGHT($K69,2)=RIGHT(BZ$39,2),SUM($AV69:BD69),0)+IF(RIGHT(BZ$39,2)>RIGHT($K69,2),BD69,0)) -> 0.148732349 | CA69: =+IF($K69="Ongoing",BE69,IF(RIGHT($K69,2)=RIGHT(CA$39,2),SUM($AV69:BE69),0)+IF(RIGHT(CA$39,2)>RIGHT($K69,2),BE69,0)) -> 0.1134360234 | CC69: =+O69*KeyAssumptionsPriceControl_FO!X$15 -> 0.02928225267 | CD69: =+P69*KeyAssumptionsPriceControl_FO!Y$15 -> 0.03283974318 | CE69: =+Q69*KeyAssumptionsPriceControl_FO!Z$15 -> 0.03465110347 | CF69: =+R69*KeyAssumptionsPriceControl_FO!AA$15 -> 0.1393367369 | CG69: =+S69*KeyAssumptionsPriceControl_FO!AB$15 -> 0.05268384316 | CH69: =+T69*KeyAssumptionsPriceControl_FO!AC$15 -> 0.1068942487 | CI69: =+U69*KeyAssumptionsPriceControl_FO!AD$15 -> 0.05147656784 | CJ69: =+V69*KeyAssumptionsPriceControl_FO!AE$15 -> 0.08457558215 | CK69: =+W69*KeyAssumptionsPriceControl_FO!AF$15 -> 0.1825097795 | CL69: =+X69*KeyAssumptionsPriceControl_FO!AG$15 -> 0.1423991283 | CN69: 0.002091589477 | CO69: 0.006528874895 | CP69: 0.01134964966 | CQ69: 0.02377735254 | CR69: 0.03749310825 | CS69: 0.04889154338 | CT69: 0.06020374456 | CU69: 0.0678301658 | CV69: 0.08247040621 | CW69: 0.1008574106
C70: IT Key Program Recycled Water Improvements/Compliance | E70: Recycled Water | F70: Improvements / Compliance | G70: Corporate | H70: Capital Programs / Allocation | J70: Straight line | K70: Ongoing | L70: 7 | M70: 7 | O70: 0.01254033063 | P70: 0.0004211065114 | Q70: 0.02438461412 | R70: 3.21615419 | S70: 0.05350578741 | T70: 0.00151601667 | U70: 0.0003568236171 | V70: 0.0475654339 | W70: 0.09912717596 | X70: 0.001843972473 | AV70: 0.01254033063 | AW70: 0.0004211065114 | AX70: 0.02438461412 | AY70: 3.21615419 | AZ70: 0.05350578741 | BA70: 0.00151601667 | BB70: 0.0003568236171 | BC70: 0.0475654339 | BD70: 0.09912717596 | BE70: 0.001843972473 | BG70: 0.0008957379024 | BH70: 0.001821554841 | BI70: 0.00359339203 | BJ70: 0.2350604494 | BK70: 0.4686075907 | BL70: 0.4725377195 | BM70: 0.4726714938 | BN70: 0.4751987743 | BO70: 0.4847510009 | BP70: 0.4901913886 | BR70: =+IF($K70="Ongoing",AV70,IF(RIGHT($K70,2)=RIGHT(BR$39,2),SUM($AV70:AV70),0)+IF(RIGHT(BR$39,2)>RIGHT($K70,2),AV70,0)) -> 0.01254033063 | BS70: =+IF($K70="Ongoing",AW70,IF(RIGHT($K70,2)=RIGHT(BS$39,2),SUM($AV70:AW70),0)+IF(RIGHT(BS$39,2)>RIGHT($K70,2),AW70,0)) -> 0.0004211065114 | BT70: =+IF($K70="Ongoing",AX70,IF(RIGHT($K70,2)=RIGHT(BT$39,2),SUM($AV70:AX70),0)+IF(RIGHT(BT$39,2)>RIGHT($K70,2),AX70,0)) -> 0.02438461412 | BU70: =+IF($K70="Ongoing",AY70,IF(RIGHT($K70,2)=RIGHT(BU$39,2),SUM($AV70:AY70),0)+IF(RIGHT(BU$39,2)>RIGHT($K70,2),AY70,0)) -> 3.21615419 | BV70: =+IF($K70="Ongoing",AZ70,IF(RIGHT($K70,2)=RIGHT(BV$39,2),SUM($AV70:AZ70),0)+IF(RIGHT(BV$39,2)>RIGHT($K70,2),AZ70,0)) -> 0.05350578741 | BW70: =+IF($K70="Ongoing",BA70,IF(RIGHT($K70,2)=RIGHT(BW$39,2),SUM($AV70:BA70),0)+IF(RIGHT(BW$39,2)>RIGHT($K70,2),BA70,0)) -> 0.00151601667 | BX70: =+IF($K70="Ongoing",BB70,IF(RIGHT($K70,2)=RIGHT(BX$39,2),SUM($AV70:BB70),0)+IF(RIGHT(BX$39,2)>RIGHT($K70,2),BB70,0)) -> 0.0003568236171 | BY70: =+IF($K70="Ongoing",BC70,IF(RIGHT($K70,2)=RIGHT(BY$39,2),SUM($AV70:BC70),0)+IF(RIGHT(BY$39,2)>RIGHT($K70,2),BC70,0)) -> 0.0475654339 | BZ70: =+IF($K70="Ongoing",BD70,IF(RIGHT($K70,2)=RIGHT(BZ$39,2),SUM($AV70:BD70),0)+IF(RIGHT(BZ$39,2)>RIGHT($K70,2),BD70,0)) -> 0.09912717596 | CA70: =+IF($K70="Ongoing",BE70,IF(RIGHT($K70,2)=RIGHT(CA$39,2),SUM($AV70:BE70),0)+IF(RIGHT(CA$39,2)>RIGHT($K70,2),BE70,0)) -> 0.001843972473 | CC70: =+O70*KeyAssumptionsPriceControl_FO!X$15 -> 0.01282875824 | CD70: =+P70*KeyAssumptionsPriceControl_FO!Y$15 -> 0.0004407001763 | CE70: =+Q70*KeyAssumptionsPriceControl_FO!Z$15 -> 0.02610614757 | CF70: =+R70*KeyAssumptionsPriceControl_FO!AA$15 -> 3.522405872 | CG70: =+S70*KeyAssumptionsPriceControl_FO!AB$15 -> 0.05994858383 | CH70: =+T70*KeyAssumptionsPriceControl_FO!AC$15 -> 0.001737631893 | CI70: =+U70*KeyAssumptionsPriceControl_FO!AD$15 -> 0.000418391668 | CJ70: =+V70*KeyAssumptionsPriceControl_FO!AE$15 -> 0.05705537084 | CK70: =+W70*KeyAssumptionsPriceControl_FO!AF$15 -> 0.1216391669 | CL70: =+X70*KeyAssumptionsPriceControl_FO!AG$15 -> 0.002314785593 | CN70: 0.0009163398742 | CO70: 0.001864158332 | CP70: 0.003760361743 | CQ70: 0.257225506 | CR70: 0.5131079672 | CS70: 0.5175141254 | CT70: 0.5176681271 | CU70: 0.520857056 | CV70: 0.5326731331 | CW70: 0.5396307834
C71: Carbon Emission Program - Water | E71: Water | F71: Improvements / Compliance | G71: Corporate | H71: Capital Programs / Allocation | J71: Straight line | K71: Ongoing | L71: 20 | M71: 20 | O71: 1.128431119 | P71: 0.02347222799 | Q71: 0.8593517664 | R71: 2.022366924 | S71: 2.10495058 | T71: 0.02620134961 | U71: 0.01265283461 | V71: 0.9662357159 | W71: 1.068907647 | X71: 0.02329630715 | AV71: 1.128431119 | AW71: 0.02347222799 | AX71: 0.8593517664 | AY71: 2.022366924 | AZ71: 2.10495058 | BA71: 0.02620134961 | BB71: 0.01265283461 | BC71: 0.9662357159 | BD71: 1.068907647 | BE71: 0.02329630715 | BG71: 0.02821077797 | BH71: 0.05700836164 | BI71: 0.0790789615 | BJ71: 0.1511219288 | BK71: 0.2543048664 | BL71: 0.3075836646 | BM71: 0.3085550192 | BN71: 0.333027233 | BO71: 0.3839058171 | BP71: 0.4112109159 | BR71: =+IF($K71="Ongoing",AV71,IF(RIGHT($K71,2)=RIGHT(BR$39,2),SUM($AV71:AV71),0)+IF(RIGHT(BR$39,2)>RIGHT($K71,2),AV71,0)) -> 1.128431119 | BS71: =+IF($K71="Ongoing",AW71,IF(RIGHT($K71,2)=RIGHT(BS$39,2),SUM($AV71:AW71),0)+IF(RIGHT(BS$39,2)>RIGHT($K71,2),AW71,0)) -> 0.02347222799 | BT71: =+IF($K71="Ongoing",AX71,IF(RIGHT($K71,2)=RIGHT(BT$39,2),SUM($AV71:AX71),0)+IF(RIGHT(BT$39,2)>RIGHT($K71,2),AX71,0)) -> 0.8593517664 | BU71: =+IF($K71="Ongoing",AY71,IF(RIGHT($K71,2)=RIGHT(BU$39,2),SUM($AV71:AY71),0)+IF(RIGHT(BU$39,2)>RIGHT($K71,2),AY71,0)) -> 2.022366924 | BV71: =+IF($K71="Ongoing",AZ71,IF(RIGHT($K71,2)=RIGHT(BV$39,2),SUM($AV71:AZ71),0)+IF(RIGHT(BV$39,2)>RIGHT($K71,2),AZ71,0)) -> 2.10495058 | BW71: =+IF($K71="Ongoing",BA71,IF(RIGHT($K71,2)=RIGHT(BW$39,2),SUM($AV71:BA71),0)+IF(RIGHT(BW$39,2)>RIGHT($K71,2),BA71,0)) -> 0.02620134961 | BX71: =+IF($K71="Ongoing",BB71,IF(RIGHT($K71,2)=RIGHT(BX$39,2),SUM($AV71:BB71),0)+IF(RIGHT(BX$39,2)>RIGHT($K71,2),BB71,0)) -> 0.01265283461 | BY71: =+IF($K71="Ongoing",BC71,IF(RIGHT($K71,2)=RIGHT(BY$39,2),SUM($AV71:BC71),0)+IF(RIGHT(BY$39,2)>RIGHT($K71,2),BC71,0)) -> 0.9662357159 | BZ71: =+IF($K71="Ongoing",BD71,IF(RIGHT($K71,2)=RIGHT(BZ$39,2),SUM($AV71:BD71),0)+IF(RIGHT(BZ$39,2)>RIGHT($K71,2),BD71,0)) -> 1.068907647 | CA71: =+IF($K71="Ongoing",BE71,IF(RIGHT($K71,2)=RIGHT(CA$39,2),SUM($AV71:BE71),0)+IF(RIGHT(CA$39,2)>RIGHT($K71,2),BE71,0)) -> 0.02329630715 | CC71: =+O71*KeyAssumptionsPriceControl_FO!X$15 -> 1.154385034 | CD71: =+P71*KeyAssumptionsPriceControl_FO!Y$15 -> 0.02456436728 | CE71: =+Q71*KeyAssumptionsPriceControl_FO!Z$15 -> 0.9200212853 | CF71: =+R71*KeyAssumptionsPriceControl_FO!AA$15 -> 2.214942664 | CG71: =+S71*KeyAssumptionsPriceControl_FO!AB$15 -> 2.358414154 | CH71: =+T71*KeyAssumptionsPriceControl_FO!AC$15 -> 0.0300315304 | CI71: =+U71*KeyAssumptionsPriceControl_FO!AD$15 -> 0.01483601512 | CJ71: =+V71*KeyAssumptionsPriceControl_FO!AE$15 -> 1.159012597 | CK71: =+W71*KeyAssumptionsPriceControl_FO!AF$15 -> 1.31165883 | CL71: =+X71*KeyAssumptionsPriceControl_FO!AG$15 -> 0.02924444749 | CN71: 0.02885962586 | CO71: 0.05833336091 | CP71: 0.08194800222 | CQ71: 0.160322101 | CR71: 0.2746560214 | CS71: 0.3343671635 | CT71: 0.3354888522 | CU71: 0.3648350675 | CV71: 0.4266018532 | CW71: 0.4601244351
C72: Carbon Emission Program - Sewerage | E72: Sewerage | F72: Improvements / Compliance | G72: Corporate | H72: Capital Programs / Allocation | J72: Straight line | K72: Ongoing | L72: 20 | M72: 20 | O72: 2.624868317 | P72: 0.07147925732 | Q72: 1.975012619 | R72: 3.603048145 | S72: 4.387862324 | T72: 0.05824919325 | U72: 0.03282733361 | V72: 2.556436938 | W72: 2.01971451 | X72: 0.05593875932 | AV72: 2.624868317 | AW72: 0.07147925732 | AX72: 1.975012619 | AY72: 3.603048145 | AZ72: 4.387862324 | BA72: 0.05824919325 | BB72: 0.03282733361 | BC72: 2.556436938 | BD72: 2.01971451 | BE72: 0.05593875932 | BG72: 0.06562170792 | BH72: 0.1330303973 | BI72: 0.1841926942 | BJ72: 0.3236442133 | BK72: 0.523416975 | BL72: 0.6345697629 | BM72: 0.6368466761 | BN72: 0.7015782829 | BO72: 0.8159820691 | BP72: 0.8678734009 | BR72: =+IF($K72="Ongoing",AV72,IF(RIGHT($K72,2)=RIGHT(BR$39,2),SUM($AV72:AV72),0)+IF(RIGHT(BR$39,2)>RIGHT($K72,2),AV72,0)) -> 2.624868317 | BS72: =+IF($K72="Ongoing",AW72,IF(RIGHT($K72,2)=RIGHT(BS$39,2),SUM($AV72:AW72),0)+IF(RIGHT(BS$39,2)>RIGHT($K72,2),AW72,0)) -> 0.07147925732 | BT72: =+IF($K72="Ongoing",AX72,IF(RIGHT($K72,2)=RIGHT(BT$39,2),SUM($AV72:AX72),0)+IF(RIGHT(BT$39,2)>RIGHT($K72,2),AX72,0)) -> 1.975012619 | BU72: =+IF($K72="Ongoing",AY72,IF(RIGHT($K72,2)=RIGHT(BU$39,2),SUM($AV72:AY72),0)+IF(RIGHT(BU$39,2)>RIGHT($K72,2),AY72,0)) -> 3.603048145 | BV72: =+IF($K72="Ongoing",AZ72,IF(RIGHT($K72,2)=RIGHT(BV$39,2),SUM($AV72:AZ72),0)+IF(RIGHT(BV$39,2)>RIGHT($K72,2),AZ72,0)) -> 4.387862324 | BW72: =+IF($K72="Ongoing",BA72,IF(RIGHT($K72,2)=RIGHT(BW$39,2),SUM($AV72:BA72),0)+IF(RIGHT(BW$39,2)>RIGHT($K72,2),BA72,0)) -> 0.05824919325 | BX72: =+IF($K72="Ongoing",BB72,IF(RIGHT($K72,2)=RIGHT(BX$39,2),SUM($AV72:BB72),0)+IF(RIGHT(BX$39,2)>RIGHT($K72,2),BB72,0)) -> 0.03282733361 | BY72: =+IF($K72="Ongoing",BC72,IF(RIGHT($K72,2)=RIGHT(BY$39,2),SUM($AV72:BC72),0)+IF(RIGHT(BY$39,2)>RIGHT($K72,2),BC72,0)) -> 2.556436938 | BZ72: =+IF($K72="Ongoing",BD72,IF(RIGHT($K72,2)=RIGHT(BZ$39,2),SUM($AV72:BD72),0)+IF(RIGHT(BZ$39,2)>RIGHT($K72,2),BD72,0)) -> 2.01971451 | CA72: =+IF($K72="Ongoing",BE72,IF(RIGHT($K72,2)=RIGHT(CA$39,2),SUM($AV72:BE72),0)+IF(RIGHT(CA$39,2)>RIGHT($K72,2),BE72,0)) -> 0.05593875932 | CC72: =+O72*KeyAssumptionsPriceControl_FO!X$15 -> 2.685240288 | CD72: =+P72*KeyAssumptionsPriceControl_FO!Y$15 -> 0.07480511569 | CE72: =+Q72*KeyAssumptionsPriceControl_FO!Z$15 -> 2.114446865 | CF72: =+R72*KeyAssumptionsPriceControl_FO!AA$15 -> 3.94614101 | CG72: =+S72*KeyAssumptionsPriceControl_FO!AB$15 -> 4.916218322 | CH72: =+T72*KeyAssumptionsPriceControl_FO!AC$15 -> 0.0667642104 | CI72: =+U72*KeyAssumptionsPriceControl_FO!AD$15 -> 0.03849151852 | CJ72: =+V72*KeyAssumptionsPriceControl_FO!AE$15 -> 3.066480122 | CK72: =+W72*KeyAssumptionsPriceControl_FO!AF$15 -> 2.47839594 | CL72: =+X72*KeyAssumptionsPriceControl_FO!AG$15 -> 0.07022134878 | CN72: 0.0671310072 | CO72: 0.1361321423 | CP72: 0.1908634418 | CQ72: 0.3423781387 | CR72: 0.563937122 | CS72: 0.6885116853 | CT72: 0.6911430785 | CU72: 0.7687673695 | CV72: 0.9073892711 | CW72: 0.9711047033
C73: Carbon Emission Program - Recycled Water | E73: Recycled Water | F73: Improvements / Compliance | G73: Corporate | H73: Capital Programs / Allocation | J73: Straight line | K73: Ongoing | L73: 20 | M73: 20 | O73: 0.1247005645 | P73: 0.005048514689 | Q73: 0.1156356145 | R73: 1.424584931 | S73: 0.5071870957 | T73: 0.01554945713 | U73: 0.004519831782 | V73: 0.6273273457 | W73: 1.011377843 | X73: 0.02076493353 | AV73: 0.1247005645 | AW73: 0.005048514689 | AX73: 0.1156356145 | AY73: 1.424584931 | AZ73: 0.5071870957 | BA73: 0.01554945713 | BB73: 0.004519831782 | BC73: 0.6273273457 | BD73: 1.011377843 | BE73: 0.02076493353 | BG73: 0.003117514112 | BH73: 0.006361241091 | BI73: 0.00937834432 | BJ73: 0.04788385796 | BK73: 0.09617815862 | BL73: 0.1092465724 | BM73: 0.1097483047 | BN73: 0.1255444841 | BO73: 0.1665121138 | BP73: 0.1923156832 | BR73: =+IF($K73="Ongoing",AV73,IF(RIGHT($K73,2)=RIGHT(BR$39,2),SUM($AV73:AV73),0)+IF(RIGHT(BR$39,2)>RIGHT($K73,2),AV73,0)) -> 0.1247005645 | BS73: =+IF($K73="Ongoing",AW73,IF(RIGHT($K73,2)=RIGHT(BS$39,2),SUM($AV73:AW73),0)+IF(RIGHT(BS$39,2)>RIGHT($K73,2),AW73,0)) -> 0.005048514689 | BT73: =+IF($K73="Ongoing",AX73,IF(RIGHT($K73,2)=RIGHT(BT$39,2),SUM($AV73:AX73),0)+IF(RIGHT(BT$39,2)>RIGHT($K73,2),AX73,0)) -> 0.1156356145 | BU73: =+IF($K73="Ongoing",AY73,IF(RIGHT($K73,2)=RIGHT(BU$39,2),SUM($AV73:AY73),0)+IF(RIGHT(BU$39,2)>RIGHT($K73,2),AY73,0)) -> 1.424584931 | BV73: =+IF($K73="Ongoing",AZ73,IF(RIGHT($K73,2)=RIGHT(BV$39,2),SUM($AV73:AZ73),0)+IF(RIGHT(BV$39,2)>RIGHT($K73,2),AZ73,0)) -> 0.5071870957 | BW73: =+IF($K73="Ongoing",BA73,IF(RIGHT($K73,2)=RIGHT(BW$39,2),SUM($AV73:BA73),0)+IF(RIGHT(BW$39,2)>RIGHT($K73,2),BA73,0)) -> 0.01554945713 | BX73: =+IF($K73="Ongoing",BB73,IF(RIGHT($K73,2)=RIGHT(BX$39,2),SUM($AV73:BB73),0)+IF(RIGHT(BX$39,2)>RIGHT($K73,2),BB73,0)) -> 0.004519831782 | BY73: =+IF($K73="Ongoing",BC73,IF(RIGHT($K73,2)=RIGHT(BY$39,2),SUM($AV73:BC73),0)+IF(RIGHT(BY$39,2)>RIGHT($K73,2),BC73,0)) -> 0.6273273457 | BZ73: =+IF($K73="Ongoing",BD73,IF(RIGHT($K73,2)=RIGHT(BZ$39,2),SUM($AV73:BD73),0)+IF(RIGHT(BZ$39,2)>RIGHT($K73,2),BD73,0)) -> 1.011377843 | CA73: =+IF($K73="Ongoing",BE73,IF(RIGHT($K73,2)=RIGHT(CA$39,2),SUM($AV73:BE73),0)+IF(RIGHT(CA$39,2)>RIGHT($K73,2),BE73,0)) -> 0.02076493353 | CC73: =+O73*KeyAssumptionsPriceControl_FO!X$15 -> 0.1275686775 | CD73: =+P73*KeyAssumptionsPriceControl_FO!Y$15 -> 0.005283417029 | CE73: =+Q73*KeyAssumptionsPriceControl_FO!Z$15 -> 0.1237993925 | CF73: =+R73*KeyAssumptionsPriceControl_FO!AA$15 -> 1.560238108 | CG73: =+S73*KeyAssumptionsPriceControl_FO!AB$15 -> 0.5682590538 | CH73: =+T73*KeyAssumptionsPriceControl_FO!AC$15 -> 0.01782251684 | CI73: =+U73*KeyAssumptionsPriceControl_FO!AD$15 -> 0.005299705143 | CJ73: =+V73*KeyAssumptionsPriceControl_FO!AE$15 -> 0.7524874981 | CK73: =+W73*KeyAssumptionsPriceControl_FO!AF$15 -> 1.241063887 | CL73: =+X73*KeyAssumptionsPriceControl_FO!AG$15 -> 0.02606674973 | CN73: 0.003189216936 | CO73: 0.006510519299 | CP73: 0.009737589537 | CQ73: 0.05183852704 | CR73: 0.1050509561 | CS73: 0.1197029953 | CT73: 0.1202810509 | CU73: 0.139225731 | CV73: 0.1890645156 | CW73: 0.2207427815
C74: Capacity (Growth) | E74: Water | F74: Growth | G74: Pipelines/network | H74: Capital Programs / Allocation | J74: Straight line | K74: Ongoing | L74: 80 | M74: 80 | O74: 1.3383 | P74: 1.3383 | Q74: 1.3383 | R74: 1.3383 | S74: 1.3383 | T74: 1.3383 | U74: 1.3383 | V74: 1.3383 | W74: 1.3383 | X74: 1.3383 | AV74: 1.3383 | AW74: 1.3383 | AX74: 1.3383 | AY74: 1.3383 | AZ74: 1.3383 | BA74: 1.3383 | BB74: 1.3383 | BC74: 1.3383 | BD74: 1.3383 | BE74: 1.3383 | BG74: 0.008364375 | BH74: 0.025093125 | BI74: 0.041821875 | BJ74: 0.058550625 | BK74: 0.075279375 | BL74: 0.092008125 | BM74: 0.108736875 | BN74: 0.125465625 | BO74: 0.142194375 | BP74: 0.158923125 | BR74: =+IF($K74="Ongoing",AV74,IF(RIGHT($K74,2)=RIGHT(BR$39,2),SUM($AV74:AV74),0)+IF(RIGHT(BR$39,2)>RIGHT($K74,2),AV74,0)) -> 1.3383 | BS74: =+IF($K74="Ongoing",AW74,IF(RIGHT($K74,2)=RIGHT(BS$39,2),SUM($AV74:AW74),0)+IF(RIGHT(BS$39,2)>RIGHT($K74,2),AW74,0)) -> 1.3383 | BT74: =+IF($K74="Ongoing",AX74,IF(RIGHT($K74,2)=RIGHT(BT$39,2),SUM($AV74:AX74),0)+IF(RIGHT(BT$39,2)>RIGHT($K74,2),AX74,0)) -> 1.3383 | BU74: =+IF($K74="Ongoing",AY74,IF(RIGHT($K74,2)=RIGHT(BU$39,2),SUM($AV74:AY74),0)+IF(RIGHT(BU$39,2)>RIGHT($K74,2),AY74,0)) -> 1.3383 | BV74: =+IF($K74="Ongoing",AZ74,IF(RIGHT($K74,2)=RIGHT(BV$39,2),SUM($AV74:AZ74),0)+IF(RIGHT(BV$39,2)>RIGHT($K74,2),AZ74,0)) -> 1.3383 | BW74: =+IF($K74="Ongoing",BA74,IF(RIGHT($K74,2)=RIGHT(BW$39,2),SUM($AV74:BA74),0)+IF(RIGHT(BW$39,2)>RIGHT($K74,2),BA74,0)) -> 1.3383 | BX74: =+IF($K74="Ongoing",BB74,IF(RIGHT($K74,2)=RIGHT(BX$39,2),SUM($AV74:BB74),0)+IF(RIGHT(BX$39,2)>RIGHT($K74,2),BB74,0)) -> 1.3383 | BY74: =+IF($K74="Ongoing",BC74,IF(RIGHT($K74,2)=RIGHT(BY$39,2),SUM($AV74:BC74),0)+IF(RIGHT(BY$39,2)>RIGHT($K74,2),BC74,0)) -> 1.3383 | BZ74: =+IF($K74="Ongoing",BD74,IF(RIGHT($K74,2)=RIGHT(BZ$39,2),SUM($AV74:BD74),0)+IF(RIGHT(BZ$39,2)>RIGHT($K74,2),BD74,0)) -> 1.3383 | CA74: =+IF($K74="Ongoing",BE74,IF(RIGHT($K74,2)=RIGHT(CA$39,2),SUM($AV74:BE74),0)+IF(RIGHT(CA$39,2)>RIGHT($K74,2),BE74,0)) -> 1.3383 | CC74: =+O74*KeyAssumptionsPriceControl_FO!X$15 -> 1.3690809 | CD74: =+P74*KeyAssumptionsPriceControl_FO!Y$15 -> 1.400569761 | CE74: =+Q74*KeyAssumptionsPriceControl_FO!Z$15 -> 1.432782865 | CF74: =+R74*KeyAssumptionsPriceControl_FO!AA$15 -> 1.465736871 | CG74: =+S74*KeyAssumptionsPriceControl_FO!AB$15 -> 1.499448819 | CH74: =+T74*KeyAssumptionsPriceControl_FO!AC$15 -> 1.533936142 | CI74: =+U74*KeyAssumptionsPriceControl_FO!AD$15 -> 1.569216673 | CJ74: =+V74*KeyAssumptionsPriceControl_FO!AE$15 -> 1.605308657 | CK74: =+W74*KeyAssumptionsPriceControl_FO!AF$15 -> 1.642230756 | CL74: =+X74*KeyAssumptionsPriceControl_FO!AG$15 -> 1.680002063 | CN74: 0.008556755625 | CO74: 0.02586707225 | CP74: 0.04357552617 | CQ74: 0.06169127452 | CR74: 0.08022368508 | CS74: 0.09918234109 | CT74: 0.1185770462 | CU74: 0.1384178295 | CV74: 0.1587149508 | CW74: 0.1794789059
C75: Quality | E75: Water | F75: Improvements / Compliance | G75: Pipelines/network | H75: Capital Programs / Allocation | J75: Straight line | K75: Ongoing | L75: 20 | M75: 20 | O75: 0.165 | P75: 0.185 | Q75: 0.19 | R75: 0.19 | S75: 0.19 | T75: 0.2 | U75: 0.2 | V75: 0.2 | W75: 0.2 | X75: 0.2 | AV75: 0.165 | AW75: 0.185 | AX75: 0.19 | AY75: 0.19 | AZ75: 0.19 | BA75: 0.2 | BB75: 0.2 | BC75: 0.2 | BD75: 0.2 | BE75: 0.2 | BG75: 0.004125 | BH75: 0.012875 | BI75: 0.02225 | BJ75: 0.03175 | BK75: 0.04125 | BL75: 0.051 | BM75: 0.061 | BN75: 0.071 | BO75: 0.081 | BP75: 0.091 | BR75: =+IF($K75="Ongoing",AV75,IF(RIGHT($K75,2)=RIGHT(BR$39,2),SUM($AV75:AV75),0)+IF(RIGHT(BR$39,2)>RIGHT($K75,2),AV75,0)) -> 0.165 | BS75: =+IF($K75="Ongoing",AW75,IF(RIGHT($K75,2)=RIGHT(BS$39,2),SUM($AV75:AW75),0)+IF(RIGHT(BS$39,2)>RIGHT($K75,2),AW75,0)) -> 0.185 | BT75: =+IF($K75="Ongoing",AX75,IF(RIGHT($K75,2)=RIGHT(BT$39,2),SUM($AV75:AX75),0)+IF(RIGHT(BT$39,2)>RIGHT($K75,2),AX75,0)) -> 0.19 | BU75: =+IF($K75="Ongoing",AY75,IF(RIGHT($K75,2)=RIGHT(BU$39,2),SUM($AV75:AY75),0)+IF(RIGHT(BU$39,2)>RIGHT($K75,2),AY75,0)) -> 0.19 | BV75: =+IF($K75="Ongoing",AZ75,IF(RIGHT($K75,2)=RIGHT(BV$39,2),SUM($AV75:AZ75),0)+IF(RIGHT(BV$39,2)>RIGHT($K75,2),AZ75,0)) -> 0.19 | BW75: =+IF($K75="Ongoing",BA75,IF(RIGHT($K75,2)=RIGHT(BW$39,2),SUM($AV75:BA75),0)+IF(RIGHT(BW$39,2)>RIGHT($K75,2),BA75,0)) -> 0.2 | BX75: =+IF($K75="Ongoing",BB75,IF(RIGHT($K75,2)=RIGHT(BX$39,2),SUM($AV75:BB75),0)+IF(RIGHT(BX$39,2)>RIGHT($K75,2),BB75,0)) -> 0.2 | BY75: =+IF($K75="Ongoing",BC75,IF(RIGHT($K75,2)=RIGHT(BY$39,2),SUM($AV75:BC75),0)+IF(RIGHT(BY$39,2)>RIGHT($K75,2),BC75,0)) -> 0.2 | BZ75: =+IF($K75="Ongoing",BD75,IF(RIGHT($K75,2)=RIGHT(BZ$39,2),SUM($AV75:BD75),0)+IF(RIGHT(BZ$39,2)>RIGHT($K75,2),BD75,0)) -> 0.2 | CA75: =+IF($K75="Ongoing",BE75,IF(RIGHT($K75,2)=RIGHT(CA$39,2),SUM($AV75:BE75),0)+IF(RIGHT(CA$39,2)>RIGHT($K75,2),BE75,0)) -> 0.2 | CC75: =+O75*KeyAssumptionsPriceControl_FO!X$15 -> 0.168795 | CD75: =+P75*KeyAssumptionsPriceControl_FO!Y$15 -> 0.193607865 | CE75: =+Q75*KeyAssumptionsPriceControl_FO!Z$15 -> 0.2034138417 | CF75: =+R75*KeyAssumptionsPriceControl_FO!AA$15 -> 0.2080923601 | CG75: =+S75*KeyAssumptionsPriceControl_FO!AB$15 -> 0.2128784844 | CH75: =+T75*KeyAssumptionsPriceControl_FO!AC$15 -> 0.2292365153 | CI75: =+U75*KeyAssumptionsPriceControl_FO!AD$15 -> 0.2345089551 | CJ75: =+V75*KeyAssumptionsPriceControl_FO!AE$15 -> 0.2399026611 | CK75: =+W75*KeyAssumptionsPriceControl_FO!AF$15 -> 0.2454204223 | CL75: =+X75*KeyAssumptionsPriceControl_FO!AG$15 -> 0.251065092 | CN75: 0.004219875 | CO75: 0.01327994662 | CP75: 0.02320548929 | CQ75: 0.03349314434 | CR75: 0.04401741545 | CS75: 0.05507029044 | CT75: 0.0666639272 | CU75: 0.07852421761 | CV75: 0.09065729469 | CW75: 0.1030694325
C76: Reliability | E76: Water | F76: Renewals | G76: Pipelines/network | H76: Capital Programs / Allocation | J76: Straight line | K76: Ongoing | L76: 20 | M76: 20 | O76: 9.825049809 | P76: 10.54393342 | Q76: 9.033317639 | R76: 10.63090767 | S76: 9.02449919 | T76: 7.40653706 | U76: 7.615012617 | V76: 7.591309267 | W76: 7.657906639 | X76: 7.708482345 | AV76: 9.825049809 | AW76: 10.54393342 | AX76: 9.033317639 | AY76: 10.63090767 | AZ76: 9.02449919 | BA76: 7.40653706 | BB76: 7.615012617 | BC76: 7.591309267 | BD76: 7.657906639 | BE76: 7.708482345 | BG76: 0.2456262452 | BH76: 0.7548508258 | BI76: 1.244282102 | BJ76: 1.735887735 | BK76: 2.227272906 | BL76: 2.638048813 | BM76: 3.013587555 | BN76: 3.393745602 | BO76: 3.774975999 | BP76: 4.159135724 | BR76: =+IF($K76="Ongoing",AV76,IF(RIGHT($K76,2)=RIGHT(BR$39,2),SUM($AV76:AV76),0)+IF(RIGHT(BR$39,2)>RIGHT($K76,2),AV76,0)) -> 9.825049809 | BS76: =+IF($K76="Ongoing",AW76,IF(RIGHT($K76,2)=RIGHT(BS$39,2),SUM($AV76:AW76),0)+IF(RIGHT(BS$39,2)>RIGHT($K76,2),AW76,0)) -> 10.54393342 | BT76: =+IF($K76="Ongoing",AX76,IF(RIGHT($K76,2)=RIGHT(BT$39,2),SUM($AV76:AX76),0)+IF(RIGHT(BT$39,2)>RIGHT($K76,2),AX76,0)) -> 9.033317639 | BU76: =+IF($K76="Ongoing",AY76,IF(RIGHT($K76,2)=RIGHT(BU$39,2),SUM($AV76:AY76),0)+IF(RIGHT(BU$39,2)>RIGHT($K76,2),AY76,0)) -> 10.63090767 | BV76: =+IF($K76="Ongoing",AZ76,IF(RIGHT($K76,2)=RIGHT(BV$39,2),SUM($AV76:AZ76),0)+IF(RIGHT(BV$39,2)>RIGHT($K76,2),AZ76,0)) -> 9.02449919 | BW76: =+IF($K76="Ongoing",BA76,IF(RIGHT($K76,2)=RIGHT(BW$39,2),SUM($AV76:BA76),0)+IF(RIGHT(BW$39,2)>RIGHT($K76,2),BA76,0)) -> 7.40653706 | BX76: =+IF($K76="Ongoing",BB76,IF(RIGHT($K76,2)=RIGHT(BX$39,2),SUM($AV76:BB76),0)+IF(RIGHT(BX$39,2)>RIGHT($K76,2),BB76,0)) -> 7.615012617 | BY76: =+IF($K76="Ongoing",BC76,IF(RIGHT($K76,2)=RIGHT(BY$39,2),SUM($AV76:BC76),0)+IF(RIGHT(BY$39,2)>RIGHT($K76,2),BC76,0)) -> 7.591309267 | BZ76: =+IF($K76="Ongoing",BD76,IF(RIGHT($K76,2)=RIGHT(BZ$39,2),SUM($AV76:BD76),0)+IF(RIGHT(BZ$39,2)>RIGHT($K76,2),BD76,0)) -> 7.657906639 | CA76: =+IF($K76="Ongoing",BE76,IF(RIGHT($K76,2)=RIGHT(CA$39,2),SUM($AV76:BE76),0)+IF(RIGHT(CA$39,2)>RIGHT($K76,2),BE76,0)) -> 7.708482345 | CC76: =+O76*KeyAssumptionsPriceControl_FO!X$15 -> 10.05102595 | CD76: =+P76*KeyAssumptionsPriceControl_FO!Y$15 -> 11.03453209 | CE76: =+Q76*KeyAssumptionsPriceControl_FO!Z$15 -> 9.671062339 | CF76: =+R76*KeyAssumptionsPriceControl_FO!AA$15 -> 11.64321404 | CG76: =+S76*KeyAssumptionsPriceControl_FO!AB$15 -> 10.11116689 | CH76: =+T76*KeyAssumptionsPriceControl_FO!AC$15 -> 8.489243729 | CI76: =+U76*KeyAssumptionsPriceControl_FO!AD$15 -> 8.928943261 | CJ76: =+V76*KeyAssumptionsPriceControl_FO!AE$15 -> 9.105876472 | CK76: =+W76*KeyAssumptionsPriceControl_FO!AF$15 -> 9.397033406 | CL76: =+X76*KeyAssumptionsPriceControl_FO!AG$15 -> 9.676654147 | CN76: 0.2512756489 | CO76: 0.7784146001 | CP76: 1.296054461 | CQ76: 1.82891137 | CR76: 2.372770894 | CS76: 2.837781159 | CT76: 3.273235834 | CU76: 3.724106327 | CV76: 4.186679074 | CW76: 4.663521263
C77: Meters | E77: Water | F77: Growth | G77: Pipelines/network | H77: Capital Programs / Allocation | J77: Straight line | K77: Ongoing | L77: 20 | M77: 20 | O77: 0 | P77: 0 | Q77: 0 | R77: 0 | S77: 0 | T77: 0 | U77: 0 | V77: 0 | W77: 0 | X77: 0 | AV77: 0 | AW77: 0 | AX77: 0 | AY77: 0 | AZ77: 0 | BA77: 0 | BB77: 0 | BC77: 0 | BD77: 0 | BE77: 0 | BG77: 0 | BH77: 0 | BI77: 0 | BJ77: 0 | BK77: 0 | BL77: 0 | BM77: 0 | BN77: 0 | BO77: 0 | BP77: 0 | BR77: =+IF($K77="Ongoing",AV77,IF(RIGHT($K77,2)=RIGHT(BR$39,2),SUM($AV77:AV77),0)+IF(RIGHT(BR$39,2)>RIGHT($K77,2),AV77,0)) -> 0 | BS77: =+IF($K77="Ongoing",AW77,IF(RIGHT($K77,2)=RIGHT(BS$39,2),SUM($AV77:AW77),0)+IF(RIGHT(BS$39,2)>RIGHT($K77,2),AW77,0)) -> 0 | BT77: =+IF($K77="Ongoing",AX77,IF(RIGHT($K77,2)=RIGHT(BT$39,2),SUM($AV77:AX77),0)+IF(RIGHT(BT$39,2)>RIGHT($K77,2),AX77,0)) -> 0 | BU77: =+IF($K77="Ongoing",AY77,IF(RIGHT($K77,2)=RIGHT(BU$39,2),SUM($AV77:AY77),0)+IF(RIGHT(BU$39,2)>RIGHT($K77,2),AY77,0)) -> 0 | BV77: =+IF($K77="Ongoing",AZ77,IF(RIGHT($K77,2)=RIGHT(BV$39,2),SUM($AV77:AZ77),0)+IF(RIGHT(BV$39,2)>RIGHT($K77,2),AZ77,0)) -> 0 | BW77: =+IF($K77="Ongoing",BA77,IF(RIGHT($K77,2)=RIGHT(BW$39,2),SUM($AV77:BA77),0)+IF(RIGHT(BW$39,2)>RIGHT($K77,2),BA77,0)) -> 0 | BX77: =+IF($K77="Ongoing",BB77,IF(RIGHT($K77,2)=RIGHT(BX$39,2),SUM($AV77:BB77),0)+IF(RIGHT(BX$39,2)>RIGHT($K77,2),BB77,0)) -> 0 | BY77: =+IF($K77="Ongoing",BC77,IF(RIGHT($K77,2)=RIGHT(BY$39,2),SUM($AV77:BC77),0)+IF(RIGHT(BY$39,2)>RIGHT($K77,2),BC77,0)) -> 0 | BZ77: =+IF($K77="Ongoing",BD77,IF(RIGHT($K77,2)=RIGHT(BZ$39,2),SUM($AV77:BD77),0)+IF(RIGHT(BZ$39,2)>RIGHT($K77,2),BD77,0)) -> 0 | CA77: =+IF($K77="Ongoing",BE77,IF(RIGHT($K77,2)=RIGHT(CA$39,2),SUM($AV77:BE77),0)+IF(RIGHT(CA$39,2)>RIGHT($K77,2),BE77,0)) -> 0 | CC77: =+O77*KeyAssumptionsPriceControl_FO!X$15 -> 0 | CD77: =+P77*KeyAssumptionsPriceControl_FO!Y$15 -> 0 | CE77: =+Q77*KeyAssumptionsPriceControl_FO!Z$15 -> 0 | CF77: =+R77*KeyAssumptionsPriceControl_FO!AA$15 -> 0 | CG77: =+S77*KeyAssumptionsPriceControl_FO!AB$15 -> 0 | CH77: =+T77*KeyAssumptionsPriceControl_FO!AC$15 -> 0 | CI77: =+U77*KeyAssumptionsPriceControl_FO!AD$15 -> 0 | CJ77: =+V77*KeyAssumptionsPriceControl_FO!AE$15 -> 0 | CK77: =+W77*KeyAssumptionsPriceControl_FO!AF$15 -> 0 | CL77: =+X77*KeyAssumptionsPriceControl_FO!AG$15 -> 0 | CN77: 0 | CO77: 0 | CP77: 0 | CQ77: 0 | CR77: 0 | CS77: 0 | CT77: 0 | CU77: 0 | CV77: 0 | CW77: 0
C78: Network Capacity (Growth) | E78: Sewerage | F78: Growth | G78: Pipelines/network | H78: Capital Programs / Allocation | J78: Straight line | K78: Ongoing | L78: 80 | M78: 80 | O78: 3.4738 | P78: 1.4738 | Q78: 1.4738 | R78: 1.4738 | S78: 1.4738 | T78: 1.4738 | U78: 1.4738 | V78: 1.4738 | W78: 1.4738 | X78: 1.4738 | AV78: 3.4738 | AW78: 1.4738 | AX78: 1.4738 | AY78: 1.4738 | AZ78: 1.4738 | BA78: 1.4738 | BB78: 1.4738 | BC78: 1.4738 | BD78: 1.4738 | BE78: 1.4738 | BG78: 0.02171125 | BH78: 0.05263375 | BI78: 0.07105625 | BJ78: 0.08947875 | BK78: 0.10790125 | BL78: 0.12632375 | BM78: 0.14474625 | BN78: 0.16316875 | BO78: 0.18159125 | BP78: 0.20001375 | BR78: =+IF($K78="Ongoing",AV78,IF(RIGHT($K78,2)=RIGHT(BR$39,2),SUM($AV78:AV78),0)+IF(RIGHT(BR$39,2)>RIGHT($K78,2),AV78,0)) -> 3.4738 | BS78: =+IF($K78="Ongoing",AW78,IF(RIGHT($K78,2)=RIGHT(BS$39,2),SUM($AV78:AW78),0)+IF(RIGHT(BS$39,2)>RIGHT($K78,2),AW78,0)) -> 1.4738 | BT78: =+IF($K78="Ongoing",AX78,IF(RIGHT($K78,2)=RIGHT(BT$39,2),SUM($AV78:AX78),0)+IF(RIGHT(BT$39,2)>RIGHT($K78,2),AX78,0)) -> 1.4738 | BU78: =+IF($K78="Ongoing",AY78,IF(RIGHT($K78,2)=RIGHT(BU$39,2),SUM($AV78:AY78),0)+IF(RIGHT(BU$39,2)>RIGHT($K78,2),AY78,0)) -> 1.4738 | BV78: =+IF($K78="Ongoing",AZ78,IF(RIGHT($K78,2)=RIGHT(BV$39,2),SUM($AV78:AZ78),0)+IF(RIGHT(BV$39,2)>RIGHT($K78,2),AZ78,0)) -> 1.4738 | BW78: =+IF($K78="Ongoing",BA78,IF(RIGHT($K78,2)=RIGHT(BW$39,2),SUM($AV78:BA78),0)+IF(RIGHT(BW$39,2)>RIGHT($K78,2),BA78,0)) -> 1.4738 | BX78: =+IF($K78="Ongoing",BB78,IF(RIGHT($K78,2)=RIGHT(BX$39,2),SUM($AV78:BB78),0)+IF(RIGHT(BX$39,2)>RIGHT($K78,2),BB78,0)) -> 1.4738 | BY78: =+IF($K78="Ongoing",BC78,IF(RIGHT($K78,2)=RIGHT(BY$39,2),SUM($AV78:BC78),0)+IF(RIGHT(BY$39,2)>RIGHT($K78,2),BC78,0)) -> 1.4738 | BZ78: =+IF($K78="Ongoing",BD78,IF(RIGHT($K78,2)=RIGHT(BZ$39,2),SUM($AV78:BD78),0)+IF(RIGHT(BZ$39,2)>RIGHT($K78,2),BD78,0)) -> 1.4738 | CA78: =+IF($K78="Ongoing",BE78,IF(RIGHT($K78,2)=RIGHT(CA$39,2),SUM($AV78:BE78),0)+IF(RIGHT(CA$39,2)>RIGHT($K78,2),BE78,0)) -> 1.4738 | CC78: =+O78*KeyAssumptionsPriceControl_FO!X$15 -> 3.5536974 | CD78: =+P78*KeyAssumptionsPriceControl_FO!Y$15 -> 1.54237444 | CE78: =+Q78*KeyAssumptionsPriceControl_FO!Z$15 -> 1.577849052 | CF78: =+R78*KeyAssumptionsPriceControl_FO!AA$15 -> 1.614139581 | CG78: =+S78*KeyAssumptionsPriceControl_FO!AB$15 -> 1.651264791 | CH78: =+T78*KeyAssumptionsPriceControl_FO!AC$15 -> 1.689243881 | CI78: =+U78*KeyAssumptionsPriceControl_FO!AD$15 -> 1.72809649 | CJ78: =+V78*KeyAssumptionsPriceControl_FO!AE$15 -> 1.76784271 | CK78: =+W78*KeyAssumptionsPriceControl_FO!AF$15 -> 1.808503092 | CL78: =+X78*KeyAssumptionsPriceControl_FO!AG$15 -> 1.850098663 | CN78: 0.02221060875 | CO78: 0.05406105775 | CP78: 0.07356245458 | CQ78: 0.09351238353 | CR78: 0.1139211609 | CS78: 0.1347993401 | CT78: 0.1561577174 | CU78: 0.1780073374 | CV78: 0.2003594986 | CW78: 0.2232257596
C79: Network Reliability | E79: Sewerage | F79: Renewals | G79: Pipelines/network | H79: Capital Programs / Allocation | J79: Straight line | K79: Ongoing | L79: 80 | M79: 80 | O79: 14.87836152 | P79: 14.31278902 | Q79: 14.00057847 | R79: 13.97458682 | S79: 13.19166132 | T79: 13.67004061 | U79: 13.76253669 | V79: 13.96738522 | W79: 13.96527905 | X79: 14.22320156 | AV79: 14.87836152 | AW79: 14.31278902 | AX79: 14.00057847 | AY79: 13.97458682 | AZ79: 13.19166132 | BA79: 13.67004061 | BB79: 13.76253669 | BC79: 13.96738522 | BD79: 13.96527905 | BE79: 14.22320156 | BG79: 0.0929897595 | BH79: 0.2754344504 | BI79: 0.4523929972 | BJ79: 0.6272377802 | BK79: 0.7970268311 | BL79: 0.9649124682 | BM79: 1.136366076 | BN79: 1.309678088 | BO79: 1.48425724 | BP79: 1.660435244 | BR79: =+IF($K79="Ongoing",AV79,IF(RIGHT($K79,2)=RIGHT(BR$39,2),SUM($AV79:AV79),0)+IF(RIGHT(BR$39,2)>RIGHT($K79,2),AV79,0)) -> 14.87836152 | BS79: =+IF($K79="Ongoing",AW79,IF(RIGHT($K79,2)=RIGHT(BS$39,2),SUM($AV79:AW79),0)+IF(RIGHT(BS$39,2)>RIGHT($K79,2),AW79,0)) -> 14.31278902 | BT79: =+IF($K79="Ongoing",AX79,IF(RIGHT($K79,2)=RIGHT(BT$39,2),SUM($AV79:AX79),0)+IF(RIGHT(BT$39,2)>RIGHT($K79,2),AX79,0)) -> 14.00057847 | BU79: =+IF($K79="Ongoing",AY79,IF(RIGHT($K79,2)=RIGHT(BU$39,2),SUM($AV79:AY79),0)+IF(RIGHT(BU$39,2)>RIGHT($K79,2),AY79,0)) -> 13.97458682 | BV79: =+IF($K79="Ongoing",AZ79,IF(RIGHT($K79,2)=RIGHT(BV$39,2),SUM($AV79:AZ79),0)+IF(RIGHT(BV$39,2)>RIGHT($K79,2),AZ79,0)) -> 13.19166132 | BW79: =+IF($K79="Ongoing",BA79,IF(RIGHT($K79,2)=RIGHT(BW$39,2),SUM($AV79:BA79),0)+IF(RIGHT(BW$39,2)>RIGHT($K79,2),BA79,0)) -> 13.67004061 | BX79: =+IF($K79="Ongoing",BB79,IF(RIGHT($K79,2)=RIGHT(BX$39,2),SUM($AV79:BB79),0)+IF(RIGHT(BX$39,2)>RIGHT($K79,2),BB79,0)) -> 13.76253669 | BY79: =+IF($K79="Ongoing",BC79,IF(RIGHT($K79,2)=RIGHT(BY$39,2),SUM($AV79:BC79),0)+IF(RIGHT(BY$39,2)>RIGHT($K79,2),BC79,0)) -> 13.96738522 | BZ79: =+IF($K79="Ongoing",BD79,IF(RIGHT($K79,2)=RIGHT(BZ$39,2),SUM($AV79:BD79),0)+IF(RIGHT(BZ$39,2)>RIGHT($K79,2),BD79,0)) -> 13.96527905 | CA79: =+IF($K79="Ongoing",BE79,IF(RIGHT($K79,2)=RIGHT(CA$39,2),SUM($AV79:BE79),0)+IF(RIGHT(CA$39,2)>RIGHT($K79,2),BE79,0)) -> 14.22320156 | CC79: =+O79*KeyAssumptionsPriceControl_FO!X$15 -> 15.22056383 | CD79: =+P79*KeyAssumptionsPriceControl_FO!Y$15 -> 14.97874878 | CE79: =+Q79*KeyAssumptionsPriceControl_FO!Z$15 -> 14.98900765 | CF79: =+R79*KeyAssumptionsPriceControl_FO!AA$15 -> 15.30528817 | CG79: =+S79*KeyAssumptionsPriceControl_FO!AB$15 -> 14.78010983 | CH79: =+T79*KeyAssumptionsPriceControl_FO!AC$15 -> 15.66836237 | CI79: =+U79*KeyAssumptionsPriceControl_FO!AD$15 -> 16.13719049 | CJ79: =+V79*KeyAssumptionsPriceControl_FO!AE$15 -> 16.75406442 | CK79: =+W79*KeyAssumptionsPriceControl_FO!AF$15 -> 17.13682341 | CL79: =+X79*KeyAssumptionsPriceControl_FO!AG$15 -> 17.85474704 | CN79: 0.09512852397 | CO79: 0.2838742278 | CP79: 0.4711727055 | CQ79: 0.6605120544 | CR79: 0.8485457919 | CS79: 1.038848743 | CT79: 1.237633448 | CU79: 1.443203792 | CV79: 1.655021841 | CW79: 1.873719156
C80: STP Growth | E80: Sewerage | F80: Growth | G80: Treatment | H80: Capital Programs / Allocation | J80: Straight line | K80: Ongoing | L80: 50 | M80: 50 | O80: 2.639 | P80: 2.789 | Q80: 1.889 | R80: 1.889 | S80: 1.939 | T80: 1.739 | U80: 1.739 | V80: 1.739 | W80: 1.739 | X80: 1.739 | AV80: 2.639 | AW80: 2.789 | AX80: 1.889 | AY80: 1.889 | AZ80: 1.939 | BA80: 1.739 | BB80: 1.739 | BC80: 1.739 | BD80: 1.739 | BE80: 1.739 | BG80: 0.02639 | BH80: 0.08067 | BI80: 0.12745 | BJ80: 0.16523 | BK80: 0.20351 | BL80: 0.24029 | BM80: 0.27507 | BN80: 0.30985 | BO80: 0.34463 | BP80: 0.37941 | BR80: =+IF($K80="Ongoing",AV80,IF(RIGHT($K80,2)=RIGHT(BR$39,2),SUM($AV80:AV80),0)+IF(RIGHT(BR$39,2)>RIGHT($K80,2),AV80,0)) -> 2.639 | BS80: =+IF($K80="Ongoing",AW80,IF(RIGHT($K80,2)=RIGHT(BS$39,2),SUM($AV80:AW80),0)+IF(RIGHT(BS$39,2)>RIGHT($K80,2),AW80,0)) -> 2.789 | BT80: =+IF($K80="Ongoing",AX80,IF(RIGHT($K80,2)=RIGHT(BT$39,2),SUM($AV80:AX80),0)+IF(RIGHT(BT$39,2)>RIGHT($K80,2),AX80,0)) -> 1.889 | BU80: =+IF($K80="Ongoing",AY80,IF(RIGHT($K80,2)=RIGHT(BU$39,2),SUM($AV80:AY80),0)+IF(RIGHT(BU$39,2)>RIGHT($K80,2),AY80,0)) -> 1.889 | BV80: =+IF($K80="Ongoing",AZ80,IF(RIGHT($K80,2)=RIGHT(BV$39,2),SUM($AV80:AZ80),0)+IF(RIGHT(BV$39,2)>RIGHT($K80,2),AZ80,0)) -> 1.939 | BW80: =+IF($K80="Ongoing",BA80,IF(RIGHT($K80,2)=RIGHT(BW$39,2),SUM($AV80:BA80),0)+IF(RIGHT(BW$39,2)>RIGHT($K80,2),BA80,0)) -> 1.739 | BX80: =+IF($K80="Ongoing",BB80,IF(RIGHT($K80,2)=RIGHT(BX$39,2),SUM($AV80:BB80),0)+IF(RIGHT(BX$39,2)>RIGHT($K80,2),BB80,0)) -> 1.739 | BY80: =+IF($K80="Ongoing",BC80,IF(RIGHT($K80,2)=RIGHT(BY$39,2),SUM($AV80:BC80),0)+IF(RIGHT(BY$39,2)>RIGHT($K80,2),BC80,0)) -> 1.739 | BZ80: =+IF($K80="Ongoing",BD80,IF(RIGHT($K80,2)=RIGHT(BZ$39,2),SUM($AV80:BD80),0)+IF(RIGHT(BZ$39,2)>RIGHT($K80,2),BD80,0)) -> 1.739 | CA80: =+IF($K80="Ongoing",BE80,IF(RIGHT($K80,2)=RIGHT(CA$39,2),SUM($AV80:BE80),0)+IF(RIGHT(CA$39,2)>RIGHT($K80,2),BE80,0)) -> 1.739 | CC80: =+O80*KeyAssumptionsPriceControl_FO!X$15 -> 2.699697 | CD80: =+P80*KeyAssumptionsPriceControl_FO!Y$15 -> 2.918769381 | CE80: =+Q80*KeyAssumptionsPriceControl_FO!Z$15 -> 2.022361826 | CF80: =+R80*KeyAssumptionsPriceControl_FO!AA$15 -> 2.068876148 | CG80: =+S80*KeyAssumptionsPriceControl_FO!AB$15 -> 2.172480954 | CH80: =+T80*KeyAssumptionsPriceControl_FO!AC$15 -> 1.9932115 | CI80: =+U80*KeyAssumptionsPriceControl_FO!AD$15 -> 2.039055365 | CJ80: =+V80*KeyAssumptionsPriceControl_FO!AE$15 -> 2.085953638 | CK80: =+W80*KeyAssumptionsPriceControl_FO!AF$15 -> 2.133930572 | CL80: =+X80*KeyAssumptionsPriceControl_FO!AG$15 -> 2.183010975 | CN80: 0.02699697 | CO80: 0.08318163381 | CP80: 0.1325929459 | CQ80: 0.1735053256 | CR80: 0.2159188967 | CS80: 0.2575758212 | CT80: 0.2978984898 | CU80: 0.3391485799 | CV80: 0.381347422 | CW80: 0.4245168374
C81: STP Reliability | E81: Sewerage | F81: Renewals | G81: Treatment | H81: Capital Programs / Allocation | J81: Straight line | K81: Ongoing | L81: 50 | M81: 50 | O81: 1.189003 | P81: 1.107493 | Q81: 1.107493 | R81: 1.107493 | S81: 1.107493 | T81: 0.033 | U81: 0.033 | V81: 0.033 | W81: 0.033 | X81: 0.033 | AV81: 1.189003 | AW81: 1.107493 | AX81: 1.107493 | AY81: 1.107493 | AZ81: 1.107493 | BA81: 0.033 | BB81: 0.033 | BC81: 0.033 | BD81: 0.033 | BE81: 0.033 | BG81: 0.01189003 | BH81: 0.03485499 | BI81: 0.05700485 | BJ81: 0.07915471 | BK81: 0.10130457 | BL81: 0.1127095 | BM81: 0.1133695 | BN81: 0.1140295 | BO81: 0.1146895 | BP81: 0.1153495 | BR81: =+IF($K81="Ongoing",AV81,IF(RIGHT($K81,2)=RIGHT(BR$39,2),SUM($AV81:AV81),0)+IF(RIGHT(BR$39,2)>RIGHT($K81,2),AV81,0)) -> 1.189003 | BS81: =+IF($K81="Ongoing",AW81,IF(RIGHT($K81,2)=RIGHT(BS$39,2),SUM($AV81:AW81),0)+IF(RIGHT(BS$39,2)>RIGHT($K81,2),AW81,0)) -> 1.107493 | BT81: =+IF($K81="Ongoing",AX81,IF(RIGHT($K81,2)=RIGHT(BT$39,2),SUM($AV81:AX81),0)+IF(RIGHT(BT$39,2)>RIGHT($K81,2),AX81,0)) -> 1.107493 | BU81: =+IF($K81="Ongoing",AY81,IF(RIGHT($K81,2)=RIGHT(BU$39,2),SUM($AV81:AY81),0)+IF(RIGHT(BU$39,2)>RIGHT($K81,2),AY81,0)) -> 1.107493 | BV81: =+IF($K81="Ongoing",AZ81,IF(RIGHT($K81,2)=RIGHT(BV$39,2),SUM($AV81:AZ81),0)+IF(RIGHT(BV$39,2)>RIGHT($K81,2),AZ81,0)) -> 1.107493 | BW81: =+IF($K81="Ongoing",BA81,IF(RIGHT($K81,2)=RIGHT(BW$39,2),SUM($AV81:BA81),0)+IF(RIGHT(BW$39,2)>RIGHT($K81,2),BA81,0)) -> 0.033 | BX81: =+IF($K81="Ongoing",BB81,IF(RIGHT($K81,2)=RIGHT(BX$39,2),SUM($AV81:BB81),0)+IF(RIGHT(BX$39,2)>RIGHT($K81,2),BB81,0)) -> 0.033 | BY81: =+IF($K81="Ongoing",BC81,IF(RIGHT($K81,2)=RIGHT(BY$39,2),SUM($AV81:BC81),0)+IF(RIGHT(BY$39,2)>RIGHT($K81,2),BC81,0)) -> 0.033 | BZ81: =+IF($K81="Ongoing",BD81,IF(RIGHT($K81,2)=RIGHT(BZ$39,2),SUM($AV81:BD81),0)+IF(RIGHT(BZ$39,2)>RIGHT($K81,2),BD81,0)) -> 0.033 | CA81: =+IF($K81="Ongoing",BE81,IF(RIGHT($K81,2)=RIGHT(CA$39,2),SUM($AV81:BE81),0)+IF(RIGHT(CA$39,2)>RIGHT($K81,2),BE81,0)) -> 0.033 | CC81: =+O81*KeyAssumptionsPriceControl_FO!X$15 -> 1.216350069 | CD81: =+P81*KeyAssumptionsPriceControl_FO!Y$15 -> 1.159023542 | CE81: =+Q81*KeyAssumptionsPriceControl_FO!Z$15 -> 1.185681083 | CF81: =+R81*KeyAssumptionsPriceControl_FO!AA$15 -> 1.212951748 | CG81: =+S81*KeyAssumptionsPriceControl_FO!AB$15 -> 1.240849638 | CH81: =+T81*KeyAssumptionsPriceControl_FO!AC$15 -> 0.03782402502 | CI81: =+U81*KeyAssumptionsPriceControl_FO!AD$15 -> 0.0386939776 | CJ81: =+V81*KeyAssumptionsPriceControl_FO!AE$15 -> 0.03958393908 | CK81: =+W81*KeyAssumptionsPriceControl_FO!AF$15 -> 0.04049436968 | CL81: =+X81*KeyAssumptionsPriceControl_FO!AG$15 -> 0.04142574018 | CN81: 0.01216350069 | CO81: 0.0359172368 | CP81: 0.05936428305 | CQ81: 0.08335061136 | CR81: 0.1078886252 | CS81: 0.1206753619 | CT81: 0.1214405419 | CU81: 0.1222233211 | CV81: 0.1230241041 | CW81: 0.1238433052
C82: STP Class A | E82: Recycled Water | F82: Growth | G82: Treatment | H82: Capital Programs / Allocation | J82: Straight line | K82: Ongoing | L82: 50 | M82: 50 | O82: 0 | P82: 0 | Q82: 0 | R82: 0 | S82: 0 | T82: 0 | U82: 0 | V82: 0 | W82: 0 | X82: 0 | AV82: 0 | AW82: =+P82-AA82-AL82 -> 0 | AX82: 0 | AY82: 0 | AZ82: 0 | BA82: 0 | BB82: 0 | BC82: 0 | BD82: 0 | BE82: 0 | BG82: 0 | BH82: 0 | BI82: 0 | BJ82: 0 | BK82: 0 | BL82: 0 | BM82: 0 | BN82: 0 | BO82: 0 | BP82: 0 | BR82: =+IF($K82="Ongoing",AV82,IF(RIGHT($K82,2)=RIGHT(BR$39,2),SUM($AV82:AV82),0)+IF(RIGHT(BR$39,2)>RIGHT($K82,2),AV82,0)) -> 0 | BS82: =+IF($K82="Ongoing",AW82,IF(RIGHT($K82,2)=RIGHT(BS$39,2),SUM($AV82:AW82),0)+IF(RIGHT(BS$39,2)>RIGHT($K82,2),AW82,0)) -> 0 | BT82: =+IF($K82="Ongoing",AX82,IF(RIGHT($K82,2)=RIGHT(BT$39,2),SUM($AV82:AX82),0)+IF(RIGHT(BT$39,2)>RIGHT($K82,2),AX82,0)) -> 0 | BU82: =+IF($K82="Ongoing",AY82,IF(RIGHT($K82,2)=RIGHT(BU$39,2),SUM($AV82:AY82),0)+IF(RIGHT(BU$39,2)>RIGHT($K82,2),AY82,0)) -> 0 | BV82: =+IF($K82="Ongoing",AZ82,IF(RIGHT($K82,2)=RIGHT(BV$39,2),SUM($AV82:AZ82),0)+IF(RIGHT(BV$39,2)>RIGHT($K82,2),AZ82,0)) -> 0 | BW82: =+IF($K82="Ongoing",BA82,IF(RIGHT($K82,2)=RIGHT(BW$39,2),SUM($AV82:BA82),0)+IF(RIGHT(BW$39,2)>RIGHT($K82,2),BA82,0)) -> 0 | BX82: =+IF($K82="Ongoing",BB82,IF(RIGHT($K82,2)=RIGHT(BX$39,2),SUM($AV82:BB82),0)+IF(RIGHT(BX$39,2)>RIGHT($K82,2),BB82,0)) -> 0 | BY82: =+IF($K82="Ongoing",BC82,IF(RIGHT($K82,2)=RIGHT(BY$39,2),SUM($AV82:BC82),0)+IF(RIGHT(BY$39,2)>RIGHT($K82,2),BC82,0)) -> 0 | BZ82: =+IF($K82="Ongoing",BD82,IF(RIGHT($K82,2)=RIGHT(BZ$39,2),SUM($AV82:BD82),0)+IF(RIGHT(BZ$39,2)>RIGHT($K82,2),BD82,0)) -> 0 | CA82: =+IF($K82="Ongoing",BE82,IF(RIGHT($K82,2)=RIGHT(CA$39,2),SUM($AV82:BE82),0)+IF(RIGHT(CA$39,2)>RIGHT($K82,2),BE82,0)) -> 0 | CC82: =+O82*KeyAssumptionsPriceControl_FO!X$15 -> 0 | CD82: =+P82*KeyAssumptionsPriceControl_FO!Y$15 -> 0 | CE82: =+Q82*KeyAssumptionsPriceControl_FO!Z$15 -> 0 | CF82: =+R82*KeyAssumptionsPriceControl_FO!AA$15 -> 0 | CG82: =+S82*KeyAssumptionsPriceControl_FO!AB$15 -> 0 | CH82: =+T82*KeyAssumptionsPriceControl_FO!AC$15 -> 0 | CI82: =+U82*KeyAssumptionsPriceControl_FO!AD$15 -> 0 | CJ82: =+V82*KeyAssumptionsPriceControl_FO!AE$15 -> 0 | CK82: =+W82*KeyAssumptionsPriceControl_FO!AF$15 -> 0 | CL82: =+X82*KeyAssumptionsPriceControl_FO!AG$15 -> 0 | CN82: 0 | CO82: 0 | CP82: 0 | CQ82: 0 | CR82: 0 | CS82: 0 | CT82: 0 | CU82: 0 | CV82: 0 | CW82: 0
C83: Network Odour | E83: Sewerage | F83: Improvements / Compliance | G83: Pipelines/network | H83: Capital Programs / Allocation | J83: Straight line | K83: Ongoing | L83: 20 | M83: 20 | O83: 2.376 | P83: 2.25 | Q83: 1.945 | R83: 2.581 | S83: 1.781 | T83: 2.056 | U83: 1.93 | V83: 1.825 | W83: 2.461 | X83: 1.661 | AV83: =+O83-Z83-AK83 -> 2.376 | AW83: 2.25 | AX83: 1.945 | AY83: 2.581 | AZ83: 1.781 | BA83: 2.056 | BB83: 1.93 | BC83: 1.825 | BD83: 2.461 | BE83: 1.661 | BG83: 0.0594 | BH83: 0.17505 | BI83: 0.279925 | BJ83: 0.393075 | BK83: 0.502125 | BL83: 0.59805 | BM83: 0.6977 | BN83: 0.791575 | BO83: 0.898725 | BP83: 1.001775 | BR83: =+IF($K83="Ongoing",AV83,IF(RIGHT($K83,2)=RIGHT(BR$39,2),SUM($AV83:AV83),0)+IF(RIGHT(BR$39,2)>RIGHT($K83,2),AV83,0)) -> 2.376 | BS83: =+IF($K83="Ongoing",AW83,IF(RIGHT($K83,2)=RIGHT(BS$39,2),SUM($AV83:AW83),0)+IF(RIGHT(BS$39,2)>RIGHT($K83,2),AW83,0)) -> 2.25 | BT83: =+IF($K83="Ongoing",AX83,IF(RIGHT($K83,2)=RIGHT(BT$39,2),SUM($AV83:AX83),0)+IF(RIGHT(BT$39,2)>RIGHT($K83,2),AX83,0)) -> 1.945 | BU83: =+IF($K83="Ongoing",AY83,IF(RIGHT($K83,2)=RIGHT(BU$39,2),SUM($AV83:AY83),0)+IF(RIGHT(BU$39,2)>RIGHT($K83,2),AY83,0)) -> 2.581 | BV83: =+IF($K83="Ongoing",AZ83,IF(RIGHT($K83,2)=RIGHT(BV$39,2),SUM($AV83:AZ83),0)+IF(RIGHT(BV$39,2)>RIGHT($K83,2),AZ83,0)) -> 1.781 | BW83: =+IF($K83="Ongoing",BA83,IF(RIGHT($K83,2)=RIGHT(BW$39,2),SUM($AV83:BA83),0)+IF(RIGHT(BW$39,2)>RIGHT($K83,2),BA83,0)) -> 2.056 | BX83: =+IF($K83="Ongoing",BB83,IF(RIGHT($K83,2)=RIGHT(BX$39,2),SUM($AV83:BB83),0)+IF(RIGHT(BX$39,2)>RIGHT($K83,2),BB83,0)) -> 1.93 | BY83: =+IF($K83="Ongoing",BC83,IF(RIGHT($K83,2)=RIGHT(BY$39,2),SUM($AV83:BC83),0)+IF(RIGHT(BY$39,2)>RIGHT($K83,2),BC83,0)) -> 1.825 | BZ83: =+IF($K83="Ongoing",BD83,IF(RIGHT($K83,2)=RIGHT(BZ$39,2),SUM($AV83:BD83),0)+IF(RIGHT(BZ$39,2)>RIGHT($K83,2),BD83,0)) -> 2.461 | CA83: =+IF($K83="Ongoing",BE83,IF(RIGHT($K83,2)=RIGHT(CA$39,2),SUM($AV83:BE83),0)+IF(RIGHT(CA$39,2)>RIGHT($K83,2),BE83,0)) -> 1.661 | CC83: =+O83*KeyAssumptionsPriceControl_FO!X$15 -> 2.430648 | CD83: =+P83*KeyAssumptionsPriceControl_FO!Y$15 -> 2.35469025 | CE83: =+Q83*KeyAssumptionsPriceControl_FO!Z$15 -> 2.08231538 | CF83: =+R83*KeyAssumptionsPriceControl_FO!AA$15 -> 2.826770428 | CG83: =+S83*KeyAssumptionsPriceControl_FO!AB$15 -> 1.995455688 | CH83: =+T83*KeyAssumptionsPriceControl_FO!AC$15 -> 2.356551377 | CI83: =+U83*KeyAssumptionsPriceControl_FO!AD$15 -> 2.263011417 | CJ83: =+V83*KeyAssumptionsPriceControl_FO!AE$15 -> 2.189111782 | CK83: =+W83*KeyAssumptionsPriceControl_FO!AF$15 -> 3.019898296 | CL83: =+X83*KeyAssumptionsPriceControl_FO!AG$15 -> 2.085095589 | CN83: 0.0607662 | CO83: 0.1803996562 | CP83: 0.291324797 | CQ83: 0.4140519422 | CR83: 0.5346075951 | CS83: 0.6434077717 | CT83: 0.7588968416 | CU83: 0.8701999216 | CV83: 1.000425174 | CW83: 1.128050021
C84: Backlog (Unserviced Lots) | E84: Sewerage | F84: Improvements / Compliance | G84: Pipelines/network | H84: Capital Programs / Allocation | J84: Straight line | K84: Ongoing | L84: 80 | M84: 80 | O84: 0.3 | P84: 0.3 | Q84: 0.3 | R84: 0.3 | S84: 0.3 | T84: 0.3 | U84: 0.3 | V84: 0.3 | W84: 0.3 | X84: 0.3 | AV84: 0.3 | AW84: 0.3 | AX84: 0.3 | AY84: 0.3 | AZ84: 0.3 | BA84: 0.3 | BB84: 0.3 | BC84: 0.3 | BD84: 0.3 | BE84: 0.3 | BG84: 0.001875 | BH84: 0.005625 | BI84: 0.009375 | BJ84: 0.013125 | BK84: 0.016875 | BL84: 0.020625 | BM84: 0.024375 | BN84: 0.028125 | BO84: =IF($L84=0,0, IF($L84<=0.5,BZ84, IF(AND($J84="straight line",$L84<1.51),(BY84-((BY84/$L84)*0.5))+BZ84/$L84*0.5, IF($J84="straight line", IF((LEFT(BO$39,4)*1)-INT($L84)<LEFT($BG$39,4)*1,0,((OFFSET(BZ84,0,-INT($L84+0.5),1,1))/$L84)*(IF($L84-INT($L84)>0.5,$L84-0.5-INT($L84),IF($L84-INT($L84)<=0.5,$L84-0.5-INT($L84)+1,0)))) +BZ84/$L84*0.5 +SUM(OFFSET(BZ84,0,MAX(-INT($L84+(0.5-(10^-12))),-BO$40)+1,1,MIN(INT($L84+(0.5-(10^-12))),BO$40)-1))*1/$L84, IF($J84="Declining Balance",-$BG$38,0))))) -> 0.031875 | BP84: 0.035625 | BR84: =+IF($K84="Ongoing",AV84,IF(RIGHT($K84,2)=RIGHT(BR$39,2),SUM($AV84:AV84),0)+IF(RIGHT(BR$39,2)>RIGHT($K84,2),AV84,0)) -> 0.3 | BS84: =+IF($K84="Ongoing",AW84,IF(RIGHT($K84,2)=RIGHT(BS$39,2),SUM($AV84:AW84),0)+IF(RIGHT(BS$39,2)>RIGHT($K84,2),AW84,0)) -> 0.3 | BT84: =+IF($K84="Ongoing",AX84,IF(RIGHT($K84,2)=RIGHT(BT$39,2),SUM($AV84:AX84),0)+IF(RIGHT(BT$39,2)>RIGHT($K84,2),AX84,0)) -> 0.3 | BU84: =+IF($K84="Ongoing",AY84,IF(RIGHT($K84,2)=RIGHT(BU$39,2),SUM($AV84:AY84),0)+IF(RIGHT(BU$39,2)>RIGHT($K84,2),AY84,0)) -> 0.3 | BV84: =+IF($K84="Ongoing",AZ84,IF(RIGHT($K84,2)=RIGHT(BV$39,2),SUM($AV84:AZ84),0)+IF(RIGHT(BV$39,2)>RIGHT($K84,2),AZ84,0)) -> 0.3 | BW84: =+IF($K84="Ongoing",BA84,IF(RIGHT($K84,2)=RIGHT(BW$39,2),SUM($AV84:BA84),0)+IF(RIGHT(BW$39,2)>RIGHT($K84,2),BA84,0)) -> 0.3 | BX84: =+IF($K84="Ongoing",BB84,IF(RIGHT($K84,2)=RIGHT(BX$39,2),SUM($AV84:BB84),0)+IF(RIGHT(BX$39,2)>RIGHT($K84,2),BB84,0)) -> 0.3 | BY84: =+IF($K84="Ongoing",BC84,IF(RIGHT($K84,2)=RIGHT(BY$39,2),SUM($AV84:BC84),0)+IF(RIGHT(BY$39,2)>RIGHT($K84,2),BC84,0)) -> 0.3 | BZ84: =+IF($K84="Ongoing",BD84,IF(RIGHT($K84,2)=RIGHT(BZ$39,2),SUM($AV84:BD84),0)+IF(RIGHT(BZ$39,2)>RIGHT($K84,2),BD84,0)) -> 0.3 | CA84: =+IF($K84="Ongoing",BE84,IF(RIGHT($K84,2)=RIGHT(CA$39,2),SUM($AV84:BE84),0)+IF(RIGHT(CA$39,2)>RIGHT($K84,2),BE84,0)) -> 0.3 | CC84: =+O84*KeyAssumptionsPriceControl_FO!X$15 -> 0.3069 | CD84: =+P84*KeyAssumptionsPriceControl_FO!Y$15 -> 0.3139587 | CE84: =+Q84*KeyAssumptionsPriceControl_FO!Z$15 -> 0.3211797501 | CF84: =+R84*KeyAssumptionsPriceControl_FO!AA$15 -> 0.3285668844 | CG84: =+S84*KeyAssumptionsPriceControl_FO!AB$15 -> 0.3361239227 | CH84: =+T84*KeyAssumptionsPriceControl_FO!AC$15 -> 0.3438547729 | CI84: =+U84*KeyAssumptionsPriceControl_FO!AD$15 -> 0.3517634327 | CJ84: =+V84*KeyAssumptionsPriceControl_FO!AE$15 -> 0.3598539916 | CK84: =+W84*KeyAssumptionsPriceControl_FO!AF$15 -> 0.3681306335 | CL84: =+X84*KeyAssumptionsPriceControl_FO!AG$15 -> 0.376597638 | CN84: 0.001918125 | CO84: 0.005798491875 | CP84: 0.009768107188 | CQ84: 0.01382902365 | CR84: 0.0179833412 | CS84: 0.02223320805 | CT84: 0.02658082183 | CU84: 0.03102843073 | CV84: =IF($M84=0,0, IF($M84<=0.5,CK84, IF(AND($J84="straight line",$M84<1.51),(CJ84-((CJ84/$M84)*0.5))+CK84/$M84*0.5, IF($J84="straight line", IF((LEFT(CV$39,4)*1)-INT($M84)<LEFT($CN$39,4)*1,0,((OFFSET(CK84,0,-INT($M84+0.5),1,1))/$M84)*(IF($M84-INT($M84)>0.5,$M84-0.5-INT($M84),IF($M84-INT($M84)<=0.5,$M84-0.5-INT($M84)+1,0)))) +CK84/$M84*0.5 +SUM(OFFSET(CK84,0,MAX(-INT($M84+(0.5-(10^-12))),-CV$40)+1,1,MIN(INT($M84+(0.5-(10^-12))),CV$40)-1))*1/$M84, IF($J84="Declining Balance",-$CN$38,0))))) -> 0.03557833464 | CW84: 0.04023288634
C85: Recycling | E85: Recycled Water | F85: Growth | G85: Pipelines/network | H85: Capital Programs / Allocation | J85: Straight line | K85: Ongoing | L85: 80 | M85: 80 | O85: 1.0984 | P85: 1.0984 | Q85: 1.0284 | R85: 1.0984 | S85: 0.9784 | T85: 5.5984 | U85: 5.4784 | V85: 5.5984 | W85: 5.4784 | X85: 5.5984 | AV85: 1.0984 | AW85: 1.0984 | AX85: 1.0284 | AY85: 1.0984 | AZ85: 0.9784 | BA85: 5.5984 | BB85: 5.4784 | BC85: 5.5984 | BD85: 5.4784 | BE85: 5.5984 | BG85: 0.006865 | BH85: =IF($L85=0,0, IF($L85<=0.5,BS85, IF(AND($J85="straight line",$L85<1.51),(BR85-((BR85/$L85)*0.5))+BS85/$L85*0.5, IF($J85="straight line", IF((LEFT(BH$39,4)*1)-INT($L85)<LEFT($BG$39,4)*1,0,((OFFSET(BS85,0,-INT($L85+0.5),1,1))/$L85)*(IF($L85-INT($L85)>0.5,$L85-0.5-INT($L85),IF($L85-INT($L85)<=0.5,$L85-0.5-INT($L85)+1,0)))) +BS85/$L85*0.5 +SUM(OFFSET(BS85,0,MAX(-INT($L85+(0.5-(10^-12))),-BH$40)+1,1,MIN(INT($L85+(0.5-(10^-12))),BH$40)-1))*1/$L85, IF($J85="Declining Balance",-$BG$38,0))))) -> 0.020595 | BI85: 0.0338875 | BJ85: 0.04718 | BK85: 0.06016 | BL85: 0.101265 | BM85: 0.170495 | BN85: 0.239725 | BO85: 0.308955 | BP85: 0.378185 | BR85: =+IF($K85="Ongoing",AV85,IF(RIGHT($K85,2)=RIGHT(BR$39,2),SUM($AV85:AV85),0)+IF(RIGHT(BR$39,2)>RIGHT($K85,2),AV85,0)) -> 1.0984 | BS85: =+IF($K85="Ongoing",AW85,IF(RIGHT($K85,2)=RIGHT(BS$39,2),SUM($AV85:AW85),0)+IF(RIGHT(BS$39,2)>RIGHT($K85,2),AW85,0)) -> 1.0984 | BT85: =+IF($K85="Ongoing",AX85,IF(RIGHT($K85,2)=RIGHT(BT$39,2),SUM($AV85:AX85),0)+IF(RIGHT(BT$39,2)>RIGHT($K85,2),AX85,0)) -> 1.0284 | BU85: =+IF($K85="Ongoing",AY85,IF(RIGHT($K85,2)=RIGHT(BU$39,2),SUM($AV85:AY85),0)+IF(RIGHT(BU$39,2)>RIGHT($K85,2),AY85,0)) -> 1.0984 | BV85: =+IF($K85="Ongoing",AZ85,IF(RIGHT($K85,2)=RIGHT(BV$39,2),SUM($AV85:AZ85),0)+IF(RIGHT(BV$39,2)>RIGHT($K85,2),AZ85,0)) -> 0.9784 | BW85: =+IF($K85="Ongoing",BA85,IF(RIGHT($K85,2)=RIGHT(BW$39,2),SUM($AV85:BA85),0)+IF(RIGHT(BW$39,2)>RIGHT($K85,2),BA85,0)) -> 5.5984 | BX85: =+IF($K85="Ongoing",BB85,IF(RIGHT($K85,2)=RIGHT(BX$39,2),SUM($AV85:BB85),0)+IF(RIGHT(BX$39,2)>RIGHT($K85,2),BB85,0)) -> 5.4784 | BY85: =+IF($K85="Ongoing",BC85,IF(RIGHT($K85,2)=RIGHT(BY$39,2),SUM($AV85:BC85),0)+IF(RIGHT(BY$39,2)>RIGHT($K85,2),BC85,0)) -> 5.5984 | BZ85: =+IF($K85="Ongoing",BD85,IF(RIGHT($K85,2)=RIGHT(BZ$39,2),SUM($AV85:BD85),0)+IF(RIGHT(BZ$39,2)>RIGHT($K85,2),BD85,0)) -> 5.4784 | CA85: =+IF($K85="Ongoing",BE85,IF(RIGHT($K85,2)=RIGHT(CA$39,2),SUM($AV85:BE85),0)+IF(RIGHT(CA$39,2)>RIGHT($K85,2),BE85,0)) -> 5.5984 | CC85: =+O85*KeyAssumptionsPriceControl_FO!X$15 -> 1.1236632 | CD85: =+P85*KeyAssumptionsPriceControl_FO!Y$15 -> 1.149507454 | CE85: =+Q85*KeyAssumptionsPriceControl_FO!Z$15 -> 1.101004183 | CF85: =+R85*KeyAssumptionsPriceControl_FO!AA$15 -> 1.202992886 | CG85: =+S85*KeyAssumptionsPriceControl_FO!AB$15 -> 1.096212153 | CH85: =+T85*KeyAssumptionsPriceControl_FO!AC$15 -> 6.416788536 | CI85: =+U85*KeyAssumptionsPriceControl_FO!AD$15 -> 6.423669299 | CJ85: =+V85*KeyAssumptionsPriceControl_FO!AE$15 -> 6.715355289 | CK85: =+W85*KeyAssumptionsPriceControl_FO!AF$15 -> 6.722556208 | CL85: =+X85*KeyAssumptionsPriceControl_FO!AG$15 -> 7.027814056 | CN85: 0.007022895 | CO85: =IF($M85=0,0, IF($M85<=0.5,CD85, IF(AND($J85="straight line",$M85<1.51),(CC85-((CC85/$M85)*0.5))+CD85/$M85*0.5, IF($J85="straight line", IF((LEFT(CO$39,4)*1)-INT($M85)<LEFT($CN$39,4)*1,0,((OFFSET(CD85,0,-INT($M85+0.5),1,1))/$M85)*(IF($M85-INT($M85)>0.5,$M85-0.5-INT($M85),IF($M85-INT($M85)<=0.5,$M85-0.5-INT($M85)+1,0)))) +CD85/$M85*0.5 +SUM(OFFSET(CD85,0,MAX(-INT($M85+(0.5-(10^-12))),-CO$40)+1,1,MIN(INT($M85+(0.5-(10^-12))),CO$40)-1))*1/$M85, IF($J85="Declining Balance",-$CN$38,0))))) -> 0.02123021158 | CP85: 0.03529590932 | CQ85: 0.049695891 | CR85: 0.06406592249 | CS85: 0.1110221768 | CT85: 0.1912750383 | CU85: 0.2733939419 | CV85: 0.3573808888 | CW85: 0.4433207029
C86: Plant & Equipment - Water | E86: Water | F86: Renewals | G86: Pipelines/network | H86: Other capital expenditure | J86: Straight line | K86: Ongoing | L86: 8 | M86: 8 | O86: 1.94958445 | P86: 1.244028083 | Q86: 1.50022427 | R86: 1.147442227 | S86: 1.202828903 | T86: 1.048053985 | U86: 1.012226769 | V86: 0.9313115334 | W86: 1.042836729 | X86: 0.9318522861 | AV86: 1.94958445 | AW86: 1.244028083 | AX86: 1.50022427 | AY86: 1.147442227 | AZ86: 1.202828903 | BA86: 1.048053985 | BB86: 1.012226769 | BC86: 0.9313115334 | BD86: 1.042836729 | BE86: 0.9318522861 | BG86: 0.1218490281 | BH86: 0.3214498114 | BI86: 0.4929655835 | BJ86: 0.6584447396 | BK86: 0.8053366852 | BL86: 0.9460168656 | BM86: 1.074784413 | BN86: 1.196255557 | BO86: 1.197790795 | BP86: 1.121608075 | BR86: =+IF($K86="Ongoing",AV86,IF(RIGHT($K86,2)=RIGHT(BR$39,2),SUM($AV86:AV86),0)+IF(RIGHT(BR$39,2)>RIGHT($K86,2),AV86,0)) -> 1.94958445 | BS86: =+IF($K86="Ongoing",AW86,IF(RIGHT($K86,2)=RIGHT(BS$39,2),SUM($AV86:AW86),0)+IF(RIGHT(BS$39,2)>RIGHT($K86,2),AW86,0)) -> 1.244028083 | BT86: =+IF($K86="Ongoing",AX86,IF(RIGHT($K86,2)=RIGHT(BT$39,2),SUM($AV86:AX86),0)+IF(RIGHT(BT$39,2)>RIGHT($K86,2),AX86,0)) -> 1.50022427 | BU86: =+IF($K86="Ongoing",AY86,IF(RIGHT($K86,2)=RIGHT(BU$39,2),SUM($AV86:AY86),0)+IF(RIGHT(BU$39,2)>RIGHT($K86,2),AY86,0)) -> 1.147442227 | BV86: =+IF($K86="Ongoing",AZ86,IF(RIGHT($K86,2)=RIGHT(BV$39,2),SUM($AV86:AZ86),0)+IF(RIGHT(BV$39,2)>RIGHT($K86,2),AZ86,0)) -> 1.202828903 | BW86: =+IF($K86="Ongoing",BA86,IF(RIGHT($K86,2)=RIGHT(BW$39,2),SUM($AV86:BA86),0)+IF(RIGHT(BW$39,2)>RIGHT($K86,2),BA86,0)) -> 1.048053985 | BX86: =+IF($K86="Ongoing",BB86,IF(RIGHT($K86,2)=RIGHT(BX$39,2),SUM($AV86:BB86),0)+IF(RIGHT(BX$39,2)>RIGHT($K86,2),BB86,0)) -> 1.012226769 | BY86: =+IF($K86="Ongoing",BC86,IF(RIGHT($K86,2)=RIGHT(BY$39,2),SUM($AV86:BC86),0)+IF(RIGHT(BY$39,2)>RIGHT($K86,2),BC86,0)) -> 0.9313115334 | BZ86: =+IF($K86="Ongoing",BD86,IF(RIGHT($K86,2)=RIGHT(BZ$39,2),SUM($AV86:BD86),0)+IF(RIGHT(BZ$39,2)>RIGHT($K86,2),BD86,0)) -> 1.042836729 | CA86: =+IF($K86="Ongoing",BE86,IF(RIGHT($K86,2)=RIGHT(CA$39,2),SUM($AV86:BE86),0)+IF(RIGHT(CA$39,2)>RIGHT($K86,2),BE86,0)) -> 0.9318522861 | CC86: =+O86*KeyAssumptionsPriceControl_FO!X$15 -> 1.994424892 | CD86: =+P86*KeyAssumptionsPriceControl_FO!Y$15 -> 1.301911466 | CE86: =+Q86*KeyAssumptionsPriceControl_FO!Z$15 -> 1.606138854 | CF86: =+R86*KeyAssumptionsPriceControl_FO!AA$15 -> 1.256705058 | CG86: =+S86*KeyAssumptionsPriceControl_FO!AB$15 -> 1.347665231 | CH86: =+T86*KeyAssumptionsPriceControl_FO!AC$15 -> 1.201261216 | CI86: =+U86*KeyAssumptionsPriceControl_FO!AD$15 -> 1.18688121 | CJ86: =+V86*KeyAssumptionsPriceControl_FO!AE$15 -> 1.117120576 | CK86: =+W86*KeyAssumptionsPriceControl_FO!AF$15 -> 1.279667152 | CL86: =+X86*KeyAssumptionsPriceControl_FO!AG$15 -> 1.1697779 | CN86: 0.1246515557 | CO86: 0.3306725781 | CP86: 0.5124257231 | CQ86: 0.6913534676 | CR86: 0.8541266107 | CS86: 1.013434514 | CT86: 1.162693415 | CU86: 1.306693527 | CV86: 1.331841204 | CW86: 1.278910497
C87: Plant & Equipment - Sewerage | E87: Sewerage | F87: Renewals | G87: Pipelines/network | H87: Other capital expenditure | J87: Straight line | K87: Ongoing | L87: 8 | M87: 8 | O87: 4.534971048 | P87: 3.788400638 | Q87: 3.447903386 | R87: 2.044282635 | S87: 2.507349899 | T87: 2.32996773 | U87: 2.626186688 | V87: 2.464035603 | W87: 1.970453181 | X87: 2.237550373 | AV87: 4.534971048 | AW87: 3.788400638 | AX87: 3.447903386 | AY87: 2.044282635 | AZ87: 2.507349899 | BA87: 2.32996773 | BB87: 2.626186688 | BC87: 2.464035603 | BD87: 1.970453181 | BE87: 2.237550373 | BG87: 0.2834356905 | BH87: 0.8036464208 | BI87: 1.255915422 | BJ87: 1.599177049 | BK87: 1.883654082 | BL87: 2.185986434 | BM87: 2.495746085 | BN87: 2.813884978 | BO87: 2.807604837 | BP87: 2.550394329 | BR87: =+IF($K87="Ongoing",AV87,IF(RIGHT($K87,2)=RIGHT(BR$39,2),SUM($AV87:AV87),0)+IF(RIGHT(BR$39,2)>RIGHT($K87,2),AV87,0)) -> 4.534971048 | BS87: =+IF($K87="Ongoing",AW87,IF(RIGHT($K87,2)=RIGHT(BS$39,2),SUM($AV87:AW87),0)+IF(RIGHT(BS$39,2)>RIGHT($K87,2),AW87,0)) -> 3.788400638 | BT87: =+IF($K87="Ongoing",AX87,IF(RIGHT($K87,2)=RIGHT(BT$39,2),SUM($AV87:AX87),0)+IF(RIGHT(BT$39,2)>RIGHT($K87,2),AX87,0)) -> 3.447903386 | BU87: =+IF($K87="Ongoing",AY87,IF(RIGHT($K87,2)=RIGHT(BU$39,2),SUM($AV87:AY87),0)+IF(RIGHT(BU$39,2)>RIGHT($K87,2),AY87,0)) -> 2.044282635 | BV87: =+IF($K87="Ongoing",AZ87,IF(RIGHT($K87,2)=RIGHT(BV$39,2),SUM($AV87:AZ87),0)+IF(RIGHT(BV$39,2)>RIGHT($K87,2),AZ87,0)) -> 2.507349899 | BW87: =+IF($K87="Ongoing",BA87,IF(RIGHT($K87,2)=RIGHT(BW$39,2),SUM($AV87:BA87),0)+IF(RIGHT(BW$39,2)>RIGHT($K87,2),BA87,0)) -> 2.32996773 | BX87: =+IF($K87="Ongoing",BB87,IF(RIGHT($K87,2)=RIGHT(BX$39,2),SUM($AV87:BB87),0)+IF(RIGHT(BX$39,2)>RIGHT($K87,2),BB87,0)) -> 2.626186688 | BY87: =+IF($K87="Ongoing",BC87,IF(RIGHT($K87,2)=RIGHT(BY$39,2),SUM($AV87:BC87),0)+IF(RIGHT(BY$39,2)>RIGHT($K87,2),BC87,0)) -> 2.464035603 | BZ87: =+IF($K87="Ongoing",BD87,IF(RIGHT($K87,2)=RIGHT(BZ$39,2),SUM($AV87:BD87),0)+IF(RIGHT(BZ$39,2)>RIGHT($K87,2),BD87,0)) -> 1.970453181 | CA87: =+IF($K87="Ongoing",BE87,IF(RIGHT($K87,2)=RIGHT(CA$39,2),SUM($AV87:BE87),0)+IF(RIGHT(CA$39,2)>RIGHT($K87,2),BE87,0)) -> 2.237550373 | CC87: =+O87*KeyAssumptionsPriceControl_FO!X$15 -> 4.639275382 | CD87: =+P87*KeyAssumptionsPriceControl_FO!Y$15 -> 3.964671131 | CE87: =+Q87*KeyAssumptionsPriceControl_FO!Z$15 -> 3.691322493 | CF87: =+R87*KeyAssumptionsPriceControl_FO!AA$15 -> 2.238945254 | CG87: =+S87*KeyAssumptionsPriceControl_FO!AB$15 -> 2.809267612 | CH87: =+T87*KeyAssumptionsPriceControl_FO!AC$15 -> 2.670568416 | CI87: =+U87*KeyAssumptionsPriceControl_FO!AD$15 -> 3.079321481 | CJ87: =+V87*KeyAssumptionsPriceControl_FO!AE$15 -> 2.955643491 | CK87: =+W87*KeyAssumptionsPriceControl_FO!AF$15 -> 2.417947259 | CL87: =+X87*KeyAssumptionsPriceControl_FO!AG$15 -> 2.808853951 | CN87: 0.2899547114 | CO87: 0.8277013684 | CP87: 1.30620097 | CQ87: 1.676842704 | CR87: 1.992356008 | CS87: 2.33484576 | CT87: 2.694213879 | CU87: 3.071399189 | CV87: 3.1172939 | CW87: 2.906222318
C88: Plant & Equipment - Recycled Water | E88: Recycled Water | F88: Renewals | G88: Pipelines/network | H88: Other capital expenditure | J88: Straight line | K88: Ongoing | L88: 8 | M88: 8 | O88: 0.2154445028 | P88: 0.2675712785 | Q88: 0.2018723439 | R88: 0.8082751381 | S88: 0.2898211975 | T88: 0.6219782853 | U88: 0.3615865425 | V88: 0.6046528633 | W88: 0.9867100907 | X88: 0.830597341 | AV88: 0.2154445028 | AW88: 0.2675712785 | AX88: 0.2018723439 | AY88: 0.8082751381 | AZ88: 0.2898211975 | BA88: 0.6219782853 | BB88: 0.3615865425 | BC88: 0.6046528633 | BD88: 0.9867100907 | BE88: 0.830597341 | BG88: 0.01346528143 | BH88: 0.04365376776 | BI88: 0.07299399416 | BJ88: 0.1361282118 | BK88: 0.2047592328 | BL88: 0.2617467004 | BM88: 0.3232195022 | BN88: 0.383609465 | BO88: 0.4696043682 | BP88: 0.5529975964 | BR88: =+IF($K88="Ongoing",AV88,IF(RIGHT($K88,2)=RIGHT(BR$39,2),SUM($AV88:AV88),0)+IF(RIGHT(BR$39,2)>RIGHT($K88,2),AV88,0)) -> 0.2154445028 | BS88: =+IF($K88="Ongoing",AW88,IF(RIGHT($K88,2)=RIGHT(BS$39,2),SUM($AV88:AW88),0)+IF(RIGHT(BS$39,2)>RIGHT($K88,2),AW88,0)) -> 0.2675712785 | BT88: =+IF($K88="Ongoing",AX88,IF(RIGHT($K88,2)=RIGHT(BT$39,2),SUM($AV88:AX88),0)+IF(RIGHT(BT$39,2)>RIGHT($K88,2),AX88,0)) -> 0.2018723439 | BU88: =+IF($K88="Ongoing",AY88,IF(RIGHT($K88,2)=RIGHT(BU$39,2),SUM($AV88:AY88),0)+IF(RIGHT(BU$39,2)>RIGHT($K88,2),AY88,0)) -> 0.8082751381 | BV88: =+IF($K88="Ongoing",AZ88,IF(RIGHT($K88,2)=RIGHT(BV$39,2),SUM($AV88:AZ88),0)+IF(RIGHT(BV$39,2)>RIGHT($K88,2),AZ88,0)) -> 0.2898211975 | BW88: =+IF($K88="Ongoing",BA88,IF(RIGHT($K88,2)=RIGHT(BW$39,2),SUM($AV88:BA88),0)+IF(RIGHT(BW$39,2)>RIGHT($K88,2),BA88,0)) -> 0.6219782853 | BX88: =+IF($K88="Ongoing",BB88,IF(RIGHT($K88,2)=RIGHT(BX$39,2),SUM($AV88:BB88),0)+IF(RIGHT(BX$39,2)>RIGHT($K88,2),BB88,0)) -> 0.3615865425 | BY88: =+IF($K88="Ongoing",BC88,IF(RIGHT($K88,2)=RIGHT(BY$39,2),SUM($AV88:BC88),0)+IF(RIGHT(BY$39,2)>RIGHT($K88,2),BC88,0)) -> 0.6046528633 | BZ88: =+IF($K88="Ongoing",BD88,IF(RIGHT($K88,2)=RIGHT(BZ$39,2),SUM($AV88:BD88),0)+IF(RIGHT(BZ$39,2)>RIGHT($K88,2),BD88,0)) -> 0.9867100907 | CA88: =+IF($K88="Ongoing",BE88,IF(RIGHT($K88,2)=RIGHT(CA$39,2),SUM($AV88:BE88),0)+IF(RIGHT(CA$39,2)>RIGHT($K88,2),BE88,0)) -> 0.830597341 | CC88: =+O88*KeyAssumptionsPriceControl_FO!X$15 -> 0.2203997264 | CD88: =+P88*KeyAssumptionsPriceControl_FO!Y$15 -> 0.2800211025 | CE88: =+Q88*KeyAssumptionsPriceControl_FO!Z$15 -> 0.2161243632 | CF88: =+R88*KeyAssumptionsPriceControl_FO!AA$15 -> 0.8852414795 | CG88: =+S88*KeyAssumptionsPriceControl_FO!AB$15 -> 0.3247194593 | CH88: =+T88*KeyAssumptionsPriceControl_FO!AC$15 -> 0.7129006735 | CI88: =+U88*KeyAssumptionsPriceControl_FO!AD$15 -> 0.4239764114 | CJ88: =+V88*KeyAssumptionsPriceControl_FO!AE$15 -> 0.7252891548 | CK88: =+W88*KeyAssumptionsPriceControl_FO!AF$15 -> 1.210794036 | CL88: =+X88*KeyAssumptionsPriceControl_FO!AG$15 -> 1.042669989 | CN88: 0.0137749829 | CO88: 0.04505128471 | CP88: 0.07606037632 | CQ88: 0.1448957415 | CR88: 0.2205183002 | CS88: 0.2853695585 | CT88: 0.3564243763 | CU88: 0.4282534741 | CV88: 0.5354836907 | CW88: 0.6450488904
C89: Other IT - Water | E89: Water | F89: Renewals | G89: Corporate | H89: Other capital expenditure | J89: Straight line | K89: Ongoing | L89: 7 | M89: 7 | O89: 0.4129045275 | P89: 0.3330709152 | Q89: 0.4133627649 | R89: 0.4070551299 | S89: 0.4267035534 | T89: 0.371797151 | U89: 0.3590874463 | V89: 0.3303827665 | W89: 0.3699463294 | X89: 0.3305745985 | AV89: 0.4129045275 | AW89: 0.3330709152 | AX89: 0.4133627649 | AY89: 0.4070551299 | AZ89: 0.4267035534 | BA89: 0.371797151 | BB89: 0.3590874463 | BC89: 0.3303827665 | BD89: 0.3699463294 | BE89: 0.3305745985 | BG89: 0.02949318053 | BH89: 0.08277714072 | BI89: 0.1360938322 | BJ89: 0.1946951104 | BK89: 0.254249302 | BL89: 0.3112850666 | BM89: 0.3634911093 | BN89: 0.3832458011 | BO89: 0.3799853478 | BP89: 0.3767058655 | BR89: =+IF($K89="Ongoing",AV89,IF(RIGHT($K89,2)=RIGHT(BR$39,2),SUM($AV89:AV89),0)+IF(RIGHT(BR$39,2)>RIGHT($K89,2),AV89,0)) -> 0.4129045275 | BS89: =+IF($K89="Ongoing",AW89,IF(RIGHT($K89,2)=RIGHT(BS$39,2),SUM($AV89:AW89),0)+IF(RIGHT(BS$39,2)>RIGHT($K89,2),AW89,0)) -> 0.3330709152 | BT89: =+IF($K89="Ongoing",AX89,IF(RIGHT($K89,2)=RIGHT(BT$39,2),SUM($AV89:AX89),0)+IF(RIGHT(BT$39,2)>RIGHT($K89,2),AX89,0)) -> 0.4133627649 | BU89: =+IF($K89="Ongoing",AY89,IF(RIGHT($K89,2)=RIGHT(BU$39,2),SUM($AV89:AY89),0)+IF(RIGHT(BU$39,2)>RIGHT($K89,2),AY89,0)) -> 0.4070551299 | BV89: =+IF($K89="Ongoing",AZ89,IF(RIGHT($K89,2)=RIGHT(BV$39,2),SUM($AV89:AZ89),0)+IF(RIGHT(BV$39,2)>RIGHT($K89,2),AZ89,0)) -> 0.4267035534 | BW89: =+IF($K89="Ongoing",BA89,IF(RIGHT($K89,2)=RIGHT(BW$39,2),SUM($AV89:BA89),0)+IF(RIGHT(BW$39,2)>RIGHT($K89,2),BA89,0)) -> 0.371797151 | BX89: =+IF($K89="Ongoing",BB89,IF(RIGHT($K89,2)=RIGHT(BX$39,2),SUM($AV89:BB89),0)+IF(RIGHT(BX$39,2)>RIGHT($K89,2),BB89,0)) -> 0.3590874463 | BY89: =+IF($K89="Ongoing",BC89,IF(RIGHT($K89,2)=RIGHT(BY$39,2),SUM($AV89:BC89),0)+IF(RIGHT(BY$39,2)>RIGHT($K89,2),BC89,0)) -> 0.3303827665 | BZ89: =+IF($K89="Ongoing",BD89,IF(RIGHT($K89,2)=RIGHT(BZ$39,2),SUM($AV89:BD89),0)+IF(RIGHT(BZ$39,2)>RIGHT($K89,2),BD89,0)) -> 0.3699463294 | CA89: =+IF($K89="Ongoing",BE89,IF(RIGHT($K89,2)=RIGHT(CA$39,2),SUM($AV89:BE89),0)+IF(RIGHT(CA$39,2)>RIGHT($K89,2),BE89,0)) -> 0.3305745985 | CC89: =+O89*KeyAssumptionsPriceControl_FO!X$15 -> 0.4224013316 | CD89: =+P89*KeyAssumptionsPriceControl_FO!Y$15 -> 0.3485683718 | CE89: =+Q89*KeyAssumptionsPriceControl_FO!Z$15 -> 0.4425458318 | CF89: =+R89*KeyAssumptionsPriceControl_FO!AA$15 -> 0.4458161193 | CG89: =+S89*KeyAssumptionsPriceControl_FO!AB$15 -> 0.4780842406 | CH89: =+T89*KeyAssumptionsPriceControl_FO!AC$15 -> 0.4261474164 | CI89: =+U89*KeyAssumptionsPriceControl_FO!AD$15 -> 0.4210461092 | CJ89: =+V89*KeyAssumptionsPriceControl_FO!AE$15 -> 0.3962985243 | CK89: =+W89*KeyAssumptionsPriceControl_FO!AF$15 -> 0.453961922 | CL89: =+X89*KeyAssumptionsPriceControl_FO!AG$15 -> 0.41497871 | CN89: 0.03017152368 | CO89: 0.08524078821 | CP89: 0.1417489456 | CQ89: 0.2052033707 | CR89: 0.2711962535 | CS89: 0.335784229 | CT89: 0.3962980523 | CU89: 0.4245082881 | CV89: 0.4301719126 | CW89: 0.4357309432
C90: Other IT - Sewerage | E90: Sewerage | F90: Renewals | G90: Corporate | H90: Other capital expenditure | J90: Straight line | K90: Ongoing | L90: 7 | M90: 7 | O90: 0.9604662562 | P90: 1.014290661 | Q90: 0.9500145446 | R90: 0.7252092649 | S90: 0.8894823768 | T90: 0.8265560523 | U90: 0.9316397277 | V90: 0.8741166303 | W90: 0.6990182659 | X90: 0.7937709948 | AV90: 0.9604662562 | AW90: 1.014290661 | AX90: 0.9500145446 | AY90: 0.7252092649 | AZ90: 0.8894823768 | BA90: 0.8265560523 | BB90: 0.9316397277 | BC90: 0.8741166303 | BD90: 0.6990182659 | BE90: 0.7937709948 | BG90: 0.06860473259 | BH90: 0.2096587981 | BI90: 0.3499663128 | BJ90: 0.4696251564 | BK90: 0.5849602736 | BL90: 0.7075344471 | BM90: 0.83311986 | BN90: 0.8934977244 | BO90: 0.8648104372 | BP90: 0.8311307268 | BR90: =+IF($K90="Ongoing",AV90,IF(RIGHT($K90,2)=RIGHT(BR$39,2),SUM($AV90:AV90),0)+IF(RIGHT(BR$39,2)>RIGHT($K90,2),AV90,0)) -> 0.9604662562 | BS90: =+IF($K90="Ongoing",AW90,IF(RIGHT($K90,2)=RIGHT(BS$39,2),SUM($AV90:AW90),0)+IF(RIGHT(BS$39,2)>RIGHT($K90,2),AW90,0)) -> 1.014290661 | BT90: =+IF($K90="Ongoing",AX90,IF(RIGHT($K90,2)=RIGHT(BT$39,2),SUM($AV90:AX90),0)+IF(RIGHT(BT$39,2)>RIGHT($K90,2),AX90,0)) -> 0.9500145446 | BU90: =+IF($K90="Ongoing",AY90,IF(RIGHT($K90,2)=RIGHT(BU$39,2),SUM($AV90:AY90),0)+IF(RIGHT(BU$39,2)>RIGHT($K90,2),AY90,0)) -> 0.7252092649 | BV90: =+IF($K90="Ongoing",AZ90,IF(RIGHT($K90,2)=RIGHT(BV$39,2),SUM($AV90:AZ90),0)+IF(RIGHT(BV$39,2)>RIGHT($K90,2),AZ90,0)) -> 0.8894823768 | BW90: =+IF($K90="Ongoing",BA90,IF(RIGHT($K90,2)=RIGHT(BW$39,2),SUM($AV90:BA90),0)+IF(RIGHT(BW$39,2)>RIGHT($K90,2),BA90,0)) -> 0.8265560523 | BX90: =+IF($K90="Ongoing",BB90,IF(RIGHT($K90,2)=RIGHT(BX$39,2),SUM($AV90:BB90),0)+IF(RIGHT(BX$39,2)>RIGHT($K90,2),BB90,0)) -> 0.9316397277 | BY90: =+IF($K90="Ongoing",BC90,IF(RIGHT($K90,2)=RIGHT(BY$39,2),SUM($AV90:BC90),0)+IF(RIGHT(BY$39,2)>RIGHT($K90,2),BC90,0)) -> 0.8741166303 | BZ90: =+IF($K90="Ongoing",BD90,IF(RIGHT($K90,2)=RIGHT(BZ$39,2),SUM($AV90:BD90),0)+IF(RIGHT(BZ$39,2)>RIGHT($K90,2),BD90,0)) -> 0.6990182659 | CA90: =+IF($K90="Ongoing",BE90,IF(RIGHT($K90,2)=RIGHT(CA$39,2),SUM($AV90:BE90),0)+IF(RIGHT(CA$39,2)>RIGHT($K90,2),BE90,0)) -> 0.7937709948 | CC90: =+O90*KeyAssumptionsPriceControl_FO!X$15 -> 0.9825569801 | CD90: =+P90*KeyAssumptionsPriceControl_FO!Y$15 -> 1.061484592 | CE90: =+Q90*KeyAssumptionsPriceControl_FO!Z$15 -> 1.01708478 | CF90: =+R90*KeyAssumptionsPriceControl_FO!AA$15 -> 0.7942658289 | CG90: =+S90*KeyAssumptionsPriceControl_FO!AB$15 -> 0.9965876855 | CH90: =+T90*KeyAssumptionsPriceControl_FO!AC$15 -> 0.9473841455 | CI90: =+U90*KeyAssumptionsPriceControl_FO!AD$15 -> 1.092389296 | CJ90: =+V90*KeyAssumptionsPriceControl_FO!AE$15 -> 1.048514529 | CK90: =+W90*KeyAssumptionsPriceControl_FO!AF$15 -> 0.85776679 | CL90: =+X90*KeyAssumptionsPriceControl_FO!AG$15 -> 0.9964409392 | CN90: 0.07018264144 | CO90: 0.2161856108 | CP90: 0.3646548517 | CQ90: 0.494037038 | CR90: 0.6219551462 | CS90: 0.760810277 | CT90: 0.9065083799 | CU90: 0.9892474402 | CV90: 0.9794074221 | CW90: 0.9633815905
C91: Other IT - Recycled Water | E91: Recycled Water | F91: Renewals | G91: Corporate | H91: Other capital expenditure | J91: Straight line | K91: Ongoing | L91: 7 | M91: 7 | O91: 0.04562921635 | P91: 0.07163842343 | Q91: 0.05562269048 | R91: 0.2867356053 | S91: 0.1028140698 | T91: 0.2206467967 | U91: 0.128272826 | V91: 0.2145006033 | W91: 0.3500354047 | X91: 0.2946544067 | AV91: 0.04562921635 | AW91: 0.07163842343 | AX91: 0.05562269048 | AY91: 0.2867356053 | AZ91: 0.1028140698 | BA91: 0.2206467967 | BB91: 0.128272826 | BC91: 0.2145006033 | BD91: 0.3500354047 | BE91: 0.2946544067 | BG91: 0.003259229739 | BH91: 0.01163548972 | BI91: 0.02072556929 | BJ91: 0.04517973327 | BK91: 0.07300471006 | BL91: 0.09610905767 | BM91: 0.1210318879 | BN91: 0.1422564745 | BO91: 0.1742042151 | BP91: 0.2111634078 | BR91: =+IF($K91="Ongoing",AV91,IF(RIGHT($K91,2)=RIGHT(BR$39,2),SUM($AV91:AV91),0)+IF(RIGHT(BR$39,2)>RIGHT($K91,2),AV91,0)) -> 0.04562921635 | BS91: =+IF($K91="Ongoing",AW91,IF(RIGHT($K91,2)=RIGHT(BS$39,2),SUM($AV91:AW91),0)+IF(RIGHT(BS$39,2)>RIGHT($K91,2),AW91,0)) -> 0.07163842343 | BT91: =+IF($K91="Ongoing",AX91,IF(RIGHT($K91,2)=RIGHT(BT$39,2),SUM($AV91:AX91),0)+IF(RIGHT(BT$39,2)>RIGHT($K91,2),AX91,0)) -> 0.05562269048 | BU91: =+IF($K91="Ongoing",AY91,IF(RIGHT($K91,2)=RIGHT(BU$39,2),SUM($AV91:AY91),0)+IF(RIGHT(BU$39,2)>RIGHT($K91,2),AY91,0)) -> 0.2867356053 | BV91: =+IF($K91="Ongoing",AZ91,IF(RIGHT($K91,2)=RIGHT(BV$39,2),SUM($AV91:AZ91),0)+IF(RIGHT(BV$39,2)>RIGHT($K91,2),AZ91,0)) -> 0.1028140698 | BW91: =+IF($K91="Ongoing",BA91,IF(RIGHT($K91,2)=RIGHT(BW$39,2),SUM($AV91:BA91),0)+IF(RIGHT(BW$39,2)>RIGHT($K91,2),BA91,0)) -> 0.2206467967 | BX91: =+IF($K91="Ongoing",BB91,IF(RIGHT($K91,2)=RIGHT(BX$39,2),SUM($AV91:BB91),0)+IF(RIGHT(BX$39,2)>RIGHT($K91,2),BB91,0)) -> 0.128272826 | BY91: =+IF($K91="Ongoing",BC91,IF(RIGHT($K91,2)=RIGHT(BY$39,2),SUM($AV91:BC91),0)+IF(RIGHT(BY$39,2)>RIGHT($K91,2),BC91,0)) -> 0.2145006033 | BZ91: =+IF($K91="Ongoing",BD91,IF(RIGHT($K91,2)=RIGHT(BZ$39,2),SUM($AV91:BD91),0)+IF(RIGHT(BZ$39,2)>RIGHT($K91,2),BD91,0)) -> 0.3500354047 | CA91: =+IF($K91="Ongoing",BE91,IF(RIGHT($K91,2)=RIGHT(CA$39,2),SUM($AV91:BE91),0)+IF(RIGHT(CA$39,2)>RIGHT($K91,2),BE91,0)) -> 0.2946544067 | CC91: =+O91*KeyAssumptionsPriceControl_FO!X$15 -> 0.04667868832 | CD91: =+P91*KeyAssumptionsPriceControl_FO!Y$15 -> 0.07497168764 | CE91: =+Q91*KeyAssumptionsPriceControl_FO!Z$15 -> 0.05954960609 | CF91: =+R91*KeyAssumptionsPriceControl_FO!AA$15 -> 0.3140394148 | CG91: =+S91*KeyAssumptionsPriceControl_FO!AB$15 -> 0.1151942282 | CH91: =+T91*KeyAssumptionsPriceControl_FO!AC$15 -> 0.2529015139 | CI91: =+U91*KeyAssumptionsPriceControl_FO!AD$15 -> 0.1504056319 | CJ91: =+V91*KeyAssumptionsPriceControl_FO!AE$15 -> 0.2572963276 | CK91: =+W91*KeyAssumptionsPriceControl_FO!AF$15 -> 0.4295291842 | CL91: =+X91*KeyAssumptionsPriceControl_FO!AG$15 -> 0.3698871787 | CN91: 0.003334192023 | CO91: 0.01202350459 | CP91: 0.02163216843 | CQ91: 0.0483170985 | CR91: 0.07897664443 | CS91: 0.1052691974 | CT91: 0.1340768507 | CU91: 0.1598642272 | CV91: 0.2002338798 | CW91: 0.2477263847
C92: Land and Buildings - Water | E92: Water | F92: Renewals | G92: Corporate | H92: Other capital expenditure | J92: Straight line | K92: Ongoing | L92: 20 | M92: 20 | O92: 0.2132088833 | P92: 0.1719857089 | Q92: 0.2134455004 | R92: 0.2101884671 | S92: 0.2203341985 | T92: 0.1919825289 | U92: 0.1854196996 | V92: 0.1705976467 | W92: 0.1910268319 | X92: 0.1706967018 | AV92: 0.2132088833 | AW92: 0.1719857089 | AX92: 0.2134455004 | AY92: 0.2101884671 | AZ92: 0.2203341985 | BA92: 0.1919825289 | BB92: 0.1854196996 | BC92: 0.1705976467 | BD92: 0.1910268319 | BE92: 0.1706967018 | BG92: 0.005330222082 | BH92: 0.01496008689 | BI92: 0.02459586712 | BJ92: 0.03518671631 | BK92: 0.04594978295 | BL92: 0.05625770113 | BM92: 0.06569275684 | BN92: 0.0745931905 | BO92: 0.08363380246 | BP92: 0.0926768908 | BR92: =+IF($K92="Ongoing",AV92,IF(RIGHT($K92,2)=RIGHT(BR$39,2),SUM($AV92:AV92),0)+IF(RIGHT(BR$39,2)>RIGHT($K92,2),AV92,0)) -> 0.2132088833 | BS92: =+IF($K92="Ongoing",AW92,IF(RIGHT($K92,2)=RIGHT(BS$39,2),SUM($AV92:AW92),0)+IF(RIGHT(BS$39,2)>RIGHT($K92,2),AW92,0)) -> 0.1719857089 | BT92: =+IF($K92="Ongoing",AX92,IF(RIGHT($K92,2)=RIGHT(BT$39,2),SUM($AV92:AX92),0)+IF(RIGHT(BT$39,2)>RIGHT($K92,2),AX92,0)) -> 0.2134455004 | BU92: =+IF($K92="Ongoing",AY92,IF(RIGHT($K92,2)=RIGHT(BU$39,2),SUM($AV92:AY92),0)+IF(RIGHT(BU$39,2)>RIGHT($K92,2),AY92,0)) -> 0.2101884671 | BV92: =+IF($K92="Ongoing",AZ92,IF(RIGHT($K92,2)=RIGHT(BV$39,2),SUM($AV92:AZ92),0)+IF(RIGHT(BV$39,2)>RIGHT($K92,2),AZ92,0)) -> 0.2203341985 | BW92: =+IF($K92="Ongoing",BA92,IF(RIGHT($K92,2)=RIGHT(BW$39,2),SUM($AV92:BA92),0)+IF(RIGHT(BW$39,2)>RIGHT($K92,2),BA92,0)) -> 0.1919825289 | BX92: =+IF($K92="Ongoing",BB92,IF(RIGHT($K92,2)=RIGHT(BX$39,2),SUM($AV92:BB92),0)+IF(RIGHT(BX$39,2)>RIGHT($K92,2),BB92,0)) -> 0.1854196996 | BY92: =+IF($K92="Ongoing",BC92,IF(RIGHT($K92,2)=RIGHT(BY$39,2),SUM($AV92:BC92),0)+IF(RIGHT(BY$39,2)>RIGHT($K92,2),BC92,0)) -> 0.1705976467 | BZ92: =+IF($K92="Ongoing",BD92,IF(RIGHT($K92,2)=RIGHT(BZ$39,2),SUM($AV92:BD92),0)+IF(RIGHT(BZ$39,2)>RIGHT($K92,2),BD92,0)) -> 0.1910268319 | CA92: =+IF($K92="Ongoing",BE92,IF(RIGHT($K92,2)=RIGHT(CA$39,2),SUM($AV92:BE92),0)+IF(RIGHT(CA$39,2)>RIGHT($K92,2),BE92,0)) -> 0.1706967018 | CC92: =+O92*KeyAssumptionsPriceControl_FO!X$15 -> 0.2181126876 | CD92: =+P92*KeyAssumptionsPriceControl_FO!Y$15 -> 0.179988032 | CE92: =+Q92*KeyAssumptionsPriceControl_FO!Z$15 -> 0.228514575 | CF92: =+R92*KeyAssumptionsPriceControl_FO!AA$15 -> 0.2302032325 | CG92: =+S92*KeyAssumptionsPriceControl_FO!AB$15 -> 0.246865317 | CH92: =+T92*KeyAssumptionsPriceControl_FO!AC$15 -> 0.2200470296 | CI92: =+U92*KeyAssumptionsPriceControl_FO!AD$15 -> 0.2174129 | CJ92: =+V92*KeyAssumptionsPriceControl_FO!AE$15 -> 0.2046341471 | CK92: =+W92*KeyAssumptionsPriceControl_FO!AF$15 -> 0.2344094288 | CL92: =+X92*KeyAssumptionsPriceControl_FO!AG$15 -> 0.2142799157 | CN92: 0.00545281719 | CO92: 0.01540533518 | CP92: 0.02561790035 | CQ92: 0.03708584554 | CR92: 0.04901255928 | CS92: 0.06068536794 | CT92: 0.07162186618 | CU92: 0.08217304236 | CV92: 0.09314913175 | CW92: 0.1043663654
C93: Land and Buildings - Sewerage | E93: Sewerage | F93: Renewals | G93: Corporate | H93: Other capital expenditure | J93: Straight line | K93: Ongoing | L93: 20 | M93: 20 | O93: 0.4959498487 | P93: 0.5237428143 | Q93: 0.4905529648 | R93: 0.3744716931 | S93: 0.4592963546 | T93: 0.4268034888 | U93: 0.4810648776 | V93: 0.4513620418 | W93: 0.3609476137 | X93: 0.4098744773 | AV93: 0.4959498487 | AW93: 0.5237428143 | AX93: 0.4905529648 | AY93: 0.3744716931 | AZ93: 0.4592963546 | BA93: 0.4268034888 | BB93: 0.4810648776 | BC93: 0.4513620418 | BD93: 0.3609476137 | BE93: 0.4098744773 | BG93: 0.01239874622 | BH93: 0.03789106279 | BI93: 0.06324845727 | BJ93: 0.08487407372 | BK93: 0.1057182749 | BL93: 0.127870771 | BM93: 0.1505674802 | BN93: 0.1738781531 | BO93: 0.1941858945 | BP93: 0.2134564468 | BR93: =+IF($K93="Ongoing",AV93,IF(RIGHT($K93,2)=RIGHT(BR$39,2),SUM($AV93:AV93),0)+IF(RIGHT(BR$39,2)>RIGHT($K93,2),AV93,0)) -> 0.4959498487 | BS93: =+IF($K93="Ongoing",AW93,IF(RIGHT($K93,2)=RIGHT(BS$39,2),SUM($AV93:AW93),0)+IF(RIGHT(BS$39,2)>RIGHT($K93,2),AW93,0)) -> 0.5237428143 | BT93: =+IF($K93="Ongoing",AX93,IF(RIGHT($K93,2)=RIGHT(BT$39,2),SUM($AV93:AX93),0)+IF(RIGHT(BT$39,2)>RIGHT($K93,2),AX93,0)) -> 0.4905529648 | BU93: =+IF($K93="Ongoing",AY93,IF(RIGHT($K93,2)=RIGHT(BU$39,2),SUM($AV93:AY93),0)+IF(RIGHT(BU$39,2)>RIGHT($K93,2),AY93,0)) -> 0.3744716931 | BV93: =+IF($K93="Ongoing",AZ93,IF(RIGHT($K93,2)=RIGHT(BV$39,2),SUM($AV93:AZ93),0)+IF(RIGHT(BV$39,2)>RIGHT($K93,2),AZ93,0)) -> 0.4592963546 | BW93: =+IF($K93="Ongoing",BA93,IF(RIGHT($K93,2)=RIGHT(BW$39,2),SUM($AV93:BA93),0)+IF(RIGHT(BW$39,2)>RIGHT($K93,2),BA93,0)) -> 0.4268034888 | BX93: =+IF($K93="Ongoing",BB93,IF(RIGHT($K93,2)=RIGHT(BX$39,2),SUM($AV93:BB93),0)+IF(RIGHT(BX$39,2)>RIGHT($K93,2),BB93,0)) -> 0.4810648776 | BY93: =+IF($K93="Ongoing",BC93,IF(RIGHT($K93,2)=RIGHT(BY$39,2),SUM($AV93:BC93),0)+IF(RIGHT(BY$39,2)>RIGHT($K93,2),BC93,0)) -> 0.4513620418 | BZ93: =+IF($K93="Ongoing",BD93,IF(RIGHT($K93,2)=RIGHT(BZ$39,2),SUM($AV93:BD93),0)+IF(RIGHT(BZ$39,2)>RIGHT($K93,2),BD93,0)) -> 0.3609476137 | CA93: =+IF($K93="Ongoing",BE93,IF(RIGHT($K93,2)=RIGHT(CA$39,2),SUM($AV93:BE93),0)+IF(RIGHT(CA$39,2)>RIGHT($K93,2),BE93,0)) -> 0.4098744773 | CC93: =+O93*KeyAssumptionsPriceControl_FO!X$15 -> 0.5073566952 | CD93: =+P93*KeyAssumptionsPriceControl_FO!Y$15 -> 0.5481120437 | CE93: =+Q93*KeyAssumptionsPriceControl_FO!Z$15 -> 0.5251855955 | CF93: =+R93*KeyAssumptionsPriceControl_FO!AA$15 -> 0.4101299916 | CG93: =+S93*KeyAssumptionsPriceControl_FO!AB$15 -> 0.5146016413 | CH93: =+T93*KeyAssumptionsPriceControl_FO!AC$15 -> 0.4891947224 | CI93: =+U93*KeyAssumptionsPriceControl_FO!AD$15 -> 0.564070109 | CJ93: =+V93*KeyAssumptionsPriceControl_FO!AE$15 -> 0.5414147747 | CK93: =+W93*KeyAssumptionsPriceControl_FO!AF$15 -> 0.4429195789 | CL93: =+X93*KeyAssumptionsPriceControl_FO!AG$15 -> 0.5145258668 | CN93: 0.01268391738 | CO93: 0.03907063585 | CP93: 0.06590307683 | CQ93: 0.08928596651 | CR93: 0.1124042573 | CS93: 0.1374991664 | CT93: 0.1638307872 | CU93: 0.1914679093 | CV93: 0.2160762681 | CW93: 0.2400124043
C94: Land and Buildings - Recycled Water | E94: Recycled Water | F94: Renewals | G94: Corporate | H94: Other capital expenditure | J94: Straight line | K94: Ongoing | L94: 20 | M94: 20 | O94: 0.02356126808 | P94: 0.03699147683 | Q94: 0.02872153472 | R94: 0.1480598398 | S94: 0.05308944696 | T94: 0.1139339823 | U94: 0.06623542286 | V94: 0.1107603115 | W94: 0.1807455544 | X94: 0.1521488209 | AV94: 0.02356126808 | AW94: 0.03699147683 | AX94: 0.02872153472 | AY94: 0.1480598398 | AZ94: 0.05308944696 | BA94: 0.1139339823 | BB94: 0.06623542286 | BC94: 0.1107603115 | BD94: 0.1807455544 | BE94: 0.1521488209 | BG94: 0.0005890317019 | BH94: 0.002102850325 | BI94: 0.003745675613 | BJ94: 0.008165209976 | BK94: 0.01319394215 | BL94: 0.01736952788 | BM94: 0.02187376301 | BN94: 0.02629865637 | BO94: 0.03358630301 | BP94: 0.0419086624 | BR94: =+IF($K94="Ongoing",AV94,IF(RIGHT($K94,2)=RIGHT(BR$39,2),SUM($AV94:AV94),0)+IF(RIGHT(BR$39,2)>RIGHT($K94,2),AV94,0)) -> 0.02356126808 | BS94: =+IF($K94="Ongoing",AW94,IF(RIGHT($K94,2)=RIGHT(BS$39,2),SUM($AV94:AW94),0)+IF(RIGHT(BS$39,2)>RIGHT($K94,2),AW94,0)) -> 0.03699147683 | BT94: =+IF($K94="Ongoing",AX94,IF(RIGHT($K94,2)=RIGHT(BT$39,2),SUM($AV94:AX94),0)+IF(RIGHT(BT$39,2)>RIGHT($K94,2),AX94,0)) -> 0.02872153472 | BU94: =+IF($K94="Ongoing",AY94,IF(RIGHT($K94,2)=RIGHT(BU$39,2),SUM($AV94:AY94),0)+IF(RIGHT(BU$39,2)>RIGHT($K94,2),AY94,0)) -> 0.1480598398 | BV94: =+IF($K94="Ongoing",AZ94,IF(RIGHT($K94,2)=RIGHT(BV$39,2),SUM($AV94:AZ94),0)+IF(RIGHT(BV$39,2)>RIGHT($K94,2),AZ94,0)) -> 0.05308944696 | BW94: =+IF($K94="Ongoing",BA94,IF(RIGHT($K94,2)=RIGHT(BW$39,2),SUM($AV94:BA94),0)+IF(RIGHT(BW$39,2)>RIGHT($K94,2),BA94,0)) -> 0.1139339823 | BX94: =+IF($K94="Ongoing",BB94,IF(RIGHT($K94,2)=RIGHT(BX$39,2),SUM($AV94:BB94),0)+IF(RIGHT(BX$39,2)>RIGHT($K94,2),BB94,0)) -> 0.06623542286 | BY94: =+IF($K94="Ongoing",BC94,IF(RIGHT($K94,2)=RIGHT(BY$39,2),SUM($AV94:BC94),0)+IF(RIGHT(BY$39,2)>RIGHT($K94,2),BC94,0)) -> 0.1107603115 | BZ94: =+IF($K94="Ongoing",BD94,IF(RIGHT($K94,2)=RIGHT(BZ$39,2),SUM($AV94:BD94),0)+IF(RIGHT(BZ$39,2)>RIGHT($K94,2),BD94,0)) -> 0.1807455544 | CA94: =+IF($K94="Ongoing",BE94,IF(RIGHT($K94,2)=RIGHT(CA$39,2),SUM($AV94:BE94),0)+IF(RIGHT(CA$39,2)>RIGHT($K94,2),BE94,0)) -> 0.1521488209 | CC94: =+O94*KeyAssumptionsPriceControl_FO!X$15 -> 0.02410317724 | CD94: =+P94*KeyAssumptionsPriceControl_FO!Y$15 -> 0.03871265325 | CE94: =+Q94*KeyAssumptionsPriceControl_FO!Z$15 -> 0.03074925115 | CF94: =+R94*KeyAssumptionsPriceControl_FO!AA$15 -> 0.1621585342 | CG94: =+S94*KeyAssumptionsPriceControl_FO!AB$15 -> 0.05948211056 | CH94: =+T94*KeyAssumptionsPriceControl_FO!AC$15 -> 0.1305891454 | CI94: =+U94*KeyAssumptionsPriceControl_FO!AD$15 -> 0.07766399904 | CJ94: =+V94*KeyAssumptionsPriceControl_FO!AE$15 -> 0.1328584674 | CK94: =+W94*KeyAssumptionsPriceControl_FO!AF$15 -> 0.2217932515 | CL94: =+X94*KeyAssumptionsPriceControl_FO!AG$15 -> 0.1909962886 | CN94: 0.0006025794311 | CO94: 0.002172975193 | CP94: 0.003909522803 | CQ94: 0.008732217437 | CR94: 0.01427323356 | CS94: 0.01902501495 | CT94: 0.02423134356 | CU94: 0.02949440523 | CV94: 0.0383606982 | CW94: 0.0486804367
C95: Corporate overhead - Water | E95: Water | F95: Growth | G95: Corporate | H95: Other capital expenditure | J95: Straight line | K95: Ongoing | L95: 20 | M95: 20 | O95: 0.1766265315 | P95: 0.1424764239 | Q95: 0.1768225499 | R95: 0.1741243579 | S95: 0.182529286 | T95: 0.1590421921 | U95: 0.1536054122 | V95: 0.1413265252 | W95: 0.1582504736 | X95: 0.1414085844 | AV95: 0.1766265315 | AW95: 0.1424764239 | AX95: 0.1768225499 | AY95: 0.1741243579 | AZ95: 0.182529286 | BA95: 0.1590421921 | BB95: 0.1536054122 | BC95: 0.1413265252 | BD95: 0.1582504736 | BE95: 0.1414085844 | BG95: 0.004415663287 | BH95: 0.01239323717 | BI95: 0.02037571152 | BJ95: 0.02914938421 | BK95: 0.03806572531 | BL95: 0.04660501226 | BM95: 0.05442120237 | BN95: 0.06179450081 | BO95: 0.06928392578 | BP95: 0.07677540223 | BR95: =+IF($K95="Ongoing",AV95,IF(RIGHT($K95,2)=RIGHT(BR$39,2),SUM($AV95:AV95),0)+IF(RIGHT(BR$39,2)>RIGHT($K95,2),AV95,0)) -> 0.1766265315 | BS95: =+IF($K95="Ongoing",AW95,IF(RIGHT($K95,2)=RIGHT(BS$39,2),SUM($AV95:AW95),0)+IF(RIGHT(BS$39,2)>RIGHT($K95,2),AW95,0)) -> 0.1424764239 | BT95: =+IF($K95="Ongoing",AX95,IF(RIGHT($K95,2)=RIGHT(BT$39,2),SUM($AV95:AX95),0)+IF(RIGHT(BT$39,2)>RIGHT($K95,2),AX95,0)) -> 0.1768225499 | BU95: =+IF($K95="Ongoing",AY95,IF(RIGHT($K95,2)=RIGHT(BU$39,2),SUM($AV95:AY95),0)+IF(RIGHT(BU$39,2)>RIGHT($K95,2),AY95,0)) -> 0.1741243579 | BV95: =+IF($K95="Ongoing",AZ95,IF(RIGHT($K95,2)=RIGHT(BV$39,2),SUM($AV95:AZ95),0)+IF(RIGHT(BV$39,2)>RIGHT($K95,2),AZ95,0)) -> 0.182529286 | BW95: =+IF($K95="Ongoing",BA95,IF(RIGHT($K95,2)=RIGHT(BW$39,2),SUM($AV95:BA95),0)+IF(RIGHT(BW$39,2)>RIGHT($K95,2),BA95,0)) -> 0.1590421921 | BX95: =+IF($K95="Ongoing",BB95,IF(RIGHT($K95,2)=RIGHT(BX$39,2),SUM($AV95:BB95),0)+IF(RIGHT(BX$39,2)>RIGHT($K95,2),BB95,0)) -> 0.1536054122 | BY95: =+IF($K95="Ongoing",BC95,IF(RIGHT($K95,2)=RIGHT(BY$39,2),SUM($AV95:BC95),0)+IF(RIGHT(BY$39,2)>RIGHT($K95,2),BC95,0)) -> 0.1413265252 | BZ95: =+IF($K95="Ongoing",BD95,IF(RIGHT($K95,2)=RIGHT(BZ$39,2),SUM($AV95:BD95),0)+IF(RIGHT(BZ$39,2)>RIGHT($K95,2),BD95,0)) -> 0.1582504736 | CA95: =+IF($K95="Ongoing",BE95,IF(RIGHT($K95,2)=RIGHT(CA$39,2),SUM($AV95:BE95),0)+IF(RIGHT(CA$39,2)>RIGHT($K95,2),BE95,0)) -> 0.1414085844 | CC95: =+O95*KeyAssumptionsPriceControl_FO!X$15 -> 0.1806889417 | CD95: =+P95*KeyAssumptionsPriceControl_FO!Y$15 -> 0.1491057094 | CE95: =+Q95*KeyAssumptionsPriceControl_FO!Z$15 -> 0.1893060746 | CF95: =+R95*KeyAssumptionsPriceControl_FO!AA$15 -> 0.1907049925 | CG95: =+S95*KeyAssumptionsPriceControl_FO!AB$15 -> 0.2045081988 | CH95: =+T95*KeyAssumptionsPriceControl_FO!AC$15 -> 0.1822913895 | CI95: =+U95*KeyAssumptionsPriceControl_FO!AD$15 -> 0.1801092236 | CJ95: =+V95*KeyAssumptionsPriceControl_FO!AE$15 -> 0.1695230474 | CK95: =+W95*KeyAssumptionsPriceControl_FO!AF$15 -> 0.1941894902 | CL95: =+X95*KeyAssumptionsPriceControl_FO!AG$15 -> 0.1775137963 | CN95: 0.004517223543 | CO95: 0.01276208982 | CP95: 0.02122238442 | CQ95: 0.0307226611 | CR95: 0.04060299088 | CS95: 0.05027298059 | CT95: 0.05933299592 | CU95: 0.06807380269 | CV95: 0.07716661614 | CW95: 0.0864591983
C96: Corporate overhead - Sewerage | E96: Sewerage | F96: Growth | G96: Corporate | H96: Other capital expenditure | J96: Straight line | K96: Ongoing | L96: 20 | M96: 20 | O96: 0.4108548397 | P96: 0.4338790919 | Q96: 0.4063839525 | R96: 0.3102198899 | S96: 0.3804903472 | T96: 0.3535726031 | U96: 0.39852383 | V96: 0.3739174028 | W96: 0.2990162702 | X96: 0.3395482691 | AV96: 0.4108548397 | AW96: 0.4338790919 | AX96: 0.4063839525 | AY96: 0.3102198899 | AZ96: 0.3804903472 | BA96: 0.3535726031 | BB96: 0.39852383 | BC96: 0.3739174028 | BD96: 0.2990162702 | BE96: 0.3395482691 | BG96: 0.01027137099 | BH96: 0.03138971928 | BI96: 0.05239629539 | BJ96: 0.07031139145 | BK96: 0.08757914738 | BL96: 0.1059307211 | BM96: 0.124733132 | BN96: 0.1440441628 | BO96: 0.1608675046 | BP96: 0.1768316181 | BR96: =+IF($K96="Ongoing",AV96,IF(RIGHT($K96,2)=RIGHT(BR$39,2),SUM($AV96:AV96),0)+IF(RIGHT(BR$39,2)>RIGHT($K96,2),AV96,0)) -> 0.4108548397 | BS96: =+IF($K96="Ongoing",AW96,IF(RIGHT($K96,2)=RIGHT(BS$39,2),SUM($AV96:AW96),0)+IF(RIGHT(BS$39,2)>RIGHT($K96,2),AW96,0)) -> 0.4338790919 | BT96: =+IF($K96="Ongoing",AX96,IF(RIGHT($K96,2)=RIGHT(BT$39,2),SUM($AV96:AX96),0)+IF(RIGHT(BT$39,2)>RIGHT($K96,2),AX96,0)) -> 0.4063839525 | BU96: =+IF($K96="Ongoing",AY96,IF(RIGHT($K96,2)=RIGHT(BU$39,2),SUM($AV96:AY96),0)+IF(RIGHT(BU$39,2)>RIGHT($K96,2),AY96,0)) -> 0.3102198899 | BV96: =+IF($K96="Ongoing",AZ96,IF(RIGHT($K96,2)=RIGHT(BV$39,2),SUM($AV96:AZ96),0)+IF(RIGHT(BV$39,2)>RIGHT($K96,2),AZ96,0)) -> 0.3804903472 | BW96: =+IF($K96="Ongoing",BA96,IF(RIGHT($K96,2)=RIGHT(BW$39,2),SUM($AV96:BA96),0)+IF(RIGHT(BW$39,2)>RIGHT($K96,2),BA96,0)) -> 0.3535726031 | BX96: =+IF($K96="Ongoing",BB96,IF(RIGHT($K96,2)=RIGHT(BX$39,2),SUM($AV96:BB96),0)+IF(RIGHT(BX$39,2)>RIGHT($K96,2),BB96,0)) -> 0.39852383 | BY96: =+IF($K96="Ongoing",BC96,IF(RIGHT($K96,2)=RIGHT(BY$39,2),SUM($AV96:BC96),0)+IF(RIGHT(BY$39,2)>RIGHT($K96,2),BC96,0)) -> 0.3739174028 | BZ96: =+IF($K96="Ongoing",BD96,IF(RIGHT($K96,2)=RIGHT(BZ$39,2),SUM($AV96:BD96),0)+IF(RIGHT(BZ$39,2)>RIGHT($K96,2),BD96,0)) -> 0.2990162702 | CA96: =+IF($K96="Ongoing",BE96,IF(RIGHT($K96,2)=RIGHT(CA$39,2),SUM($AV96:BE96),0)+IF(RIGHT(CA$39,2)>RIGHT($K96,2),BE96,0)) -> 0.3395482691 | CC96: =+O96*KeyAssumptionsPriceControl_FO!X$15 -> 0.420304501 | CD96: =+P96*KeyAssumptionsPriceControl_FO!Y$15 -> 0.4540670522 | CE96: =+Q96*KeyAssumptionsPriceControl_FO!Z$15 -> 0.435074321 | CF96: =+R96*KeyAssumptionsPriceControl_FO!AA$15 -> 0.3397599423 | CG96: =+S96*KeyAssumptionsPriceControl_FO!AB$15 -> 0.4263063602 | CH96: =+T96*KeyAssumptionsPriceControl_FO!AC$15 -> 0.4052587571 | CI96: =+U96*KeyAssumptionsPriceControl_FO!AD$15 -> 0.4672870348 | CJ96: =+V96*KeyAssumptionsPriceControl_FO!AE$15 -> 0.4485188998 | CK96: =+W96*KeyAssumptionsPriceControl_FO!AF$15 -> 0.3669234965 | CL96: =+X96*KeyAssumptionsPriceControl_FO!AG$15 -> 0.4262435871 | CN96: 0.01050761252 | CO96: 0.03236690136 | CP96: 0.05459543569 | CQ96: 0.07396629227 | CR96: 0.09311794983 | CS96: 0.1139070778 | CT96: 0.1357207226 | CU96: 0.1586158709 | CV96: 0.1790019308 | CW96: 0.1988311079
C97: Corporate overhead - Recycled Water | E97: Recycled Water | F97: Growth | G97: Corporate | H97: Other capital expenditure | J97: Straight line | K97: Ongoing | L97: 20 | M97: 20 | O97: 0.01951862884 | P97: 0.03064448416 | Q97: 0.02379349762 | R97: 0.1226557522 | S97: 0.04398036673 | T97: 0.09438520479 | U97: 0.05487075783 | V97: 0.09175607201 | W97: 0.1497332563 | X97: 0.1260431465 | AV97: 0.01951862884 | AW97: 0.03064448416 | AX97: 0.02379349762 | AY97: 0.1226557522 | AZ97: 0.04398036673 | BA97: 0.09438520479 | BB97: 0.05487075783 | BC97: 0.09175607201 | BD97: 0.1497332563 | BE97: 0.1260431465 | BG97: 0.000487965721 | BH97: 0.001742043546 | BI97: 0.00310299309 | BJ97: 0.006764224336 | BK97: 0.01093012731 | BL97: 0.0143892666 | BM97: 0.01812066566 | BN97: 0.02178633641 | BO97: 0.02782356962 | BP97: 0.03471797969 | BR97: =+IF($K97="Ongoing",AV97,IF(RIGHT($K97,2)=RIGHT(BR$39,2),SUM($AV97:AV97),0)+IF(RIGHT(BR$39,2)>RIGHT($K97,2),AV97,0)) -> 0.01951862884 | BS97: =+IF($K97="Ongoing",AW97,IF(RIGHT($K97,2)=RIGHT(BS$39,2),SUM($AV97:AW97),0)+IF(RIGHT(BS$39,2)>RIGHT($K97,2),AW97,0)) -> 0.03064448416 | BT97: =+IF($K97="Ongoing",AX97,IF(RIGHT($K97,2)=RIGHT(BT$39,2),SUM($AV97:AX97),0)+IF(RIGHT(BT$39,2)>RIGHT($K97,2),AX97,0)) -> 0.02379349762 | BU97: =+IF($K97="Ongoing",AY97,IF(RIGHT($K97,2)=RIGHT(BU$39,2),SUM($AV97:AY97),0)+IF(RIGHT(BU$39,2)>RIGHT($K97,2),AY97,0)) -> 0.1226557522 | BV97: =+IF($K97="Ongoing",AZ97,IF(RIGHT($K97,2)=RIGHT(BV$39,2),SUM($AV97:AZ97),0)+IF(RIGHT(BV$39,2)>RIGHT($K97,2),AZ97,0)) -> 0.04398036673 | BW97: =+IF($K97="Ongoing",BA97,IF(RIGHT($K97,2)=RIGHT(BW$39,2),SUM($AV97:BA97),0)+IF(RIGHT(BW$39,2)>RIGHT($K97,2),BA97,0)) -> 0.09438520479 | BX97: =+IF($K97="Ongoing",BB97,IF(RIGHT($K97,2)=RIGHT(BX$39,2),SUM($AV97:BB97),0)+IF(RIGHT(BX$39,2)>RIGHT($K97,2),BB97,0)) -> 0.05487075783 | BY97: =+IF($K97="Ongoing",BC97,IF(RIGHT($K97,2)=RIGHT(BY$39,2),SUM($AV97:BC97),0)+IF(RIGHT(BY$39,2)>RIGHT($K97,2),BC97,0)) -> 0.09175607201 | BZ97: =+IF($K97="Ongoing",BD97,IF(RIGHT($K97,2)=RIGHT(BZ$39,2),SUM($AV97:BD97),0)+IF(RIGHT(BZ$39,2)>RIGHT($K97,2),BD97,0)) -> 0.1497332563 | CA97: =+IF($K97="Ongoing",BE97,IF(RIGHT($K97,2)=RIGHT(CA$39,2),SUM($AV97:BE97),0)+IF(RIGHT(CA$39,2)>RIGHT($K97,2),BE97,0)) -> 0.1260431465 | CC97: =+O97*KeyAssumptionsPriceControl_FO!X$15 -> 0.0199675573 | CD97: =+P97*KeyAssumptionsPriceControl_FO!Y$15 -> 0.03207034136 | CE97: =+Q97*KeyAssumptionsPriceControl_FO!Z$15 -> 0.02547329873 | CF97: =+R97*KeyAssumptionsPriceControl_FO!AA$15 -> 0.1343353945 | CG97: =+S97*KeyAssumptionsPriceControl_FO!AB$15 -> 0.04927617795 | CH97: =+T97*KeyAssumptionsPriceControl_FO!AC$15 -> 0.1081826772 | CI97: =+U97*KeyAssumptionsPriceControl_FO!AD$15 -> 0.06433842043 | CJ97: =+V97*KeyAssumptionsPriceControl_FO!AE$15 -> 0.1100626292 | CK97: =+W97*KeyAssumptionsPriceControl_FO!AF$15 -> 0.1837379949 | CL97: =+X97*KeyAssumptionsPriceControl_FO!AG$15 -> 0.1582251709 | CN97: 0.0004991889326 | CO97: 0.001800136399 | CP97: 0.003238727402 | CQ97: 0.007233944733 | CR97: 0.01182423404 | CS97: 0.01576070542 | CT97: 0.02007373286 | CU97: 0.02443375911 | CV97: 0.03177877471 | CW97: 0.04032785385
C98: Customer contributions - Water | E98: Water | F98: Growth | G98: Pipelines/network | H98: Other Capital expenditure | J98: Straight line | K98: Ongoing | L98: 80 | M98: 80 | AK98: 14.68602731 | AL98: 14.68602731 | AM98: 14.68602731 | AN98: 12.52335506 | AO98: 12.52335506 | AP98: 12.52335506 | AQ98: 12.52335506 | AR98: 12.52335506 | AS98: 11.15876673 | AT98: 11.15876673 | AV98: -14.68602731 | AW98: -14.68602731 | AX98: -14.68602731 | AY98: -12.52335506 | AZ98: -12.52335506 | BA98: -12.52335506 | BB98: -12.52335506 | BC98: -12.52335506 | BD98: -11.15876673 | BE98: -11.15876673 | BG98: -0.09178767069 | BH98: -0.2753630121 | BI98: -0.4589383534 | BJ98: -0.6289969932 | BK98: -0.7855389315 | BL98: -0.9420808697 | BM98: -1.098622808 | BN98: -1.255164746 | BO98: -1.403178007 | BP98: -1.542662591 | BR98: =+IF($K98="Ongoing",AV98,IF(RIGHT($K98,2)=RIGHT(BR$39,2),SUM($AV98:AV98),0)+IF(RIGHT(BR$39,2)>RIGHT($K98,2),AV98,0)) -> -14.68602731 | BS98: =+IF($K98="Ongoing",AW98,IF(RIGHT($K98,2)=RIGHT(BS$39,2),SUM($AV98:AW98),0)+IF(RIGHT(BS$39,2)>RIGHT($K98,2),AW98,0)) -> -14.68602731 | BT98: =+IF($K98="Ongoing",AX98,IF(RIGHT($K98,2)=RIGHT(BT$39,2),SUM($AV98:AX98),0)+IF(RIGHT(BT$39,2)>RIGHT($K98,2),AX98,0)) -> -14.68602731 | BU98: =+IF($K98="Ongoing",AY98,IF(RIGHT($K98,2)=RIGHT(BU$39,2),SUM($AV98:AY98),0)+IF(RIGHT(BU$39,2)>RIGHT($K98,2),AY98,0)) -> -12.52335506 | BV98: =+IF($K98="Ongoing",AZ98,IF(RIGHT($K98,2)=RIGHT(BV$39,2),SUM($AV98:AZ98),0)+IF(RIGHT(BV$39,2)>RIGHT($K98,2),AZ98,0)) -> -12.52335506 | BW98: =+IF($K98="Ongoing",BA98,IF(RIGHT($K98,2)=RIGHT(BW$39,2),SUM($AV98:BA98),0)+IF(RIGHT(BW$39,2)>RIGHT($K98,2),BA98,0)) -> -12.52335506 | BX98: =+IF($K98="Ongoing",BB98,IF(RIGHT($K98,2)=RIGHT(BX$39,2),SUM($AV98:BB98),0)+IF(RIGHT(BX$39,2)>RIGHT($K98,2),BB98,0)) -> -12.52335506 | BY98: =+IF($K98="Ongoing",BC98,IF(RIGHT($K98,2)=RIGHT(BY$39,2),SUM($AV98:BC98),0)+IF(RIGHT(BY$39,2)>RIGHT($K98,2),BC98,0)) -> -12.52335506 | BZ98: =+IF($K98="Ongoing",BD98,IF(RIGHT($K98,2)=RIGHT(BZ$39,2),SUM($AV98:BD98),0)+IF(RIGHT(BZ$39,2)>RIGHT($K98,2),BD98,0)) -> -11.15876673 | CA98: =+IF($K98="Ongoing",BE98,IF(RIGHT($K98,2)=RIGHT(CA$39,2),SUM($AV98:BE98),0)+IF(RIGHT(CA$39,2)>RIGHT($K98,2),BE98,0)) -> -11.15876673 | CC98: =+O98*KeyAssumptionsPriceControl_FO!X$15 -> 0 | CD98: =+P98*KeyAssumptionsPriceControl_FO!Y$15 -> 0 | CE98: =+Q98*KeyAssumptionsPriceControl_FO!Z$15 -> 0 | CF98: =+R98*KeyAssumptionsPriceControl_FO!AA$15 -> 0 | CG98: =+S98*KeyAssumptionsPriceControl_FO!AB$15 -> 0 | CH98: =+T98*KeyAssumptionsPriceControl_FO!AC$15 -> 0 | CI98: =+U98*KeyAssumptionsPriceControl_FO!AD$15 -> 0 | CJ98: =+V98*KeyAssumptionsPriceControl_FO!AE$15 -> 0 | CK98: =+W98*KeyAssumptionsPriceControl_FO!AF$15 -> 0 | CL98: =+X98*KeyAssumptionsPriceControl_FO!AG$15 -> 0 | CN98: 0 | CO98: 0 | CP98: 0 | CQ98: 0 | CR98: 0 | CS98: 0 | CT98: 0 | CU98: 0 | CV98: 0 | CW98: 0
C99: Customer contributions - Sewerage | E99: Sewerage | F99: Growth | G99: Pipelines/network | H99: Other Capital expenditure | J99: Straight line | K99: Ongoing | L99: 80 | M99: 80 | AK99: 16.28650682 | AL99: 16.15035815 | AM99: 16.02782434 | AN99: 13.36870145 | AO99: 13.26944907 | AP99: 13.18012192 | AQ99: 13.09972749 | AR99: 13.0273725 | AS99: 11.86575667 | AT99: 11.80714913 | AV99: -16.28650682 | AW99: -16.15035815 | AX99: -16.02782434 | AY99: -13.36870145 | AZ99: -13.26944907 | BA99: -13.18012192 | BB99: -13.09972749 | BC99: -13.0273725 | BD99: -11.86575667 | BE99: -11.80714913 | BG99: -0.1017906676 | BH99: -0.3045210737 | BI99: -0.5056347142 | BJ99: -0.6893630004 | BK99: -0.8558514411 | BL99: -1.02116126 | BM99: -1.185410319 | BN99: -1.348704693 | BO99: -1.504286751 | BP99: -1.652242412 | BR99: =+IF($K99="Ongoing",AV99,IF(RIGHT($K99,2)=RIGHT(BR$39,2),SUM($AV99:AV99),0)+IF(RIGHT(BR$39,2)>RIGHT($K99,2),AV99,0)) -> -16.28650682 | BS99: =+IF($K99="Ongoing",AW99,IF(RIGHT($K99,2)=RIGHT(BS$39,2),SUM($AV99:AW99),0)+IF(RIGHT(BS$39,2)>RIGHT($K99,2),AW99,0)) -> -16.15035815 | BT99: =+IF($K99="Ongoing",AX99,IF(RIGHT($K99,2)=RIGHT(BT$39,2),SUM($AV99:AX99),0)+IF(RIGHT(BT$39,2)>RIGHT($K99,2),AX99,0)) -> -16.02782434 | BU99: =+IF($K99="Ongoing",AY99,IF(RIGHT($K99,2)=RIGHT(BU$39,2),SUM($AV99:AY99),0)+IF(RIGHT(BU$39,2)>RIGHT($K99,2),AY99,0)) -> -13.36870145 | BV99: =+IF($K99="Ongoing",AZ99,IF(RIGHT($K99,2)=RIGHT(BV$39,2),SUM($AV99:AZ99),0)+IF(RIGHT(BV$39,2)>RIGHT($K99,2),AZ99,0)) -> -13.26944907 | BW99: =+IF($K99="Ongoing",BA99,IF(RIGHT($K99,2)=RIGHT(BW$39,2),SUM($AV99:BA99),0)+IF(RIGHT(BW$39,2)>RIGHT($K99,2),BA99,0)) -> -13.18012192 | BX99: =+IF($K99="Ongoing",BB99,IF(RIGHT($K99,2)=RIGHT(BX$39,2),SUM($AV99:BB99),0)+IF(RIGHT(BX$39,2)>RIGHT($K99,2),BB99,0)) -> -13.09972749 | BY99: =+IF($K99="Ongoing",BC99,IF(RIGHT($K99,2)=RIGHT(BY$39,2),SUM($AV99:BC99),0)+IF(RIGHT(BY$39,2)>RIGHT($K99,2),BC99,0)) -> -13.0273725 | BZ99: =+IF($K99="Ongoing",BD99,IF(RIGHT($K99,2)=RIGHT(BZ$39,2),SUM($AV99:BD99),0)+IF(RIGHT(BZ$39,2)>RIGHT($K99,2),BD99,0)) -> -11.86575667 | CA99: =+IF($K99="Ongoing",BE99,IF(RIGHT($K99,2)=RIGHT(CA$39,2),SUM($AV99:BE99),0)+IF(RIGHT(CA$39,2)>RIGHT($K99,2),BE99,0)) -> -11.80714913 | CC99: =+O99*KeyAssumptionsPriceControl_FO!X$15 -> 0 | CD99: =+P99*KeyAssumptionsPriceControl_FO!Y$15 -> 0 | CE99: =+Q99*KeyAssumptionsPriceControl_FO!Z$15 -> 0 | CF99: =+R99*KeyAssumptionsPriceControl_FO!AA$15 -> 0 | CG99: =+S99*KeyAssumptionsPriceControl_FO!AB$15 -> 0 | CH99: =+T99*KeyAssumptionsPriceControl_FO!AC$15 -> 0 | CI99: =+U99*KeyAssumptionsPriceControl_FO!AD$15 -> 0 | CJ99: =+V99*KeyAssumptionsPriceControl_FO!AE$15 -> 0 | CK99: =+W99*KeyAssumptionsPriceControl_FO!AF$15 -> 0 | CL99: =+X99*KeyAssumptionsPriceControl_FO!AG$15 -> 0 | CN99: 0 | CO99: 0 | CP99: 0 | CQ99: 0 | CR99: 0 | CS99: 0 | CT99: 0 | CU99: 0 | CV99: 0 | CW99: 0
C100: Customer contributions - Recycled Water | E100: Recycled Water | F100: Growth | G100: Pipelines/network | H100: Other capital expenditure | J100: Straight line | K100: Ongoing | L100: 80 | M100: 80 | AK100: 7.295814703 | AL100: 7.295814703 | AM100: 7.295814703 | AN100: 7.656133714 | AO100: 7.656133714 | AP100: 7.656133714 | AQ100: 7.656133714 | AR100: 7.656133714 | AS100: 6.060586934 | AT100: 6.060586934 | AV100: -7.295814703 | AW100: -7.295814703 | AX100: -7.295814703 | AY100: -7.656133714 | AZ100: -7.656133714 | BA100: -7.656133714 | BB100: -7.656133714 | BC100: -7.656133714 | BD100: -6.060586934 | BE100: -6.060586934 | BG100: -0.04559884189 | BH100: -0.1367965257 | BI100: -0.2279942095 | BJ100: -0.3214438871 | BK100: -0.4171455585 | BL100: -0.5128472299 | BM100: -0.6085489013 | BN100: -0.7042505728 | BO100: -0.7899800768 | BP100: -0.8657374135 | BR100: =+IF($K100="Ongoing",AV100,IF(RIGHT($K100,2)=RIGHT(BR$39,2),SUM($AV100:AV100),0)+IF(RIGHT(BR$39,2)>RIGHT($K100,2),AV100,0)) -> -7.295814703 | BS100: =+IF($K100="Ongoing",AW100,IF(RIGHT($K100,2)=RIGHT(BS$39,2),SUM($AV100:AW100),0)+IF(RIGHT(BS$39,2)>RIGHT($K100,2),AW100,0)) -> -7.295814703 | BT100: =+IF($K100="Ongoing",AX100,IF(RIGHT($K100,2)=RIGHT(BT$39,2),SUM($AV100:AX100),0)+IF(RIGHT(BT$39,2)>RIGHT($K100,2),AX100,0)) -> -7.295814703 | BU100: =+IF($K100="Ongoing",AY100,IF(RIGHT($K100,2)=RIGHT(BU$39,2),SUM($AV100:AY100),0)+IF(RIGHT(BU$39,2)>RIGHT($K100,2),AY100,0)) -> -7.656133714 | BV100: =+IF($K100="Ongoing",AZ100,IF(RIGHT($K100,2)=RIGHT(BV$39,2),SUM($AV100:AZ100),0)+IF(RIGHT(BV$39,2)>RIGHT($K100,2),AZ100,0)) -> -7.656133714 | BW100: =+IF($K100="Ongoing",BA100,IF(RIGHT($K100,2)=RIGHT(BW$39,2),SUM($AV100:BA100),0)+IF(RIGHT(BW$39,2)>RIGHT($K100,2),BA100,0)) -> -7.656133714 | BX100: =+IF($K100="Ongoing",BB100,IF(RIGHT($K100,2)=RIGHT(BX$39,2),SUM($AV100:BB100),0)+IF(RIGHT(BX$39,2)>RIGHT($K100,2),BB100,0)) -> -7.656133714 | BY100: =+IF($K100="Ongoing",BC100,IF(RIGHT($K100,2)=RIGHT(BY$39,2),SUM($AV100:BC100),0)+IF(RIGHT(BY$39,2)>RIGHT($K100,2),BC100,0)) -> -7.656133714 | BZ100: =+IF($K100="Ongoing",BD100,IF(RIGHT($K100,2)=RIGHT(BZ$39,2),SUM($AV100:BD100),0)+IF(RIGHT(BZ$39,2)>RIGHT($K100,2),BD100,0)) -> -6.060586934 | CA100: =+IF($K100="Ongoing",BE100,IF(RIGHT($K100,2)=RIGHT(CA$39,2),SUM($AV100:BE100),0)+IF(RIGHT(CA$39,2)>RIGHT($K100,2),BE100,0)) -> -6.060586934 | CC100: =+O100*KeyAssumptionsPriceControl_FO!X$15 -> 0 | CD100: =+P100*KeyAssumptionsPriceControl_FO!Y$15 -> 0 | CE100: =+Q100*KeyAssumptionsPriceControl_FO!Z$15 -> 0 | CF100: =+R100*KeyAssumptionsPriceControl_FO!AA$15 -> 0 | CG100: =+S100*KeyAssumptionsPriceControl_FO!AB$15 -> 0 | CH100: =+T100*KeyAssumptionsPriceControl_FO!AC$15 -> 0 | CI100: =+U100*KeyAssumptionsPriceControl_FO!AD$15 -> 0 | CJ100: =+V100*KeyAssumptionsPriceControl_FO!AE$15 -> 0 | CK100: =+W100*KeyAssumptionsPriceControl_FO!AF$15 -> 0 | CL100: =+X100*KeyAssumptionsPriceControl_FO!AG$15 -> 0 | CN100: 0 | CO100: 0 | CP100: 0 | CQ100: 0 | CR100: 0 | CS100: 0 | CT100: 0 | CU100: 0 | CV100: 0 | CW100: 0
C101: [Capex Item - Significant Project / Capital Program / Other Capex] | E101: [Service] | F101: [Major Cost Driver] | G101: [Asset category] | H101: [Capital type] | J101: Straight line | K101: [Year finalised?] | AV101: 0 | AW101: 0 | AX101: 0 | AY101: 0 | AZ101: 0 | BA101: 0 | BB101: 0 | BC101: 0 | BD101: 0 | BE101: 0 | BG101: 0 | BH101: 0 | BI101: 0 | BJ101: 0 | BK101: 0 | BL101: 0 | BM101: 0 | BN101: 0 | BO101: 0 | BP101: 0 | BR101: =+IF($K101="Ongoing",AV101,IF(RIGHT($K101,2)=RIGHT(BR$39,2),SUM($AV101:AV101),0)+IF(RIGHT(BR$39,2)>RIGHT($K101,2),AV101,0)) -> 0 | BS101: =+IF($K101="Ongoing",AW101,IF(RIGHT($K101,2)=RIGHT(BS$39,2),SUM($AV101:AW101),0)+IF(RIGHT(BS$39,2)>RIGHT($K101,2),AW101,0)) -> 0 | BT101: =+IF($K101="Ongoing",AX101,IF(RIGHT($K101,2)=RIGHT(BT$39,2),SUM($AV101:AX101),0)+IF(RIGHT(BT$39,2)>RIGHT($K101,2),AX101,0)) -> 0 | BU101: =+IF($K101="Ongoing",AY101,IF(RIGHT($K101,2)=RIGHT(BU$39,2),SUM($AV101:AY101),0)+IF(RIGHT(BU$39,2)>RIGHT($K101,2),AY101,0)) -> 0 | BV101: =+IF($K101="Ongoing",AZ101,IF(RIGHT($K101,2)=RIGHT(BV$39,2),SUM($AV101:AZ101),0)+IF(RIGHT(BV$39,2)>RIGHT($K101,2),AZ101,0)) -> 0 | BW101: =+IF($K101="Ongoing",BA101,IF(RIGHT($K101,2)=RIGHT(BW$39,2),SUM($AV101:BA101),0)+IF(RIGHT(BW$39,2)>RIGHT($K101,2),BA101,0)) -> 0 | BX101: =+IF($K101="Ongoing",BB101,IF(RIGHT($K101,2)=RIGHT(BX$39,2),SUM($AV101:BB101),0)+IF(RIGHT(BX$39,2)>RIGHT($K101,2),BB101,0)) -> 0 | BY101: =+IF($K101="Ongoing",BC101,IF(RIGHT($K101,2)=RIGHT(BY$39,2),SUM($AV101:BC101),0)+IF(RIGHT(BY$39,2)>RIGHT($K101,2),BC101,0)) -> 0 | BZ101: =+IF($K101="Ongoing",BD101,IF(RIGHT($K101,2)=RIGHT(BZ$39,2),SUM($AV101:BD101),0)+IF(RIGHT(BZ$39,2)>RIGHT($K101,2),BD101,0)) -> 0 | CA101: =+IF($K101="Ongoing",BE101,IF(RIGHT($K101,2)=RIGHT(CA$39,2),SUM($AV101:BE101),0)+IF(RIGHT(CA$39,2)>RIGHT($K101,2),BE101,0)) -> 0 | CC101: =+O101*KeyAssumptionsPriceControl_FO!X$15 -> 0 | CD101: =+P101*KeyAssumptionsPriceControl_FO!Y$15 -> 0 | CE101: =+Q101*KeyAssumptionsPriceControl_FO!Z$15 -> 0 | CF101: =+R101*KeyAssumptionsPriceControl_FO!AA$15 -> 0 | CG101: =+S101*KeyAssumptionsPriceControl_FO!AB$15 -> 0 | CH101: =+T101*KeyAssumptionsPriceControl_FO!AC$15 -> 0 | CI101: =+U101*KeyAssumptionsPriceControl_FO!AD$15 -> 0 | CJ101: =+V101*KeyAssumptionsPriceControl_FO!AE$15 -> 0 | CK101: =+W101*KeyAssumptionsPriceControl_FO!AF$15 -> 0 | CL101: =+X101*KeyAssumptionsPriceControl_FO!AG$15 -> 0 | CN101: 0 | CO101: 0 | CP101: 0 | CQ101: 0 | CR101: 0 | CS101: 0 | CT101: 0 | CU101: 0 | CV101: 0 | CW101: 0
C102: [Capex Item - Significant Project / Capital Program / Other Capex] | E102: [Service] | F102: [Major Cost Driver] | G102: [Asset category] | H102: [Capital type] | J102: Straight line | K102: [Year finalised?] | AV102: 0 | AW102: 0 | AX102: 0 | AY102: 0 | AZ102: 0 | BA102: 0 | BB102: 0 | BC102: 0 | BD102: 0 | BE102: 0 | BG102: 0 | BH102: 0 | BI102: 0 | BJ102: 0 | BK102: 0 | BL102: 0 | BM102: 0 | BN102: 0 | BO102: 0 | BP102: 0 | BR102: =+IF($K102="Ongoing",AV102,IF(RIGHT($K102,2)=RIGHT(BR$39,2),SUM($AV102:AV102),0)+IF(RIGHT(BR$39,2)>RIGHT($K102,2),AV102,0)) -> 0 | BS102: =+IF($K102="Ongoing",AW102,IF(RIGHT($K102,2)=RIGHT(BS$39,2),SUM($AV102:AW102),0)+IF(RIGHT(BS$39,2)>RIGHT($K102,2),AW102,0)) -> 0 | BT102: =+IF($K102="Ongoing",AX102,IF(RIGHT($K102,2)=RIGHT(BT$39,2),SUM($AV102:AX102),0)+IF(RIGHT(BT$39,2)>RIGHT($K102,2),AX102,0)) -> 0 | BU102: =+IF($K102="Ongoing",AY102,IF(RIGHT($K102,2)=RIGHT(BU$39,2),SUM($AV102:AY102),0)+IF(RIGHT(BU$39,2)>RIGHT($K102,2),AY102,0)) -> 0 | BV102: =+IF($K102="Ongoing",AZ102,IF(RIGHT($K102,2)=RIGHT(BV$39,2),SUM($AV102:AZ102),0)+IF(RIGHT(BV$39,2)>RIGHT($K102,2),AZ102,0)) -> 0 | BW102: =+IF($K102="Ongoing",BA102,IF(RIGHT($K102,2)=RIGHT(BW$39,2),SUM($AV102:BA102),0)+IF(RIGHT(BW$39,2)>RIGHT($K102,2),BA102,0)) -> 0 | BX102: =+IF($K102="Ongoing",BB102,IF(RIGHT($K102,2)=RIGHT(BX$39,2),SUM($AV102:BB102),0)+IF(RIGHT(BX$39,2)>RIGHT($K102,2),BB102,0)) -> 0 | BY102: =+IF($K102="Ongoing",BC102,IF(RIGHT($K102,2)=RIGHT(BY$39,2),SUM($AV102:BC102),0)+IF(RIGHT(BY$39,2)>RIGHT($K102,2),BC102,0)) -> 0 | BZ102: =+IF($K102="Ongoing",BD102,IF(RIGHT($K102,2)=RIGHT(BZ$39,2),SUM($AV102:BD102),0)+IF(RIGHT(BZ$39,2)>RIGHT($K102,2),BD102,0)) -> 0 | CA102: =+IF($K102="Ongoing",BE102,IF(RIGHT($K102,2)=RIGHT(CA$39,2),SUM($AV102:BE102),0)+IF(RIGHT(CA$39,2)>RIGHT($K102,2),BE102,0)) -> 0 | CC102: =+O102*KeyAssumptionsPriceControl_FO!X$15 -> 0 | CD102: =+P102*KeyAssumptionsPriceControl_FO!Y$15 -> 0 | CE102: =+Q102*KeyAssumptionsPriceControl_FO!Z$15 -> 0 | CF102: =+R102*KeyAssumptionsPriceControl_FO!AA$15 -> 0 | CG102: =+S102*KeyAssumptionsPriceControl_FO!AB$15 -> 0 | CH102: =+T102*KeyAssumptionsPriceControl_FO!AC$15 -> 0 | CI102: =+U102*KeyAssumptionsPriceControl_FO!AD$15 -> 0 | CJ102: =+V102*KeyAssumptionsPriceControl_FO!AE$15 -> 0 | CK102: =+W102*KeyAssumptionsPriceControl_FO!AF$15 -> 0 | CL102: =+X102*KeyAssumptionsPriceControl_FO!AG$15 -> 0 | CN102: 0 | CO102: 0 | CP102: 0 | CQ102: 0 | CR102: 0 | CS102: 0 | CT102: 0 | CU102: 0 | CV102: 0 | CW102: 0
C103: [Capex Item - Significant Project / Capital Program / Other Capex] | E103: [Service] | F103: [Major Cost Driver] | G103: [Asset category] | H103: [Capital type] | J103: Straight line | K103: [Year finalised?] | AV103: 0 | AW103: 0 | AX103: 0 | AY103: 0 | AZ103: 0 | BA103: 0 | BB103: 0 | BC103: 0 | BD103: 0 | BE103: 0 | BG103: 0 | BH103: 0 | BI103: 0 | BJ103: 0 | BK103: 0 | BL103: 0 | BM103: 0 | BN103: 0 | BO103: 0 | BP103: 0 | BR103: =+IF($K103="Ongoing",AV103,IF(RIGHT($K103,2)=RIGHT(BR$39,2),SUM($AV103:AV103),0)+IF(RIGHT(BR$39,2)>RIGHT($K103,2),AV103,0)) -> 0 | BS103: =+IF($K103="Ongoing",AW103,IF(RIGHT($K103,2)=RIGHT(BS$39,2),SUM($AV103:AW103),0)+IF(RIGHT(BS$39,2)>RIGHT($K103,2),AW103,0)) -> 0 | BT103: =+IF($K103="Ongoing",AX103,IF(RIGHT($K103,2)=RIGHT(BT$39,2),SUM($AV103:AX103),0)+IF(RIGHT(BT$39,2)>RIGHT($K103,2),AX103,0)) -> 0 | BU103: =+IF($K103="Ongoing",AY103,IF(RIGHT($K103,2)=RIGHT(BU$39,2),SUM($AV103:AY103),0)+IF(RIGHT(BU$39,2)>RIGHT($K103,2),AY103,0)) -> 0 | BV103: =+IF($K103="Ongoing",AZ103,IF(RIGHT($K103,2)=RIGHT(BV$39,2),SUM($AV103:AZ103),0)+IF(RIGHT(BV$39,2)>RIGHT($K103,2),AZ103,0)) -> 0 | BW103: =+IF($K103="Ongoing",BA103,IF(RIGHT($K103,2)=RIGHT(BW$39,2),SUM($AV103:BA103),0)+IF(RIGHT(BW$39,2)>RIGHT($K103,2),BA103,0)) -> 0 | BX103: =+IF($K103="Ongoing",BB103,IF(RIGHT($K103,2)=RIGHT(BX$39,2),SUM($AV103:BB103),0)+IF(RIGHT(BX$39,2)>RIGHT($K103,2),BB103,0)) -> 0 | BY103: =+IF($K103="Ongoing",BC103,IF(RIGHT($K103,2)=RIGHT(BY$39,2),SUM($AV103:BC103),0)+IF(RIGHT(BY$39,2)>RIGHT($K103,2),BC103,0)) -> 0 | BZ103: =+IF($K103="Ongoing",BD103,IF(RIGHT($K103,2)=RIGHT(BZ$39,2),SUM($AV103:BD103),0)+IF(RIGHT(BZ$39,2)>RIGHT($K103,2),BD103,0)) -> 0 | CA103: =+IF($K103="Ongoing",BE103,IF(RIGHT($K103,2)=RIGHT(CA$39,2),SUM($AV103:BE103),0)+IF(RIGHT(CA$39,2)>RIGHT($K103,2),BE103,0)) -> 0 | CC103: =+O103*KeyAssumptionsPriceControl_FO!X$15 -> 0 | CD103: =+P103*KeyAssumptionsPriceControl_FO!Y$15 -> 0 | CE103: =+Q103*KeyAssumptionsPriceControl_FO!Z$15 -> 0 | CF103: =+R103*KeyAssumptionsPriceControl_FO!AA$15 -> 0 | CG103: =+S103*KeyAssumptionsPriceControl_FO!AB$15 -> 0 | CH103: =+T103*KeyAssumptionsPriceControl_FO!AC$15 -> 0 | CI103: =+U103*KeyAssumptionsPriceControl_FO!AD$15 -> 0 | CJ103: =+V103*KeyAssumptionsPriceControl_FO!AE$15 -> 0 | CK103: =+W103*KeyAssumptionsPriceControl_FO!AF$15 -> 0 | CL103: =+X103*KeyAssumptionsPriceControl_FO!AG$15 -> 0 | CN103: 0 | CO103: 0 | CP103: 0 | CQ103: 0 | CR103: 0 | CS103: 0 | CT103: 0 | CU103: 0 | CV103: 0 | CW103: 0
C104: [Capex Item - Significant Project / Capital Program / Other Capex] | E104: [Service] | F104: [Major Cost Driver] | G104: [Asset category] | H104: [Capital type] | J104: Straight line | K104: [Year finalised?] | AV104: 0 | AW104: 0 | AX104: 0 | AY104: 0 | AZ104: 0 | BA104: 0 | BB104: 0 | BC104: 0 | BD104: 0 | BE104: 0 | BG104: 0 | BH104: 0 | BI104: 0 | BJ104: 0 | BK104: 0 | BL104: 0 | BM104: 0 | BN104: 0 | BO104: 0 | BP104: 0 | BR104: =+IF($K104="Ongoing",AV104,IF(RIGHT($K104,2)=RIGHT(BR$39,2),SUM($AV104:AV104),0)+IF(RIGHT(BR$39,2)>RIGHT($K104,2),AV104,0)) -> 0 | BS104: =+IF($K104="Ongoing",AW104,IF(RIGHT($K104,2)=RIGHT(BS$39,2),SUM($AV104:AW104),0)+IF(RIGHT(BS$39,2)>RIGHT($K104,2),AW104,0)) -> 0 | BT104: =+IF($K104="Ongoing",AX104,IF(RIGHT($K104,2)=RIGHT(BT$39,2),SUM($AV104:AX104),0)+IF(RIGHT(BT$39,2)>RIGHT($K104,2),AX104,0)) -> 0 | BU104: =+IF($K104="Ongoing",AY104,IF(RIGHT($K104,2)=RIGHT(BU$39,2),SUM($AV104:AY104),0)+IF(RIGHT(BU$39,2)>RIGHT($K104,2),AY104,0)) -> 0 | BV104: =+IF($K104="Ongoing",AZ104,IF(RIGHT($K104,2)=RIGHT(BV$39,2),SUM($AV104:AZ104),0)+IF(RIGHT(BV$39,2)>RIGHT($K104,2),AZ104,0)) -> 0 | BW104: =+IF($K104="Ongoing",BA104,IF(RIGHT($K104,2)=RIGHT(BW$39,2),SUM($AV104:BA104),0)+IF(RIGHT(BW$39,2)>RIGHT($K104,2),BA104,0)) -> 0 | BX104: =+IF($K104="Ongoing",BB104,IF(RIGHT($K104,2)=RIGHT(BX$39,2),SUM($AV104:BB104),0)+IF(RIGHT(BX$39,2)>RIGHT($K104,2),BB104,0)) -> 0 | BY104: =+IF($K104="Ongoing",BC104,IF(RIGHT($K104,2)=RIGHT(BY$39,2),SUM($AV104:BC104),0)+IF(RIGHT(BY$39,2)>RIGHT($K104,2),BC104,0)) -> 0 | BZ104: =+IF($K104="Ongoing",BD104,IF(RIGHT($K104,2)=RIGHT(BZ$39,2),SUM($AV104:BD104),0)+IF(RIGHT(BZ$39,2)>RIGHT($K104,2),BD104,0)) -> 0 | CA104: =+IF($K104="Ongoing",BE104,IF(RIGHT($K104,2)=RIGHT(CA$39,2),SUM($AV104:BE104),0)+IF(RIGHT(CA$39,2)>RIGHT($K104,2),BE104,0)) -> 0 | CC104: =+O104*KeyAssumptionsPriceControl_FO!X$15 -> 0 | CD104: =+P104*KeyAssumptionsPriceControl_FO!Y$15 -> 0 | CE104: =+Q104*KeyAssumptionsPriceControl_FO!Z$15 -> 0 | CF104: =+R104*KeyAssumptionsPriceControl_FO!AA$15 -> 0 | CG104: =+S104*KeyAssumptionsPriceControl_FO!AB$15 -> 0 | CH104: =+T104*KeyAssumptionsPriceControl_FO!AC$15 -> 0 | CI104: =+U104*KeyAssumptionsPriceControl_FO!AD$15 -> 0 | CJ104: =+V104*KeyAssumptionsPriceControl_FO!AE$15 -> 0 | CK104: =+W104*KeyAssumptionsPriceControl_FO!AF$15 -> 0 | CL104: =+X104*KeyAssumptionsPriceControl_FO!AG$15 -> 0 | CN104: 0 | CO104: 0 | CP104: 0 | CQ104: 0 | CR104: 0 | CS104: 0 | CT104: 0 | CU104: 0 | CV104: 0 | CW104: 0
C105: [Capex Item - Significant Project / Capital Program / Other Capex] | E105: [Service] | F105: [Major Cost Driver] | G105: [Asset category] | H105: [Capital type] | J105: Straight line | K105: [Year finalised?] | AV105: 0 | AW105: 0 | AX105: 0 | AY105: 0 | AZ105: 0 | BA105: 0 | BB105: 0 | BC105: 0 | BD105: 0 | BE105: 0 | BG105: 0 | BH105: 0 | BI105: 0 | BJ105: 0 | BK105: 0 | BL105: 0 | BM105: 0 | BN105: 0 | BO105: 0 | BP105: 0 | BR105: =+IF($K105="Ongoing",AV105,IF(RIGHT($K105,2)=RIGHT(BR$39,2),SUM($AV105:AV105),0)+IF(RIGHT(BR$39,2)>RIGHT($K105,2),AV105,0)) -> 0 | BS105: =+IF($K105="Ongoing",AW105,IF(RIGHT($K105,2)=RIGHT(BS$39,2),SUM($AV105:AW105),0)+IF(RIGHT(BS$39,2)>RIGHT($K105,2),AW105,0)) -> 0 | BT105: =+IF($K105="Ongoing",AX105,IF(RIGHT($K105,2)=RIGHT(BT$39,2),SUM($AV105:AX105),0)+IF(RIGHT(BT$39,2)>RIGHT($K105,2),AX105,0)) -> 0 | BU105: =+IF($K105="Ongoing",AY105,IF(RIGHT($K105,2)=RIGHT(BU$39,2),SUM($AV105:AY105),0)+IF(RIGHT(BU$39,2)>RIGHT($K105,2),AY105,0)) -> 0 | BV105: =+IF($K105="Ongoing",AZ105,IF(RIGHT($K105,2)=RIGHT(BV$39,2),SUM($AV105:AZ105),0)+IF(RIGHT(BV$39,2)>RIGHT($K105,2),AZ105,0)) -> 0 | BW105: =+IF($K105="Ongoing",BA105,IF(RIGHT($K105,2)=RIGHT(BW$39,2),SUM($AV105:BA105),0)+IF(RIGHT(BW$39,2)>RIGHT($K105,2),BA105,0)) -> 0 | BX105: =+IF($K105="Ongoing",BB105,IF(RIGHT($K105,2)=RIGHT(BX$39,2),SUM($AV105:BB105),0)+IF(RIGHT(BX$39,2)>RIGHT($K105,2),BB105,0)) -> 0 | BY105: =+IF($K105="Ongoing",BC105,IF(RIGHT($K105,2)=RIGHT(BY$39,2),SUM($AV105:BC105),0)+IF(RIGHT(BY$39,2)>RIGHT($K105,2),BC105,0)) -> 0 | BZ105: =+IF($K105="Ongoing",BD105,IF(RIGHT($K105,2)=RIGHT(BZ$39,2),SUM($AV105:BD105),0)+IF(RIGHT(BZ$39,2)>RIGHT($K105,2),BD105,0)) -> 0 | CA105: =+IF($K105="Ongoing",BE105,IF(RIGHT($K105,2)=RIGHT(CA$39,2),SUM($AV105:BE105),0)+IF(RIGHT(CA$39,2)>RIGHT($K105,2),BE105,0)) -> 0 | CC105: =+O105*KeyAssumptionsPriceControl_FO!X$15 -> 0 | CD105: =+P105*KeyAssumptionsPriceControl_FO!Y$15 -> 0 | CE105: =+Q105*KeyAssumptionsPriceControl_FO!Z$15 -> 0 | CF105: =+R105*KeyAssumptionsPriceControl_FO!AA$15 -> 0 | CG105: =+S105*KeyAssumptionsPriceControl_FO!AB$15 -> 0 | CH105: =+T105*KeyAssumptionsPriceControl_FO!AC$15 -> 0 | CI105: =+U105*KeyAssumptionsPriceControl_FO!AD$15 -> 0 | CJ105: =+V105*KeyAssumptionsPriceControl_FO!AE$15 -> 0 | CK105: =+W105*KeyAssumptionsPriceControl_FO!AF$15 -> 0 | CL105: =+X105*KeyAssumptionsPriceControl_FO!AG$15 -> 0 | CN105: 0 | CO105: 0 | CP105: 0 | CQ105: 0 | CR105: 0 | CS105: 0 | CT105: 0 | CU105: 0 | CV105: 0 | CW105: 0
C106: [Capex Item - Significant Project / Capital Program / Other Capex] | E106: [Service] | F106: [Major Cost Driver] | G106: [Asset category] | H106: [Capital type] | J106: Straight line | K106: [Year finalised?] | AV106: 0 | AW106: 0 | AX106: 0 | AY106: 0 | AZ106: 0 | BA106: 0 | BB106: 0 | BC106: 0 | BD106: 0 | BE106: 0 | BG106: 0 | BH106: 0 | BI106: 0 | BJ106: 0 | BK106: 0 | BL106: 0 | BM106: 0 | BN106: 0 | BO106: 0 | BP106: 0 | BR106: =+IF($K106="Ongoing",AV106,IF(RIGHT($K106,2)=RIGHT(BR$39,2),SUM($AV106:AV106),0)+IF(RIGHT(BR$39,2)>RIGHT($K106,2),AV106,0)) -> 0 | BS106: =+IF($K106="Ongoing",AW106,IF(RIGHT($K106,2)=RIGHT(BS$39,2),SUM($AV106:AW106),0)+IF(RIGHT(BS$39,2)>RIGHT($K106,2),AW106,0)) -> 0 | BT106: =+IF($K106="Ongoing",AX106,IF(RIGHT($K106,2)=RIGHT(BT$39,2),SUM($AV106:AX106),0)+IF(RIGHT(BT$39,2)>RIGHT($K106,2),AX106,0)) -> 0 | BU106: =+IF($K106="Ongoing",AY106,IF(RIGHT($K106,2)=RIGHT(BU$39,2),SUM($AV106:AY106),0)+IF(RIGHT(BU$39,2)>RIGHT($K106,2),AY106,0)) -> 0 | BV106: =+IF($K106="Ongoing",AZ106,IF(RIGHT($K106,2)=RIGHT(BV$39,2),SUM($AV106:AZ106),0)+IF(RIGHT(BV$39,2)>RIGHT($K106,2),AZ106,0)) -> 0 | BW106: =+IF($K106="Ongoing",BA106,IF(RIGHT($K106,2)=RIGHT(BW$39,2),SUM($AV106:BA106),0)+IF(RIGHT(BW$39,2)>RIGHT($K106,2),BA106,0)) -> 0 | BX106: =+IF($K106="Ongoing",BB106,IF(RIGHT($K106,2)=RIGHT(BX$39,2),SUM($AV106:BB106),0)+IF(RIGHT(BX$39,2)>RIGHT($K106,2),BB106,0)) -> 0 | BY106: =+IF($K106="Ongoing",BC106,IF(RIGHT($K106,2)=RIGHT(BY$39,2),SUM($AV106:BC106),0)+IF(RIGHT(BY$39,2)>RIGHT($K106,2),BC106,0)) -> 0 | BZ106: =+IF($K106="Ongoing",BD106,IF(RIGHT($K106,2)=RIGHT(BZ$39,2),SUM($AV106:BD106),0)+IF(RIGHT(BZ$39,2)>RIGHT($K106,2),BD106,0)) -> 0 | CA106: =+IF($K106="Ongoing",BE106,IF(RIGHT($K106,2)=RIGHT(CA$39,2),SUM($AV106:BE106),0)+IF(RIGHT(CA$39,2)>RIGHT($K106,2),BE106,0)) -> 0 | CC106: =+O106*KeyAssumptionsPriceControl_FO!X$15 -> 0 | CD106: =+P106*KeyAssumptionsPriceControl_FO!Y$15 -> 0 | CE106: =+Q106*KeyAssumptionsPriceControl_FO!Z$15 -> 0 | CF106: =+R106*KeyAssumptionsPriceControl_FO!AA$15 -> 0 | CG106: =+S106*KeyAssumptionsPriceControl_FO!AB$15 -> 0 | CH106: =+T106*KeyAssumptionsPriceControl_FO!AC$15 -> 0 | CI106: =+U106*KeyAssumptionsPriceControl_FO!AD$15 -> 0 | CJ106: =+V106*KeyAssumptionsPriceControl_FO!AE$15 -> 0 | CK106: =+W106*KeyAssumptionsPriceControl_FO!AF$15 -> 0 | CL106: =+X106*KeyAssumptionsPriceControl_FO!AG$15 -> 0 | CN106: 0 | CO106: 0 | CP106: 0 | CQ106: 0 | CR106: 0 | CS106: 0 | CT106: 0 | CU106: 0 | CV106: 0 | CW106: 0
C107: [Capex Item - Significant Project / Capital Program / Other Capex] | E107: [Service] | F107: [Major Cost Driver] | G107: [Asset category] | H107: [Capital type] | J107: Straight line | K107: [Year finalised?] | AV107: 0 | AW107: 0 | AX107: 0 | AY107: 0 | AZ107: 0 | BA107: 0 | BB107: 0 | BC107: 0 | BD107: 0 | BE107: 0 | BG107: =IF($L107=0,0, IF($L107<=0.5,BR107, IF($J107="straight line", IF((LEFT(BG$39,4)*1)-INT($L107)<LEFT($BG$39,4)*1,0,((OFFSET(BR107,0,-INT($L107+0.5),1,1))/$L107)*(IF($L107-INT($L107)>0.5,$L107-0.5-INT($L107),IF($L107-INT($L107)<=0.5,$L107-0.5-INT($L107)+1,0)))) +BR107/$L107*0.5, IF($J107="Declining Balance",-$BG$38,0)))) -> 0 | BH107: 0 | BI107: 0 | BJ107: 0 | BK107: 0 | BL107: 0 | BM107: 0 | BN107: 0 | BO107: 0 | BP107: 0 | BR107: =+IF($K107="Ongoing",AV107,IF(RIGHT($K107,2)=RIGHT(BR$39,2),SUM($AV107:AV107),0)+IF(RIGHT(BR$39,2)>RIGHT($K107,2),AV107,0)) -> 0 | BS107: =+IF($K107="Ongoing",AW107,IF(RIGHT($K107,2)=RIGHT(BS$39,2),SUM($AV107:AW107),0)+IF(RIGHT(BS$39,2)>RIGHT($K107,2),AW107,0)) -> 0 | BT107: =+IF($K107="Ongoing",AX107,IF(RIGHT($K107,2)=RIGHT(BT$39,2),SUM($AV107:AX107),0)+IF(RIGHT(BT$39,2)>RIGHT($K107,2),AX107,0)) -> 0 | BU107: =+IF($K107="Ongoing",AY107,IF(RIGHT($K107,2)=RIGHT(BU$39,2),SUM($AV107:AY107),0)+IF(RIGHT(BU$39,2)>RIGHT($K107,2),AY107,0)) -> 0 | BV107: =+IF($K107="Ongoing",AZ107,IF(RIGHT($K107,2)=RIGHT(BV$39,2),SUM($AV107:AZ107),0)+IF(RIGHT(BV$39,2)>RIGHT($K107,2),AZ107,0)) -> 0 | BW107: =+IF($K107="Ongoing",BA107,IF(RIGHT($K107,2)=RIGHT(BW$39,2),SUM($AV107:BA107),0)+IF(RIGHT(BW$39,2)>RIGHT($K107,2),BA107,0)) -> 0 | BX107: =+IF($K107="Ongoing",BB107,IF(RIGHT($K107,2)=RIGHT(BX$39,2),SUM($AV107:BB107),0)+IF(RIGHT(BX$39,2)>RIGHT($K107,2),BB107,0)) -> 0 | BY107: =+IF($K107="Ongoing",BC107,IF(RIGHT($K107,2)=RIGHT(BY$39,2),SUM($AV107:BC107),0)+IF(RIGHT(BY$39,2)>RIGHT($K107,2),BC107,0)) -> 0 | BZ107: =+IF($K107="Ongoing",BD107,IF(RIGHT($K107,2)=RIGHT(BZ$39,2),SUM($AV107:BD107),0)+IF(RIGHT(BZ$39,2)>RIGHT($K107,2),BD107,0)) -> 0 | CA107: =+IF($K107="Ongoing",BE107,IF(RIGHT($K107,2)=RIGHT(CA$39,2),SUM($AV107:BE107),0)+IF(RIGHT(CA$39,2)>RIGHT($K107,2),BE107,0)) -> 0 | CC107: =+O107*KeyAssumptionsPriceControl_FO!X$15 -> 0 | CD107: =+P107*KeyAssumptionsPriceControl_FO!Y$15 -> 0 | CE107: =+Q107*KeyAssumptionsPriceControl_FO!Z$15 -> 0 | CF107: =+R107*KeyAssumptionsPriceControl_FO!AA$15 -> 0 | CG107: =+S107*KeyAssumptionsPriceControl_FO!AB$15 -> 0 | CH107: =+T107*KeyAssumptionsPriceControl_FO!AC$15 -> 0 | CI107: =+U107*KeyAssumptionsPriceControl_FO!AD$15 -> 0 | CJ107: =+V107*KeyAssumptionsPriceControl_FO!AE$15 -> 0 | CK107: =+W107*KeyAssumptionsPriceControl_FO!AF$15 -> 0 | CL107: =+X107*KeyAssumptionsPriceControl_FO!AG$15 -> 0 | CN107: =IF($M107=0,0, IF($M107<=0.5,CC107, IF($J107="straight line", IF((LEFT(CN$39,4)*1)-INT($M107)<LEFT($CN$39,4)*1,0,((OFFSET(CC107,0,-INT($M107+0.5),1,1))/$M107)*(IF($M107-INT($M107)>0.5,$M107-0.5-INT($M107),IF($M107-INT($M107)<=0.5,$M107-0.5-INT($M107)+1,0)))) +CC107/$M107*0.5, IF($J107="Declining Balance",-$CN$38,0)))) -> 0 | CO107: 0 | CP107: 0 | CQ107: 0 | CR107: 0 | CS107: 0 | CT107: 0 | CU107: 0 | CV107: 0 | CW107: 0
C108: [Capex Item - Significant Project / Capital Program / Other Capex] | E108: [Service] | F108: [Major Cost Driver] | G108: [Asset category] | H108: [Capital type] | J108: Straight line | K108: [Year finalised?] | AV108: 0 | AW108: 0 | AX108: 0 | AY108: 0 | AZ108: 0 | BA108: 0 | BB108: 0 | BC108: 0 | BD108: 0 | BE108: 0 | BG108: 0 | BH108: 0 | BI108: 0 | BJ108: 0 | BK108: 0 | BL108: 0 | BM108: 0 | BN108: 0 | BO108: 0 | BP108: 0 | BR108: =+IF($K108="Ongoing",AV108,IF(RIGHT($K108,2)=RIGHT(BR$39,2),SUM($AV108:AV108),0)+IF(RIGHT(BR$39,2)>RIGHT($K108,2),AV108,0)) -> 0 | BS108: =+IF($K108="Ongoing",AW108,IF(RIGHT($K108,2)=RIGHT(BS$39,2),SUM($AV108:AW108),0)+IF(RIGHT(BS$39,2)>RIGHT($K108,2),AW108,0)) -> 0 | BT108: =+IF($K108="Ongoing",AX108,IF(RIGHT($K108,2)=RIGHT(BT$39,2),SUM($AV108:AX108),0)+IF(RIGHT(BT$39,2)>RIGHT($K108,2),AX108,0)) -> 0 | BU108: =+IF($K108="Ongoing",AY108,IF(RIGHT($K108,2)=RIGHT(BU$39,2),SUM($AV108:AY108),0)+IF(RIGHT(BU$39,2)>RIGHT($K108,2),AY108,0)) -> 0 | BV108: =+IF($K108="Ongoing",AZ108,IF(RIGHT($K108,2)=RIGHT(BV$39,2),SUM($AV108:AZ108),0)+IF(RIGHT(BV$39,2)>RIGHT($K108,2),AZ108,0)) -> 0 | BW108: =+IF($K108="Ongoing",BA108,IF(RIGHT($K108,2)=RIGHT(BW$39,2),SUM($AV108:BA108),0)+IF(RIGHT(BW$39,2)>RIGHT($K108,2),BA108,0)) -> 0 | BX108: =+IF($K108="Ongoing",BB108,IF(RIGHT($K108,2)=RIGHT(BX$39,2),SUM($AV108:BB108),0)+IF(RIGHT(BX$39,2)>RIGHT($K108,2),BB108,0)) -> 0 | BY108: =+IF($K108="Ongoing",BC108,IF(RIGHT($K108,2)=RIGHT(BY$39,2),SUM($AV108:BC108),0)+IF(RIGHT(BY$39,2)>RIGHT($K108,2),BC108,0)) -> 0 | BZ108: =+IF($K108="Ongoing",BD108,IF(RIGHT($K108,2)=RIGHT(BZ$39,2),SUM($AV108:BD108),0)+IF(RIGHT(BZ$39,2)>RIGHT($K108,2),BD108,0)) -> 0 | CA108: =+IF($K108="Ongoing",BE108,IF(RIGHT($K108,2)=RIGHT(CA$39,2),SUM($AV108:BE108),0)+IF(RIGHT(CA$39,2)>RIGHT($K108,2),BE108,0)) -> 0 | CC108: =+O108*KeyAssumptionsPriceControl_FO!X$15 -> 0 | CD108: =+P108*KeyAssumptionsPriceControl_FO!Y$15 -> 0 | CE108: =+Q108*KeyAssumptionsPriceControl_FO!Z$15 -> 0 | CF108: =+R108*KeyAssumptionsPriceControl_FO!AA$15 -> 0 | CG108: =+S108*KeyAssumptionsPriceControl_FO!AB$15 -> 0 | CH108: =+T108*KeyAssumptionsPriceControl_FO!AC$15 -> 0 | CI108: =+U108*KeyAssumptionsPriceControl_FO!AD$15 -> 0 | CJ108: =+V108*KeyAssumptionsPriceControl_FO!AE$15 -> 0 | CK108: =+W108*KeyAssumptionsPriceControl_FO!AF$15 -> 0 | CL108: =+X108*KeyAssumptionsPriceControl_FO!AG$15 -> 0 | CN108: 0 | CO108: 0 | CP108: 0 | CQ108: 0 | CR108: 0 | CS108: 0 | CT108: 0 | CU108: 0 | CV108: 0 | CW108: 0
C109: [Capex Item - Significant Project / Capital Program / Other Capex] | E109: [Service] | F109: [Major Cost Driver] | G109: [Asset category] | H109: [Capital type] | J109: Straight line | K109: [Year finalised?] | AV109: 0 | AW109: 0 | AX109: 0 | AY109: 0 | AZ109: 0 | BA109: 0 | BB109: 0 | BC109: 0 | BD109: 0 | BE109: 0 | BG109: 0 | BH109: 0 | BI109: 0 | BJ109: 0 | BK109: 0 | BL109: 0 | BM109: 0 | BN109: 0 | BO109: 0 | BP109: 0 | BR109: =+IF($K109="Ongoing",AV109,IF(RIGHT($K109,2)=RIGHT(BR$39,2),SUM($AV109:AV109),0)+IF(RIGHT(BR$39,2)>RIGHT($K109,2),AV109,0)) -> 0 | BS109: =+IF($K109="Ongoing",AW109,IF(RIGHT($K109,2)=RIGHT(BS$39,2),SUM($AV109:AW109),0)+IF(RIGHT(BS$39,2)>RIGHT($K109,2),AW109,0)) -> 0 | BT109: =+IF($K109="Ongoing",AX109,IF(RIGHT($K109,2)=RIGHT(BT$39,2),SUM($AV109:AX109),0)+IF(RIGHT(BT$39,2)>RIGHT($K109,2),AX109,0)) -> 0 | BU109: =+IF($K109="Ongoing",AY109,IF(RIGHT($K109,2)=RIGHT(BU$39,2),SUM($AV109:AY109),0)+IF(RIGHT(BU$39,2)>RIGHT($K109,2),AY109,0)) -> 0 | BV109: =+IF($K109="Ongoing",AZ109,IF(RIGHT($K109,2)=RIGHT(BV$39,2),SUM($AV109:AZ109),0)+IF(RIGHT(BV$39,2)>RIGHT($K109,2),AZ109,0)) -> 0 | BW109: =+IF($K109="Ongoing",BA109,IF(RIGHT($K109,2)=RIGHT(BW$39,2),SUM($AV109:BA109),0)+IF(RIGHT(BW$39,2)>RIGHT($K109,2),BA109,0)) -> 0 | BX109: =+IF($K109="Ongoing",BB109,IF(RIGHT($K109,2)=RIGHT(BX$39,2),SUM($AV109:BB109),0)+IF(RIGHT(BX$39,2)>RIGHT($K109,2),BB109,0)) -> 0 | BY109: =+IF($K109="Ongoing",BC109,IF(RIGHT($K109,2)=RIGHT(BY$39,2),SUM($AV109:BC109),0)+IF(RIGHT(BY$39,2)>RIGHT($K109,2),BC109,0)) -> 0 | BZ109: =+IF($K109="Ongoing",BD109,IF(RIGHT($K109,2)=RIGHT(BZ$39,2),SUM($AV109:BD109),0)+IF(RIGHT(BZ$39,2)>RIGHT($K109,2),BD109,0)) -> 0 | CA109: =+IF($K109="Ongoing",BE109,IF(RIGHT($K109,2)=RIGHT(CA$39,2),SUM($AV109:BE109),0)+IF(RIGHT(CA$39,2)>RIGHT($K109,2),BE109,0)) -> 0 | CC109: =+O109*KeyAssumptionsPriceControl_FO!X$15 -> 0 | CD109: =+P109*KeyAssumptionsPriceControl_FO!Y$15 -> 0 | CE109: =+Q109*KeyAssumptionsPriceControl_FO!Z$15 -> 0 | CF109: =+R109*KeyAssumptionsPriceControl_FO!AA$15 -> 0 | CG109: =+S109*KeyAssumptionsPriceControl_FO!AB$15 -> 0 | CH109: =+T109*KeyAssumptionsPriceControl_FO!AC$15 -> 0 | CI109: =+U109*KeyAssumptionsPriceControl_FO!AD$15 -> 0 | CJ109: =+V109*KeyAssumptionsPriceControl_FO!AE$15 -> 0 | CK109: =+W109*KeyAssumptionsPriceControl_FO!AF$15 -> 0 | CL109: =+X109*KeyAssumptionsPriceControl_FO!AG$15 -> 0 | CN109: 0 | CO109: 0 | CP109: 0 | CQ109: 0 | CR109: 0 | CS109: 0 | CT109: 0 | CU109: 0 | CV109: 0 | CW109: 0
C110: [Capex Item - Significant Project / Capital Program / Other Capex] | E110: [Service] | F110: [Major Cost Driver] | G110: [Asset category] | H110: [Capital type] | J110: Straight line | K110: [Year finalised?] | AV110: 0 | AW110: 0 | AX110: 0 | AY110: 0 | AZ110: =+S110-AD110-AO110 -> 0 | BA110: 0 | BB110: 0 | BC110: 0 | BD110: 0 | BE110: 0 | BG110: 0 | BH110: 0 | BI110: 0 | BJ110: 0 | BK110: 0 | BL110: 0 | BM110: 0 | BN110: 0 | BO110: 0 | BP110: 0 | BR110: =+IF($K110="Ongoing",AV110,IF(RIGHT($K110,2)=RIGHT(BR$39,2),SUM($AV110:AV110),0)+IF(RIGHT(BR$39,2)>RIGHT($K110,2),AV110,0)) -> 0 | BS110: =+IF($K110="Ongoing",AW110,IF(RIGHT($K110,2)=RIGHT(BS$39,2),SUM($AV110:AW110),0)+IF(RIGHT(BS$39,2)>RIGHT($K110,2),AW110,0)) -> 0 | BT110: =+IF($K110="Ongoing",AX110,IF(RIGHT($K110,2)=RIGHT(BT$39,2),SUM($AV110:AX110),0)+IF(RIGHT(BT$39,2)>RIGHT($K110,2),AX110,0)) -> 0 | BU110: =+IF($K110="Ongoing",AY110,IF(RIGHT($K110,2)=RIGHT(BU$39,2),SUM($AV110:AY110),0)+IF(RIGHT(BU$39,2)>RIGHT($K110,2),AY110,0)) -> 0 | BV110: =+IF($K110="Ongoing",AZ110,IF(RIGHT($K110,2)=RIGHT(BV$39,2),SUM($AV110:AZ110),0)+IF(RIGHT(BV$39,2)>RIGHT($K110,2),AZ110,0)) -> 0 | BW110: =+IF($K110="Ongoing",BA110,IF(RIGHT($K110,2)=RIGHT(BW$39,2),SUM($AV110:BA110),0)+IF(RIGHT(BW$39,2)>RIGHT($K110,2),BA110,0)) -> 0 | BX110: =+IF($K110="Ongoing",BB110,IF(RIGHT($K110,2)=RIGHT(BX$39,2),SUM($AV110:BB110),0)+IF(RIGHT(BX$39,2)>RIGHT($K110,2),BB110,0)) -> 0 | BY110: =+IF($K110="Ongoing",BC110,IF(RIGHT($K110,2)=RIGHT(BY$39,2),SUM($AV110:BC110),0)+IF(RIGHT(BY$39,2)>RIGHT($K110,2),BC110,0)) -> 0 | BZ110: =+IF($K110="Ongoing",BD110,IF(RIGHT($K110,2)=RIGHT(BZ$39,2),SUM($AV110:BD110),0)+IF(RIGHT(BZ$39,2)>RIGHT($K110,2),BD110,0)) -> 0 | CA110: =+IF($K110="Ongoing",BE110,IF(RIGHT($K110,2)=RIGHT(CA$39,2),SUM($AV110:BE110),0)+IF(RIGHT(CA$39,2)>RIGHT($K110,2),BE110,0)) -> 0 | CC110: =+O110*KeyAssumptionsPriceControl_FO!X$15 -> 0 | CD110: =+P110*KeyAssumptionsPriceControl_FO!Y$15 -> 0 | CE110: =+Q110*KeyAssumptionsPriceControl_FO!Z$15 -> 0 | CF110: =+R110*KeyAssumptionsPriceControl_FO!AA$15 -> 0 | CG110: =+S110*KeyAssumptionsPriceControl_FO!AB$15 -> 0 | CH110: =+T110*KeyAssumptionsPriceControl_FO!AC$15 -> 0 | CI110: =+U110*KeyAssumptionsPriceControl_FO!AD$15 -> 0 | CJ110: =+V110*KeyAssumptionsPriceControl_FO!AE$15 -> 0 | CK110: =+W110*KeyAssumptionsPriceControl_FO!AF$15 -> 0 | CL110: =+X110*KeyAssumptionsPriceControl_FO!AG$15 -> 0 | CN110: 0 | CO110: 0 | CP110: 0 | CQ110: 0 | CR110: 0 | CS110: 0 | CT110: 0 | CU110: 0 | CV110: 0 | CW110: 0
C111: [Capex Item - Significant Project / Capital Program / Other Capex] | E111: [Service] | F111: [Major Cost Driver] | G111: [Asset category] | H111: [Capital type] | J111: Straight line | K111: [Year finalised?] | AV111: 0 | AW111: 0 | AX111: 0 | AY111: 0 | AZ111: 0 | BA111: 0 | BB111: 0 | BC111: 0 | BD111: 0 | BE111: 0 | BG111: 0 | BH111: 0 | BI111: 0 | BJ111: 0 | BK111: 0 | BL111: 0 | BM111: 0 | BN111: 0 | BO111: 0 | BP111: 0 | BR111: =+IF($K111="Ongoing",AV111,IF(RIGHT($K111,2)=RIGHT(BR$39,2),SUM($AV111:AV111),0)+IF(RIGHT(BR$39,2)>RIGHT($K111,2),AV111,0)) -> 0 | BS111: =+IF($K111="Ongoing",AW111,IF(RIGHT($K111,2)=RIGHT(BS$39,2),SUM($AV111:AW111),0)+IF(RIGHT(BS$39,2)>RIGHT($K111,2),AW111,0)) -> 0 | BT111: =+IF($K111="Ongoing",AX111,IF(RIGHT($K111,2)=RIGHT(BT$39,2),SUM($AV111:AX111),0)+IF(RIGHT(BT$39,2)>RIGHT($K111,2),AX111,0)) -> 0 | BU111: =+IF($K111="Ongoing",AY111,IF(RIGHT($K111,2)=RIGHT(BU$39,2),SUM($AV111:AY111),0)+IF(RIGHT(BU$39,2)>RIGHT($K111,2),AY111,0)) -> 0 | BV111: =+IF($K111="Ongoing",AZ111,IF(RIGHT($K111,2)=RIGHT(BV$39,2),SUM($AV111:AZ111),0)+IF(RIGHT(BV$39,2)>RIGHT($K111,2),AZ111,0)) -> 0 | BW111: =+IF($K111="Ongoing",BA111,IF(RIGHT($K111,2)=RIGHT(BW$39,2),SUM($AV111:BA111),0)+IF(RIGHT(BW$39,2)>RIGHT($K111,2),BA111,0)) -> 0 | BX111: =+IF($K111="Ongoing",BB111,IF(RIGHT($K111,2)=RIGHT(BX$39,2),SUM($AV111:BB111),0)+IF(RIGHT(BX$39,2)>RIGHT($K111,2),BB111,0)) -> 0 | BY111: =+IF($K111="Ongoing",BC111,IF(RIGHT($K111,2)=RIGHT(BY$39,2),SUM($AV111:BC111),0)+IF(RIGHT(BY$39,2)>RIGHT($K111,2),BC111,0)) -> 0 | BZ111: =+IF($K111="Ongoing",BD111,IF(RIGHT($K111,2)=RIGHT(BZ$39,2),SUM($AV111:BD111),0)+IF(RIGHT(BZ$39,2)>RIGHT($K111,2),BD111,0)) -> 0 | CA111: =+IF($K111="Ongoing",BE111,IF(RIGHT($K111,2)=RIGHT(CA$39,2),SUM($AV111:BE111),0)+IF(RIGHT(CA$39,2)>RIGHT($K111,2),BE111,0)) -> 0 | CC111: =+O111*KeyAssumptionsPriceControl_FO!X$15 -> 0 | CD111: =+P111*KeyAssumptionsPriceControl_FO!Y$15 -> 0 | CE111: =+Q111*KeyAssumptionsPriceControl_FO!Z$15 -> 0 | CF111: =+R111*KeyAssumptionsPriceControl_FO!AA$15 -> 0 | CG111: =+S111*KeyAssumptionsPriceControl_FO!AB$15 -> 0 | CH111: =+T111*KeyAssumptionsPriceControl_FO!AC$15 -> 0 | CI111: =+U111*KeyAssumptionsPriceControl_FO!AD$15 -> 0 | CJ111: =+V111*KeyAssumptionsPriceControl_FO!AE$15 -> 0 | CK111: =+W111*KeyAssumptionsPriceControl_FO!AF$15 -> 0 | CL111: =+X111*KeyAssumptionsPriceControl_FO!AG$15 -> 0 | CN111: 0 | CO111: 0 | CP111: 0 | CQ111: 0 | CR111: 0 | CS111: 0 | CT111: 0 | CU111: 0 | CV111: 0 | CW111: 0
C112: [Capex Item - Significant Project / Capital Program / Other Capex] | E112: [Service] | F112: [Major Cost Driver] | G112: [Asset category] | H112: [Capital type] | J112: Straight line | K112: [Year finalised?] | AV112: 0 | AW112: 0 | AX112: 0 | AY112: 0 | AZ112: 0 | BA112: 0 | BB112: 0 | BC112: 0 | BD112: 0 | BE112: 0 | BG112: 0 | BH112: 0 | BI112: 0 | BJ112: 0 | BK112: 0 | BL112: 0 | BM112: 0 | BN112: 0 | BO112: 0 | BP112: 0 | BR112: =+IF($K112="Ongoing",AV112,IF(RIGHT($K112,2)=RIGHT(BR$39,2),SUM($AV112:AV112),0)+IF(RIGHT(BR$39,2)>RIGHT($K112,2),AV112,0)) -> 0 | BS112: =+IF($K112="Ongoing",AW112,IF(RIGHT($K112,2)=RIGHT(BS$39,2),SUM($AV112:AW112),0)+IF(RIGHT(BS$39,2)>RIGHT($K112,2),AW112,0)) -> 0 | BT112: =+IF($K112="Ongoing",AX112,IF(RIGHT($K112,2)=RIGHT(BT$39,2),SUM($AV112:AX112),0)+IF(RIGHT(BT$39,2)>RIGHT($K112,2),AX112,0)) -> 0 | BU112: =+IF($K112="Ongoing",AY112,IF(RIGHT($K112,2)=RIGHT(BU$39,2),SUM($AV112:AY112),0)+IF(RIGHT(BU$39,2)>RIGHT($K112,2),AY112,0)) -> 0 | BV112: =+IF($K112="Ongoing",AZ112,IF(RIGHT($K112,2)=RIGHT(BV$39,2),SUM($AV112:AZ112),0)+IF(RIGHT(BV$39,2)>RIGHT($K112,2),AZ112,0)) -> 0 | BW112: =+IF($K112="Ongoing",BA112,IF(RIGHT($K112,2)=RIGHT(BW$39,2),SUM($AV112:BA112),0)+IF(RIGHT(BW$39,2)>RIGHT($K112,2),BA112,0)) -> 0 | BX112: =+IF($K112="Ongoing",BB112,IF(RIGHT($K112,2)=RIGHT(BX$39,2),SUM($AV112:BB112),0)+IF(RIGHT(BX$39,2)>RIGHT($K112,2),BB112,0)) -> 0 | BY112: =+IF($K112="Ongoing",BC112,IF(RIGHT($K112,2)=RIGHT(BY$39,2),SUM($AV112:BC112),0)+IF(RIGHT(BY$39,2)>RIGHT($K112,2),BC112,0)) -> 0 | BZ112: =+IF($K112="Ongoing",BD112,IF(RIGHT($K112,2)=RIGHT(BZ$39,2),SUM($AV112:BD112),0)+IF(RIGHT(BZ$39,2)>RIGHT($K112,2),BD112,0)) -> 0 | CA112: =+IF($K112="Ongoing",BE112,IF(RIGHT($K112,2)=RIGHT(CA$39,2),SUM($AV112:BE112),0)+IF(RIGHT(CA$39,2)>RIGHT($K112,2),BE112,0)) -> 0 | CC112: =+O112*KeyAssumptionsPriceControl_FO!X$15 -> 0 | CD112: =+P112*KeyAssumptionsPriceControl_FO!Y$15 -> 0 | CE112: =+Q112*KeyAssumptionsPriceControl_FO!Z$15 -> 0 | CF112: =+R112*KeyAssumptionsPriceControl_FO!AA$15 -> 0 | CG112: =+S112*KeyAssumptionsPriceControl_FO!AB$15 -> 0 | CH112: =+T112*KeyAssumptionsPriceControl_FO!AC$15 -> 0 | CI112: =+U112*KeyAssumptionsPriceControl_FO!AD$15 -> 0 | CJ112: =+V112*KeyAssumptionsPriceControl_FO!AE$15 -> 0 | CK112: =+W112*KeyAssumptionsPriceControl_FO!AF$15 -> 0 | CL112: =+X112*KeyAssumptionsPriceControl_FO!AG$15 -> 0 | CN112: 0 | CO112: 0 | CP112: 0 | CQ112: 0 | CR112: 0 | CS112: 0 | CT112: 0 | CU112: 0 | CV112: 0 | CW112: 0
C113: [Capex Item - Significant Project / Capital Program / Other Capex] | E113: [Service] | F113: [Major Cost Driver] | G113: [Asset category] | H113: [Capital type] | J113: Straight line | K113: [Year finalised?] | AV113: 0 | AW113: 0 | AX113: 0 | AY113: 0 | AZ113: 0 | BA113: 0 | BB113: 0 | BC113: 0 | BD113: 0 | BE113: 0 | BG113: 0 | BH113: 0 | BI113: 0 | BJ113: 0 | BK113: 0 | BL113: 0 | BM113: 0 | BN113: 0 | BO113: 0 | BP113: 0 | BR113: =+IF($K113="Ongoing",AV113,IF(RIGHT($K113,2)=RIGHT(BR$39,2),SUM($AV113:AV113),0)+IF(RIGHT(BR$39,2)>RIGHT($K113,2),AV113,0)) -> 0 | BS113: =+IF($K113="Ongoing",AW113,IF(RIGHT($K113,2)=RIGHT(BS$39,2),SUM($AV113:AW113),0)+IF(RIGHT(BS$39,2)>RIGHT($K113,2),AW113,0)) -> 0 | BT113: =+IF($K113="Ongoing",AX113,IF(RIGHT($K113,2)=RIGHT(BT$39,2),SUM($AV113:AX113),0)+IF(RIGHT(BT$39,2)>RIGHT($K113,2),AX113,0)) -> 0 | BU113: =+IF($K113="Ongoing",AY113,IF(RIGHT($K113,2)=RIGHT(BU$39,2),SUM($AV113:AY113),0)+IF(RIGHT(BU$39,2)>RIGHT($K113,2),AY113,0)) -> 0 | BV113: =+IF($K113="Ongoing",AZ113,IF(RIGHT($K113,2)=RIGHT(BV$39,2),SUM($AV113:AZ113),0)+IF(RIGHT(BV$39,2)>RIGHT($K113,2),AZ113,0)) -> 0 | BW113: =+IF($K113="Ongoing",BA113,IF(RIGHT($K113,2)=RIGHT(BW$39,2),SUM($AV113:BA113),0)+IF(RIGHT(BW$39,2)>RIGHT($K113,2),BA113,0)) -> 0 | BX113: =+IF($K113="Ongoing",BB113,IF(RIGHT($K113,2)=RIGHT(BX$39,2),SUM($AV113:BB113),0)+IF(RIGHT(BX$39,2)>RIGHT($K113,2),BB113,0)) -> 0 | BY113: =+IF($K113="Ongoing",BC113,IF(RIGHT($K113,2)=RIGHT(BY$39,2),SUM($AV113:BC113),0)+IF(RIGHT(BY$39,2)>RIGHT($K113,2),BC113,0)) -> 0 | BZ113: =+IF($K113="Ongoing",BD113,IF(RIGHT($K113,2)=RIGHT(BZ$39,2),SUM($AV113:BD113),0)+IF(RIGHT(BZ$39,2)>RIGHT($K113,2),BD113,0)) -> 0 | CA113: =+IF($K113="Ongoing",BE113,IF(RIGHT($K113,2)=RIGHT(CA$39,2),SUM($AV113:BE113),0)+IF(RIGHT(CA$39,2)>RIGHT($K113,2),BE113,0)) -> 0 | CC113: =+O113*KeyAssumptionsPriceControl_FO!X$15 -> 0 | CD113: =+P113*KeyAssumptionsPriceControl_FO!Y$15 -> 0 | CE113: =+Q113*KeyAssumptionsPriceControl_FO!Z$15 -> 0 | CF113: =+R113*KeyAssumptionsPriceControl_FO!AA$15 -> 0 | CG113: =+S113*KeyAssumptionsPriceControl_FO!AB$15 -> 0 | CH113: =+T113*KeyAssumptionsPriceControl_FO!AC$15 -> 0 | CI113: =+U113*KeyAssumptionsPriceControl_FO!AD$15 -> 0 | CJ113: =+V113*KeyAssumptionsPriceControl_FO!AE$15 -> 0 | CK113: =+W113*KeyAssumptionsPriceControl_FO!AF$15 -> 0 | CL113: =+X113*KeyAssumptionsPriceControl_FO!AG$15 -> 0 | CN113: 0 | CO113: 0 | CP113: 0 | CQ113: 0 | CR113: 0 | CS113: 0 | CT113: 0 | CU113: 0 | CV113: 0 | CW113: 0
